Workbook

Sheet LCOE Calculator
E1: Financial Model Test - Nominal | F1: =K147 -> TRUE
E2: Financial Model Test - Real | F2: =J249 -> TRUE | H2: 1 | I2: 2 | J2: 3 | K2: 4 | L2: 5 | M2: 6 | N2: 7 | O2: 8 | P2: 9 | Q2: 10 | R2: 11 | S2: 12 | T2: 13 | U2: 14 | V2: 15 | W2: 16 | X2: 17 | Y2: 18 | Z2: 19 | AA2: 20 | AB2: 21 | AC2: 22 | AD2: 23 | AE2: 24 | AF2: 25 | AG2: 24 | AH2: 27 | AI2: 28 | AJ2: 29 | AK2: 30 | AL2: 31 | AM2: 32 | AN2: 33 | AO2: 34 | AP2: 35 | AQ2: 36 | AR2: 37 | AS2: 38 | AT2: 39 | AU2: 40 | AV2: 41 | AW2: 42 | AX2: 43 | AY2: 44 | AZ2: 45 | BA2: 46 | BB2: 47 | BC2: 48 | BD2: 49 | BE2: 50 | BF2: Applied in Mode
C3: Case Description | E3: Code Number | F3: 7 | G3: Simple Taxes with St Line Depreciation | H3: No tax and No Inflation | I3: Simple Taxes with St Line Depreciation | J3: Simple Taxes and Inflation | K3: Accelerated Depreciation | L3: ITC and Accelerated Depreciation | M3: Prior Case with Debt Financing | N3: Prior Case with Degradation | O3: Battery No tax and No Inflation | P3: Battery No Taxes and Inflation | Q3: Simple Taxes with St Line Depreciation | R3: Battery Accelerated Depreciation | S3: ITC and Accelerated Depreciation | T3: Prior Case with Debt Financing | U3: Prior Case with Degradation | V3: NREL | W3: NREL with ITC | BF3: =INDEX(H3:BE3,$F$3) -> Prior Case with Degradation
C5: Carrying Charge Rate on Capital Costs - Nominal | H5: =H100 -> 0.08634671853 | I5: =I100 -> 0.1083950412 | J5: 0.1083950412 | K5: 0.09143784571 | L5: 0.06396054603 | M5: 0.03815138121 | N5: 0.04093569874 | O5: 0.1394349572 | P5: 0.1355761513 | Q5: 0.1576551301 | R5: 0.1435699169 | S5: 0.1004268004 | T5: 0.07698385184 | U5: 0.1176582638 | V5: 0.06262006629 | W5: 0.0438450915 | X5: 0.05755147553 | Y5: 0.05755147553 | Z5: 0.05755147553 | AA5: 0.05755147553 | AB5: 0.05755147553 | AC5: 0.05755147553 | AD5: 0.05755147553 | AE5: 0.05755147553 | AF5: 0.05755147553 | AG5: 0.05755147553 | AH5: 0.05755147553 | AI5: 0.05755147553 | AJ5: 0.05755147553 | AK5: 0.05755147553 | AL5: 0.05755147553 | AM5: 0.05755147553 | AN5: 0.05755147553 | AO5: 0.05755147553 | AP5: 0.05643230559 | AQ5: 0.05643230559 | AR5: 0.05643230559 | AS5: 0.05643230559 | AT5: 0.05643230559 | AU5: 0.05643230559 | AV5: 0.05643230559 | AW5: 0.05643230559 | AX5: 0.05643230559 | AY5: 0.05643230559 | AZ5: 0.05643230559 | BA5: 0.05643230559 | BB5: 0.05643230559 | BC5: 0.05643230559 | BD5: 0.05643230559 | BE5: 0.05755147553 | BF5: =INDEX(H5:BE5,$F$3) -> 0.04093569874
C6: Carrying Charge Rate on Capital Costs - Real | H6: =H101 -> 0.08634671853 | I6: =I101 -> 0.1083950412 | J6: 0.08029911107 | K6: 0.06773721054 | L6: 0.04738201058 | M6: 0.02603169143 | N6: 0.02826937985 | O6: 0.1394349572 | P6: 0.1210050239 | Q6: 0.1407110514 | R6: 0.1281396548 | S6: 0.08963337037 | T6: 0.06812633726 | U6: 0.1043661552 | V6: 0.04503632858 | W6: 0.03153337364 | X6: 0.03953883889 | Y6: 0.03953883889 | Z6: 0.03953883889 | AA6: 0.03953883889 | AB6: 0.03953883889 | AC6: 0.03953883889 | AD6: 0.03953883889 | AE6: 0.03953883889 | AF6: 0.03953883889 | AG6: 0.03953883889 | AH6: 0.03953883889 | AI6: 0.03953883889 | AJ6: 0.03953883889 | AK6: 0.03953883889 | AL6: 0.03953883889 | AM6: 0.03953883889 | AN6: 0.03953883889 | AO6: 0.03953883889 | AP6: 0.03876995018 | AQ6: 0.03876995018 | AR6: 0.03876995018 | AS6: 0.03876995018 | AT6: 0.03876995018 | AU6: 0.03876995018 | AV6: 0.03876995018 | AW6: 0.03876995018 | AX6: 0.03876995018 | AY6: 0.03876995018 | AZ6: 0.03876995018 | BA6: 0.03876995018 | BB6: 0.03876995018 | BC6: 0.03876995018 | BD6: 0.03876995018 | BE6: 0.03953883889 | BF6: =INDEX(H6:BE6,$F$3) -> 0.02826937985
C8: Resulting Levelised Cost per Unit Nominal | H8: =H124 -> 30.1735647 | I8: =I124 -> 36.71310828 | J8: 38.30969018 | K8: 33.28017748 | L8: 25.1303966 | M8: 18.00325897 | N8: 19.31715084 | O8: 46.0494387 | P8: 45.32451459 | Q8: 51.87315078 | R8: 47.69546948 | S8: 34.89919947 | T8: 27.9898078 | U8: 40.37415354 | V8: 24.91781354 | W8: 19.34914659 | X8: 23.71167731 | Y8: 23.71167731 | Z8: 23.71167731 | AA8: 23.71167731 | AB8: 23.71167731 | AC8: 23.71167731 | AD8: 23.71167731 | AE8: 23.71167731 | AF8: 23.71167731 | AG8: 23.71167731 | AH8: 23.71167731 | AI8: 23.71167731 | AJ8: 23.71167731 | AK8: 23.71167731 | AL8: 23.71167731 | AM8: 23.71167731 | AN8: 23.71167731 | AO8: 23.71167731 | AP8: 23.37973095 | AQ8: 23.37973095 | AR8: 23.37973095 | AS8: 23.37973095 | AT8: 23.37973095 | AU8: 23.37973095 | AV8: 23.37973095 | AW8: 23.37973095 | AX8: 23.37973095 | AY8: 23.37973095 | AZ8: 23.37973095 | BA8: 23.37973095 | BB8: 23.37973095 | BC8: 23.37973095 | BD8: 23.37973095 | BE8: 23.71167731 | BF8: =INDEX(H8:BE8,$F$3) -> 19.31715084
C9: Resulting Levelised Cost per Unit Real | H9: =H123 -> 30.1735647 | I9: =I123 -> 36.71310828 | J9: 28.3798413 | K9: 24.65397529 | L9: 18.61661277 | M9: 12.28409739 | N9: 13.34004039 | O9: 46.0494387 | P9: 40.45323547 | Q9: 46.29805311 | R9: 42.56937058 | S9: 31.14838729 | T9: 24.76939047 | U9: 35.81299807 | V9: 17.92088231 | W9: 13.91589909 | X9: 16.29032411 | Y9: 16.29032411 | Z9: 16.29032411 | AA9: 16.29032411 | AB9: 16.29032411 | AC9: 16.29032411 | AD9: 16.29032411 | AE9: 16.29032411 | AF9: 16.29032411 | AG9: 16.29032411 | AH9: 16.29032411 | AI9: 16.29032411 | AJ9: 16.29032411 | AK9: 16.29032411 | AL9: 16.29032411 | AM9: 16.29032411 | AN9: 16.29032411 | AO9: 16.29032411 | AP9: 16.06227133 | AQ9: 16.06227133 | AR9: 16.06227133 | AS9: 16.06227133 | AT9: 16.06227133 | AU9: 16.06227133 | AV9: 16.06227133 | AW9: 16.06227133 | AX9: 16.06227133 | AY9: 16.06227133 | AZ9: 16.06227133 | BA9: 16.06227133 | BB9: 16.06227133 | BC9: 16.06227133 | BD9: 16.06227133 | BE9: 16.29032411 | BF9: =INDEX(H9:BE9,$F$3) -> 13.34004039
B11: Project Inputs
D12: Size in MW per Hour | E12: MW | H12: 1 | I12: =H12 -> 1 | J12: =I12 -> 1 | K12: =J12 -> 1 | L12: =K12 -> 1 | M12: =L12 -> 1 | N12: 1 | O12: 1 | P12: 1 | Q12: 1 | R12: 1 | S12: 1 | T12: 1 | U12: 1 | V12: 1 | W12: 1 | X12: 1 | Y12: 1 | Z12: =Y12 -> 1 | AA12: 1 | AB12: 1 | AC12: 1 | AD12: 1 | AE12: 1 | AF12: 1 | AG12: 1 | AH12: 1 | AI12: 1 | AJ12: 1 | AK12: 1 | AL12: 1 | AM12: 1 | AN12: 1 | AO12: 1 | AP12: 1 | AQ12: 1 | AR12: 1 | AS12: 1 | AT12: 1 | AU12: 1 | AV12: 1 | AW12: 1 | AX12: 1 | AY12: 1 | AZ12: 1 | BA12: 1 | BB12: 1 | BC12: 1 | BD12: 1 | BE12: 1 | BF12: =INDEX(H12:BE12,$F$3) -> 1
D13: Size in Battery kWh | E13: MWH
D14: Cost/kW | E14: USD/kW | F14: 650 | H14: =$F$14 -> 650 | I14: =$F$14 -> 650 | J14: 650 | K14: 650 | L14: 650 | M14: 650 | N14: 650 | O14: 650 | P14: 650 | Q14: 650 | R14: 650 | S14: 650 | T14: 650 | U14: 650 | V14: 650 | W14: 650 | X14: 650 | Y14: 650 | Z14: 650 | AA14: 650 | AB14: 650 | AC14: 650 | AD14: 650 | AE14: 650 | AF14: 650 | AG14: 650 | AH14: 650 | AI14: 650 | AJ14: 650 | AK14: 650 | AL14: 650 | AM14: 650 | AN14: 650 | AO14: 650 | AP14: 650 | AQ14: 650 | AR14: 650 | AS14: 650 | AT14: 650 | AU14: 650 | AV14: 650 | AW14: 650 | AX14: 650 | AY14: 650 | AZ14: 650 | BA14: 650 | BB14: 650 | BC14: 650 | BD14: 650 | BE14: 650 | BF14: =INDEX(H14:BE14,$F$3) -> 650
D15: Cost/kWh | E15: USD/kWh
D17: Total Up-Front Cost (No Construction) | E17: USD Up-front | H17: =H14*H12*1000 -> 650000 | I17: =I14*I12*1000 -> 650000 | J17: 650000 | K17: 650000 | L17: 650000 | M17: 650000 | N17: 650000 | O17: 650000 | P17: 650000 | Q17: 650000 | R17: 650000 | S17: 650000 | T17: 650000 | U17: 650000 | V17: 650000 | W17: 650000 | X17: 650000 | Y17: 650000 | Z17: 650000 | AA17: 650000 | AB17: 650000 | AC17: 650000 | AD17: 650000 | AE17: 650000 | AF17: 650000 | AG17: 650000 | AH17: 650000 | AI17: 650000 | AJ17: 650000 | AK17: 650000 | AL17: 650000 | AM17: 650000 | AN17: 650000 | AO17: 650000 | AP17: 650000 | AQ17: 650000 | AR17: 650000 | AS17: 650000 | AT17: 650000 | AU17: 650000 | AV17: 650000 | AW17: 650000 | AX17: 650000 | AY17: 650000 | AZ17: 650000 | BA17: 650000 | BB17: 650000 | BC17: =BC14*BC12*1000 -> 650000 | BD17: =BD14*BD12*1000 -> 650000 | BE17: =BE14*BE12*1000 -> 650000 | BF17: =INDEX(H17:BE17,$F$3) -> 650000
D19: Capacity Factor | E19: % | H19: 0.25 | I19: 0.25 | J19: 0.25 | K19: 0.25 | L19: 0.25 | M19: 0.25 | N19: 0.25 | O19: 0.25 | P19: 0.25 | Q19: 0.25 | R19: 0.25 | S19: 0.25 | T19: 0.25 | U19: 0.25 | V19: 0.25 | W19: 0.25 | X19: 0.25 | Y19: 0.25 | Z19: 0.25 | AA19: 0.25 | AB19: 0.25 | AC19: 0.25 | AD19: 0.25 | AE19: 0.25 | AF19: 0.25 | AG19: 0.25 | AH19: 0.25 | AI19: 0.25 | AJ19: 0.25 | AK19: 0.25 | AL19: 0.25 | AM19: 0.25 | AN19: 0.25 | AO19: 0.25 | AP19: 0.25 | AQ19: 0.25 | AR19: 0.25 | AS19: 0.25 | AT19: 0.25 | AU19: 0.25 | AV19: 0.25 | AW19: 0.25 | AX19: 0.25 | AY19: 0.25 | AZ19: 0.25 | BA19: 0.25 | BB19: 0.25 | BC19: 0.25 | BD19: 0.25 | BE19: 0.25 | BF19: =INDEX(H19:BE19,$F$3) -> 0.25
D20: Battery Round Trip Efficiency | E20: %
D21: Hours of Operation at Load Factor | E21: Hours/Year | H21: =H19*8766 -> 2191.5 | I21: =I19*8766 -> 2191.5 | J21: 2191.5 | K21: 2191.5 | L21: 2191.5 | M21: 2191.5 | N21: 2191.5 | O21: 2191.5 | P21: 2191.5 | Q21: 2191.5 | R21: 2191.5 | S21: 2191.5 | T21: 2191.5 | U21: 2191.5 | V21: 2191.5 | W21: 2191.5 | X21: 2191.5 | Y21: 2191.5 | Z21: 2191.5 | AA21: 2191.5 | AB21: 2191.5 | AC21: 2191.5 | AD21: 2191.5 | AE21: 2191.5 | AF21: 2191.5 | AG21: 2191.5 | AH21: 2191.5 | AI21: 2191.5 | AJ21: 2191.5 | AK21: 2191.5 | AL21: 2191.5 | AM21: 2191.5 | AN21: 2191.5 | AO21: 2191.5 | AP21: 2191.5 | AQ21: 2191.5 | AR21: 2191.5 | AS21: 2191.5 | AT21: 2191.5 | AU21: 2191.5 | AV21: 2191.5 | AW21: 2191.5 | AX21: 2191.5 | AY21: 2191.5 | AZ21: 2191.5 | BA21: 2191.5 | BB21: 2191.5 | BC21: =BC19*8766 -> 2191.5 | BD21: =BD19*8766 -> 2191.5 | BE21: =BE19*8766 -> 2191.5 | BF21: =INDEX(H21:BE21,$F$3) -> 2191.5
D22: Annual Energy | E22: MWh/Year | H22: =H12*H21 -> 2191.5 | I22: =I12*I21 -> 2191.5 | J22: 2191.5 | K22: 2191.5 | L22: 2191.5 | M22: 2191.5 | N22: 2191.5 | O22: 2191.5 | P22: 2191.5 | Q22: 2191.5 | R22: 2191.5 | S22: 2191.5 | T22: 2191.5 | U22: 2191.5 | V22: 2191.5 | W22: 2191.5 | X22: 2191.5 | Y22: 2191.5 | Z22: 2191.5 | AA22: 2191.5 | AB22: 2191.5 | AC22: 2191.5 | AD22: 2191.5 | AE22: 2191.5 | AF22: 2191.5 | AG22: 2191.5 | AH22: 2191.5 | AI22: 2191.5 | AJ22: 2191.5 | AK22: 2191.5 | AL22: 2191.5 | AM22: 2191.5 | AN22: 2191.5 | AO22: 2191.5 | AP22: 2191.5 | AQ22: 2191.5 | AR22: 2191.5 | AS22: 2191.5 | AT22: 2191.5 | AU22: 2191.5 | AV22: 2191.5 | AW22: 2191.5 | AX22: 2191.5 | AY22: 2191.5 | AZ22: 2191.5 | BA22: 2191.5 | BB22: 2191.5 | BC22: =BC12*BC21 -> 2191.5 | BD22: =BD12*BD21 -> 2191.5 | BE22: =BE12*BE21 -> 2191.5 | BF22: =INDEX(H22:BE22,$F$3) -> 2191.5
D23: MW Hours/Yr | E23: Units/year | H23: =8766*H19*H12 -> 2191.5 | I23: =8766*I19*I12 -> 2191.5 | J23: 2191.5 | K23: 2191.5 | L23: 2191.5 | M23: 2191.5 | N23: 2191.5 | O23: 2191.5 | P23: 2191.5 | Q23: 2191.5 | R23: 2191.5 | S23: 2191.5 | T23: 2191.5 | U23: 2191.5 | V23: 2191.5 | W23: 2191.5 | X23: 2191.5 | Y23: 2191.5 | Z23: 2191.5 | AA23: 2191.5 | AB23: 2191.5 | AC23: 2191.5 | AD23: 2191.5 | AE23: 2191.5 | AF23: 2191.5 | AG23: 2191.5 | AH23: 2191.5 | AI23: 2191.5 | AJ23: 2191.5 | AK23: 2191.5 | AL23: 2191.5 | AM23: 2191.5 | AN23: 2191.5 | AO23: 2191.5 | AP23: 2191.5 | AQ23: 2191.5 | AR23: 2191.5 | AS23: 2191.5 | AT23: 2191.5 | AU23: 2191.5 | AV23: 2191.5 | AW23: 2191.5 | AX23: 2191.5 | AY23: 2191.5 | AZ23: 2191.5 | BA23: 2191.5 | BB23: 2191.5 | BC23: =8766*BC19*BC12 -> 2191.5 | BD23: =8766*BD19*BD12 -> 2191.5 | BE23: =8766*BE19*BE12 -> 2191.5 | BF23: =INDEX(H23:BE23,$F$3) -> 2191.5
D25: Capacity | E25: MW
D27: Battery as Percent of Cap Exp | E27: %
D28: Fixed O&M | E28: USD/kW-Year | H28: 10 | I28: 10 | J28: 10 | K28: 10 | L28: 10 | M28: 10 | N28: 10 | O28: 10 | P28: 10 | Q28: 10 | R28: 10 | S28: 10 | T28: 10 | U28: 10 | V28: 10 | W28: 10 | X28: 10 | Y28: 10 | Z28: 10 | AA28: 10 | AB28: 10 | AC28: 10 | AD28: 10 | AE28: 10 | AF28: 10 | AG28: 10 | AH28: 10 | AI28: 10 | AJ28: 10 | AK28: 10 | AL28: 10 | AM28: 10 | AN28: 10 | AO28: 10 | AP28: 10 | AQ28: 10 | AR28: 10 | AS28: 10 | AT28: 10 | AU28: 10 | AV28: 10 | AW28: 10 | AX28: 10 | AY28: 10 | AZ28: 10 | BA28: 10 | BB28: 10 | BC28: 10 | BD28: 10 | BE28: 10 | BF28: =INDEX(H28:AS28,$F$3) -> 10
D30: Heat Rate | E30: MMBTU/MWH
D31: Natural Gas Price/Diesel Price | E31: USD/MMBTU | F31: =J31 -> 0
D32: Natural Gas Cost per MWH | E32: USD/MWH
D33: Variable Cost of NGCC | E33: USD/MWH
D34: Total Variable Cost | E34: USD/MWH
D36: MMBTU Used | E36: MMBTU
D37: Tons CO2/MWH | E37: Tons/MWH
D38: Tons CO2 | E38: Tons
D39: Tons CO2/MMBTU | E39: Tons/MMBTU
D40: Carbon Cost/Ton | E40: USD/Ton
D41: Total Variable Cost of Emissions | E41: USD
D42: Total Variable Cost of Emissions | E42: USD/MWH
D44: Total Variable Cost | E44: USD/Year
D46: Energy Purchased for Battery | E46: MWH/Year
D47: Cost of Energy Purchased | E47: USD/MWH
D48: Battery Charging Cost (Peaker) | E48: USD/MWH
D49: Fixed O&M | E49: USD/kW-Year | H49: =H51/H12/1000 -> 10 | I49: =I51/I12/1000 -> 10 | J49: 10 | K49: 10 | L49: 10 | M49: 10 | N49: 10 | O49: 10 | P49: 10 | Q49: 10 | R49: 10 | S49: 10 | T49: 10 | U49: 10 | V49: 10 | W49: 10 | X49: 10 | Y49: 10 | Z49: 10 | AA49: 10 | AB49: 10 | AC49: 10 | AD49: 10 | AE49: 10 | AF49: 10 | AG49: 10 | AH49: 10 | AI49: 10 | AJ49: 10 | AK49: 10 | AL49: 10 | AM49: 10 | AN49: 10 | AO49: 10 | AP49: 10 | AQ49: 10 | AR49: 10 | AS49: 10 | AT49: 10 | AU49: 10 | AV49: 10 | AW49: 10 | AX49: 10 | AY49: 10 | AZ49: 10 | BA49: 10 | BB49: 10 | BC49: =BC51/BC12/1000 -> 10 | BD49: =BD51/BD12/1000 -> 10 | BE49: =BE51/BE12/1000 -> 10 | BF49: =INDEX(H49:AS49,$F$3) -> 10
D51: Total O&M Cost per Year | E51: USD/year | H51: =H28*H12*1000+H44 -> 10000 | I51: =I28*I12*1000+I44 -> 10000 | J51: 10000 | K51: 10000 | L51: 10000 | M51: 10000 | N51: 10000 | O51: 10000 | P51: 10000 | Q51: 10000 | R51: 10000 | S51: 10000 | T51: 10000 | U51: 10000 | V51: 10000 | W51: 10000 | X51: 10000 | Y51: 10000 | Z51: 10000 | AA51: 10000 | AB51: 10000 | AC51: 10000 | AD51: 10000 | AE51: 10000 | AF51: 10000 | AG51: 10000 | AH51: 10000 | AI51: 10000 | AJ51: 10000 | AK51: 10000 | AL51: 10000 | AM51: 10000 | AN51: 10000 | AO51: 10000 | AP51: 10000 | AQ51: 10000 | AR51: 10000 | AS51: 10000 | AT51: 10000 | AU51: 10000 | AV51: 10000 | AW51: 10000 | AX51: 10000 | AY51: 10000 | AZ51: 10000 | BA51: 10000 | BB51: 10000 | BC51: =BC28*BC12*1000+BC44 -> 10000 | BD51: =BD28*BD12*1000+BD44 -> 10000 | BE51: =BE28*BE12*1000+BE44 -> 10000 | BF51: =INDEX(H51:BE51,$F$3) -> 10000
B53: Capital Charge Inputs
D54: Total Plant Life | E54: Years | F54: 35 | H54: =$F$54 -> 35 | I54: =$F$54 -> 35 | J54: 35 | K54: 35 | L54: 35 | M54: 35 | N54: 35 | O54: 12 | P54: 12 | Q54: 12 | R54: 12 | S54: 12 | T54: 12 | U54: 12 | V54: =NREL!G4 -> 30 | W54: 30 | X54: 35 | Y54: 35 | Z54: 35 | AA54: 35 | AB54: 35 | AC54: 35 | AD54: 35 | AE54: 35 | AF54: 35 | AG54: 35 | AH54: 35 | AI54: 35 | AJ54: 35 | AK54: 35 | AL54: 35 | AM54: 35 | AN54: 35 | AO54: 35 | AP54: 35 | AQ54: 35 | AR54: 35 | AS54: 35 | AT54: 35 | AU54: 35 | AV54: 35 | AW54: 35 | AX54: 35 | AY54: 35 | AZ54: 35 | BA54: 35 | BB54: 35 | BC54: 35 | BD54: 35 | BE54: 35 | BF54: =INDEX(H54:BE54,$F$3) -> 35
D56: Construction Period | E56: Years | H56: 0.5 | I56: 0.5 | J56: 0.5 | K56: 0.5 | L56: 0.5 | M56: 0.5 | N56: 0.5 | O56: 0.5 | P56: 0.5 | Q56: 0.5 | R56: 0.5 | S56: 0.5 | T56: 0.5 | U56: 0.5 | V56: 0.5 | W56: 0.5 | X56: 0.5 | Y56: 0.5 | Z56: 0.5 | AA56: 0.5 | AB56: 0.5 | AC56: 0.5 | AD56: 0.5 | AE56: 0.5 | AF56: 0.5 | AG56: 0.5 | AH56: 0.5 | AI56: 0.5 | AJ56: 0.5 | AK56: 0.5 | AL56: 0.5 | AM56: 0.5 | AN56: 0.5 | AO56: 0.5 | AP56: 0.5 | AQ56: 0.5 | AR56: 0.5 | AS56: 0.5 | AT56: 0.5 | AU56: 0.5 | AV56: 0.5 | AW56: 0.5 | AX56: 0.5 | AY56: 0.5 | AZ56: 0.5 | BA56: 0.5 | BB56: 0.5 | BC56: 0.5 | BD56: 0.5 | BE56: 0.5 | BF56: =INDEX(H56:BE56,$F$3) -> 0.5
D57: Construction Return | E57: % p.a. | H57: =H82 -> 0.077 | I57: =I82 -> 0.077 | J57: 0.077 | K57: 0.077 | L57: 0.077 | M57: 0.03815 | N57: 0.03815 | O57: 0.077 | P57: 0.077 | Q57: 0.077 | R57: 0.077 | S57: 0.077 | T57: 0.03815 | U57: 0.03815 | V57: 0.04236145744 | W57: =V57 -> 0.04236145744 | X57: 0.04110871503 | Y57: 0.04110871503 | Z57: 0.04110871503 | AA57: 0.04110871503 | AB57: 0.04110871503 | AC57: 0.04110871503 | AD57: 0.04110871503 | AE57: 0.04110871503 | AF57: 0.04110871503 | AG57: 0.04110871503 | AH57: 0.04110871503 | AI57: 0.04110871503 | AJ57: 0.04110871503 | AK57: 0.04110871503 | AL57: 0.04110871503 | AM57: 0.04110871503 | AN57: 0.04110871503 | AO57: 0.04110871503 | AP57: 0.04110871503 | AQ57: 0.04110871503 | AR57: 0.04110871503 | AS57: 0.04110871503 | AT57: 0.04110871503 | AU57: 0.04110871503 | AV57: 0.04110871503 | AW57: 0.04110871503 | AX57: 0.04110871503 | AY57: 0.04110871503 | AZ57: 0.04110871503 | BA57: 0.04110871503 | BB57: 0.04110871503 | BC57: 0.04110871503 | BD57: 0.04110871503 | BE57: 0.04110871503 | BF57: =INDEX(H57:BE57,$F$3) -> 0.03815
D58: Construction Factor | E58: Factor | H58: =(1+H57)^(H56) -> 1.037786105 | I58: =(1+I57)^(I56) -> 1.037786105 | J58: 1.037786105 | K58: 1.037786105 | L58: 1.037786105 | M58: 1.018896462 | N58: 1.018896462 | O58: 1.037786105 | P58: 1.037786105 | Q58: 1.037786105 | R58: 1.037786105 | S58: 1.037786105 | T58: 1.018896462 | U58: 1.018896462 | V58: 1.020961046 | W58: =(1+W57)^(W56) -> 1.020961046 | X58: 1.02034735 | Y58: 1.02034735 | Z58: 1.02034735 | AA58: 1.02034735 | AB58: 1.02034735 | AC58: 1.02034735 | AD58: 1.02034735 | AE58: 1.02034735 | AF58: 1.02034735 | AG58: 1.02034735 | AH58: 1.02034735 | AI58: 1.02034735 | AJ58: 1.02034735 | AK58: 1.02034735 | AL58: 1.02034735 | AM58: 1.02034735 | AN58: 1.02034735 | AO58: 1.02034735 | AP58: 1.02034735 | AQ58: 1.02034735 | AR58: 1.02034735 | AS58: 1.02034735 | AT58: 1.02034735 | AU58: 1.02034735 | AV58: 1.02034735 | AW58: 1.02034735 | AX58: 1.02034735 | AY58: 1.02034735 | AZ58: 1.02034735 | BA58: 1.02034735 | BB58: 1.02034735 | BC58: 1.02034735 | BD58: 1.02034735 | BE58: 1.02034735 | BF58: =INDEX(H58:BE58,$F$3) -> 1.018896462
D60: State Income Tax Rate | E60: % p.a. | H60: 0 | I60: 0.07 | J60: 0.07 | K60: 0.07 | L60: 0.07 | M60: 0.07 | N60: 0.07 | O60: 0 | P60: 0 | Q60: 0.07 | R60: 0.07 | S60: 0.07 | T60: 0.07 | U60: 0.07 | V60: 0 | W60: 0 | X60: 0 | Y60: 0 | Z60: 0 | AA60: 0 | AB60: 0 | AC60: 0 | AD60: 0 | AE60: 0 | AF60: 0 | AG60: 0 | AH60: 0 | AI60: 0 | AJ60: 0 | AK60: 0 | AL60: 0 | AM60: 0 | AN60: 0 | AO60: 0 | AP60: 0 | AQ60: 0 | AR60: 0 | AS60: 0 | AT60: 0 | AU60: 0 | AV60: 0 | AW60: 0 | AX60: 0 | AY60: 0 | AZ60: 0 | BA60: 0 | BB60: 0 | BC60: 0 | BD60: 0 | BE60: 0 | BF60: =INDEX(H60:BE60,$F$3) -> 0.07
D61: Federal Income Tax Rate | E61: % p.a. | H61: 0 | I61: 0.21 | J61: 0.21 | K61: 0.21 | L61: 0.21 | M61: 0.21 | N61: 0.21 | O61: 0 | P61: 0 | Q61: 0.21 | R61: 0.21 | S61: 0.21 | T61: 0.21 | U61: 0.21 | V61: =NREL!G11 -> 0.2574 | W61: =V61 -> 0.2574 | X61: 0.3 | Y61: 0.3 | Z61: 0.3 | AA61: 0.3 | AB61: 0.3 | AC61: 0.3 | AD61: 0.3 | AE61: 0.3 | AF61: 0.3 | AG61: 0.3 | AH61: 0.3 | AI61: 0.3 | AJ61: 0.3 | AK61: 0.3 | AL61: 0.3 | AM61: 0.3 | AN61: 0.3 | AO61: 0.3 | AP61: 0.3 | AQ61: 0.3 | AR61: 0.3 | AS61: 0.3 | AT61: 0.3 | AU61: 0.3 | AV61: 0.3 | AW61: 0.3 | AX61: 0.3 | AY61: 0.3 | AZ61: 0.3 | BA61: 0.3 | BB61: 0.3 | BC61: 0.3 | BD61: 0.3 | BE61: 0.3 | BF61: =INDEX(H61:BE61,$F$3) -> 0.21
D62: Total Tax Rate | E62: % p.a. | H62: =H60+H61 -> 0 | I62: =I60+I61 -> 0.28 | J62: =J60+J61 -> 0.28 | K62: =K60+K61 -> 0.28 | L62: 0.28 | M62: 0.28 | N62: 0.28 | O62: 0 | P62: 0 | Q62: 0.28 | R62: 0.28 | S62: 0.28 | T62: 0.28 | U62: 0.28 | V62: 0.2574 | W62: =W60+W61 -> 0.2574 | X62: 0.3 | Y62: 0.3 | Z62: 0.3 | AA62: 0.3 | AB62: 0.3 | AC62: 0.3 | AD62: =AD60+AD61 -> 0.3 | AE62: 0.3 | AF62: 0.3 | AG62: 0.3 | AH62: 0.3 | AI62: 0.3 | AJ62: 0.3 | AK62: 0.3 | AL62: 0.3 | AM62: 0.3 | AN62: 0.3 | AO62: 0.3 | AP62: 0.3 | AQ62: 0.3 | AR62: 0.3 | AS62: 0.3 | AT62: 0.3 | AU62: 0.3 | AV62: 0.3 | AW62: 0.3 | AX62: 0.3 | AY62: 0.3 | AZ62: 0.3 | BA62: 0.3 | BB62: 0.3 | BC62: 0.3 | BD62: 0.3 | BE62: 0.3 | BF62: =INDEX(H62:BE62,$F$3) -> 0.28
D64: Investment Tax Credit Percent | E64: % | H64: 0 | I64: 0 | J64: 0 | K64: 0 | L64: 0.26 | M64: 0.26 | N64: 0.26 | O64: 0 | P64: 0 | Q64: 0 | R64: 0 | S64: 0.26 | T64: 0.26 | U64: 0 | V64: 0 | W64: 0.26 | X64: 0 | Y64: 0 | Z64: 0 | AA64: 0 | AB64: 0 | AC64: 0 | AD64: 0 | AE64: 0 | AF64: 0 | AG64: 0 | AH64: 0 | AI64: 0 | AJ64: 0 | AK64: 0 | AL64: 0 | AM64: 0 | AN64: 0 | AO64: 0 | AP64: 0 | AQ64: 0 | AR64: 0 | AS64: 0 | AT64: 0 | AU64: 0 | AV64: 0 | AW64: 0 | AX64: 0 | AY64: 0 | AZ64: 0 | BA64: 0 | BB64: 0 | BC64: 0 | BD64: 0 | BE64: 0 | BF64: =INDEX(H64:BE64,$F$3) -> 0.26
D66: Tax Life | E66: Year | H66: 35 | I66: =H66 -> 35 | J66: 35 | K66: 5 | L66: 5 | M66: =L66 -> 5 | N66: 5 | O66: 10 | P66: 15 | Q66: 15 | R66: 5 | S66: 5 | T66: 5 | U66: 5 | V66: 5 | W66: 5 | X66: 5 | Y66: 5 | Z66: 5 | AA66: 5 | AB66: 5 | AC66: 5 | AD66: =AC66 -> 5 | AE66: 5 | AF66: 5 | AG66: 5 | AH66: 5 | AI66: 5 | AJ66: 5 | AK66: 5 | AL66: 5 | AM66: 5 | AN66: 5 | AO66: 5 | AP66: 5 | AQ66: 5 | AR66: 5 | AS66: 5 | AT66: 5 | AU66: 5 | AV66: 5 | AW66: 5 | AX66: 5 | AY66: 5 | AZ66: 5 | BA66: 5 | BB66: 5 | BC66: 5 | BD66: 5 | BE66: 5 | BF66: =INDEX(H66:BE66,$F$3) -> 5
D67: Variable Delining Factor (1-SL) | E67: Factor | H67: 1 | I67: 1 | J67: 1 | K67: 2 | L67: 2 | M67: =L67 -> 2 | N67: 2 | O67: 1 | P67: 1 | Q67: 1 | R67: 2 | S67: 2 | T67: 2 | U67: 2 | V67: 2 | W67: 2 | X67: 2 | Y67: 2 | Z67: 2 | AA67: 2 | AB67: 2 | AC67: 2 | AD67: =AC67 -> 2 | AE67: 2 | AF67: 2 | AG67: 2 | AH67: 2 | AI67: 2 | AJ67: 2 | AK67: 2 | AL67: 2 | AM67: 2 | AN67: 2 | AO67: 2 | AP67: 2 | AQ67: 2 | AR67: 2 | AS67: 2 | AT67: 2 | AU67: 2 | AV67: 2 | AW67: 2 | AX67: 2 | AY67: 2 | AZ67: 2 | BA67: 2 | BB67: 2 | BC67: 2 | BD67: 2 | BE67: 2 | BF67: =INDEX(H67:BE67,$F$3) -> 2
D68: NPV of Tax Depreciation x Tax Rate at Nominal Rate | E68: % | H68: =LOOKUP(H2,$E$302:$E$351,$F$302:$F$351) -> 0 | I68: 0.09615060054 | J68: 0.09615060054 | K68: 0.2375477605 | L68: 0.2375477605 | M68: 0.2573836806 | N68: 0.2573836806 | O68: 0 | P68: 0 | Q68: 0.162745862 | R68: 0.2375477605 | S68: 0.2375477605 | T68: 0.2573836806 | U68: 0.2573836806 | V68: 0.2344998765 | W68: 0.2344998765 | X68: 0.274036966 | Y68: 0.274036966 | Z68: 0.274036966 | AA68: 0.274036966 | AB68: 0.274036966 | AC68: 0.274036966 | AD68: 0.274036966 | AE68: 0.274036966 | AF68: 0.274036966 | AG68: 0.274036966 | AH68: 0.274036966 | AI68: 0.274036966 | AJ68: 0.274036966 | AK68: 0.274036966 | AL68: 0.274036966 | AM68: 0.274036966 | AN68: =LOOKUP(AN2,$E$302:$E$351,$F$302:$F$351) -> 0.274036966 | AO68: 0.274036966 | AP68: 0.2881543451 | AQ68: 0.2881543451 | AR68: 0.2881543451 | AS68: 0.2881543451 | AT68: 0.2881543451 | AU68: 0.2881543451 | AV68: 0.2881543451 | AW68: 0.2881543451 | AX68: 0.2881543451 | AY68: 0.2881543451 | AZ68: 0.2881543451 | BA68: 0.2881543451 | BB68: 0.2881543451 | BC68: 0.2881543451 | BD68: 0.2881543451 | BE68: 0.274036966 | BF68: =INDEX(H68:BE68,$F$3) -> 0.2573836806
D69: Tax Factor applied by NREL | E69: Factor | H69: =(1-H68)/(1-H62) -> 1 | I69: =(1-I68)/(1-I62) -> 1.255346388 | J69: 1.255346388 | K69: 1.058961444 | L69: 1.058961444 | M69: 1.031411555 | N69: 1.031411555 | O69: 1 | P69: 1 | Q69: 1.162852969 | R69: 1.058961444 | S69: 1.058961444 | T69: 1.031411555 | U69: 1.031411555 | V69: 1.030837764 | W69: 1.030837764 | X69: 1.037090049 | Y69: 1.037090049 | Z69: 1.037090049 | AA69: 1.037090049 | AB69: 1.037090049 | AC69: 1.037090049 | AD69: 1.037090049 | AE69: 1.037090049 | AF69: 1.037090049 | AG69: 1.037090049 | AH69: 1.037090049 | AI69: 1.037090049 | AJ69: 1.037090049 | AK69: 1.037090049 | AL69: 1.037090049 | AM69: 1.037090049 | AN69: 1.037090049 | AO69: 1.037090049 | AP69: 1.016922364 | AQ69: 1.016922364 | AR69: 1.016922364 | AS69: 1.016922364 | AT69: 1.016922364 | AU69: 1.016922364 | AV69: 1.016922364 | AW69: 1.016922364 | AX69: 1.016922364 | AY69: 1.016922364 | AZ69: 1.016922364 | BA69: 1.016922364 | BB69: 1.016922364 | BC69: 1.016922364 | BD69: 1.016922364 | BE69: 1.037090049 | BF69: =INDEX(H69:BE69,$F$3) -> 1.031411555
D70: ITC Basis Reduction | E70: % | H70: =H64/2 -> 0 | I70: =I64*0.5 -> 0 | J70: 0 | K70: 0 | L70: 0.13 | M70: 0.13 | N70: 0.13 | O70: 0 | P70: 0 | Q70: 0 | R70: 0 | S70: 0.13 | T70: 0.13 | U70: 0 | V70: 0 | W70: 0.13 | X70: 0 | Y70: 0 | Z70: 0 | AA70: 0 | AB70: 0 | AC70: 0 | AD70: 0 | AE70: 0 | AF70: 0 | AG70: 0 | AH70: 0 | AI70: 0 | AJ70: 0 | AK70: 0 | AL70: 0 | AM70: 0 | AN70: 0 | AO70: =AO64*0.5 -> 0 | AP70: 0 | AQ70: 0 | AR70: 0 | AS70: 0 | AT70: 0 | AU70: 0 | AV70: 0 | AW70: 0 | AX70: 0 | AY70: 0 | AZ70: 0 | BA70: 0 | BB70: 0 | BC70: 0 | BD70: 0 | BE70: 0 | BF70: =INDEX(H70:BE70,$F$3) -> 0.13
D71: Benefit from Tax Depreciation with ITC | E71: % | H71: =H68/(1-H64)*(1-H70) -> 0 | I71: =I68/(1-I64)*(1-I70) -> 0.09615060054 | J71: 0.09615060054 | K71: 0.2375477605 | L71: 0.2792791239 | M71: 0.3025997326 | N71: 0.3025997326 | O71: 0 | P71: 0 | Q71: 0.162745862 | R71: 0.2375477605 | S71: 0.2792791239 | T71: 0.3025997326 | U71: 0.2573836806 | V71: 0.2344998765 | W71: 0.2756958008 | X71: 0.274036966 | Y71: 0.274036966 | Z71: 0.274036966 | AA71: 0.274036966 | AB71: 0.274036966 | AC71: 0.274036966 | AD71: 0.274036966 | AE71: 0.274036966 | AF71: 0.274036966 | AG71: 0.274036966 | AH71: 0.274036966 | AI71: 0.274036966 | AJ71: 0.274036966 | AK71: 0.274036966 | AL71: 0.274036966 | AM71: 0.274036966 | AN71: 0.274036966 | AO71: 0.274036966 | AP71: 0.2881543451 | AQ71: 0.2881543451 | AR71: 0.2881543451 | AS71: 0.2881543451 | AT71: 0.2881543451 | AU71: 0.2881543451 | AV71: 0.2881543451 | AW71: 0.2881543451 | AX71: 0.2881543451 | AY71: 0.2881543451 | AZ71: 0.2881543451 | BA71: 0.2881543451 | BB71: 0.2881543451 | BC71: 0.2881543451 | BD71: 0.2881543451 | BE71: 0.274036966 | BF71: =INDEX(H71:BE71,$F$3) -> 0.3025997326
D73: Degradation | E73: % p.a. | H73: 0 | I73: =H73 -> 0 | J73: 0 | K73: =J73 -> 0 | L73: 0 | M73: 0 | N73: 0.005 | O73: 0.005 | P73: 0 | Q73: =P73 -> 0 | R73: 0 | S73: 0 | T73: 0 | U73: 0.01 | V73: 0 | W73: 0 | X73: 0 | Y73: 0 | Z73: 0 | AA73: 0 | AB73: 0 | AC73: 0 | AD73: =AC73 -> 0 | AE73: 0 | AF73: 0 | AG73: 0 | AH73: 0 | AI73: 0 | AJ73: 0 | AK73: 0 | AL73: 0 | AM73: 0 | AN73: 0 | AO73: 0 | AP73: 0 | AQ73: 0 | AR73: 0 | AS73: 0 | AT73: 0 | AU73: 0 | AV73: 0 | AW73: 0 | AX73: 0 | AY73: 0 | AZ73: 0 | BA73: 0 | BB73: 0 | BC73: 0 | BD73: 0 | BE73: 0 | BF73: =INDEX(H73:BE73,$F$3) -> 0.005
D74: Inflation Rate | E74: % p.a. | H74: 0 | I74: 0 | J74: 0.025 | K74: 0.025 | L74: 0.025 | M74: 0.025 | N74: 0.025 | O74: 0 | P74: 0.02 | Q74: 0.02 | R74: 0.02 | S74: 0.02 | T74: 0.02 | U74: 0.02 | V74: =NREL!G3 -> 0.025 | W74: 0.025 | X74: =W74 -> 0.025 | Y74: 0.025 | Z74: 0.025 | AA74: 0.025 | AB74: 0.025 | AC74: 0.025 | AD74: =AC74 -> 0.025 | AE74: 0.025 | AF74: 0.025 | AG74: 0.025 | AH74: 0.025 | AI74: 0.025 | AJ74: 0.025 | AK74: 0.025 | AL74: 0.025 | AM74: 0.025 | AN74: 0.025 | AO74: 0.025 | AP74: 0.025 | AQ74: 0.025 | AR74: 0.025 | AS74: 0.025 | AT74: 0.025 | AU74: 0.025 | AV74: 0.025 | AW74: 0.025 | AX74: 0.025 | AY74: 0.025 | AZ74: 0.025 | BA74: 0.025 | BB74: 0.025 | BC74: 0.025 | BD74: 0.025 | BE74: 0.025 | BF74: =INDEX(H74:BE74,$F$3) -> 0.025
D76: Pre-tax Interest Rate | E76: % | F76: 35 | H76: =F76/1000 -> 0.035 | I76: =H76 -> 0.035 | J76: =I76 -> 0.035 | K76: 0.035 | L76: 0.035 | M76: 0.035 | N76: 0.035 | O76: 0.035 | P76: 0.035 | Q76: 0.035 | R76: 0.035 | S76: 0.035 | T76: 0.035 | U76: 0.035 | V76: =NREL!G5 -> 0.04 | W76: =V76 -> 0.04 | X76: 0.04 | Y76: 0.04 | Z76: 0.04 | AA76: 0.04 | AB76: 0.04 | AC76: 0.04 | AD76: =AC76 -> 0.04 | AE76: 0.04 | AF76: 0.04 | AG76: 0.04 | AH76: 0.04 | AI76: 0.04 | AJ76: 0.04 | AK76: 0.04 | AL76: 0.04 | AM76: 0.04 | AN76: 0.04 | AO76: 0.04 | AP76: 0.04 | AQ76: 0.04 | AR76: 0.04 | AS76: 0.04 | AT76: 0.04 | AU76: 0.04 | AV76: 0.04 | AW76: 0.04 | AX76: 0.04 | AY76: 0.04 | AZ76: 0.04 | BA76: 0.04 | BB76: 0.04 | BC76: =BB76 -> 0.04 | BD76: =BC76 -> 0.04 | BE76: =BD76 -> 0.04 | BF76: =INDEX(H76:BE76,$F$3) -> 0.035
D77: After-tax Interest Rate Applied | E77: % | H77: =H76*(1-H62) -> 0.035 | I77: 0.0252 | J77: 0.0252 | K77: 0.0252 | L77: 0.0252 | M77: 0.0252 | N77: 0.0252 | O77: 0.035 | P77: 0.035 | Q77: 0.0252 | R77: 0.0252 | S77: 0.0252 | T77: 0.0252 | U77: 0.0252 | V77: 0.029704 | W77: 0.029704 | X77: 0.028 | Y77: 0.028 | Z77: 0.028 | AA77: 0.028 | AB77: 0.028 | AC77: 0.028 | AD77: 0.028 | AE77: 0.028 | AF77: 0.028 | AG77: 0.028 | AH77: 0.028 | AI77: 0.028 | AJ77: 0.028 | AK77: 0.028 | AL77: 0.028 | AM77: 0.028 | AN77: =AN76*(1-AN62) -> 0.028 | AO77: 0.028 | AP77: 0.028 | AQ77: 0.028 | AR77: 0.028 | AS77: 0.028 | AT77: 0.028 | AU77: 0.028 | AV77: 0.028 | AW77: 0.028 | AX77: 0.028 | AY77: 0.028 | AZ77: 0.028 | BA77: 0.028 | BB77: 0.028 | BC77: 0.028 | BD77: 0.028 | BE77: 0.028 | BF77: =INDEX(H77:BE77,$F$3) -> 0.0252
D78: Minimum Target Equity IRR | E78: % | F78: 77 | H78: =F78/1000 -> 0.077 | I78: =H78 -> 0.077 | J78: =I78 -> 0.077 | K78: 0.077 | L78: 0.077 | M78: 0.077 | N78: 0.077 | O78: 0.077 | P78: 0.077 | Q78: 0.077 | R78: 0.077 | S78: 0.077 | T78: 0.077 | U78: 0.077 | V78: =NREL!G8 -> 0.0775 | W78: =V78 -> 0.0775 | X78: 0.0775 | Y78: 0.0775 | Z78: 0.0775 | AA78: 0.0775 | AB78: 0.0775 | AC78: 0.0775 | AD78: =AC78 -> 0.0775 | AE78: 0.0775 | AF78: 0.0775 | AG78: 0.0775 | AH78: 0.0775 | AI78: 0.0775 | AJ78: 0.0775 | AK78: 0.0775 | AL78: 0.0775 | AM78: 0.0775 | AN78: 0.0775 | AO78: 0.0775 | AP78: 0.0775 | AQ78: 0.0775 | AR78: 0.0775 | AS78: 0.0775 | AT78: 0.0775 | AU78: 0.0775 | AV78: 0.0775 | AW78: 0.0775 | AX78: 0.0775 | AY78: 0.0775 | AZ78: 0.0775 | BA78: 0.0775 | BB78: 0.0775 | BC78: =BB78 -> 0.0775 | BD78: =BC78 -> 0.0775 | BE78: =BD78 -> 0.0775 | BF78: =INDEX(H78:BE78,$F$3) -> 0.077
D80: Debt Percent | E80: % | F80: 60 | H80: 0 | I80: =H80 -> 0 | J80: =I80 -> 0 | K80: =J80 -> 0 | L80: =K80 -> 0 | M80: 0.75 | N80: =M80 -> 0.75 | O80: 0 | P80: =O80/100 -> 0 | Q80: 0 | R80: 0 | S80: 0 | T80: 0.75 | U80: 0.75 | V80: =NREL!G10 -> 0.7351774742 | W80: =V80 -> 0.7351774742 | X80: 0.7351774742 | Y80: 0.7351774742 | Z80: 0.7351774742 | AA80: 0.7351774742 | AB80: 0.7351774742 | AC80: 0.7351774742 | AD80: 0.7351774742 | AE80: 0.7351774742 | AF80: 0.7351774742 | AG80: 0.7351774742 | AH80: 0.7351774742 | AI80: 0.7351774742 | AJ80: 0.7351774742 | AK80: 0.7351774742 | AL80: 0.7351774742 | AM80: 0.7351774742 | AN80: 0.7351774742 | AO80: 0.7351774742 | AP80: 0.7351774742 | AQ80: 0.7351774742 | AR80: 0.7351774742 | AS80: 0.7351774742 | AT80: 0.7351774742 | AU80: 0.7351774742 | AV80: 0.7351774742 | AW80: 0.7351774742 | AX80: 0.7351774742 | AY80: 0.7351774742 | AZ80: 0.7351774742 | BA80: 0.7351774742 | BB80: 0.7351774742 | BC80: 0.7351774742 | BD80: 0.7351774742 | BE80: 0.7351774742 | BF80: =INDEX(H80:BE80,$F$3) -> 0.75
D81: Equity Percent | E81: % | H81: =1-H80 -> 1 | I81: =1-I80 -> 1 | J81: =1-J80 -> 1 | K81: =1-K80 -> 1 | L81: =1-L80 -> 1 | M81: =1-M80 -> 0.25 | N81: 0.25 | O81: 1 | P81: 1 | Q81: 1 | R81: 1 | S81: 1 | T81: 0.25 | U81: 0.25 | V81: 0.2648225258 | W81: =1-W80 -> 0.2648225258 | X81: 0.2648225258 | Y81: 0.2648225258 | Z81: =1-Z80 -> 0.2648225258 | AA81: =1-AA80 -> 0.2648225258 | AB81: =1-AB80 -> 0.2648225258 | AC81: =1-AC80 -> 0.2648225258 | AD81: =1-AD80 -> 0.2648225258 | AE81: 0.2648225258 | AF81: 0.2648225258 | AG81: 0.2648225258 | AH81: 0.2648225258 | AI81: 0.2648225258 | AJ81: 0.2648225258 | AK81: 0.2648225258 | AL81: 0.2648225258 | AM81: 0.2648225258 | AN81: 0.2648225258 | AO81: 0.2648225258 | AP81: 0.2648225258 | AQ81: 0.2648225258 | AR81: 0.2648225258 | AS81: 0.2648225258 | AT81: 0.2648225258 | AU81: 0.2648225258 | AV81: 0.2648225258 | AW81: 0.2648225258 | AX81: 0.2648225258 | AY81: 0.2648225258 | AZ81: 0.2648225258 | BA81: 0.2648225258 | BB81: 0.2648225258 | BC81: =1-BC80 -> 0.2648225258 | BD81: =1-BD80 -> 0.2648225258 | BE81: =1-BE80 -> 0.2648225258 | BF81: =INDEX(H81:BE81,$F$3) -> 0.25
D82: WACC After Tax | E82: % | H82: =H77*H80+H78*H81 -> 0.077 | I82: 0.077 | J82: 0.077 | K82: 0.077 | L82: 0.077 | M82: 0.03815 | N82: 0.03815 | O82: 0.077 | P82: 0.077 | Q82: 0.077 | R82: 0.077 | S82: 0.077 | T82: 0.03815 | U82: 0.03815 | V82: 0.04236145744 | W82: =W77*W80+W78*W81 -> 0.04236145744 | X82: 0.04110871503 | Y82: 0.04110871503 | Z82: 0.04110871503 | AA82: 0.04110871503 | AB82: 0.04110871503 | AC82: 0.04110871503 | AD82: =AD77*AD80+AD78*AD81 -> 0.04110871503 | AE82: 0.04110871503 | AF82: 0.04110871503 | AG82: 0.04110871503 | AH82: 0.04110871503 | AI82: 0.04110871503 | AJ82: 0.04110871503 | AK82: 0.04110871503 | AL82: 0.04110871503 | AM82: 0.04110871503 | AN82: 0.04110871503 | AO82: 0.04110871503 | AP82: 0.04110871503 | AQ82: 0.04110871503 | AR82: 0.04110871503 | AS82: 0.04110871503 | AT82: 0.04110871503 | AU82: 0.04110871503 | AV82: 0.04110871503 | AW82: 0.04110871503 | AX82: 0.04110871503 | AY82: 0.04110871503 | AZ82: 0.04110871503 | BA82: 0.04110871503 | BB82: 0.04110871503 | BC82: =BC77*BC80+BC78*BC81 -> 0.04110871503 | BD82: =BD77*BD80+BD78*BD81 -> 0.04110871503 | BE82: =BE77*BE80+BE78*BE81 -> 0.04110871503 | BF82: =INDEX(H82:BE82,$F$3) -> 0.03815
D83: WACC Pre-tax | E83: % | H83: =H76*H80+H81*H78 -> 0.077 | I83: =I76*I80+I81*I78 -> 0.077 | J83: 0.077 | K83: 0.077 | L83: 0.077 | M83: 0.0455 | N83: 0.0455 | O83: 0.077 | P83: 0.077 | Q83: 0.077 | R83: 0.077 | S83: 0.077 | T83: 0.0455 | U83: 0.0455 | V83: 0.04993084472 | W83: =W76*W80+W81*W78 -> 0.04993084472 | X83: 0.04993084472 | Y83: 0.04993084472 | Z83: 0.04993084472 | AA83: 0.04993084472 | AB83: 0.04993084472 | AC83: 0.04993084472 | AD83: 0.04993084472 | AE83: 0.04993084472 | AF83: 0.04993084472 | AG83: 0.04993084472 | AH83: 0.04993084472 | AI83: 0.04993084472 | AJ83: 0.04993084472 | AK83: 0.04993084472 | AL83: 0.04993084472 | AM83: 0.04993084472 | AN83: 0.04993084472 | AO83: 0.04993084472 | AP83: 0.04993084472 | AQ83: 0.04993084472 | AR83: 0.04993084472 | AS83: 0.04993084472 | AT83: 0.04993084472 | AU83: 0.04993084472 | AV83: 0.04993084472 | AW83: 0.04993084472 | AX83: 0.04993084472 | AY83: 0.04993084472 | AZ83: 0.04993084472 | BA83: 0.04993084472 | BB83: 0.04993084472 | BC83: 0.04993084472 | BD83: 0.04993084472 | BE83: 0.04993084472 | BF83: =INDEX(H83:BE83,$F$3) -> 0.0455
B85: Carrying Charge Calculations
D86: Required Pre-tax Project IRR - Nominal | E86: % p.a. | F86: WACC without tax shield | H86: =H82 -> 0.077 | I86: =I82 -> 0.077 | J86: =J82 -> 0.077 | K86: =K82 -> 0.077 | L86: =L82 -> 0.077 | M86: =M82 -> 0.03815 | N86: 0.03815 | O86: 0.077 | P86: 0.077 | Q86: 0.077 | R86: 0.077 | S86: 0.077 | T86: 0.03815 | U86: 0.03815 | V86: 0.04236145744 | W86: 0.04236145744 | X86: 0.04110871503 | Y86: 0.04110871503 | Z86: =Z82 -> 0.04110871503 | AA86: =AA82 -> 0.04110871503 | AB86: =AB82 -> 0.04110871503 | AC86: =AC82 -> 0.04110871503 | AD86: =AD82 -> 0.04110871503 | AE86: 0.04110871503 | AF86: 0.04110871503 | AG86: 0.04110871503 | AH86: 0.04110871503 | AI86: 0.04110871503 | AJ86: 0.04110871503 | AK86: 0.04110871503 | AL86: 0.04110871503 | AM86: 0.04110871503 | AN86: 0.04110871503 | AO86: 0.04110871503 | AP86: 0.04110871503 | AQ86: 0.04110871503 | AR86: 0.04110871503 | AS86: 0.04110871503 | AT86: 0.04110871503 | AU86: 0.04110871503 | AV86: 0.04110871503 | AW86: 0.04110871503 | AX86: 0.04110871503 | AY86: 0.04110871503 | AZ86: 0.04110871503 | BA86: 0.04110871503 | BB86: 0.04110871503 | BC86: =BC82 -> 0.04110871503 | BD86: =BD82 -> 0.04110871503 | BE86: =BE82 -> 0.04110871503 | BF86: =INDEX(H86:BE86,$F$3) -> 0.03815
D87: Required Real IRR (1+WACC)/(1+Inf)-1 | E87: % p.a. | F87: (1+nom)/(1+inf)-1 | H87: =(1+H86)/(1+H74)-1 -> 0.077 | I87: 0.077 | J87: 0.05073170732 | K87: 0.05073170732 | L87: 0.05073170732 | M87: 0.01282926829 | N87: 0.01282926829 | O87: 0.077 | P87: 0.05588235294 | Q87: 0.05588235294 | R87: 0.05588235294 | S87: 0.05588235294 | T87: 0.01779411765 | U87: 0.01779411765 | V87: 0.01693800726 | W87: 0.01693800726 | X87: 0.01571581954 | Y87: 0.01571581954 | Z87: 0.01571581954 | AA87: 0.01571581954 | AB87: 0.01571581954 | AC87: 0.01571581954 | AD87: =(1+AD86)/(1+AD74)-1 -> 0.01571581954 | AE87: 0.01571581954 | AF87: 0.01571581954 | AG87: 0.01571581954 | AH87: 0.01571581954 | AI87: 0.01571581954 | AJ87: 0.01571581954 | AK87: 0.01571581954 | AL87: 0.01571581954 | AM87: 0.01571581954 | AN87: 0.01571581954 | AO87: 0.01571581954 | AP87: 0.01571581954 | AQ87: 0.01571581954 | AR87: 0.01571581954 | AS87: 0.01571581954 | AT87: 0.01571581954 | AU87: 0.01571581954 | AV87: 0.01571581954 | AW87: 0.01571581954 | AX87: 0.01571581954 | AY87: 0.01571581954 | AZ87: 0.01571581954 | BA87: 0.01571581954 | BB87: 0.01571581954 | BC87: =(1+BC86)/(1+BC74)-1 -> 0.01571581954 | BD87: =(1+BD86)/(1+BD74)-1 -> 0.01571581954 | BE87: =(1+BE86)/(1+BE74)-1 -> 0.01571581954 | BF87: =INDEX(H87:BE87,$F$3) -> 0.01282926829
D89: Nominal Adjusted IRR for Degradation | E89: % p.a. | F89: (1+cost of cap)/(1-degr)-1 | H89: =(1+H86)/(1-H73)-1 -> 0.077 | I89: 0.077 | J89: 0.077 | K89: 0.077 | L89: 0.077 | M89: 0.03815 | N89: 0.04336683417 | O89: 0.0824120603 | P89: 0.077 | Q89: 0.077 | R89: 0.077 | S89: 0.077 | T89: 0.03815 | U89: 0.04863636364 | V89: 0.04236145744 | W89: 0.04236145744 | X89: 0.04110871503 | Y89: 0.04110871503 | Z89: 0.04110871503 | AA89: 0.04110871503 | AB89: 0.04110871503 | AC89: 0.04110871503 | AD89: =(1+AD86)/(1-AD73)-1 -> 0.04110871503 | AE89: 0.04110871503 | AF89: 0.04110871503 | AG89: 0.04110871503 | AH89: 0.04110871503 | AI89: 0.04110871503 | AJ89: 0.04110871503 | AK89: 0.04110871503 | AL89: 0.04110871503 | AM89: 0.04110871503 | AN89: 0.04110871503 | AO89: 0.04110871503 | AP89: 0.04110871503 | AQ89: 0.04110871503 | AR89: 0.04110871503 | AS89: 0.04110871503 | AT89: 0.04110871503 | AU89: 0.04110871503 | AV89: 0.04110871503 | AW89: 0.04110871503 | AX89: 0.04110871503 | AY89: 0.04110871503 | AZ89: 0.04110871503 | BA89: 0.04110871503 | BB89: 0.04110871503 | BC89: =(1+BC86)/(1-BC73)-1 -> 0.04110871503 | BD89: =(1+BD86)/(1-BD73)-1 -> 0.04110871503 | BE89: =(1+BE86)/(1-BE73)-1 -> 0.04110871503 | BF89: =INDEX(H89:BE89,$F$3) -> 0.04336683417
D90: Real Adjusted IRR for Degradation | E90: % p.a. | F90: (1+cost of cap)/(1-degr)-1 | H90: =(1+H87)/(1-H73)-1 -> 0.077 | I90: 0.077 | J90: 0.05073170732 | K90: 0.05073170732 | L90: 0.05073170732 | M90: 0.01282926829 | N90: 0.01791886261 | O90: 0.0824120603 | P90: 0.05588235294 | Q90: 0.05588235294 | R90: 0.05588235294 | S90: 0.05588235294 | T90: 0.01779411765 | U90: 0.02807486631 | V90: 0.01693800726 | W90: 0.01693800726 | X90: 0.01571581954 | Y90: 0.01571581954 | Z90: 0.01571581954 | AA90: 0.01571581954 | AB90: 0.01571581954 | AC90: 0.01571581954 | AD90: =(1+AD87)/(1-AD73)-1 -> 0.01571581954 | AE90: 0.01571581954 | AF90: 0.01571581954 | AG90: 0.01571581954 | AH90: 0.01571581954 | AI90: 0.01571581954 | AJ90: 0.01571581954 | AK90: 0.01571581954 | AL90: 0.01571581954 | AM90: 0.01571581954 | AN90: 0.01571581954 | AO90: 0.01571581954 | AP90: 0.01571581954 | AQ90: 0.01571581954 | AR90: 0.01571581954 | AS90: 0.01571581954 | AT90: 0.01571581954 | AU90: 0.01571581954 | AV90: 0.01571581954 | AW90: 0.01571581954 | AX90: 0.01571581954 | AY90: 0.01571581954 | AZ90: 0.01571581954 | BA90: 0.01571581954 | BB90: 0.01571581954 | BC90: =(1+BC87)/(1-BC73)-1 -> 0.01571581954 | BD90: =(1+BD87)/(1-BD73)-1 -> 0.01571581954 | BE90: =(1+BE87)/(1-BE73)-1 -> 0.01571581954 | BF90: =INDEX(H90:BE90,$F$3) -> 0.01791886261
D92: Carrying charge rate - Nom After-Tax b/4 Construction | E92: % p.a. | F92: PMT/(1-t) | H92: =PMT(H89,H54,-1)/(1-H62) -> 0.08320280846 | I92: 0.1155594562 | J92: 0.1155594562 | K92: 0.1155594562 | L92: 0.1155594562 | M92: 0.07255483888 | N92: 0.07784994757 | O92: 0.1343580883 | P92: 0.1306397827 | Q92: 0.1814441426 | R92: 0.1814441426 | S92: 0.1814441426 | T92: 0.1464049476 | U92: 0.1554991045 | V92: 0.08012334753 | W92: 0.08012334753 | X92: 0.07769515094 | Y92: 0.07769515094 | Z92: 0.07769515094 | AA92: 0.07769515094 | AB92: 0.07769515094 | AC92: 0.07769515094 | AD92: 0.07769515094 | AE92: 0.07769515094 | AF92: 0.07769515094 | AG92: 0.07769515094 | AH92: 0.07769515094 | AI92: 0.07769515094 | AJ92: 0.07769515094 | AK92: 0.07769515094 | AL92: 0.07769515094 | AM92: 0.07769515094 | AN92: =PMT(AN89,AN54,-1)/(1-AN62) -> 0.07769515094 | AO92: 0.07769515094 | AP92: 0.07769515094 | AQ92: 0.07769515094 | AR92: 0.07769515094 | AS92: 0.07769515094 | AT92: 0.07769515094 | AU92: 0.07769515094 | AV92: 0.07769515094 | AW92: 0.07769515094 | AX92: 0.07769515094 | AY92: 0.07769515094 | AZ92: 0.07769515094 | BA92: 0.07769515094 | BB92: 0.07769515094 | BC92: 0.07769515094 | BD92: 0.07769515094 | BE92: 0.07769515094 | BF92: =INDEX(H92:BE92,$F$3) -> 0.07784994757
D93: Carrying charge rate - Real After Tax b/4 Construction | E93: % p.a. | F93: PMT/(1-t) | H93: =PMT(H90,H54,-1)/(1-H62) -> 0.08320280846 | I93: 0.1155594562 | J93: 0.08560651394 | K93: 0.08560651394 | L93: 0.08560651394 | M93: 0.049506076 | N93: 0.05376162633 | O93: 0.1343580883 | P93: 0.1165991945 | Q93: 0.1619433257 | R93: 0.1619433257 | S93: 0.1619433257 | T93: 0.1295600649 | U93: 0.1379320343 | V93: 0.057624682 | W93: 0.057624682 | X93: 0.05337788523 | Y93: 0.05337788523 | Z93: 0.05337788523 | AA93: 0.05337788523 | AB93: 0.05337788523 | AC93: 0.05337788523 | AD93: 0.05337788523 | AE93: 0.05337788523 | AF93: 0.05337788523 | AG93: 0.05337788523 | AH93: 0.05337788523 | AI93: 0.05337788523 | AJ93: 0.05337788523 | AK93: 0.05337788523 | AL93: 0.05337788523 | AM93: 0.05337788523 | AN93: =PMT(AN90,AN54,-1)/(1-AN62) -> 0.05337788523 | AO93: 0.05337788523 | AP93: 0.05337788523 | AQ93: 0.05337788523 | AR93: 0.05337788523 | AS93: 0.05337788523 | AT93: 0.05337788523 | AU93: 0.05337788523 | AV93: 0.05337788523 | AW93: 0.05337788523 | AX93: 0.05337788523 | AY93: 0.05337788523 | AZ93: 0.05337788523 | BA93: 0.05337788523 | BB93: 0.05337788523 | BC93: 0.05337788523 | BD93: 0.05337788523 | BE93: 0.05337788523 | BF93: =INDEX(H93:BE93,$F$3) -> 0.05376162633
D95: Construction Factor | E95: Factor | H95: =H58 -> 1.037786105 | I95: 1.037786105 | J95: 1.037786105 | K95: 1.037786105 | L95: 1.037786105 | M95: 1.018896462 | N95: 1.018896462 | O95: 1.037786105 | P95: 1.037786105 | Q95: 1.037786105 | R95: 1.037786105 | S95: 1.037786105 | T95: 1.018896462 | U95: 1.018896462 | V95: 1.020961046 | W95: 1.020961046 | X95: 1.02034735 | Y95: 1.02034735 | Z95: 1.02034735 | AA95: 1.02034735 | AB95: 1.02034735 | AC95: 1.02034735 | AD95: 1.02034735 | AE95: 1.02034735 | AF95: 1.02034735 | AG95: 1.02034735 | AH95: 1.02034735 | AI95: 1.02034735 | AJ95: 1.02034735 | AK95: 1.02034735 | AL95: 1.02034735 | AM95: 1.02034735 | AN95: =AN58 -> 1.02034735 | AO95: 1.02034735 | AP95: 1.02034735 | AQ95: 1.02034735 | AR95: 1.02034735 | AS95: 1.02034735 | AT95: 1.02034735 | AU95: 1.02034735 | AV95: 1.02034735 | AW95: 1.02034735 | AX95: 1.02034735 | AY95: 1.02034735 | AZ95: 1.02034735 | BA95: 1.02034735 | BB95: 1.02034735 | BC95: 1.02034735 | BD95: 1.02034735 | BE95: 1.02034735 | BF95: =INDEX(H95:BE95,$F$3) -> 1.018896462
D97: Carrying charge rate - Nominal After-Tax | E97: % p.a. | F97: CCR x Construction | H97: =H92*H95 -> 0.08634671853 | I97: =I92*I95 -> 0.119925998 | J97: 0.119925998 | K97: 0.119925998 | L97: 0.119925998 | M97: 0.07392586863 | N97: 0.07932103614 | O97: 0.1394349572 | P97: 0.1355761513 | Q97: 0.1883002101 | R97: 0.1883002101 | S97: 0.1883002101 | T97: 0.1491714831 | U97: 0.1584374874 | V97: 0.08180281671 | W97: 0.08180281671 | X97: 0.07927604139 | Y97: 0.07927604139 | Z97: 0.07927604139 | AA97: 0.07927604139 | AB97: 0.07927604139 | AC97: 0.07927604139 | AD97: 0.07927604139 | AE97: 0.07927604139 | AF97: 0.07927604139 | AG97: 0.07927604139 | AH97: 0.07927604139 | AI97: 0.07927604139 | AJ97: 0.07927604139 | AK97: 0.07927604139 | AL97: 0.07927604139 | AM97: 0.07927604139 | AN97: 0.07927604139 | AO97: 0.07927604139 | AP97: 0.07927604139 | AQ97: 0.07927604139 | AR97: 0.07927604139 | AS97: 0.07927604139 | AT97: 0.07927604139 | AU97: 0.07927604139 | AV97: 0.07927604139 | AW97: 0.07927604139 | AX97: 0.07927604139 | AY97: 0.07927604139 | AZ97: 0.07927604139 | BA97: 0.07927604139 | BB97: 0.07927604139 | BC97: 0.07927604139 | BD97: 0.07927604139 | BE97: 0.07927604139 | BF97: =INDEX(H97:BE97,$F$3) -> 0.07932103614
D98: Carrying charge rate - Real After Tax - Final | E98: % p.a. | F98: CCR x Construction | H98: =H93*H95 -> 0.08634671853 | I98: =I93*I95 -> 0.119925998 | J98: 0.08884125068 | K98: 0.08884125068 | L98: 0.08884125068 | M98: 0.05044156567 | N98: 0.05477753085 | O98: 0.1394349572 | P98: 0.1210050239 | Q98: 0.1680625332 | R98: 0.1680625332 | S98: 0.1680625332 | T98: 0.1320082917 | U98: 0.1405384617 | V98: 0.05883255561 | W98: 0.05883255561 | X98: 0.05446398375 | Y98: 0.05446398375 | Z98: 0.05446398375 | AA98: 0.05446398375 | AB98: 0.05446398375 | AC98: 0.05446398375 | AD98: 0.05446398375 | AE98: 0.05446398375 | AF98: 0.05446398375 | AG98: 0.05446398375 | AH98: 0.05446398375 | AI98: 0.05446398375 | AJ98: 0.05446398375 | AK98: 0.05446398375 | AL98: 0.05446398375 | AM98: 0.05446398375 | AN98: 0.05446398375 | AO98: 0.05446398375 | AP98: 0.05446398375 | AQ98: 0.05446398375 | AR98: 0.05446398375 | AS98: 0.05446398375 | AT98: 0.05446398375 | AU98: 0.05446398375 | AV98: 0.05446398375 | AW98: 0.05446398375 | AX98: 0.05446398375 | AY98: 0.05446398375 | AZ98: 0.05446398375 | BA98: 0.05446398375 | BB98: 0.05446398375 | BC98: 0.05446398375 | BD98: 0.05446398375 | BE98: 0.05446398375 | BF98: =INDEX(H98:BE98,$F$3) -> 0.05477753085
D100: Carrying charge rate - Nom After Dep Shield | E100: % p.a. | F100: CCR x (1-Tax Dep) x (1-ITC) | H100: =H97*(1-H71)*(1-H64) -> 0.08634671853 | I100: 0.1083950412 | J100: 0.1083950412 | K100: 0.09143784571 | L100: 0.06396054603 | M100: 0.03815138121 | N100: 0.04093569874 | O100: 0.1394349572 | P100: 0.1355761513 | Q100: 0.1576551301 | R100: 0.1435699169 | S100: 0.1004268004 | T100: 0.07698385184 | U100: 0.1176582638 | V100: 0.06262006629 | W100: 0.0438450915 | X100: 0.05755147553 | Y100: 0.05755147553 | Z100: 0.05755147553 | AA100: 0.05755147553 | AB100: 0.05755147553 | AC100: 0.05755147553 | AD100: 0.05755147553 | AE100: 0.05755147553 | AF100: 0.05755147553 | AG100: 0.05755147553 | AH100: 0.05755147553 | AI100: 0.05755147553 | AJ100: 0.05755147553 | AK100: 0.05755147553 | AL100: 0.05755147553 | AM100: 0.05755147553 | AN100: =AN97*(1-AN71)*(1-AN64) -> 0.05755147553 | AO100: 0.05755147553 | AP100: 0.05643230559 | AQ100: 0.05643230559 | AR100: 0.05643230559 | AS100: 0.05643230559 | AT100: 0.05643230559 | AU100: 0.05643230559 | AV100: 0.05643230559 | AW100: 0.05643230559 | AX100: 0.05643230559 | AY100: 0.05643230559 | AZ100: 0.05643230559 | BA100: 0.05643230559 | BB100: 0.05643230559 | BC100: 0.05643230559 | BD100: 0.05643230559 | BE100: 0.05755147553 | BF100: 0.04093569874
D101: Carrying charge rate - Real After Dep Shield | E101: % p.a. | F101: CCR x (1-Tax Dep) x (1-ITC) | H101: =H98*(1-H71)*(1-H64) -> 0.08634671853 | I101: 0.1083950412 | J101: 0.08029911107 | K101: 0.06773721054 | L101: 0.04738201058 | M101: 0.02603169143 | N101: 0.02826937985 | O101: 0.1394349572 | P101: 0.1210050239 | Q101: 0.1407110514 | R101: 0.1281396548 | S101: 0.08963337037 | T101: 0.06812633726 | U101: 0.1043661552 | V101: 0.04503632858 | W101: 0.03153337364 | X101: 0.03953883889 | Y101: 0.03953883889 | Z101: 0.03953883889 | AA101: 0.03953883889 | AB101: 0.03953883889 | AC101: 0.03953883889 | AD101: 0.03953883889 | AE101: 0.03953883889 | AF101: 0.03953883889 | AG101: 0.03953883889 | AH101: 0.03953883889 | AI101: 0.03953883889 | AJ101: 0.03953883889 | AK101: 0.03953883889 | AL101: 0.03953883889 | AM101: 0.03953883889 | AN101: =AN98*(1-AN71)*(1-AN64) -> 0.03953883889 | AO101: 0.03953883889 | AP101: 0.03876995018 | AQ101: 0.03876995018 | AR101: 0.03876995018 | AS101: 0.03876995018 | AT101: 0.03876995018 | AU101: 0.03876995018 | AV101: 0.03876995018 | AW101: 0.03876995018 | AX101: 0.03876995018 | AY101: 0.03876995018 | AZ101: 0.03876995018 | BA101: 0.03876995018 | BB101: 0.03876995018 | BC101: 0.03876995018 | BD101: 0.03876995018 | BE101: 0.03953883889 | BF101: 0.02826937985
D103: Total Capital to be Recovered before ITC | E103: USD | H103: =H17 -> 650000 | I103: 650000 | J103: 650000 | K103: 650000 | L103: 650000 | M103: 650000 | N103: 650000 | O103: 650000 | P103: 650000 | Q103: 650000 | R103: 650000 | S103: 650000 | T103: 650000 | U103: 650000 | V103: 650000 | W103: 650000 | X103: 650000 | Y103: 650000 | Z103: 650000 | AA103: 650000 | AB103: 650000 | AC103: 650000 | AD103: 650000 | AE103: 650000 | AF103: 650000 | AG103: 650000 | AH103: 650000 | AI103: 650000 | AJ103: 650000 | AK103: 650000 | AL103: 650000 | AM103: 650000 | AN103: =AN17 -> 650000 | AO103: 650000 | AP103: 650000 | AQ103: 650000 | AR103: 650000 | AS103: 650000 | AT103: 650000 | AU103: 650000 | AV103: 650000 | AW103: 650000 | AX103: 650000 | AY103: 650000 | AZ103: 650000 | BA103: 650000 | BB103: 650000 | BC103: 650000 | BD103: 650000 | BE103: 650000 | BF103: =INDEX(H103:BE103,$F$3) -> 650000
D104: Total Capital to be Recovered after ITC | E104: USD | H104: =H103*(1-H64) -> 650000 | I104: 650000 | J104: 650000 | K104: 650000 | L104: 481000 | M104: 481000 | N104: 481000 | O104: 650000 | P104: 650000 | Q104: 650000 | R104: 650000 | S104: 481000 | T104: 481000 | U104: 650000 | V104: 650000 | W104: 481000 | X104: 650000 | Y104: 650000 | Z104: 650000 | AA104: 650000 | AB104: 650000 | AC104: 650000 | AD104: 650000 | AE104: 650000 | AF104: 650000 | AG104: 650000 | AH104: 650000 | AI104: 650000 | AJ104: 650000 | AK104: 650000 | AL104: 650000 | AM104: 650000 | AN104: =AN103*(1-AN64) -> 650000 | AO104: 650000 | AP104: 650000 | AQ104: 650000 | AR104: 650000 | AS104: 650000 | AT104: 650000 | AU104: 650000 | AV104: 650000 | AW104: 650000 | AX104: 650000 | AY104: 650000 | AZ104: 650000 | BA104: 650000 | BB104: 650000 | BC104: 650000 | BD104: 650000 | BE104: 650000 | BF104: =INDEX(H104:BE104,$F$3) -> 481000
D106: Capexp Recovery - After PV Tax Shield | E106: USD/Year | F106: Capital x Nominal CCR | H106: =H103*H100 -> 56125.36704 | I106: 70456.7768 | J106: 70456.7768 | K106: 59434.59971 | L106: 41574.35492 | M106: 24798.39779 | N106: 26608.20418 | O106: 90632.72215 | P106: 88124.49831 | Q106: 102475.8345 | R106: 93320.44596 | S106: 65277.42023 | T106: 50039.50369 | U106: 76477.87145 | V106: 40703.04309 | W106: 28499.30947 | X106: 37408.45909 | Y106: 37408.45909 | Z106: 37408.45909 | AA106: 37408.45909 | AB106: 37408.45909 | AC106: 37408.45909 | AD106: 37408.45909 | AE106: 37408.45909 | AF106: 37408.45909 | AG106: 37408.45909 | AH106: 37408.45909 | AI106: 37408.45909 | AJ106: 37408.45909 | AK106: 37408.45909 | AL106: 37408.45909 | AM106: 37408.45909 | AN106: =AN103*AN100 -> 37408.45909 | AO106: 37408.45909 | AP106: 36680.99864 | AQ106: 36680.99864 | AR106: 36680.99864 | AS106: 36680.99864 | AT106: 36680.99864 | AU106: 36680.99864 | AV106: 36680.99864 | AW106: 36680.99864 | AX106: 36680.99864 | AY106: 36680.99864 | AZ106: 36680.99864 | BA106: 36680.99864 | BB106: 36680.99864 | BC106: 36680.99864 | BD106: 36680.99864 | BE106: 37408.45909 | BF106: 26608.20418
D107: Capexp Recovery - Real After PV Tax Shield | E107: USD/Year | F107: Capital x Real CCR | H107: =H103*H101 -> 56125.36704 | I107: 70456.7768 | J107: 52194.4222 | K107: 44029.18685 | L107: 30798.30688 | M107: 16920.59943 | N107: 18375.0969 | O107: 90632.72215 | P107: 78653.26554 | Q107: 91462.18338 | R107: 83290.77562 | S107: 58261.69074 | T107: 44282.11922 | U107: 67838.00085 | V107: 29273.61358 | W107: 20496.69286 | X107: 25700.24528 | Y107: 25700.24528 | Z107: 25700.24528 | AA107: 25700.24528 | AB107: 25700.24528 | AC107: 25700.24528 | AD107: 25700.24528 | AE107: 25700.24528 | AF107: 25700.24528 | AG107: 25700.24528 | AH107: 25700.24528 | AI107: 25700.24528 | AJ107: 25700.24528 | AK107: 25700.24528 | AL107: 25700.24528 | AM107: 25700.24528 | AN107: =AN103*AN101 -> 25700.24528 | AO107: 25700.24528 | AP107: 25200.46762 | AQ107: 25200.46762 | AR107: 25200.46762 | AS107: 25200.46762 | AT107: 25200.46762 | AU107: 25200.46762 | AV107: 25200.46762 | AW107: 25200.46762 | AX107: 25200.46762 | AY107: 25200.46762 | AZ107: 25200.46762 | BA107: 25200.46762 | BB107: 25200.46762 | BC107: 25200.46762 | BD107: 25200.46762 | BE107: 25700.24528 | BF107: 18375.0969
D109: Total Production | E109: Units/Year | H109: =H23 -> 2191.5 | I109: 2191.5 | J109: 2191.5 | K109: 2191.5 | L109: 2191.5 | M109: 2191.5 | N109: 2191.5 | O109: 2191.5 | P109: 2191.5 | Q109: 2191.5 | R109: 2191.5 | S109: 2191.5 | T109: 2191.5 | U109: 2191.5 | V109: 2191.5 | W109: 2191.5 | X109: 2191.5 | Y109: 2191.5 | Z109: 2191.5 | AA109: 2191.5 | AB109: 2191.5 | AC109: 2191.5 | AD109: 2191.5 | AE109: 2191.5 | AF109: 2191.5 | AG109: 2191.5 | AH109: 2191.5 | AI109: 2191.5 | AJ109: 2191.5 | AK109: 2191.5 | AL109: 2191.5 | AM109: 2191.5 | AN109: =AN23 -> 2191.5 | AO109: 2191.5 | AP109: 2191.5 | AQ109: 2191.5 | AR109: 2191.5 | AS109: 2191.5 | AT109: 2191.5 | AU109: 2191.5 | AV109: 2191.5 | AW109: 2191.5 | AX109: 2191.5 | AY109: 2191.5 | AZ109: 2191.5 | BA109: 2191.5 | BB109: 2191.5 | BC109: 2191.5 | BD109: 2191.5 | BE109: 2191.5 | BF109: =INDEX(H109:BE109,$F$3) -> 2191.5
D110: Capexp Recovery - Nominal | E110: USD/Unit | F110: Capital Recovery/Production | H110: =IFERROR(H106/H109,0) -> 25.61048006 | I110: 32.15002364 | J110: 32.15002364 | K110: 27.12051093 | L110: 18.97073006 | M110: 11.31571882 | N110: 12.14154879 | O110: 41.35647828 | P110: 40.21195451 | Q110: 46.76059071 | R110: 42.5829094 | S110: 29.78663939 | T110: 22.8334491 | U110: 34.89750009 | V110: 18.57314309 | W110: 13.00447615 | X110: 17.06979653 | Y110: 17.06979653 | Z110: 17.06979653 | AA110: 17.06979653 | AB110: 17.06979653 | AC110: 17.06979653 | AD110: 17.06979653 | AE110: 17.06979653 | AF110: 17.06979653 | AG110: 17.06979653 | AH110: 17.06979653 | AI110: 17.06979653 | AJ110: 17.06979653 | AK110: 17.06979653 | AL110: 17.06979653 | AM110: 17.06979653 | AN110: =IFERROR(AN106/AN109,0) -> 17.06979653 | AO110: 17.06979653 | AP110: 16.73785017 | AQ110: 16.73785017 | AR110: 16.73785017 | AS110: 16.73785017 | AT110: 16.73785017 | AU110: 16.73785017 | AV110: 16.73785017 | AW110: 16.73785017 | AX110: 16.73785017 | AY110: 16.73785017 | AZ110: 16.73785017 | BA110: 16.73785017 | BB110: 16.73785017 | BC110: 16.73785017 | BD110: 16.73785017 | BE110: 17.06979653 | BF110: =INDEX(H110:BE110,$F$3) -> 12.14154879
D111: Capexp Recovery - Real | E111: USD/Unit | F111: Capital Recovery/Production | H111: =IFERROR(H107/H109,0) -> 25.61048006 | I111: 32.15002364 | J111: 23.81675665 | K111: 20.09089065 | L111: 14.05352812 | M111: 7.721012744 | N111: 8.384712253 | O111: 41.35647828 | P111: 35.89015083 | Q111: 41.73496846 | R111: 38.00628593 | S111: 26.58530264 | T111: 20.20630583 | U111: 30.95505401 | V111: 13.35779766 | W111: 9.352814449 | X111: 11.72723946 | Y111: 11.72723946 | Z111: 11.72723946 | AA111: 11.72723946 | AB111: 11.72723946 | AC111: 11.72723946 | AD111: =IFERROR(AD107/AD109,0) -> 11.72723946 | AE111: 11.72723946 | AF111: 11.72723946 | AG111: 11.72723946 | AH111: 11.72723946 | AI111: 11.72723946 | AJ111: 11.72723946 | AK111: 11.72723946 | AL111: 11.72723946 | AM111: 11.72723946 | AN111: 11.72723946 | AO111: 11.72723946 | AP111: 11.49918668 | AQ111: 11.49918668 | AR111: 11.49918668 | AS111: 11.49918668 | AT111: 11.49918668 | AU111: 11.49918668 | AV111: 11.49918668 | AW111: 11.49918668 | AX111: 11.49918668 | AY111: 11.49918668 | AZ111: 11.49918668 | BA111: 11.49918668 | BB111: 11.49918668 | BC111: =IFERROR(BC107/BC109,0) -> 11.49918668 | BD111: =IFERROR(BD107/BD109,0) -> 11.49918668 | BE111: =IFERROR(BE107/BE109,0) -> 11.72723946 | BF111: =INDEX(H111:BE111,$F$3) -> 8.384712253
B113: Real and Nominal O&M Calculations
D114: O&M Cost - Real Current | E114: USD/Year | H114: =H51 -> 10000 | I114: 10000 | J114: 10000 | K114: 10000 | L114: 10000 | M114: 10000 | N114: 10000 | O114: 10000 | P114: 10000 | Q114: 10000 | R114: 10000 | S114: 10000 | T114: 10000 | U114: 10000 | V114: 10000 | W114: 10000 | X114: 10000 | Y114: 10000 | Z114: 10000 | AA114: 10000 | AB114: 10000 | AC114: 10000 | AD114: 10000 | AE114: 10000 | AF114: 10000 | AG114: 10000 | AH114: 10000 | AI114: 10000 | AJ114: 10000 | AK114: 10000 | AL114: 10000 | AM114: 10000 | AN114: =AN51 -> 10000 | AO114: 10000 | AP114: 10000 | AQ114: 10000 | AR114: 10000 | AS114: 10000 | AT114: 10000 | AU114: 10000 | AV114: 10000 | AW114: 10000 | AX114: 10000 | AY114: 10000 | AZ114: 10000 | BA114: 10000 | BB114: 10000 | BC114: 10000 | BD114: 10000 | BE114: 10000 | BF114: =INDEX(H114:BE114,$F$3) -> 10000
D115: Inflation Adjustment to Compute Nominal | E115: Factor | H115: =PV(H87,H54,-1)/PV(H89,H54,-1) -> 1 | I115: 1 | J115: 1.349890924 | K115: 1.349890924 | L115: 1.349890924 | M115: 1.465574425 | N115: 1.572533189 | O115: 1.028462276 | P115: 1.12041754 | Q115: 1.12041754 | R115: 1.12041754 | S115: 1.12041754 | T115: 1.13001601 | U115: 1.200208604 | V115: 1.390434528 | W115: 1.390434528 | X115: 1.455568174 | Y115: 1.455568174 | Z115: 1.455568174 | AA115: 1.455568174 | AB115: 1.455568174 | AC115: 1.455568174 | AD115: 1.455568174 | AE115: 1.455568174 | AF115: 1.455568174 | AG115: 1.455568174 | AH115: 1.455568174 | AI115: 1.455568174 | AJ115: 1.455568174 | AK115: 1.455568174 | AL115: 1.455568174 | AM115: 1.455568174 | AN115: =PV(AN87,AN54,-1)/PV(AN89,AN54,-1) -> 1.455568174 | AO115: 1.455568174 | AP115: 1.455568174 | AQ115: 1.455568174 | AR115: 1.455568174 | AS115: 1.455568174 | AT115: 1.455568174 | AU115: 1.455568174 | AV115: 1.455568174 | AW115: 1.455568174 | AX115: 1.455568174 | AY115: 1.455568174 | AZ115: 1.455568174 | BA115: 1.455568174 | BB115: 1.455568174 | BC115: 1.455568174 | BD115: 1.455568174 | BE115: 1.455568174 | BF115: 1.572533189
D116: O&M Cost - Nominal | E116: USD/Year | H116: =H114*H115 -> 10000 | I116: =I114*I115 -> 10000 | J116: 13498.90924 | K116: 13498.90924 | L116: 13498.90924 | M116: 14655.74425 | N116: 15725.33189 | O116: 10284.62276 | P116: 11204.1754 | Q116: 11204.1754 | R116: 11204.1754 | S116: 11204.1754 | T116: 11300.1601 | U116: 12002.08604 | V116: 13904.34528 | W116: 13904.34528 | X116: 14555.68174 | Y116: 14555.68174 | Z116: 14555.68174 | AA116: 14555.68174 | AB116: 14555.68174 | AC116: 14555.68174 | AD116: 14555.68174 | AE116: 14555.68174 | AF116: 14555.68174 | AG116: 14555.68174 | AH116: 14555.68174 | AI116: 14555.68174 | AJ116: 14555.68174 | AK116: 14555.68174 | AL116: 14555.68174 | AM116: 14555.68174 | AN116: 14555.68174 | AO116: 14555.68174 | AP116: 14555.68174 | AQ116: 14555.68174 | AR116: 14555.68174 | AS116: 14555.68174 | AT116: 14555.68174 | AU116: 14555.68174 | AV116: 14555.68174 | AW116: 14555.68174 | AX116: 14555.68174 | AY116: 14555.68174 | AZ116: 14555.68174 | BA116: 14555.68174 | BB116: 14555.68174 | BC116: 14555.68174 | BD116: 14555.68174 | BE116: 14555.68174 | BF116: 15725.33189
D117: O&M Cost - Nominal | E117: USD/Unit of Capacity | H117: =IFERROR(H116/H109,0) -> 4.563084645 | I117: 4.563084645 | J117: 6.159666547 | K117: 6.159666547 | L117: 6.159666547 | M117: 6.687540157 | N117: 7.17560205 | O117: 4.692960422 | P117: 5.112560075 | Q117: 5.112560075 | R117: 5.112560075 | S117: 5.112560075 | T117: 5.156358706 | U117: 5.476653451 | V117: 6.344670446 | W117: 6.344670446 | X117: 6.641880785 | Y117: 6.641880785 | Z117: 6.641880785 | AA117: 6.641880785 | AB117: 6.641880785 | AC117: 6.641880785 | AD117: 6.641880785 | AE117: 6.641880785 | AF117: 6.641880785 | AG117: 6.641880785 | AH117: 6.641880785 | AI117: 6.641880785 | AJ117: 6.641880785 | AK117: 6.641880785 | AL117: 6.641880785 | AM117: 6.641880785 | AN117: =IFERROR(AN116/AN109,0) -> 6.641880785 | AO117: 6.641880785 | AP117: 6.641880785 | AQ117: 6.641880785 | AR117: 6.641880785 | AS117: 6.641880785 | AT117: 6.641880785 | AU117: 6.641880785 | AV117: 6.641880785 | AW117: 6.641880785 | AX117: 6.641880785 | AY117: 6.641880785 | AZ117: 6.641880785 | BA117: 6.641880785 | BB117: 6.641880785 | BC117: 6.641880785 | BD117: 6.641880785 | BE117: 6.641880785 | BF117: =INDEX(H117:BE117,$F$3) -> 7.17560205
D119: Degradation Adjustment for Real O&M | E119: Factor | H119: =PV(H87,H54,-1)/PV(H90,H54,-1) -> 1 | I119: 1 | J119: 1 | K119: 1 | L119: 1 | M119: 1 | N119: 1.085960162 | O119: 1.028462276 | P119: 1 | Q119: 1 | R119: 1 | S119: 1 | T119: 1 | U119: 1.064618441 | V119: 1 | W119: 1 | X119: 1 | Y119: 1 | Z119: 1 | AA119: 1 | AB119: 1 | AC119: 1 | AD119: 1 | AE119: 1 | AF119: 1 | AG119: 1 | AH119: 1 | AI119: 1 | AJ119: 1 | AK119: 1 | AL119: 1 | AM119: 1 | AN119: =PV(AN87,AN54,-1)/PV(AN90,AN54,-1) -> 1 | AO119: 1 | AP119: 1 | AQ119: 1 | AR119: 1 | AS119: 1 | AT119: 1 | AU119: 1 | AV119: 1 | AW119: 1 | AX119: 1 | AY119: 1 | AZ119: 1 | BA119: 1 | BB119: 1 | BC119: 1 | BD119: 1 | BE119: 1 | BF119: 1.085960162
D120: O&M Cost - Real Degradation | E120: USD | H120: =H51*H119 -> 10000 | I120: 10000 | J120: 10000 | K120: 10000 | L120: 10000 | M120: 10000 | N120: 10859.60162 | O120: 10284.62276 | P120: 10000 | Q120: 10000 | R120: 10000 | S120: 10000 | T120: 10000 | U120: 10646.18441 | V120: 10000 | W120: 10000 | X120: 10000 | Y120: 10000 | Z120: 10000 | AA120: 10000 | AB120: 10000 | AC120: 10000 | AD120: 10000 | AE120: 10000 | AF120: 10000 | AG120: 10000 | AH120: 10000 | AI120: 10000 | AJ120: 10000 | AK120: 10000 | AL120: 10000 | AM120: 10000 | AN120: =AN51*AN119 -> 10000 | AO120: 10000 | AP120: 10000 | AQ120: 10000 | AR120: 10000 | AS120: 10000 | AT120: 10000 | AU120: 10000 | AV120: 10000 | AW120: 10000 | AX120: 10000 | AY120: 10000 | AZ120: 10000 | BA120: 10000 | BB120: 10000 | BC120: 10000 | BD120: 10000 | BE120: 10000 | BF120: 10859.60162
D121: O&M Cost - Real | E121: USD/Unit of Capacity | H121: =IFERROR(H120/H109,0) -> 4.563084645 | I121: 4.563084645 | J121: 4.563084645 | K121: 4.563084645 | L121: 4.563084645 | M121: 4.563084645 | N121: 4.955328142 | O121: 4.692960422 | P121: 4.563084645 | Q121: 4.563084645 | R121: 4.563084645 | S121: 4.563084645 | T121: 4.563084645 | U121: 4.857944061 | V121: 4.563084645 | W121: 4.563084645 | X121: 4.563084645 | Y121: 4.563084645 | Z121: 4.563084645 | AA121: 4.563084645 | AB121: 4.563084645 | AC121: 4.563084645 | AD121: 4.563084645 | AE121: 4.563084645 | AF121: 4.563084645 | AG121: 4.563084645 | AH121: 4.563084645 | AI121: 4.563084645 | AJ121: 4.563084645 | AK121: 4.563084645 | AL121: 4.563084645 | AM121: 4.563084645 | AN121: =IFERROR(AN120/AN109,0) -> 4.563084645 | AO121: 4.563084645 | AP121: 4.563084645 | AQ121: 4.563084645 | AR121: 4.563084645 | AS121: 4.563084645 | AT121: 4.563084645 | AU121: 4.563084645 | AV121: 4.563084645 | AW121: 4.563084645 | AX121: 4.563084645 | AY121: 4.563084645 | AZ121: 4.563084645 | BA121: 4.563084645 | BB121: 4.563084645 | BC121: 4.563084645 | BD121: 4.563084645 | BE121: 4.563084645 | BF121: =INDEX(H121:BE121,$F$3) -> 4.955328142
D123: LCOE - Real | E123: USD/Unit | H123: =H111+H121 -> 30.1735647 | I123: 36.71310828 | J123: 28.3798413 | K123: 24.65397529 | L123: 18.61661277 | M123: 12.28409739 | N123: 13.34004039 | O123: 46.0494387 | P123: 40.45323547 | Q123: 46.29805311 | R123: 42.56937058 | S123: 31.14838729 | T123: 24.76939047 | U123: 35.81299807 | V123: 17.92088231 | W123: 13.91589909 | X123: 16.29032411 | Y123: 16.29032411 | Z123: 16.29032411 | AA123: 16.29032411 | AB123: 16.29032411 | AC123: 16.29032411 | AD123: 16.29032411 | AE123: 16.29032411 | AF123: 16.29032411 | AG123: 16.29032411 | AH123: 16.29032411 | AI123: 16.29032411 | AJ123: 16.29032411 | AK123: 16.29032411 | AL123: 16.29032411 | AM123: 16.29032411 | AN123: =AN111+AN121 -> 16.29032411 | AO123: 16.29032411 | AP123: 16.06227133 | AQ123: 16.06227133 | AR123: 16.06227133 | AS123: 16.06227133 | AT123: 16.06227133 | AU123: 16.06227133 | AV123: 16.06227133 | AW123: 16.06227133 | AX123: 16.06227133 | AY123: 16.06227133 | AZ123: 16.06227133 | BA123: 16.06227133 | BB123: 16.06227133 | BC123: 16.06227133 | BD123: 16.06227133 | BE123: 16.29032411 | BF123: =INDEX(H123:BE123,$F$3) -> 13.34004039
D124: LCOE - Nominal | E124: USD/Unit | H124: =H110+H117 -> 30.1735647 | I124: 36.71310828 | J124: 38.30969018 | K124: 33.28017748 | L124: 25.1303966 | M124: 18.00325897 | N124: 19.31715084 | O124: 46.0494387 | P124: 45.32451459 | Q124: 51.87315078 | R124: 47.69546948 | S124: 34.89919947 | T124: 27.9898078 | U124: 40.37415354 | V124: 24.91781354 | W124: 19.34914659 | X124: 23.71167731 | Y124: 23.71167731 | Z124: 23.71167731 | AA124: 23.71167731 | AB124: 23.71167731 | AC124: 23.71167731 | AD124: 23.71167731 | AE124: 23.71167731 | AF124: 23.71167731 | AG124: 23.71167731 | AH124: 23.71167731 | AI124: 23.71167731 | AJ124: 23.71167731 | AK124: 23.71167731 | AL124: 23.71167731 | AM124: 23.71167731 | AN124: =AN110+AN117 -> 23.71167731 | AO124: 23.71167731 | AP124: 23.37973095 | AQ124: 23.37973095 | AR124: 23.37973095 | AS124: 23.37973095 | AT124: 23.37973095 | AU124: 23.37973095 | AV124: 23.37973095 | AW124: 23.37973095 | AX124: 23.37973095 | AY124: 23.37973095 | AZ124: 23.37973095 | BA124: 23.37973095 | BB124: 23.37973095 | BC124: 23.37973095 | BD124: 23.37973095 | BE124: 23.71167731 | BF124: =INDEX(H124:BE124,$F$3) -> 19.31715084
B126: PPA with No Inflation (the case with nominal carrying charges) | E126: Driver
C127: Timeline | G127: 0 | H127: 1 | I127: 2 | J127: 3 | K127: 4 | L127: 5 | M127: 6 | N127: 7 | O127: 8 | P127: 9 | Q127: 10 | R127: 11 | S127: 12 | T127: 13 | U127: 14 | V127: 15 | W127: 16 | X127: 17 | Y127: 18 | Z127: 19 | AA127: 20 | AB127: 21 | AC127: 22 | AD127: 23 | AE127: 24 | AF127: 25 | AG127: 24 | AH127: 27 | AI127: 28 | AJ127: 29 | AK127: 30 | AL127: 31 | AM127: 32 | AN127: 33 | AO127: 34 | AP127: 35 | AQ127: 36 | AR127: 37 | AS127: 38 | AT127: 39 | AU127: 40 | AV127: 41 | AW127: 42 | AX127: 43 | AY127: 44 | AZ127: 45 | BA127: 46 | BB127: 47 | BC127: 48 | BD127: 49 | BE127: 50 | BF127: 51 | BG127: 52 | BH127: 53 | BI127: 54 | BJ127: 55 | BK127: 56 | BL127: 57 | BM127: 58 | BN127: 59 | BO127: 60 | BP127: 61 | BQ127: 62 | BR127: 63 | BS127: 64 | BT127: 65 | BU127: 66 | BV127: 67 | BW127: 68 | BX127: 69 | BY127: 70 | BZ127: 71 | CA127: 72 | CB127: 73 | CC127: 74 | CD127: 75 | CE127: 76 | CF127: 77 | CG127: 78 | CH127: 79 | CI127: 80 | CJ127: 81 | CK127: 82 | CL127: 83 | CM127: 84 | CN127: 85 | CO127: 86 | CP127: 87 | CQ127: 88 | CR127: 89 | CS127: 90 | CT127: 91 | CU127: 92 | CV127: 93 | CW127: 94 | CX127: 95 | CY127: 96 | CZ127: 97 | DA127: 98 | DB127: 99 | DC127: 100
C128: Flag | E128: =BF54 -> 35 | H128: =H127<=$E$128 -> TRUE | I128: TRUE | J128: TRUE | K128: TRUE | L128: TRUE | M128: TRUE | N128: TRUE | O128: TRUE | P128: TRUE | Q128: TRUE | R128: TRUE | S128: TRUE | T128: TRUE | U128: TRUE | V128: TRUE | W128: TRUE | X128: TRUE | Y128: TRUE | Z128: TRUE | AA128: TRUE | AB128: TRUE | AC128: TRUE | AD128: TRUE | AE128: TRUE | AF128: TRUE | AG128: =AG127<=$E$128 -> TRUE | AH128: TRUE | AI128: TRUE | AJ128: TRUE | AK128: TRUE | AL128: TRUE | AM128: TRUE | AN128: TRUE | AO128: TRUE | AP128: TRUE | AQ128: FALSE | AR128: FALSE | AS128: FALSE | AT128: FALSE | AU128: FALSE | AV128: FALSE | AW128: FALSE | AX128: FALSE | AY128: FALSE | AZ128: FALSE | BA128: FALSE | BB128: FALSE | BC128: FALSE | BD128: FALSE | BE128: FALSE | BF128: FALSE | BG128: FALSE | BH128: FALSE | BI128: FALSE | BJ128: FALSE | BK128: FALSE | BL128: FALSE | BM128: FALSE | BN128: FALSE | BO128: FALSE | BP128: FALSE | BQ128: FALSE | BR128: FALSE | BS128: FALSE | BT128: =BT127<=$E$128 -> FALSE | BU128: FALSE | BV128: FALSE | BW128: FALSE | BX128: FALSE | BY128: FALSE | BZ128: FALSE | CA128: FALSE | CB128: FALSE | CC128: FALSE | CD128: FALSE | CE128: FALSE | CF128: FALSE | CG128: FALSE | CH128: FALSE | CI128: FALSE | CJ128: FALSE | CK128: FALSE | CL128: FALSE | CM128: FALSE | CN128: FALSE | CO128: FALSE | CP128: FALSE | CQ128: FALSE | CR128: FALSE | CS128: FALSE | CT128: FALSE | CU128: FALSE | CV128: FALSE | CW128: FALSE | CX128: FALSE | CY128: FALSE | CZ128: FALSE | DA128: FALSE | DB128: FALSE | DC128: FALSE
C129: Nominal
D130: Price per MWH | E130: =BF124 -> 19.31715084 | H130: =$E$130*H128 -> 19.31715084 | I130: =$E$130 -> 19.31715084 | J130: 19.31715084 | K130: 19.31715084 | L130: 19.31715084 | M130: 19.31715084 | N130: 19.31715084 | O130: 19.31715084 | P130: 19.31715084 | Q130: 19.31715084 | R130: 19.31715084 | S130: 19.31715084 | T130: 19.31715084 | U130: 19.31715084 | V130: 19.31715084 | W130: 19.31715084 | X130: 19.31715084 | Y130: 19.31715084 | Z130: 19.31715084 | AA130: 19.31715084 | AB130: 19.31715084 | AC130: 19.31715084 | AD130: 19.31715084 | AE130: 19.31715084 | AF130: 19.31715084 | AG130: 19.31715084 | AH130: 19.31715084 | AI130: 19.31715084 | AJ130: 19.31715084 | AK130: 19.31715084 | AL130: 19.31715084 | AM130: 19.31715084 | AN130: 19.31715084 | AO130: 19.31715084 | AP130: 19.31715084 | AQ130: 19.31715084 | AR130: 19.31715084 | AS130: 19.31715084 | AT130: 19.31715084 | AU130: 19.31715084 | AV130: 19.31715084 | AW130: 19.31715084 | AX130: 19.31715084 | AY130: 19.31715084 | AZ130: 19.31715084 | BA130: 19.31715084 | BB130: 19.31715084 | BC130: 19.31715084 | BD130: 19.31715084 | BE130: 19.31715084 | BF130: 19.31715084 | BG130: 19.31715084 | BH130: 19.31715084 | BI130: 19.31715084 | BJ130: 19.31715084 | BK130: 19.31715084 | BL130: 19.31715084 | BM130: 19.31715084 | BN130: 19.31715084 | BO130: 19.31715084 | BP130: 19.31715084 | BQ130: 19.31715084 | BR130: 19.31715084 | BS130: 19.31715084 | BT130: 19.31715084 | BU130: =$E$130 -> 19.31715084 | BV130: 19.31715084 | BW130: 19.31715084 | BX130: 19.31715084 | BY130: 19.31715084 | BZ130: 19.31715084 | CA130: 19.31715084 | CB130: 19.31715084 | CC130: 19.31715084 | CD130: 19.31715084 | CE130: 19.31715084 | CF130: 19.31715084 | CG130: 19.31715084 | CH130: 19.31715084 | CI130: 19.31715084 | CJ130: 19.31715084 | CK130: 19.31715084 | CL130: 19.31715084 | CM130: 19.31715084 | CN130: 19.31715084 | CO130: 19.31715084 | CP130: 19.31715084 | CQ130: 19.31715084 | CR130: 19.31715084 | CS130: 19.31715084 | CT130: 19.31715084 | CU130: 19.31715084 | CV130: 19.31715084 | CW130: 19.31715084 | CX130: 19.31715084 | CY130: 19.31715084 | CZ130: 19.31715084 | DA130: 19.31715084 | DB130: 19.31715084 | DC130: 19.31715084
D131: Production without Degradation | E131: =BF109 -> 2191.5 | H131: =$E$131*H128 -> 2191.5 | I131: 2191.5 | J131: 2191.5 | K131: 2191.5 | L131: 2191.5 | M131: 2191.5 | N131: 2191.5 | O131: 2191.5 | P131: 2191.5 | Q131: 2191.5 | R131: 2191.5 | S131: 2191.5 | T131: 2191.5 | U131: 2191.5 | V131: 2191.5 | W131: 2191.5 | X131: 2191.5 | Y131: 2191.5 | Z131: 2191.5 | AA131: 2191.5 | AB131: 2191.5 | AC131: 2191.5 | AD131: 2191.5 | AE131: 2191.5 | AF131: 2191.5 | AG131: =$E$131*AG128 -> 2191.5 | AH131: 2191.5 | AI131: 2191.5 | AJ131: 2191.5 | AK131: 2191.5 | AL131: 2191.5 | AM131: 2191.5 | AN131: 2191.5 | AO131: 2191.5 | AP131: 2191.5 | AQ131: 0 | AR131: 0 | AS131: 0 | AT131: 0 | AU131: 0 | AV131: 0 | AW131: 0 | AX131: 0 | AY131: 0 | AZ131: 0 | BA131: 0 | BB131: 0 | BC131: 0 | BD131: 0 | BE131: 0 | BF131: 0 | BG131: 0 | BH131: 0 | BI131: 0 | BJ131: 0 | BK131: 0 | BL131: 0 | BM131: 0 | BN131: 0 | BO131: 0 | BP131: 0 | BQ131: 0 | BR131: 0 | BS131: 0 | BT131: =$E$131*BT128 -> 0 | BU131: 0 | BV131: 0 | BW131: 0 | BX131: 0 | BY131: 0 | BZ131: 0 | CA131: 0 | CB131: 0 | CC131: 0 | CD131: 0 | CE131: 0 | CF131: 0 | CG131: 0 | CH131: 0 | CI131: 0 | CJ131: 0 | CK131: 0 | CL131: 0 | CM131: 0 | CN131: 0 | CO131: 0 | CP131: 0 | CQ131: 0 | CR131: 0 | CS131: 0 | CT131: 0 | CU131: 0 | CV131: 0 | CW131: 0 | CX131: 0 | CY131: 0 | CZ131: 0 | DA131: 0 | DB131: 0 | DC131: 0
D132: Degradation Index | E132: =BF73 -> 0.005 | F132: 1 | H132: =F132*(1-$E$132) -> 0.995 | I132: =H132*(1-$E$132) -> 0.990025 | J132: 0.985074875 | K132: 0.9801495006 | L132: 0.9752487531 | M132: 0.9703725094 | N132: 0.9655206468 | O132: 0.9606930436 | P132: 0.9558895784 | Q132: 0.9511101305 | R132: 0.9463545798 | S132: 0.9416228069 | T132: 0.9369146929 | U132: 0.9322301194 | V132: 0.9275689688 | W132: 0.922931124 | X132: 0.9183164684 | Y132: 0.913724886 | Z132: 0.9091562616 | AA132: 0.9046104803 | AB132: 0.9000874279 | AC132: 0.8955869907 | AD132: 0.8911090558 | AE132: 0.8866535105 | AF132: 0.8822202429 | AG132: 0.8778091417 | AH132: 0.873420096 | AI132: 0.8690529955 | AJ132: 0.8647077306 | AK132: 0.8603841919 | AL132: 0.856082271 | AM132: 0.8518018596 | AN132: 0.8475428503 | AO132: 0.8433051361 | AP132: 0.8390886104 | AQ132: 0.8348931673 | AR132: 0.8307187015 | AS132: 0.826565108 | AT132: 0.8224322824 | AU132: 0.818320121 | AV132: 0.8142285204 | AW132: 0.8101573778 | AX132: 0.8061065909 | AY132: 0.802076058 | AZ132: 0.7980656777 | BA132: 0.7940753493 | BB132: 0.7901049725 | BC132: =BB132*(1-$E$132) -> 0.7861544477 | BD132: 0.7822236754 | BE132: 0.7783125571 | BF132: 0.7744209943 | BG132: 0.7705488893 | BH132: 0.7666961449 | BI132: 0.7628626641 | BJ132: 0.7590483508 | BK132: 0.7552531091 | BL132: 0.7514768435 | BM132: 0.7477194593 | BN132: 0.743980862 | BO132: 0.7402609577 | BP132: 0.7365596529 | BQ132: 0.7328768546 | BR132: 0.7292124704 | BS132: 0.725566408 | BT132: =BS132*(1-$E$132) -> 0.721938576 | BU132: 0.7183288831 | BV132: 0.7147372387 | BW132: 0.7111635525 | BX132: 0.7076077347 | BY132: 0.7040696961 | BZ132: 0.7005493476 | CA132: 0.6970466008 | CB132: 0.6935613678 | CC132: 0.690093561 | CD132: 0.6866430932 | CE132: 0.6832098777 | CF132: 0.6797938283 | CG132: 0.6763948592 | CH132: 0.6730128849 | CI132: 0.6696478205 | CJ132: 0.6662995814 | CK132: 0.6629680835 | CL132: 0.659653243 | CM132: 0.6563549768 | CN132: 0.6530732019 | CO132: 0.6498078359 | CP132: 0.6465587968 | CQ132: 0.6433260028 | CR132: 0.6401093728 | CS132: 0.6369088259 | CT132: 0.6337242818 | CU132: 0.6305556604 | CV132: 0.6274028821 | CW132: 0.6242658676 | CX132: 0.6211445383 | CY132: 0.6180388156 | CZ132: 0.6149486215 | DA132: 0.6118738784 | DB132: 0.608814509 | DC132: 0.6057704365
D133: Final Production with Degradation | G133: =SUM(H133:DC133) -> 70174.82476 | H133: =H131*H132 -> 2180.5425 | I133: =I131*I132 -> 2169.639788 | J133: 2158.791589 | K133: 2147.997631 | L133: 2137.257642 | M133: 2126.571354 | N133: 2115.938497 | O133: 2105.358805 | P133: 2094.832011 | Q133: 2084.357851 | R133: 2073.936062 | S133: 2063.566381 | T133: 2053.248549 | U133: 2042.982307 | V133: 2032.767395 | W133: 2022.603558 | X133: 2012.49054 | Y133: 2002.428088 | Z133: 1992.415947 | AA133: 1982.453868 | AB133: 1972.541598 | AC133: 1962.67889 | AD133: 1952.865496 | AE133: 1943.101168 | AF133: 1933.385662 | AG133: =AG131*AG132 -> 1923.718734 | AH133: 1914.10014 | AI133: 1904.52964 | AJ133: 1895.006992 | AK133: 1885.531957 | AL133: 1876.104297 | AM133: 1866.723775 | AN133: 1857.390156 | AO133: 1848.103206 | AP133: 1838.86269 | AQ133: 0 | AR133: 0 | AS133: 0 | AT133: 0 | AU133: 0 | AV133: 0 | AW133: 0 | AX133: 0 | AY133: 0 | AZ133: 0 | BA133: 0 | BB133: 0 | BC133: 0 | BD133: 0 | BE133: 0 | BF133: 0 | BG133: 0 | BH133: 0 | BI133: 0 | BJ133: 0 | BK133: 0 | BL133: 0 | BM133: 0 | BN133: 0 | BO133: 0 | BP133: 0 | BQ133: 0 | BR133: 0 | BS133: 0 | BT133: 0 | BU133: =BU131*BU132 -> 0 | BV133: 0 | BW133: 0 | BX133: 0 | BY133: 0 | BZ133: 0 | CA133: 0 | CB133: 0 | CC133: 0 | CD133: 0 | CE133: 0 | CF133: 0 | CG133: 0 | CH133: 0 | CI133: 0 | CJ133: 0 | CK133: 0 | CL133: 0 | CM133: 0 | CN133: 0 | CO133: 0 | CP133: 0 | CQ133: 0 | CR133: 0 | CS133: 0 | CT133: 0 | CU133: 0 | CV133: 0 | CW133: 0 | CX133: 0 | CY133: 0 | CZ133: 0 | DA133: 0 | DB133: 0 | DC133: 0
D134: Nominal Revenues | G134: =SUM(H134:DC134) -> 1355577.675 | H134: =H130*H133 -> 42121.86839 | I134: 41911.25905 | J134: 41701.70276 | K134: 41493.19424 | L134: 41285.72827 | M134: 41079.29963 | N134: 40873.90313 | O134: 40669.53362 | P134: 40466.18595 | Q134: 40263.85502 | R134: 40062.53574 | S134: 39862.22306 | T134: 39662.91195 | U134: 39464.59739 | V134: 39267.2744 | W134: 39070.93803 | X134: 38875.58334 | Y134: 38681.20542 | Z134: 38487.7994 | AA134: 38295.3604 | AB134: 38103.8836 | AC134: 37913.36418 | AD134: 37723.79736 | AE134: 37535.17837 | AF134: 37347.50248 | AG134: 37160.76497 | AH134: 36974.96114 | AI134: 36790.08634 | AJ134: 36606.13591 | AK134: 36423.10523 | AL134: 36240.9897 | AM134: 36059.78475 | AN134: =AN130*AN133 -> 35879.48583 | AO134: 35700.0884 | AP134: 35521.58796 | AQ134: 0 | AR134: 0 | AS134: 0 | AT134: 0 | AU134: 0 | AV134: 0 | AW134: 0 | AX134: 0 | AY134: 0 | AZ134: 0 | BA134: 0 | BB134: 0 | BC134: 0 | BD134: 0 | BE134: 0 | BF134: 0 | BG134: 0 | BH134: 0 | BI134: 0 | BJ134: 0 | BK134: 0 | BL134: 0 | BM134: 0 | BN134: 0 | BO134: 0 | BP134: 0 | BQ134: 0 | BR134: 0 | BS134: 0 | BT134: =BT130*BT133 -> 0 | BU134: 0 | BV134: 0 | BW134: 0 | BX134: 0 | BY134: 0 | BZ134: 0 | CA134: 0 | CB134: 0 | CC134: 0 | CD134: 0 | CE134: 0 | CF134: 0 | CG134: 0 | CH134: 0 | CI134: 0 | CJ134: 0 | CK134: 0 | CL134: 0 | CM134: 0 | CN134: 0 | CO134: 0 | CP134: 0 | CQ134: 0 | CR134: 0 | CS134: 0 | CT134: 0 | CU134: 0 | CV134: 0 | CW134: 0 | CX134: 0 | CY134: 0 | CZ134: =CZ130*CZ133 -> 0 | DA134: =DA130*DA133 -> 0 | DB134: =DB130*DB133 -> 0 | DC134: =DC130*DC133 -> 0
D135: Inflation Index | E135: =BF74 -> 0.025 | F135: 1 | H135: =F135*(1+$E$135) -> 1.025 | I135: =H135*(1+$E$135) -> 1.050625 | J135: 1.076890625 | K135: 1.103812891 | L135: 1.131408213 | M135: 1.159693418 | N135: 1.188685754 | O135: 1.218402898 | P135: 1.24886297 | Q135: 1.280084544 | R135: 1.312086658 | S135: 1.344888824 | T135: 1.378511045 | U135: 1.412973821 | V135: 1.448298166 | W135: 1.484505621 | X135: 1.521618261 | Y135: 1.559658718 | Z135: 1.598650186 | AA135: 1.63861644 | AB135: 1.679581851 | AC135: 1.721571398 | AD135: 1.764610683 | AE135: 1.80872595 | AF135: 1.853944098 | AG135: 1.900292701 | AH135: 1.947800018 | AI135: 1.996495019 | AJ135: 2.046407394 | AK135: 2.097567579 | AL135: 2.150006769 | AM135: 2.203756938 | AN135: 2.258850861 | AO135: 2.315322133 | AP135: 2.373205186 | AQ135: 2.432535316 | AR135: 2.493348699 | AS135: 2.555682416 | AT135: 2.619574476 | AU135: 2.685063838 | AV135: 2.752190434 | AW135: 2.820995195 | AX135: 2.891520075 | AY135: 2.963808077 | AZ135: 3.037903279 | BA135: 3.113850861 | BB135: 3.191697132 | BC135: =BB135*(1+$E$135) -> 3.271489561 | BD135: 3.3532768 | BE135: 3.43710872 | BF135: 3.523036438 | BG135: 3.611112349 | BH135: 3.701390157 | BI135: 3.793924911 | BJ135: 3.888773034 | BK135: 3.98599236 | BL135: 4.085642169 | BM135: 4.187783223 | BN135: 4.292477804 | BO135: 4.399789749 | BP135: 4.509784493 | BQ135: 4.622529105 | BR135: 4.738092332 | BS135: 4.856544641 | BT135: =BS135*(1+$E$135) -> 4.977958257 | BU135: 5.102407213 | BV135: 5.229967394 | BW135: 5.360716578 | BX135: 5.494734493 | BY135: 5.632102855 | BZ135: 5.772905427 | CA135: 5.917228062 | CB135: 6.065158764 | CC135: 6.216787733 | CD135: 6.372207426 | CE135: 6.531512612 | CF135: 6.694800427 | CG135: 6.862170438 | CH135: 7.033724699 | CI135: 7.209567816 | CJ135: 7.389807012 | CK135: 7.574552187 | CL135: 7.763915992 | CM135: 7.958013891 | CN135: 8.156964239 | CO135: 8.360888345 | CP135: 8.569910553 | CQ135: 8.784158317 | CR135: 9.003762275 | CS135: 9.228856332 | CT135: 9.45957774 | CU135: 9.696067184 | CV135: 9.938468863 | CW135: 10.18693058 | CX135: 10.44160385 | CY135: 10.70264395 | CZ135: 10.97021004 | DA135: 11.2444653 | DB135: 11.52557693 | DC135: 11.81371635
D136: O&M Cost per year | E136: =BF114 -> 10000 | G136: =SUM(H136:DC136) -> 563014.1263 | H136: =$E$136*H135*H128 -> 10250 | I136: 10506.25 | J136: 10768.90625 | K136: 11038.12891 | L136: 11314.08213 | M136: 11596.93418 | N136: 11886.85754 | O136: 12184.02898 | P136: 12488.6297 | Q136: 12800.84544 | R136: 13120.86658 | S136: 13448.88824 | T136: 13785.11045 | U136: 14129.73821 | V136: 14482.98166 | W136: 14845.05621 | X136: 15216.18261 | Y136: 15596.58718 | Z136: 15986.50186 | AA136: 16386.1644 | AB136: 16795.81851 | AC136: 17215.71398 | AD136: 17646.10683 | AE136: 18087.2595 | AF136: 18539.44098 | AG136: 19002.92701 | AH136: 19478.00018 | AI136: 19964.95019 | AJ136: 20464.07394 | AK136: 20975.67579 | AL136: 21500.06769 | AM136: 22037.56938 | AN136: =$E$136*AN135*AN128 -> 22588.50861 | AO136: 23153.22133 | AP136: 23732.05186 | AQ136: 0 | AR136: 0 | AS136: 0 | AT136: 0 | AU136: 0 | AV136: 0 | AW136: 0 | AX136: 0 | AY136: 0 | AZ136: 0 | BA136: 0 | BB136: 0 | BC136: 0 | BD136: 0 | BE136: 0 | BF136: 0 | BG136: 0 | BH136: 0 | BI136: 0 | BJ136: 0 | BK136: 0 | BL136: 0 | BM136: 0 | BN136: 0 | BO136: 0 | BP136: 0 | BQ136: 0 | BR136: 0 | BS136: 0 | BT136: =$E$136*BT135*BT128 -> 0 | BU136: 0 | BV136: 0 | BW136: 0 | BX136: 0 | BY136: 0 | BZ136: 0 | CA136: 0 | CB136: 0 | CC136: 0 | CD136: 0 | CE136: 0 | CF136: 0 | CG136: 0 | CH136: 0 | CI136: 0 | CJ136: 0 | CK136: 0 | CL136: 0 | CM136: 0 | CN136: 0 | CO136: 0 | CP136: 0 | CQ136: 0 | CR136: 0 | CS136: 0 | CT136: 0 | CU136: 0 | CV136: 0 | CW136: 0 | CX136: 0 | CY136: 0 | CZ136: =$E$136*CZ135*CZ128 -> 0 | DA136: =$E$136*DA135*DA128 -> 0 | DB136: =$E$136*DB135*DB128 -> 0 | DC136: =$E$136*DC135*DC128 -> 0
D137: EBITDA | G137: =SUM(H137:DC137) -> 792563.5491 | H137: =H134-H136 -> 31871.86839 | I137: =I134-I136 -> 31405.00905 | J137: 30932.79651 | K137: 30455.06534 | L137: 29971.64614 | M137: 29482.36545 | N137: 28987.0456 | O137: 28485.50464 | P137: 27977.55625 | Q137: 27463.00958 | R137: 26941.66917 | S137: 26413.33482 | T137: 25877.8015 | U137: 25334.85918 | V137: 24784.29274 | W137: 24225.88182 | X137: 23659.40073 | Y137: 23084.61825 | Z137: 22501.29754 | AA137: 21909.196 | AB137: 21308.06508 | AC137: 20697.6502 | AD137: 20077.69053 | AE137: 19447.91888 | AF137: 18808.0615 | AG137: =AG134-AG136 -> 18157.83796 | AH137: 17496.96096 | AI137: 16825.13615 | AJ137: 16142.06196 | AK137: 15447.42944 | AL137: 14740.92201 | AM137: 14022.21537 | AN137: 13290.97722 | AO137: 12546.86707 | AP137: 11789.5361 | AQ137: 0 | AR137: 0 | AS137: 0 | AT137: 0 | AU137: 0 | AV137: 0 | AW137: 0 | AX137: 0 | AY137: 0 | AZ137: 0 | BA137: 0 | BB137: 0 | BC137: 0 | BD137: 0 | BE137: 0 | BF137: 0 | BG137: 0 | BH137: 0 | BI137: 0 | BJ137: 0 | BK137: 0 | BL137: 0 | BM137: 0 | BN137: 0 | BO137: 0 | BP137: 0 | BQ137: 0 | BR137: 0 | BS137: 0 | BT137: 0 | BU137: =BU134-BU136 -> 0 | BV137: 0 | BW137: 0 | BX137: 0 | BY137: 0 | BZ137: 0 | CA137: 0 | CB137: 0 | CC137: 0 | CD137: 0 | CE137: 0 | CF137: 0 | CG137: 0 | CH137: 0 | CI137: 0 | CJ137: 0 | CK137: 0 | CL137: 0 | CM137: 0 | CN137: 0 | CO137: 0 | CP137: 0 | CQ137: 0 | CR137: 0 | CS137: 0 | CT137: 0 | CU137: 0 | CV137: 0 | CW137: 0 | CX137: 0 | CY137: 0 | CZ137: 0 | DA137: 0 | DB137: 0 | DC137: 0
D138: Tax Depreciation Rate | E138: =F3 -> 7 | F138: =BF70 -> 0.13 | G138: =SUM(H138:DC138) -> 0.87 | H138: =LOOKUP($E138,$E$302:$E$351,H302:H351)*(1-$F$138) -> 0.348 | I138: 0.2088 | J138: 0.12528 | K138: 0.09396 | L138: 0.09396 | M138: 0 | N138: 0 | O138: 0 | P138: 0 | Q138: 0 | R138: 0 | S138: 0 | T138: 0 | U138: 0 | V138: 0 | W138: 0 | X138: 0 | Y138: 0 | Z138: 0 | AA138: 0 | AB138: 0 | AC138: 0 | AD138: 0 | AE138: 0 | AF138: 0 | AG138: 0 | AH138: 0 | AI138: 0 | AJ138: 0 | AK138: 0 | AL138: 0 | AM138: 0 | AN138: =LOOKUP($E138,$E$302:$E$351,AN302:AN351)*(1-$F$138) -> 0 | AO138: 0 | AP138: 0 | AQ138: 0 | AR138: 0 | AS138: 0 | AT138: 0 | AU138: 0 | AV138: 0 | AW138: 0 | AX138: 0 | AY138: 0 | AZ138: 0 | BA138: 0 | BB138: 0 | BC138: 0 | BD138: 0 | BE138: 0 | BF138: 0 | BG138: 0 | BH138: 0 | BI138: 0 | BJ138: 0 | BK138: 0 | BL138: 0 | BM138: 0 | BN138: 0 | BO138: 0 | BP138: 0 | BQ138: 0 | BR138: 0 | BS138: 0 | BT138: =LOOKUP($E138,$E$302:$E$351,BT302:BT351)*(1-$F$138) -> 0 | BU138: 0 | BV138: 0 | BW138: 0 | BX138: 0 | BY138: 0 | BZ138: 0 | CA138: 0 | CB138: 0 | CC138: 0 | CD138: 0 | CE138: 0 | CF138: 0 | CG138: 0 | CH138: 0 | CI138: 0 | CJ138: 0 | CK138: 0 | CL138: 0 | CM138: 0 | CN138: 0 | CO138: 0 | CP138: 0 | CQ138: 0 | CR138: 0 | CS138: 0 | CT138: 0 | CU138: 0 | CV138: 0 | CW138: 0 | CX138: 0 | CY138: 0 | CZ138: 0 | DA138: 0 | DB138: 0 | DC138: 0
D139: Less: Tax Depreciation | E139: =BF17*BF58 -> 662282.7002 | G139: =SUM(H139:DC139) -> 576185.9492 | H139: =$E$139*H138 -> 230474.3797 | I139: =$E$139*I138 -> 138284.6278 | J139: 82970.77668 | K139: 62228.08251 | L139: 62228.08251 | M139: 0 | N139: 0 | O139: 0 | P139: 0 | Q139: 0 | R139: 0 | S139: 0 | T139: 0 | U139: 0 | V139: 0 | W139: 0 | X139: 0 | Y139: 0 | Z139: 0 | AA139: 0 | AB139: 0 | AC139: 0 | AD139: 0 | AE139: 0 | AF139: 0 | AG139: 0 | AH139: 0 | AI139: 0 | AJ139: 0 | AK139: 0 | AL139: 0 | AM139: 0 | AN139: 0 | AO139: 0 | AP139: 0 | AQ139: 0 | AR139: 0 | AS139: 0 | AT139: 0 | AU139: 0 | AV139: 0 | AW139: 0 | AX139: 0 | AY139: 0 | AZ139: 0 | BA139: 0 | BB139: 0 | BC139: 0 | BD139: 0 | BE139: 0 | BF139: 0 | BG139: 0 | BH139: 0 | BI139: 0 | BJ139: 0 | BK139: 0 | BL139: 0 | BM139: 0 | BN139: 0 | BO139: 0 | BP139: 0 | BQ139: 0 | BR139: 0 | BS139: 0 | BT139: 0 | BU139: =$E$139*BU138 -> 0 | BV139: 0 | BW139: 0 | BX139: 0 | BY139: 0 | BZ139: 0 | CA139: 0 | CB139: 0 | CC139: 0 | CD139: 0 | CE139: 0 | CF139: 0 | CG139: 0 | CH139: 0 | CI139: 0 | CJ139: 0 | CK139: 0 | CL139: 0 | CM139: 0 | CN139: 0 | CO139: 0 | CP139: 0 | CQ139: 0 | CR139: 0 | CS139: 0 | CT139: 0 | CU139: 0 | CV139: 0 | CW139: 0 | CX139: 0 | CY139: 0 | CZ139: 0 | DA139: 0 | DB139: 0 | DC139: 0
D140: Less: Interest (Not Used if Interst Rate After Tax)
D141: Taxable Income | G141: =SUM(H141:DC141) -> 216377.5999 | H141: =H137-H139-H140 -> -198602.5113 | I141: =I137-I139-I140 -> -106879.6188 | J141: -52037.98018 | K141: -31773.01718 | L141: -32256.43637 | M141: 29482.36545 | N141: 28987.0456 | O141: 28485.50464 | P141: 27977.55625 | Q141: 27463.00958 | R141: 26941.66917 | S141: 26413.33482 | T141: 25877.8015 | U141: 25334.85918 | V141: 24784.29274 | W141: 24225.88182 | X141: 23659.40073 | Y141: 23084.61825 | Z141: 22501.29754 | AA141: 21909.196 | AB141: 21308.06508 | AC141: 20697.6502 | AD141: 20077.69053 | AE141: 19447.91888 | AF141: 18808.0615 | AG141: =AG137-AG139-AG140 -> 18157.83796 | AH141: 17496.96096 | AI141: 16825.13615 | AJ141: 16142.06196 | AK141: 15447.42944 | AL141: 14740.92201 | AM141: 14022.21537 | AN141: 13290.97722 | AO141: 12546.86707 | AP141: 11789.5361 | AQ141: 0 | AR141: 0 | AS141: 0 | AT141: 0 | AU141: 0 | AV141: 0 | AW141: 0 | AX141: 0 | AY141: 0 | AZ141: 0 | BA141: 0 | BB141: 0 | BC141: 0 | BD141: 0 | BE141: 0 | BF141: 0 | BG141: 0 | BH141: 0 | BI141: 0 | BJ141: 0 | BK141: 0 | BL141: 0 | BM141: 0 | BN141: 0 | BO141: 0 | BP141: 0 | BQ141: 0 | BR141: 0 | BS141: 0 | BT141: 0 | BU141: =BU137-BU139-BU140 -> 0 | BV141: 0 | BW141: 0 | BX141: 0 | BY141: 0 | BZ141: 0 | CA141: 0 | CB141: 0 | CC141: 0 | CD141: 0 | CE141: 0 | CF141: 0 | CG141: 0 | CH141: 0 | CI141: 0 | CJ141: 0 | CK141: 0 | CL141: 0 | CM141: 0 | CN141: 0 | CO141: 0 | CP141: 0 | CQ141: 0 | CR141: 0 | CS141: 0 | CT141: 0 | CU141: 0 | CV141: 0 | CW141: 0 | CX141: 0 | CY141: 0 | CZ141: 0 | DA141: 0 | DB141: 0 | DC141: 0
D142: Taxes | E142: =BF62 -> 0.28 | G142: =SUM(H142:DC142) -> 60585.72798 | H142: =H141*$E$142 -> -55608.70316 | I142: -29926.29325 | J142: -14570.63445 | K142: -8896.444809 | L142: -9031.802183 | M142: 8255.062325 | N142: 8116.372767 | O142: 7975.9413 | P142: 7833.71575 | Q142: 7689.642681 | R142: 7543.667366 | S142: 7395.73375 | T142: 7245.78442 | U142: 7093.76057 | V142: 6939.601967 | W142: 6783.246911 | X142: 6624.632204 | Y142: 6463.693109 | Z142: 6300.363311 | AA142: 6134.574879 | AB142: 5966.258224 | AC142: 5795.342057 | AD142: 5621.753349 | AE142: 5445.417285 | AF142: 5266.257219 | AG142: =AG141*$E$142 -> 5084.194629 | AH142: 4899.149069 | AI142: 4711.038122 | AJ142: 4519.77735 | AK142: 4325.280242 | AL142: 4127.458164 | AM142: 3926.220305 | AN142: 3721.47362 | AO142: 3513.12278 | AP142: 3301.070107 | AQ142: 0 | AR142: 0 | AS142: 0 | AT142: 0 | AU142: 0 | AV142: 0 | AW142: 0 | AX142: 0 | AY142: 0 | AZ142: 0 | BA142: 0 | BB142: 0 | BC142: 0 | BD142: 0 | BE142: 0 | BF142: 0 | BG142: 0 | BH142: 0 | BI142: 0 | BJ142: 0 | BK142: 0 | BL142: 0 | BM142: 0 | BN142: 0 | BO142: 0 | BP142: 0 | BQ142: 0 | BR142: 0 | BS142: 0 | BT142: =BT141*$E$142 -> 0 | BU142: 0 | BV142: 0 | BW142: 0 | BX142: 0 | BY142: 0 | BZ142: 0 | CA142: 0 | CB142: 0 | CC142: 0 | CD142: 0 | CE142: 0 | CF142: 0 | CG142: 0 | CH142: 0 | CI142: 0 | CJ142: 0 | CK142: 0 | CL142: 0 | CM142: 0 | CN142: 0 | CO142: 0 | CP142: 0 | CQ142: 0 | CR142: 0 | CS142: 0 | CT142: 0 | CU142: 0 | CV142: 0 | CW142: 0 | CX142: 0 | CY142: 0 | CZ142: 0 | DA142: 0 | DB142: 0 | DC142: 0
D143: Less: Debt Service (After Tax) | H143: =H194+H192 -> 60850.43733 | I143: =I194+I192 -> 41906.54677 | J143: 30475.21641 | K143: 26163.89046 | L143: 26157.25298 | M143: 13085.8781 | N143: 12916.4356 | O143: 12743.90979 | P143: 12568.16707 | Q143: 12389.06885 | R143: 12206.47137 | S143: 12020.22547 | T143: 11830.17642 | U143: 11636.16368 | V143: 11438.02068 | W143: 11235.57462 | X143: 11028.6462 | Y143: 10817.04939 | Z143: 10600.59115 | AA143: 10379.07122 | AB143: 10152.28175 | AC143: 9920.007115 | AD143: 9682.02354 | AE143: 9438.098831 | AF143: 9187.992036 | AG143: =AG194+AG192 -> 8931.453122 | AH143: 8668.222619 | AI143: 8398.03127 | AJ143: 8120.599649 | AK143: 7835.637782 | AL143: 7542.844736 | AM143: 7241.90821 | AN143: 6932.504096 | AO143: 6614.296031 | AP143: 6286.934931 | AQ143: 0 | AR143: 0 | AS143: 0 | AT143: 0 | AU143: 0 | AV143: 0 | AW143: 0 | AX143: 0 | AY143: 0 | AZ143: 0 | BA143: 0 | BB143: 0 | BC143: 0 | BD143: 0 | BE143: 0 | BF143: 0 | BG143: 0 | BH143: 0 | BI143: 0 | BJ143: 0 | BK143: 0 | BL143: 0 | BM143: 0 | BN143: 0 | BO143: 0 | BP143: 0 | BQ143: 0 | BR143: 0 | BS143: 0 | BT143: 0 | BU143: =BU194+BU192 -> 0 | BV143: 0 | BW143: 0 | BX143: 0 | BY143: 0 | BZ143: 0 | CA143: 0 | CB143: 0 | CC143: 0 | CD143: 0 | CE143: 0 | CF143: 0 | CG143: 0 | CH143: 0 | CI143: 0 | CJ143: 0 | CK143: 0 | CL143: 0 | CM143: 0 | CN143: 0 | CO143: 0 | CP143: 0 | CQ143: 0 | CR143: 0 | CS143: 0 | CT143: 0 | CU143: 0 | CV143: 0 | CW143: 0 | CX143: 0 | CY143: 0 | CZ143: 0 | DA143: 0 | DB143: 0 | DC143: 0
D144: Capital Expenditure | G144: =-BF17*BF95 -> -662282.7002
D145: Less: ITC | E145: =BF64 -> 0.26 | G145: =-G144*E145 -> 172193.5021
D146: Equity Cash Flow | G146: =G196 -> -122522.2995 | H146: =H196 -> 26630.13423 | I146: 19424.75553 | J146: 15028.21455 | K146: 13187.61969 | L146: 12846.19535 | M146: 8141.425022 | N146: 7954.237228 | O146: 7765.653555 | P146: 7575.673433 | Q146: 7384.298044 | R146: 7191.530428 | S146: 6997.375597 | T146: 6801.840658 | U146: 6604.934932 | V146: 6406.670092 | W146: 6207.060294 | X146: 6006.122325 | Y146: 5803.875751 | Z146: 5600.343075 | AA146: 5395.549901 | AB146: 5189.525109 | AC146: 4982.301032 | AD146: 4773.913644 | AE146: 4564.40276 | AF146: 4353.812241 | AG146: 4142.190209 | AH146: 3929.589272 | AI146: 3716.066758 | AJ146: 3501.684964 | AK146: 3286.511412 | AL146: 3070.619114 | AM146: 2854.086859 | AN146: 2636.999499 | AO146: 2419.44826 | AP146: 2201.531058 | AQ146: 0 | AR146: 0 | AS146: 0 | AT146: 0 | AU146: 0 | AV146: 0 | AW146: 0 | AX146: 0 | AY146: 0 | AZ146: 0 | BA146: 0 | BB146: 0 | BC146: 0 | BD146: 0 | BE146: 0 | BF146: 0 | BG146: 0 | BH146: 0 | BI146: 0 | BJ146: 0 | BK146: 0 | BL146: 0 | BM146: 0 | BN146: 0 | BO146: 0 | BP146: 0 | BQ146: 0 | BR146: 0 | BS146: 0 | BT146: =BT196 -> 0 | BU146: 0 | BV146: 0 | BW146: 0 | BX146: 0 | BY146: 0 | BZ146: 0 | CA146: 0 | CB146: 0 | CC146: 0 | CD146: 0 | CE146: 0 | CF146: 0 | CG146: 0 | CH146: 0 | CI146: 0 | CJ146: 0 | CK146: 0 | CL146: 0 | CM146: 0 | CN146: 0 | CO146: 0 | CP146: 0 | CQ146: 0 | CR146: 0 | CS146: 0 | CT146: 0 | CU146: 0 | CV146: 0 | CW146: 0 | CX146: 0 | CY146: 0 | CZ146: 0 | DA146: 0 | DB146: 0 | DC146: 0
D147: Equity IRR | G147: =IRR(G146:DC146) -> 0.077 | H147: Target | I147: =BF78 -> 0.077 | J147: Test | K147: =ROUND(I147-G147,3)=0 -> TRUE
D149: Project Cash Flow Pre-tax | G149: =G144+G145 -> -490089.1982 | H149: =H137+H144 -> 31871.86839 | I149: 31405.00905 | J149: 30932.79651 | K149: 30455.06534 | L149: 29971.64614 | M149: 29482.36545 | N149: 28987.0456 | O149: 28485.50464 | P149: 27977.55625 | Q149: 27463.00958 | R149: 26941.66917 | S149: 26413.33482 | T149: 25877.8015 | U149: 25334.85918 | V149: 24784.29274 | W149: 24225.88182 | X149: 23659.40073 | Y149: 23084.61825 | Z149: 22501.29754 | AA149: 21909.196 | AB149: 21308.06508 | AC149: 20697.6502 | AD149: 20077.69053 | AE149: 19447.91888 | AF149: 18808.0615 | AG149: =AG137+AG144 -> 18157.83796 | AH149: 17496.96096 | AI149: 16825.13615 | AJ149: 16142.06196 | AK149: 15447.42944 | AL149: 14740.92201 | AM149: 14022.21537 | AN149: 13290.97722 | AO149: 12546.86707 | AP149: 11789.5361 | AQ149: 0 | AR149: 0 | AS149: 0 | AT149: 0 | AU149: 0 | AV149: 0 | AW149: 0 | AX149: 0 | AY149: 0 | AZ149: 0 | BA149: 0 | BB149: 0 | BC149: 0 | BD149: 0 | BE149: 0 | BF149: 0 | BG149: 0 | BH149: 0 | BI149: 0 | BJ149: 0 | BK149: 0 | BL149: 0 | BM149: 0 | BN149: 0 | BO149: 0 | BP149: 0 | BQ149: 0 | BR149: 0 | BS149: 0 | BT149: =BT137+BT144 -> 0 | BU149: 0 | BV149: 0 | BW149: 0 | BX149: 0 | BY149: 0 | BZ149: 0 | CA149: 0 | CB149: 0 | CC149: 0 | CD149: 0 | CE149: 0 | CF149: 0 | CG149: 0 | CH149: 0 | CI149: 0 | CJ149: 0 | CK149: 0 | CL149: 0 | CM149: 0 | CN149: 0 | CO149: 0 | CP149: 0 | CQ149: 0 | CR149: 0 | CS149: 0 | CT149: 0 | CU149: 0 | CV149: 0 | CW149: 0 | CX149: 0 | CY149: 0 | CZ149: 0 | DA149: 0 | DB149: 0 | DC149: 0
D150: Pre-tax IRR | G150: =IRR(149:149) -> 0.03544426414 | H150: Target | I150: =BF83 -> 0.0455
D152: Project After-tax Cash Flow | G152: =G149 -> -490089.1982 | H152: =H137-H142 -> 87480.57155 | I152: =I137-(I137-I139)*$E$142 -> 61331.3023 | J152: 45503.43096 | K152: 39351.51015 | L152: 39003.44833 | M152: 21227.30312 | N152: 20870.67283 | O152: 20509.56334 | P152: 20143.8405 | Q152: 19773.3669 | R152: 19398.0018 | S152: 19017.60107 | T152: 18632.01708 | U152: 18241.09861 | V152: 17844.69077 | W152: 17442.63491 | X152: 17034.76852 | Y152: 16620.92514 | Z152: 16200.93423 | AA152: 15774.62112 | AB152: 15341.80686 | AC152: 14902.30815 | AD152: 14455.93718 | AE152: 14002.50159 | AF152: 13541.80428 | AG152: =AG137-(AG137-AG139)*$E$142 -> 13073.64333 | AH152: 12597.81189 | AI152: 12114.09803 | AJ152: 11622.28461 | AK152: 11122.14919 | AL152: 10613.46385 | AM152: 10095.99507 | AN152: 9569.503595 | AO152: 9033.744291 | AP152: 8488.465989 | AQ152: 0 | AR152: 0 | AS152: 0 | AT152: 0 | AU152: 0 | AV152: 0 | AW152: 0 | AX152: 0 | AY152: 0 | AZ152: 0 | BA152: 0 | BB152: 0 | BC152: 0 | BD152: 0 | BE152: 0 | BF152: 0 | BG152: 0 | BH152: 0 | BI152: 0 | BJ152: 0 | BK152: 0 | BL152: 0 | BM152: 0 | BN152: 0 | BO152: 0 | BP152: 0 | BQ152: 0 | BR152: 0 | BS152: 0 | BT152: =BT137-(BT137-BT139)*$E$142 -> 0 | BU152: 0 | BV152: 0 | BW152: 0 | BX152: 0 | BY152: 0 | BZ152: 0 | CA152: 0 | CB152: 0 | CC152: 0 | CD152: 0 | CE152: 0 | CF152: 0 | CG152: 0 | CH152: 0 | CI152: 0 | CJ152: 0 | CK152: 0 | CL152: 0 | CM152: 0 | CN152: 0 | CO152: 0 | CP152: 0 | CQ152: 0 | CR152: 0 | CS152: 0 | CT152: 0 | CU152: 0 | CV152: 0 | CW152: 0 | CX152: 0 | CY152: 0 | CZ152: 0 | DA152: 0 | DB152: 0 | DC152: 0
D153: After-tax Project IRR | G153: =IFERROR(IRR(G152:DC152),0.1) -> 0.03815 | H153: Target | I153: =BF83 -> 0.0455
C155: Economic Income Statement
D156: NPV of Future AT Project Cash Flow at AT IRR | G156: =NPV($G$153,H152:DC152) -> 490089.1982 | H156: =NPV($G$153,I152:DD152) -> 421305.5295 | I156: 376047.0332 | J156: 344889.7965 | K156: 318695.8321 | L156: 291850.6298 | M156: 281757.4282 | N156: 271635.8012 | O156: 261489.1437 | P156: 251321.1141 | Q156: 241135.6477 | R156: 230936.9708 | S156: 220729.6152 | T156: 210518.4329 | U156: 200308.6125 | V156: 190105.6953 | W156: 179915.5927 | X156: 169744.604 | Y156: 159599.4355 | Z156: 149487.2198 | AA156: 139415.5361 | AB156: 129392.4319 | AC156: 119426.4451 | AD156: 109526.6268 | AE156: 99702.56597 | AF156: 89964.41459 | AG156: 80322.91367 | AH156: 70789.42094 | AI156: 61375.93932 | AJ156: 52095.14679 | AK156: 42960.42745 | AL156: 33985.9039 | AM156: 25186.47107 | AN156: =NPV($G$153,AO152:EJ152) -> 16577.83134 | AO156: 8176.531319 | AP156: 0 | AQ156: 0 | AR156: 0 | AS156: 0 | AT156: 0 | AU156: 0 | AV156: 0 | AW156: 0 | AX156: 0 | AY156: 0 | AZ156: 0 | BA156: 0 | BB156: 0 | BC156: 0 | BD156: 0 | BE156: 0 | BF156: 0 | BG156: 0 | BH156: 0 | BI156: 0 | BJ156: 0 | BK156: 0 | BL156: 0 | BM156: 0 | BN156: 0 | BO156: 0 | BP156: 0 | BQ156: 0 | BR156: 0 | BS156: 0 | BT156: =NPV($G$153,BU152:FP152) -> 0 | BU156: 0 | BV156: 0 | BW156: 0 | BX156: 0 | BY156: 0 | BZ156: 0 | CA156: 0 | CB156: 0 | CC156: 0 | CD156: 0 | CE156: 0 | CF156: 0 | CG156: 0 | CH156: 0 | CI156: 0 | CJ156: 0 | CK156: 0 | CL156: 0 | CM156: 0 | CN156: 0 | CO156: 0 | CP156: 0 | CQ156: 0 | CR156: 0 | CS156: 0 | CT156: 0 | CU156: 0 | CV156: 0 | CW156: 0 | CX156: 0 | CY156: 0 | CZ156: =NPV($G$153,DA152:GV152) -> 0 | DA156: =NPV($G$153,DB152:GW152) -> 0 | DB156: =NPV($G$153,DC152:GX152) -> 0 | DC156: =NPV($G$153,DD152:GY152) -> 0
D157: Economic Depreciation from NPV of After Tax Cash Flow | H157: =G156-H156 -> 68783.66864 | I157: =H156-I156 -> 45258.49635 | J157: 31157.23664 | K157: 26193.96441 | L157: 26845.20233 | M157: 10093.2016 | N157: 10121.62694 | O157: 10146.65752 | P157: =O156-P156 -> 10168.02967 | Q157: 10185.46639 | R157: 10198.67684 | S157: 10207.35564 | T157: 10211.18226 | U157: 10209.82039 | V157: 10202.9172 | W157: 10190.10264 | X157: 10170.98866 | Y157: 10145.16849 | Z157: 10112.21576 | AA157: 10071.68368 | AB157: 10023.10416 | AC157: 9965.986869 | AD157: 9899.818305 | AE157: 9824.06078 | AF157: 9738.151386 | AG157: 9641.500915 | AH157: 9533.492735 | AI157: 9413.481619 | AJ157: 9280.792528 | AK157: 9134.719343 | AL157: 8974.523543 | AM157: 8799.432835 | AN157: 8608.639724 | AO157: 8401.300025 | AP157: 8176.531319 | AQ157: 0 | AR157: 0 | AS157: 0 | AT157: 0 | AU157: 0 | AV157: 0 | AW157: 0 | AX157: 0 | AY157: 0 | AZ157: 0 | BA157: 0 | BB157: 0 | BC157: =BB156-BC156 -> 0 | BD157: 0 | BE157: 0 | BF157: 0 | BG157: 0 | BH157: 0 | BI157: 0 | BJ157: 0 | BK157: 0 | BL157: 0 | BM157: 0 | BN157: 0 | BO157: 0 | BP157: 0 | BQ157: 0 | BR157: 0 | BS157: 0 | BT157: 0 | BU157: =BT156-BU156 -> 0 | BV157: 0 | BW157: 0 | BX157: 0 | BY157: 0 | BZ157: 0 | CA157: 0 | CB157: 0 | CC157: 0 | CD157: 0 | CE157: 0 | CF157: 0 | CG157: 0 | CH157: 0 | CI157: 0 | CJ157: 0 | CK157: 0 | CL157: 0 | CM157: 0 | CN157: 0 | CO157: 0 | CP157: 0 | CQ157: 0 | CR157: 0 | CS157: 0 | CT157: 0 | CU157: 0 | CV157: 0 | CW157: 0 | CX157: 0 | CY157: 0 | CZ157: 0 | DA157: 0 | DB157: 0 | DC157: 0
D159: EBITDA | H159: =H137 -> 31871.86839 | I159: =I137 -> 31405.00905 | J159: 30932.79651 | K159: 30455.06534 | L159: 29971.64614 | M159: 29482.36545 | N159: 28987.0456 | O159: 28485.50464 | P159: 27977.55625 | Q159: 27463.00958 | R159: 26941.66917 | S159: 26413.33482 | T159: 25877.8015 | U159: 25334.85918 | V159: 24784.29274 | W159: 24225.88182 | X159: 23659.40073 | Y159: 23084.61825 | Z159: 22501.29754 | AA159: 21909.196 | AB159: 21308.06508 | AC159: 20697.6502 | AD159: 20077.69053 | AE159: 19447.91888 | AF159: 18808.0615 | AG159: 18157.83796 | AH159: 17496.96096 | AI159: 16825.13615 | AJ159: 16142.06196 | AK159: 15447.42944 | AL159: 14740.92201 | AM159: 14022.21537 | AN159: 13290.97722 | AO159: 12546.86707 | AP159: 11789.5361 | AQ159: 0 | AR159: 0 | AS159: 0 | AT159: 0 | AU159: 0 | AV159: 0 | AW159: 0 | AX159: 0 | AY159: 0 | AZ159: 0 | BA159: 0 | BB159: 0 | BC159: 0 | BD159: 0 | BE159: 0 | BF159: 0 | BG159: 0 | BH159: 0 | BI159: 0 | BJ159: 0 | BK159: 0 | BL159: 0 | BM159: 0 | BN159: 0 | BO159: 0 | BP159: 0 | BQ159: 0 | BR159: 0 | BS159: 0 | BT159: 0 | BU159: =BU137 -> 0 | BV159: 0 | BW159: 0 | BX159: 0 | BY159: 0 | BZ159: 0 | CA159: 0 | CB159: 0 | CC159: 0 | CD159: 0 | CE159: 0 | CF159: 0 | CG159: 0 | CH159: 0 | CI159: 0 | CJ159: 0 | CK159: 0 | CL159: 0 | CM159: 0 | CN159: 0 | CO159: 0 | CP159: 0 | CQ159: 0 | CR159: 0 | CS159: 0 | CT159: 0 | CU159: 0 | CV159: 0 | CW159: 0 | CX159: 0 | CY159: 0 | CZ159: 0 | DA159: 0 | DB159: 0 | DC159: 0
D160: Less: Economic Depreciation | H160: =H157 -> 68783.66864 | I160: =I157 -> 45258.49635 | J160: 31157.23664 | K160: 26193.96441 | L160: 26845.20233 | M160: 10093.2016 | N160: 10121.62694 | O160: 10146.65752 | P160: 10168.02967 | Q160: 10185.46639 | R160: 10198.67684 | S160: 10207.35564 | T160: 10211.18226 | U160: 10209.82039 | V160: 10202.9172 | W160: 10190.10264 | X160: 10170.98866 | Y160: 10145.16849 | Z160: 10112.21576 | AA160: 10071.68368 | AB160: 10023.10416 | AC160: 9965.986869 | AD160: 9899.818305 | AE160: 9824.06078 | AF160: 9738.151386 | AG160: 9641.500915 | AH160: 9533.492735 | AI160: 9413.481619 | AJ160: 9280.792528 | AK160: 9134.719343 | AL160: 8974.523543 | AM160: 8799.432835 | AN160: 8608.639724 | AO160: 8401.300025 | AP160: 8176.531319 | AQ160: 0 | AR160: 0 | AS160: 0 | AT160: 0 | AU160: 0 | AV160: 0 | AW160: 0 | AX160: 0 | AY160: 0 | AZ160: 0 | BA160: 0 | BB160: 0 | BC160: 0 | BD160: 0 | BE160: 0 | BF160: 0 | BG160: 0 | BH160: 0 | BI160: 0 | BJ160: 0 | BK160: 0 | BL160: 0 | BM160: 0 | BN160: 0 | BO160: 0 | BP160: 0 | BQ160: 0 | BR160: 0 | BS160: 0 | BT160: 0 | BU160: =BU157 -> 0 | BV160: 0 | BW160: 0 | BX160: 0 | BY160: 0 | BZ160: 0 | CA160: 0 | CB160: 0 | CC160: 0 | CD160: 0 | CE160: 0 | CF160: 0 | CG160: 0 | CH160: 0 | CI160: 0 | CJ160: 0 | CK160: 0 | CL160: 0 | CM160: 0 | CN160: 0 | CO160: 0 | CP160: 0 | CQ160: 0 | CR160: 0 | CS160: 0 | CT160: 0 | CU160: 0 | CV160: 0 | CW160: 0 | CX160: 0 | CY160: 0 | CZ160: 0 | DA160: 0 | DB160: 0 | DC160: 0
D161: Less: Taxes | H161: =H142 -> -55608.70316 | I161: =I142 -> -29926.29325 | J161: -14570.63445 | K161: -8896.444809 | L161: -9031.802183 | M161: 8255.062325 | N161: 8116.372767 | O161: 7975.9413 | P161: 7833.71575 | Q161: 7689.642681 | R161: 7543.667366 | S161: 7395.73375 | T161: 7245.78442 | U161: 7093.76057 | V161: 6939.601967 | W161: 6783.246911 | X161: 6624.632204 | Y161: 6463.693109 | Z161: 6300.363311 | AA161: 6134.574879 | AB161: 5966.258224 | AC161: 5795.342057 | AD161: 5621.753349 | AE161: 5445.417285 | AF161: 5266.257219 | AG161: 5084.194629 | AH161: 4899.149069 | AI161: 4711.038122 | AJ161: 4519.77735 | AK161: 4325.280242 | AL161: 4127.458164 | AM161: 3926.220305 | AN161: 3721.47362 | AO161: 3513.12278 | AP161: 3301.070107 | AQ161: 0 | AR161: 0 | AS161: 0 | AT161: 0 | AU161: 0 | AV161: 0 | AW161: 0 | AX161: 0 | AY161: 0 | AZ161: 0 | BA161: 0 | BB161: 0 | BC161: 0 | BD161: 0 | BE161: 0 | BF161: 0 | BG161: 0 | BH161: 0 | BI161: 0 | BJ161: 0 | BK161: 0 | BL161: 0 | BM161: 0 | BN161: 0 | BO161: 0 | BP161: 0 | BQ161: 0 | BR161: 0 | BS161: 0 | BT161: 0 | BU161: =BU142 -> 0 | BV161: 0 | BW161: 0 | BX161: 0 | BY161: 0 | BZ161: 0 | CA161: 0 | CB161: 0 | CC161: 0 | CD161: 0 | CE161: 0 | CF161: 0 | CG161: 0 | CH161: 0 | CI161: 0 | CJ161: 0 | CK161: 0 | CL161: 0 | CM161: 0 | CN161: 0 | CO161: 0 | CP161: 0 | CQ161: 0 | CR161: 0 | CS161: 0 | CT161: 0 | CU161: 0 | CV161: 0 | CW161: 0 | CX161: 0 | CY161: 0 | CZ161: 0 | DA161: 0 | DB161: 0 | DC161: 0
D162: Less: Interest Expense | H162: =H194 -> 9262.685845 | I162: =I194 -> 7962.674508 | J162: 7107.288927 | K162: 6518.417154 | L162: 6023.351227 | M162: 5515.976903 | N162: 5325.215393 | O162: 5133.916644 | P162: 4942.144816 | Q162: 4749.969056 | R162: 4557.463741 | S162: 4364.708748 | T162: 4171.789727 | U162: 3978.798382 | V162: 3785.832777 | W162: 3592.997642 | X162: 3400.404702 | Y162: 3208.173016 | Z162: 3016.429332 | AA162: 2825.308454 | AB162: 2634.953632 | AC162: 2445.516963 | AD162: 2257.159812 | AE162: 2070.053246 | AF162: 1884.378497 | AG162: 1700.327436 | AH162: 1518.103068 | AI162: 1337.920056 | AJ162: 1160.005253 | AK162: 984.5982743 | AL162: 811.9520787 | AM162: 642.3335838 | AN162: 476.0243032 | AO162: 313.3210124 | AP162: 154.5364419 | AQ162: 0 | AR162: 0 | AS162: 0 | AT162: 0 | AU162: 0 | AV162: 0 | AW162: 0 | AX162: 0 | AY162: 0 | AZ162: 0 | BA162: 0 | BB162: 0 | BC162: 0 | BD162: 0 | BE162: 0 | BF162: 0 | BG162: 0 | BH162: 0 | BI162: 0 | BJ162: 0 | BK162: 0 | BL162: 0 | BM162: 0 | BN162: 0 | BO162: 0 | BP162: 0 | BQ162: 0 | BR162: 0 | BS162: 0 | BT162: 0 | BU162: =BU194 -> 0 | BV162: 0 | BW162: 0 | BX162: 0 | BY162: 0 | BZ162: 0 | CA162: 0 | CB162: 0 | CC162: 0 | CD162: 0 | CE162: 0 | CF162: 0 | CG162: 0 | CH162: 0 | CI162: 0 | CJ162: 0 | CK162: 0 | CL162: 0 | CM162: 0 | CN162: 0 | CO162: 0 | CP162: 0 | CQ162: 0 | CR162: 0 | CS162: 0 | CT162: 0 | CU162: 0 | CV162: 0 | CW162: 0 | CX162: 0 | CY162: 0 | CZ162: 0 | DA162: 0 | DB162: 0 | DC162: 0
D163: Income with Economic Depreciation | H163: =H159-H160-H161-H162 -> 9434.217065 | I163: =I159-I160-I161-I162 -> 8110.131443 | J163: 7238.905388 | K163: 6639.128583 | L163: 6134.894768 | M163: 5618.124623 | N163: 5423.830493 | O163: 5228.989174 | P163: 5033.666017 | Q163: 4837.931446 | R163: 4641.861217 | S163: 4445.536688 | T163: 4249.045092 | U163: 4052.479834 | V163: 3855.940791 | W163: 3659.534635 | X163: 3463.375159 | Y163: 3267.583628 | Z163: 3072.289134 | AA163: 2877.628981 | AB163: 2683.74907 | AC163: 2490.804315 | AD163: 2298.959067 | AE163: 2108.387565 | AF163: 1919.274395 | AG163: 1731.814981 | AH163: 1546.216088 | AI163: 1362.696353 | AJ163: 1181.486832 | AK163: 1002.831576 | AL163: 826.9882283 | AM163: 654.2286501 | AN163: 484.8395681 | AO163: 319.1232534 | AP163: 157.3982279 | AQ163: 0 | AR163: 0 | AS163: 0 | AT163: 0 | AU163: 0 | AV163: 0 | AW163: 0 | AX163: 0 | AY163: 0 | AZ163: 0 | BA163: 0 | BB163: 0 | BC163: 0 | BD163: 0 | BE163: 0 | BF163: 0 | BG163: 0 | BH163: 0 | BI163: 0 | BJ163: 0 | BK163: 0 | BL163: 0 | BM163: 0 | BN163: 0 | BO163: 0 | BP163: 0 | BQ163: 0 | BR163: 0 | BS163: 0 | BT163: 0 | BU163: =BU159-BU160-BU161-BU162 -> 0 | BV163: 0 | BW163: 0 | BX163: 0 | BY163: 0 | BZ163: 0 | CA163: 0 | CB163: 0 | CC163: 0 | CD163: 0 | CE163: 0 | CF163: 0 | CG163: 0 | CH163: 0 | CI163: 0 | CJ163: 0 | CK163: 0 | CL163: 0 | CM163: 0 | CN163: 0 | CO163: 0 | CP163: 0 | CQ163: 0 | CR163: 0 | CS163: 0 | CT163: 0 | CU163: 0 | CV163: 0 | CW163: 0 | CX163: 0 | CY163: 0 | CZ163: 0 | DA163: 0 | DB163: 0 | DC163: 0
C165: Cash Flow
D166: EBITDA | H166: =H159 -> 31871.86839 | I166: =I159 -> 31405.00905 | J166: 30932.79651 | K166: 30455.06534 | L166: 29971.64614 | M166: 29482.36545 | N166: 28987.0456 | O166: 28485.50464 | P166: 27977.55625 | Q166: 27463.00958 | R166: 26941.66917 | S166: 26413.33482 | T166: 25877.8015 | U166: 25334.85918 | V166: 24784.29274 | W166: 24225.88182 | X166: 23659.40073 | Y166: 23084.61825 | Z166: 22501.29754 | AA166: 21909.196 | AB166: 21308.06508 | AC166: 20697.6502 | AD166: 20077.69053 | AE166: 19447.91888 | AF166: 18808.0615 | AG166: 18157.83796 | AH166: 17496.96096 | AI166: 16825.13615 | AJ166: 16142.06196 | AK166: 15447.42944 | AL166: 14740.92201 | AM166: 14022.21537 | AN166: 13290.97722 | AO166: 12546.86707 | AP166: 11789.5361 | AQ166: 0 | AR166: 0 | AS166: 0 | AT166: 0 | AU166: 0 | AV166: 0 | AW166: 0 | AX166: 0 | AY166: 0 | AZ166: 0 | BA166: 0 | BB166: 0 | BC166: 0 | BD166: 0 | BE166: 0 | BF166: 0 | BG166: 0 | BH166: 0 | BI166: 0 | BJ166: 0 | BK166: 0 | BL166: 0 | BM166: 0 | BN166: 0 | BO166: 0 | BP166: 0 | BQ166: 0 | BR166: 0 | BS166: 0 | BT166: 0 | BU166: =BU159 -> 0 | BV166: 0 | BW166: 0 | BX166: 0 | BY166: 0 | BZ166: 0 | CA166: 0 | CB166: 0 | CC166: 0 | CD166: 0 | CE166: 0 | CF166: 0 | CG166: 0 | CH166: 0 | CI166: 0 | CJ166: 0 | CK166: 0 | CL166: 0 | CM166: 0 | CN166: 0 | CO166: 0 | CP166: 0 | CQ166: 0 | CR166: 0 | CS166: 0 | CT166: 0 | CU166: 0 | CV166: 0 | CW166: 0 | CX166: 0 | CY166: 0 | CZ166: 0 | DA166: 0 | DB166: 0 | DC166: 0
D167: Less: Taxes | H167: =H161 -> -55608.70316 | I167: =I161 -> -29926.29325 | J167: -14570.63445 | K167: -8896.444809 | L167: -9031.802183 | M167: 8255.062325 | N167: 8116.372767 | O167: 7975.9413 | P167: 7833.71575 | Q167: 7689.642681 | R167: 7543.667366 | S167: 7395.73375 | T167: 7245.78442 | U167: 7093.76057 | V167: 6939.601967 | W167: 6783.246911 | X167: 6624.632204 | Y167: 6463.693109 | Z167: 6300.363311 | AA167: 6134.574879 | AB167: 5966.258224 | AC167: 5795.342057 | AD167: 5621.753349 | AE167: 5445.417285 | AF167: 5266.257219 | AG167: 5084.194629 | AH167: 4899.149069 | AI167: 4711.038122 | AJ167: 4519.77735 | AK167: 4325.280242 | AL167: 4127.458164 | AM167: 3926.220305 | AN167: 3721.47362 | AO167: 3513.12278 | AP167: 3301.070107 | AQ167: 0 | AR167: 0 | AS167: 0 | AT167: 0 | AU167: 0 | AV167: 0 | AW167: 0 | AX167: 0 | AY167: 0 | AZ167: 0 | BA167: 0 | BB167: 0 | BC167: 0 | BD167: 0 | BE167: 0 | BF167: 0 | BG167: 0 | BH167: 0 | BI167: 0 | BJ167: 0 | BK167: 0 | BL167: 0 | BM167: 0 | BN167: 0 | BO167: 0 | BP167: 0 | BQ167: 0 | BR167: 0 | BS167: 0 | BT167: 0 | BU167: =BU161 -> 0 | BV167: 0 | BW167: 0 | BX167: 0 | BY167: 0 | BZ167: 0 | CA167: 0 | CB167: 0 | CC167: 0 | CD167: 0 | CE167: 0 | CF167: 0 | CG167: 0 | CH167: 0 | CI167: 0 | CJ167: 0 | CK167: 0 | CL167: 0 | CM167: 0 | CN167: 0 | CO167: 0 | CP167: 0 | CQ167: 0 | CR167: 0 | CS167: 0 | CT167: 0 | CU167: 0 | CV167: 0 | CW167: 0 | CX167: 0 | CY167: 0 | CZ167: 0 | DA167: 0 | DB167: 0 | DC167: 0
D168: Less: Debt Service | H168: =H162+H192 -> 60850.43733 | I168: 41906.54677 | J168: 30475.21641 | K168: 26163.89046 | L168: 26157.25298 | M168: 13085.8781 | N168: 12916.4356 | O168: 12743.90979 | P168: 12568.16707 | Q168: 12389.06885 | R168: 12206.47137 | S168: 12020.22547 | T168: 11830.17642 | U168: 11636.16368 | V168: 11438.02068 | W168: 11235.57462 | X168: 11028.6462 | Y168: 10817.04939 | Z168: 10600.59115 | AA168: 10379.07122 | AB168: 10152.28175 | AC168: 9920.007115 | AD168: 9682.02354 | AE168: 9438.098831 | AF168: 9187.992036 | AG168: 8931.453122 | AH168: 8668.222619 | AI168: 8398.03127 | AJ168: 8120.599649 | AK168: 7835.637782 | AL168: 7542.844736 | AM168: 7241.90821 | AN168: =AN162+AN192 -> 6932.504096 | AO168: 6614.296031 | AP168: 6286.934931 | AQ168: 0 | AR168: 0 | AS168: 0 | AT168: 0 | AU168: 0 | AV168: 0 | AW168: 0 | AX168: 0 | AY168: 0 | AZ168: 0 | BA168: 0 | BB168: 0 | BC168: 0 | BD168: 0 | BE168: 0 | BF168: 0 | BG168: 0 | BH168: 0 | BI168: 0 | BJ168: 0 | BK168: 0 | BL168: 0 | BM168: 0 | BN168: 0 | BO168: 0 | BP168: 0 | BQ168: 0 | BR168: 0 | BS168: 0 | BT168: =BT162+BT192 -> 0 | BU168: 0 | BV168: 0 | BW168: 0 | BX168: 0 | BY168: 0 | BZ168: 0 | CA168: 0 | CB168: 0 | CC168: 0 | CD168: 0 | CE168: 0 | CF168: 0 | CG168: 0 | CH168: 0 | CI168: 0 | CJ168: 0 | CK168: 0 | CL168: 0 | CM168: 0 | CN168: 0 | CO168: 0 | CP168: 0 | CQ168: 0 | CR168: 0 | CS168: 0 | CT168: 0 | CU168: 0 | CV168: 0 | CW168: 0 | CX168: 0 | CY168: 0 | CZ168: 0 | DA168: 0 | DB168: 0 | DC168: 0
D169: Dividends | H169: =H166-H167-H168 -> 26630.13423 | I169: =I166-I167-I168 -> 19424.75553 | J169: 15028.21455 | K169: 13187.61969 | L169: 12846.19535 | M169: 8141.425022 | N169: 7954.237228 | O169: 7765.653555 | P169: 7575.673433 | Q169: 7384.298044 | R169: 7191.530428 | S169: 6997.375597 | T169: 6801.840658 | U169: 6604.934932 | V169: 6406.670092 | W169: 6207.060294 | X169: 6006.122325 | Y169: 5803.875751 | Z169: 5600.343075 | AA169: 5395.549901 | AB169: 5189.525109 | AC169: 4982.301032 | AD169: 4773.913644 | AE169: 4564.40276 | AF169: 4353.812241 | AG169: 4142.190209 | AH169: 3929.589272 | AI169: 3716.066758 | AJ169: 3501.684964 | AK169: 3286.511412 | AL169: 3070.619114 | AM169: 2854.086859 | AN169: 2636.999499 | AO169: 2419.44826 | AP169: 2201.531058 | AQ169: 0 | AR169: 0 | AS169: 0 | AT169: 0 | AU169: 0 | AV169: 0 | AW169: 0 | AX169: 0 | AY169: 0 | AZ169: 0 | BA169: 0 | BB169: 0 | BC169: 0 | BD169: 0 | BE169: 0 | BF169: 0 | BG169: 0 | BH169: 0 | BI169: 0 | BJ169: 0 | BK169: 0 | BL169: 0 | BM169: 0 | BN169: 0 | BO169: 0 | BP169: 0 | BQ169: 0 | BR169: 0 | BS169: 0 | BT169: 0 | BU169: =BU166-BU167-BU168 -> 0 | BV169: 0 | BW169: 0 | BX169: 0 | BY169: 0 | BZ169: 0 | CA169: 0 | CB169: 0 | CC169: 0 | CD169: 0 | CE169: 0 | CF169: 0 | CG169: 0 | CH169: 0 | CI169: 0 | CJ169: 0 | CK169: 0 | CL169: 0 | CM169: 0 | CN169: 0 | CO169: 0 | CP169: 0 | CQ169: 0 | CR169: 0 | CS169: 0 | CT169: 0 | CU169: 0 | CV169: 0 | CW169: 0 | CX169: 0 | CY169: 0 | CZ169: 0 | DA169: 0 | DB169: 0 | DC169: 0
D170: Less: Capital Expenditure | G170: =G144+G145 -> -490089.1982
D171: Add: Debt Issue | G171: =G182 -> 367566.8986
D172: Total Equity Cash Flow | G172: =G169+G170+G171 -> -122522.2995 | H172: =H169+H170+H171 -> 26630.13423 | I172: 19424.75553 | J172: 15028.21455 | K172: 13187.61969 | L172: 12846.19535 | M172: 8141.425022 | N172: 7954.237228 | O172: 7765.653555 | P172: 7575.673433 | Q172: 7384.298044 | R172: 7191.530428 | S172: 6997.375597 | T172: 6801.840658 | U172: 6604.934932 | V172: 6406.670092 | W172: 6207.060294 | X172: 6006.122325 | Y172: 5803.875751 | Z172: 5600.343075 | AA172: 5395.549901 | AB172: 5189.525109 | AC172: 4982.301032 | AD172: 4773.913644 | AE172: 4564.40276 | AF172: 4353.812241 | AG172: 4142.190209 | AH172: 3929.589272 | AI172: 3716.066758 | AJ172: 3501.684964 | AK172: 3286.511412 | AL172: 3070.619114 | AM172: 2854.086859 | AN172: 2636.999499 | AO172: 2419.44826 | AP172: 2201.531058 | AQ172: 0 | AR172: 0 | AS172: 0 | AT172: 0 | AU172: 0 | AV172: 0 | AW172: 0 | AX172: 0 | AY172: 0 | AZ172: 0 | BA172: 0 | BB172: 0 | BC172: 0 | BD172: 0 | BE172: 0 | BF172: 0 | BG172: 0 | BH172: 0 | BI172: 0 | BJ172: 0 | BK172: 0 | BL172: 0 | BM172: 0 | BN172: 0 | BO172: 0 | BP172: 0 | BQ172: 0 | BR172: 0 | BS172: 0 | BT172: =BT169+BT170+BT171 -> 0 | BU172: 0 | BV172: 0 | BW172: 0 | BX172: 0 | BY172: 0 | BZ172: 0 | CA172: 0 | CB172: 0 | CC172: 0 | CD172: 0 | CE172: 0 | CF172: 0 | CG172: 0 | CH172: 0 | CI172: 0 | CJ172: 0 | CK172: 0 | CL172: 0 | CM172: 0 | CN172: 0 | CO172: 0 | CP172: 0 | CQ172: 0 | CR172: 0 | CS172: 0 | CT172: 0 | CU172: 0 | CV172: 0 | CW172: 0 | CX172: 0 | CY172: 0 | CZ172: 0 | DA172: 0 | DB172: 0 | DC172: 0
D173: Equity IRR | E173: =IRR(G172:DC172) -> 0.077
C175: Balance Sheet
D176: Gross Plant | G176: =-G144 -> 662282.7002 | H176: =G176 -> 662282.7002 | I176: =H176 -> 662282.7002 | J176: 662282.7002 | K176: 662282.7002 | L176: 662282.7002 | M176: 662282.7002 | N176: 662282.7002 | O176: 662282.7002 | P176: =O176 -> 662282.7002 | Q176: 662282.7002 | R176: 662282.7002 | S176: 662282.7002 | T176: 662282.7002 | U176: 662282.7002 | V176: 662282.7002 | W176: 662282.7002 | X176: 662282.7002 | Y176: 662282.7002 | Z176: 662282.7002 | AA176: 662282.7002 | AB176: 662282.7002 | AC176: 662282.7002 | AD176: 662282.7002 | AE176: 662282.7002 | AF176: 662282.7002 | AG176: 662282.7002 | AH176: 662282.7002 | AI176: 662282.7002 | AJ176: 662282.7002 | AK176: 662282.7002 | AL176: 662282.7002 | AM176: 662282.7002 | AN176: 662282.7002 | AO176: 662282.7002 | AP176: 662282.7002 | AQ176: 662282.7002 | AR176: 662282.7002 | AS176: 662282.7002 | AT176: 662282.7002 | AU176: 662282.7002 | AV176: 662282.7002 | AW176: 662282.7002 | AX176: 662282.7002 | AY176: 662282.7002 | AZ176: 662282.7002 | BA176: 662282.7002 | BB176: 662282.7002 | BC176: =BB176 -> 662282.7002 | BD176: 662282.7002 | BE176: 662282.7002 | BF176: 662282.7002 | BG176: 662282.7002 | BH176: 662282.7002 | BI176: 662282.7002 | BJ176: 662282.7002 | BK176: 662282.7002 | BL176: 662282.7002 | BM176: 662282.7002 | BN176: 662282.7002 | BO176: 662282.7002 | BP176: 662282.7002 | BQ176: 662282.7002 | BR176: 662282.7002 | BS176: 662282.7002 | BT176: 662282.7002 | BU176: =BT176 -> 662282.7002 | BV176: 662282.7002 | BW176: 662282.7002 | BX176: 662282.7002 | BY176: 662282.7002 | BZ176: 662282.7002 | CA176: 662282.7002 | CB176: 662282.7002 | CC176: 662282.7002 | CD176: 662282.7002 | CE176: 662282.7002 | CF176: 662282.7002 | CG176: 662282.7002 | CH176: 662282.7002 | CI176: 662282.7002 | CJ176: 662282.7002 | CK176: 662282.7002 | CL176: 662282.7002 | CM176: 662282.7002 | CN176: 662282.7002 | CO176: 662282.7002 | CP176: 662282.7002 | CQ176: 662282.7002 | CR176: 662282.7002 | CS176: 662282.7002 | CT176: 662282.7002 | CU176: 662282.7002 | CV176: 662282.7002 | CW176: 662282.7002 | CX176: 662282.7002 | CY176: 662282.7002 | CZ176: 662282.7002 | DA176: 662282.7002 | DB176: 662282.7002 | DC176: 662282.7002
D177: Less: ITC | G177: =G145 -> 172193.5021 | H177: =$G$177 -> 172193.5021 | I177: =$G$177 -> 172193.5021 | J177: 172193.5021 | K177: 172193.5021 | L177: 172193.5021 | M177: 172193.5021 | N177: 172193.5021 | O177: 172193.5021 | P177: 172193.5021 | Q177: 172193.5021 | R177: 172193.5021 | S177: 172193.5021 | T177: 172193.5021 | U177: 172193.5021 | V177: 172193.5021 | W177: 172193.5021 | X177: 172193.5021 | Y177: 172193.5021 | Z177: 172193.5021 | AA177: 172193.5021 | AB177: 172193.5021 | AC177: 172193.5021 | AD177: 172193.5021 | AE177: 172193.5021 | AF177: 172193.5021 | AG177: 172193.5021 | AH177: 172193.5021 | AI177: 172193.5021 | AJ177: 172193.5021 | AK177: 172193.5021 | AL177: 172193.5021 | AM177: 172193.5021 | AN177: 172193.5021 | AO177: 172193.5021 | AP177: 172193.5021 | AQ177: 172193.5021 | AR177: 172193.5021 | AS177: 172193.5021 | AT177: 172193.5021 | AU177: 172193.5021 | AV177: 172193.5021 | AW177: 172193.5021 | AX177: 172193.5021 | AY177: 172193.5021 | AZ177: 172193.5021 | BA177: 172193.5021 | BB177: 172193.5021 | BC177: 172193.5021 | BD177: 172193.5021 | BE177: 172193.5021 | BF177: 172193.5021 | BG177: 172193.5021 | BH177: 172193.5021 | BI177: 172193.5021 | BJ177: 172193.5021 | BK177: 172193.5021 | BL177: 172193.5021 | BM177: 172193.5021 | BN177: 172193.5021 | BO177: 172193.5021 | BP177: 172193.5021 | BQ177: 172193.5021 | BR177: 172193.5021 | BS177: 172193.5021 | BT177: 172193.5021 | BU177: =$G$177 -> 172193.5021 | BV177: 172193.5021 | BW177: 172193.5021 | BX177: 172193.5021 | BY177: 172193.5021 | BZ177: 172193.5021 | CA177: 172193.5021 | CB177: 172193.5021 | CC177: 172193.5021 | CD177: 172193.5021 | CE177: 172193.5021 | CF177: 172193.5021 | CG177: 172193.5021 | CH177: 172193.5021 | CI177: 172193.5021 | CJ177: 172193.5021 | CK177: 172193.5021 | CL177: 172193.5021 | CM177: 172193.5021 | CN177: 172193.5021 | CO177: 172193.5021 | CP177: 172193.5021 | CQ177: 172193.5021 | CR177: 172193.5021 | CS177: 172193.5021 | CT177: 172193.5021 | CU177: 172193.5021 | CV177: 172193.5021 | CW177: 172193.5021 | CX177: 172193.5021 | CY177: 172193.5021 | CZ177: 172193.5021 | DA177: 172193.5021 | DB177: 172193.5021 | DC177: 172193.5021
D178: Less: Accumulated Economic Depreciation | H178: =G178+H157 -> 68783.66864 | I178: 114042.165 | J178: 145199.4016 | K178: 171393.366 | L178: 198238.5684 | M178: 208331.77 | N178: 218453.3969 | O178: 228600.0544 | P178: 238768.0841 | Q178: 248953.5505 | R178: 259152.2273 | S178: 269359.583 | T178: 279570.7652 | U178: 289780.5856 | V178: 299983.5028 | W178: 310173.6055 | X178: 320344.5941 | Y178: 330489.7626 | Z178: 340601.9784 | AA178: 350673.6621 | AB178: 360696.7662 | AC178: 370662.7531 | AD178: 380562.5714 | AE178: 390386.6322 | AF178: 400124.7836 | AG178: 409766.2845 | AH178: 419299.7772 | AI178: 428713.2588 | AJ178: 437994.0514 | AK178: 447128.7707 | AL178: 456103.2943 | AM178: 464902.7271 | AN178: =AM178+AN157 -> 473511.3668 | AO178: 481912.6668 | AP178: 490089.1982 | AQ178: 490089.1982 | AR178: 490089.1982 | AS178: 490089.1982 | AT178: 490089.1982 | AU178: 490089.1982 | AV178: 490089.1982 | AW178: 490089.1982 | AX178: 490089.1982 | AY178: 490089.1982 | AZ178: 490089.1982 | BA178: 490089.1982 | BB178: 490089.1982 | BC178: 490089.1982 | BD178: 490089.1982 | BE178: 490089.1982 | BF178: 490089.1982 | BG178: 490089.1982 | BH178: 490089.1982 | BI178: 490089.1982 | BJ178: 490089.1982 | BK178: 490089.1982 | BL178: 490089.1982 | BM178: 490089.1982 | BN178: 490089.1982 | BO178: 490089.1982 | BP178: 490089.1982 | BQ178: 490089.1982 | BR178: 490089.1982 | BS178: 490089.1982 | BT178: =BS178+BT157 -> 490089.1982 | BU178: 490089.1982 | BV178: 490089.1982 | BW178: 490089.1982 | BX178: 490089.1982 | BY178: 490089.1982 | BZ178: 490089.1982 | CA178: 490089.1982 | CB178: 490089.1982 | CC178: 490089.1982 | CD178: 490089.1982 | CE178: 490089.1982 | CF178: 490089.1982 | CG178: 490089.1982 | CH178: 490089.1982 | CI178: 490089.1982 | CJ178: 490089.1982 | CK178: 490089.1982 | CL178: 490089.1982 | CM178: 490089.1982 | CN178: 490089.1982 | CO178: 490089.1982 | CP178: 490089.1982 | CQ178: 490089.1982 | CR178: 490089.1982 | CS178: 490089.1982 | CT178: 490089.1982 | CU178: 490089.1982 | CV178: 490089.1982 | CW178: 490089.1982 | CX178: 490089.1982 | CY178: 490089.1982 | CZ178: 490089.1982 | DA178: 490089.1982 | DB178: 490089.1982 | DC178: 490089.1982
D179: Net Plant with Economic Depreciation | G179: =G176-G177-G178 -> 490089.1982 | H179: =H176-H177-H178 -> 421305.5295 | I179: 376047.0332 | J179: 344889.7965 | K179: 318695.8321 | L179: 291850.6298 | M179: 281757.4282 | N179: 271635.8012 | O179: 261489.1437 | P179: 251321.1141 | Q179: 241135.6477 | R179: 230936.9708 | S179: 220729.6152 | T179: 210518.4329 | U179: 200308.6125 | V179: 190105.6953 | W179: 179915.5927 | X179: 169744.604 | Y179: 159599.4355 | Z179: 149487.2198 | AA179: 139415.5361 | AB179: 129392.4319 | AC179: 119426.4451 | AD179: 109526.6268 | AE179: 99702.56597 | AF179: 89964.41459 | AG179: 80322.91367 | AH179: 70789.42094 | AI179: 61375.93932 | AJ179: 52095.14679 | AK179: 42960.42745 | AL179: 33985.9039 | AM179: 25186.47107 | AN179: 16577.83134 | AO179: 8176.531319 | AP179: 0 | AQ179: 0 | AR179: 0 | AS179: 0 | AT179: 0 | AU179: 0 | AV179: 0 | AW179: 0 | AX179: 0 | AY179: 0 | AZ179: 0 | BA179: 0 | BB179: 0 | BC179: 0 | BD179: 0 | BE179: 0 | BF179: 0 | BG179: 0 | BH179: 0 | BI179: 0 | BJ179: 0 | BK179: 0 | BL179: 0 | BM179: 0 | BN179: 0 | BO179: 0 | BP179: 0 | BQ179: 0 | BR179: 0 | BS179: 0 | BT179: =BT176-BT177-BT178 -> 0 | BU179: 0 | BV179: 0 | BW179: 0 | BX179: 0 | BY179: 0 | BZ179: 0 | CA179: 0 | CB179: 0 | CC179: 0 | CD179: 0 | CE179: 0 | CF179: 0 | CG179: 0 | CH179: 0 | CI179: 0 | CJ179: 0 | CK179: 0 | CL179: 0 | CM179: 0 | CN179: 0 | CO179: 0 | CP179: 0 | CQ179: 0 | CR179: 0 | CS179: 0 | CT179: 0 | CU179: 0 | CV179: 0 | CW179: 0 | CX179: 0 | CY179: 0 | CZ179: 0 | DA179: 0 | DB179: 0 | DC179: 0
D180: Net Capital (Economic Depreciation) | G180: =G179 -> 490089.1982 | H180: =H179 -> 421305.5295 | I180: 376047.0332 | J180: 344889.7965 | K180: 318695.8321 | L180: 291850.6298 | M180: 281757.4282 | N180: 271635.8012 | O180: 261489.1437 | P180: 251321.1141 | Q180: 241135.6477 | R180: 230936.9708 | S180: 220729.6152 | T180: 210518.4329 | U180: 200308.6125 | V180: 190105.6953 | W180: 179915.5927 | X180: 169744.604 | Y180: 159599.4355 | Z180: 149487.2198 | AA180: 139415.5361 | AB180: 129392.4319 | AC180: 119426.4451 | AD180: 109526.6268 | AE180: 99702.56597 | AF180: 89964.41459 | AG180: 80322.91367 | AH180: 70789.42094 | AI180: 61375.93932 | AJ180: 52095.14679 | AK180: 42960.42745 | AL180: 33985.9039 | AM180: 25186.47107 | AN180: =AN179 -> 16577.83134 | AO180: 8176.531319 | AP180: 0 | AQ180: 0 | AR180: 0 | AS180: 0 | AT180: 0 | AU180: 0 | AV180: 0 | AW180: 0 | AX180: 0 | AY180: 0 | AZ180: 0 | BA180: 0 | BB180: 0 | BC180: 0 | BD180: 0 | BE180: 0 | BF180: 0 | BG180: 0 | BH180: 0 | BI180: 0 | BJ180: 0 | BK180: 0 | BL180: 0 | BM180: 0 | BN180: 0 | BO180: 0 | BP180: 0 | BQ180: 0 | BR180: 0 | BS180: 0 | BT180: =BT179 -> 0 | BU180: 0 | BV180: 0 | BW180: 0 | BX180: 0 | BY180: 0 | BZ180: 0 | CA180: 0 | CB180: 0 | CC180: 0 | CD180: 0 | CE180: 0 | CF180: 0 | CG180: 0 | CH180: 0 | CI180: 0 | CJ180: 0 | CK180: 0 | CL180: 0 | CM180: 0 | CN180: 0 | CO180: 0 | CP180: 0 | CQ180: 0 | CR180: 0 | CS180: 0 | CT180: 0 | CU180: 0 | CV180: 0 | CW180: 0 | CX180: 0 | CY180: 0 | CZ180: =CZ179 -> 0 | DA180: =DA179 -> 0 | DB180: =DB179 -> 0 | DC180: =DC179 -> 0
D182: Debt Balance from Net Capital | E182: =BF80 -> 0.75 | G182: =G180*$E$182 -> 367566.8986 | H182: =H180*$E$182 -> 315979.1471 | I182: 282035.2749 | J182: 258667.3474 | K182: 239021.8741 | L182: 218887.9723 | M182: 211318.0711 | N182: 203726.8509 | O182: 196116.8578 | P182: 188490.8355 | Q182: 180851.7357 | R182: 173202.7281 | S182: 165547.2114 | T182: 157888.8247 | U182: 150231.4594 | V182: 142579.2715 | W182: 134936.6945 | X182: 127308.453 | Y182: 119699.5766 | Z182: 112115.4148 | AA182: 104561.6521 | AB182: 97044.32394 | AC182: 89569.83379 | AD182: 82144.97006 | AE182: 74776.92448 | AF182: 67473.31094 | AG182: =AG180*$E$182 -> 60242.18525 | AH182: 53092.0657 | AI182: 46031.95449 | AJ182: 39071.36009 | AK182: 32220.32058 | AL182: 25489.42793 | AM182: 18889.8533 | AN182: 12433.37351 | AO182: 6132.398489 | AP182: 0 | AQ182: 0 | AR182: 0 | AS182: 0 | AT182: 0 | AU182: 0 | AV182: 0 | AW182: 0 | AX182: 0 | AY182: 0 | AZ182: 0 | BA182: 0 | BB182: 0 | BC182: 0 | BD182: 0 | BE182: 0 | BF182: 0 | BG182: 0 | BH182: 0 | BI182: 0 | BJ182: 0 | BK182: 0 | BL182: 0 | BM182: 0 | BN182: 0 | BO182: 0 | BP182: 0 | BQ182: 0 | BR182: 0 | BS182: =BS180*$E$182 -> 0 | BT182: 0 | BU182: 0 | BV182: 0 | BW182: 0 | BX182: 0 | BY182: 0 | BZ182: 0 | CA182: 0 | CB182: 0 | CC182: 0 | CD182: 0 | CE182: 0 | CF182: 0 | CG182: 0 | CH182: 0 | CI182: 0 | CJ182: 0 | CK182: 0 | CL182: 0 | CM182: 0 | CN182: 0 | CO182: 0 | CP182: 0 | CQ182: 0 | CR182: 0 | CS182: 0 | CT182: 0 | CU182: 0 | CV182: 0 | CW182: 0 | CX182: 0 | CY182: 0 | CZ182: 0 | DA182: 0 | DB182: 0 | DC182: 0
D183: Equity Balance | E183: =1-E182 -> 0.25 | G183: =G180*$E$183 -> 122522.2995 | H183: =H180*$E$183 -> 105326.3824 | I183: 94011.75829 | J183: 86222.44913 | K183: 79673.95803 | L183: 72962.65745 | M183: 70439.35705 | N183: 67908.95031 | O183: 65372.28593 | P183: 62830.27851 | Q183: 60283.91192 | R183: 57734.2427 | S183: 55182.4038 | T183: 52629.60823 | U183: 50077.15313 | V183: 47526.42383 | W183: 44978.89817 | X183: 42436.15101 | Y183: 39899.85888 | Z183: 37371.80494 | AA183: 34853.88402 | AB183: 32348.10798 | AC183: 29856.61126 | AD183: 27381.65669 | AE183: 24925.64149 | AF183: 22491.10365 | AG183: =AG180*$E$183 -> 20080.72842 | AH183: 17697.35523 | AI183: 15343.98483 | AJ183: 13023.7867 | AK183: 10740.10686 | AL183: 8496.475976 | AM183: 6296.617767 | AN183: 4144.457836 | AO183: 2044.13283 | AP183: 0 | AQ183: 0 | AR183: 0 | AS183: 0 | AT183: 0 | AU183: 0 | AV183: 0 | AW183: 0 | AX183: 0 | AY183: 0 | AZ183: 0 | BA183: 0 | BB183: 0 | BC183: 0 | BD183: 0 | BE183: 0 | BF183: 0 | BG183: 0 | BH183: 0 | BI183: 0 | BJ183: 0 | BK183: 0 | BL183: 0 | BM183: 0 | BN183: 0 | BO183: 0 | BP183: 0 | BQ183: 0 | BR183: 0 | BS183: =BS180*$E$183 -> 0 | BT183: 0 | BU183: 0 | BV183: 0 | BW183: 0 | BX183: 0 | BY183: 0 | BZ183: 0 | CA183: 0 | CB183: 0 | CC183: 0 | CD183: 0 | CE183: 0 | CF183: 0 | CG183: 0 | CH183: 0 | CI183: 0 | CJ183: 0 | CK183: 0 | CL183: 0 | CM183: 0 | CN183: 0 | CO183: 0 | CP183: 0 | CQ183: 0 | CR183: 0 | CS183: 0 | CT183: 0 | CU183: 0 | CV183: 0 | CW183: 0 | CX183: 0 | CY183: 0 | CZ183: 0 | DA183: 0 | DB183: 0 | DC183: 0
D184: Total Equity and Debt | G184: =SUM(G182:G183) -> 490089.1982 | H184: =SUM(H182:H183) -> 421305.5295 | I184: =SUM(I182:I183) -> 376047.0332 | J184: 344889.7965 | K184: 318695.8321 | L184: 291850.6298 | M184: 281757.4282 | N184: 271635.8012 | O184: 261489.1437 | P184: 251321.1141 | Q184: 241135.6477 | R184: 230936.9708 | S184: 220729.6152 | T184: 210518.4329 | U184: 200308.6125 | V184: 190105.6953 | W184: 179915.5927 | X184: 169744.604 | Y184: 159599.4355 | Z184: 149487.2198 | AA184: 139415.5361 | AB184: 129392.4319 | AC184: 119426.4451 | AD184: 109526.6268 | AE184: 99702.56597 | AF184: 89964.41459 | AG184: 80322.91367 | AH184: 70789.42094 | AI184: 61375.93932 | AJ184: 52095.14679 | AK184: 42960.42745 | AL184: 33985.9039 | AM184: 25186.47107 | AN184: 16577.83134 | AO184: 8176.531319 | AP184: 0 | AQ184: 0 | AR184: 0 | AS184: 0 | AT184: 0 | AU184: 0 | AV184: 0 | AW184: 0 | AX184: 0 | AY184: 0 | AZ184: 0 | BA184: 0 | BB184: 0 | BC184: 0 | BD184: 0 | BE184: 0 | BF184: 0 | BG184: 0 | BH184: 0 | BI184: 0 | BJ184: 0 | BK184: 0 | BL184: 0 | BM184: 0 | BN184: 0 | BO184: 0 | BP184: 0 | BQ184: 0 | BR184: 0 | BS184: 0 | BT184: 0 | BU184: =SUM(BU182:BU183) -> 0 | BV184: 0 | BW184: 0 | BX184: 0 | BY184: 0 | BZ184: 0 | CA184: 0 | CB184: 0 | CC184: 0 | CD184: 0 | CE184: 0 | CF184: 0 | CG184: 0 | CH184: 0 | CI184: 0 | CJ184: 0 | CK184: 0 | CL184: 0 | CM184: 0 | CN184: 0 | CO184: 0 | CP184: 0 | CQ184: 0 | CR184: 0 | CS184: 0 | CT184: 0 | CU184: 0 | CV184: 0 | CW184: 0 | CX184: 0 | CY184: 0 | CZ184: 0 | DA184: 0 | DB184: 0 | DC184: 0
D186: Debt Percent | H186: =IFERROR(H182/H180,0) -> 0.75 | I186: 0.75 | J186: 0.75 | K186: 0.75 | L186: 0.75 | M186: 0.75 | N186: 0.75 | O186: 0.75 | P186: 0.75 | Q186: 0.75 | R186: 0.75 | S186: 0.75 | T186: 0.75 | U186: 0.75 | V186: 0.75 | W186: 0.75 | X186: 0.75 | Y186: 0.75 | Z186: 0.75 | AA186: 0.75 | AB186: 0.75 | AC186: 0.75 | AD186: 0.75 | AE186: 0.75 | AF186: 0.75 | AG186: 0.75 | AH186: 0.75 | AI186: 0.75 | AJ186: 0.75 | AK186: 0.75 | AL186: 0.75 | AM186: 0.75 | AN186: =IFERROR(AN182/AN180,0) -> 0.75 | AO186: 0.75 | AP186: 0 | AQ186: 0 | AR186: 0 | AS186: 0 | AT186: 0 | AU186: 0 | AV186: 0 | AW186: 0 | AX186: 0 | AY186: 0 | AZ186: 0 | BA186: 0 | BB186: 0 | BC186: 0 | BD186: 0 | BE186: 0 | BF186: 0 | BG186: 0 | BH186: 0 | BI186: 0 | BJ186: 0 | BK186: 0 | BL186: 0 | BM186: 0 | BN186: 0 | BO186: 0 | BP186: 0 | BQ186: 0 | BR186: 0 | BS186: 0 | BT186: =IFERROR(BT182/BT180,0) -> 0 | BU186: 0 | BV186: 0 | BW186: 0 | BX186: 0 | BY186: 0 | BZ186: 0 | CA186: 0 | CB186: 0 | CC186: 0 | CD186: 0 | CE186: 0 | CF186: 0 | CG186: 0 | CH186: 0 | CI186: 0 | CJ186: 0 | CK186: 0 | CL186: 0 | CM186: 0 | CN186: 0 | CO186: 0 | CP186: 0 | CQ186: 0 | CR186: 0 | CS186: 0 | CT186: 0 | CU186: 0 | CV186: 0 | CW186: 0 | CX186: 0 | CY186: 0 | CZ186: 0 | DA186: 0 | DB186: 0 | DC186: 0
D187: Equity Percent | H187: =IFERROR(H183/H180,0) -> 0.25 | I187: 0.25 | J187: 0.25 | K187: 0.25 | L187: 0.25 | M187: 0.25 | N187: 0.25 | O187: 0.25 | P187: 0.25 | Q187: 0.25 | R187: 0.25 | S187: 0.25 | T187: 0.25 | U187: 0.25 | V187: 0.25 | W187: 0.25 | X187: 0.25 | Y187: 0.25 | Z187: 0.25 | AA187: 0.25 | AB187: 0.25 | AC187: 0.25 | AD187: 0.25 | AE187: 0.25 | AF187: 0.25 | AG187: 0.25 | AH187: 0.25 | AI187: 0.25 | AJ187: 0.25 | AK187: 0.25 | AL187: 0.25 | AM187: 0.25 | AN187: =IFERROR(AN183/AN180,0) -> 0.25 | AO187: 0.25 | AP187: 0 | AQ187: 0 | AR187: 0 | AS187: 0 | AT187: 0 | AU187: 0 | AV187: 0 | AW187: 0 | AX187: 0 | AY187: 0 | AZ187: 0 | BA187: 0 | BB187: 0 | BC187: 0 | BD187: 0 | BE187: 0 | BF187: 0 | BG187: 0 | BH187: 0 | BI187: 0 | BJ187: 0 | BK187: 0 | BL187: 0 | BM187: 0 | BN187: 0 | BO187: 0 | BP187: 0 | BQ187: 0 | BR187: 0 | BS187: 0 | BT187: =IFERROR(BT183/BT180,0) -> 0 | BU187: 0 | BV187: 0 | BW187: 0 | BX187: 0 | BY187: 0 | BZ187: 0 | CA187: 0 | CB187: 0 | CC187: 0 | CD187: 0 | CE187: 0 | CF187: 0 | CG187: 0 | CH187: 0 | CI187: 0 | CJ187: 0 | CK187: 0 | CL187: 0 | CM187: 0 | CN187: 0 | CO187: 0 | CP187: 0 | CQ187: 0 | CR187: 0 | CS187: 0 | CT187: 0 | CU187: 0 | CV187: 0 | CW187: 0 | CX187: 0 | CY187: 0 | CZ187: 0 | DA187: 0 | DB187: 0 | DC187: 0
C189: Debt Balance
D190: Debt Repayment | H190: =G182-H182 -> 51587.75148 | I190: =H182-I182 -> 33943.87226 | J190: 23367.92748 | K190: 19645.47331 | L190: 20133.90175 | M190: 7569.901197 | N190: 7591.220207 | O190: 7609.993143 | P190: 7626.02225 | Q190: 7639.099795 | R190: 7649.007631 | S190: 7655.516726 | T190: 7658.386696 | U190: 7657.365295 | V190: 7652.187902 | W190: 7642.576977 | X190: 7628.241498 | Y190: 7608.87637 | Z190: 7584.161822 | AA190: 7553.762763 | AB190: 7517.328119 | AC190: 7474.490152 | AD190: 7424.863729 | AE190: 7368.045585 | AF190: 7303.613539 | AG190: 7231.125686 | AH190: 7150.119551 | AI190: 7060.111214 | AJ190: 6960.594396 | AK190: 6851.039507 | AL190: 6730.892657 | AM190: 6599.574626 | AN190: =AM182-AN182 -> 6456.479793 | AO190: 6300.975019 | AP190: 6132.398489 | AQ190: 0 | AR190: 0 | AS190: 0 | AT190: 0 | AU190: 0 | AV190: 0 | AW190: 0 | AX190: 0 | AY190: 0 | AZ190: 0 | BA190: 0 | BB190: 0 | BC190: 0 | BD190: 0 | BE190: 0 | BF190: 0 | BG190: 0 | BH190: 0 | BI190: 0 | BJ190: 0 | BK190: 0 | BL190: 0 | BM190: 0 | BN190: 0 | BO190: 0 | BP190: 0 | BQ190: 0 | BR190: 0 | BS190: 0 | BT190: =BS182-BT182 -> 0 | BU190: 0 | BV190: 0 | BW190: 0 | BX190: 0 | BY190: 0 | BZ190: 0 | CA190: 0 | CB190: 0 | CC190: 0 | CD190: 0 | CE190: 0 | CF190: 0 | CG190: 0 | CH190: 0 | CI190: 0 | CJ190: 0 | CK190: 0 | CL190: 0 | CM190: 0 | CN190: 0 | CO190: 0 | CP190: 0 | CQ190: 0 | CR190: 0 | CS190: 0 | CT190: 0 | CU190: 0 | CV190: 0 | CW190: 0 | CX190: 0 | CY190: 0 | CZ190: 0 | DA190: 0 | DB190: 0 | DC190: 0
D191: Opening Balance | H191: =G193 -> 367566.8986 | I191: =H193 -> 315979.1471 | J191: 282035.2749 | K191: 258667.3474 | L191: 239021.8741 | M191: 218887.9723 | N191: 211318.0711 | O191: 203726.8509 | P191: =O193 -> 196116.8578 | Q191: 188490.8355 | R191: 180851.7357 | S191: 173202.7281 | T191: 165547.2114 | U191: 157888.8247 | V191: 150231.4594 | W191: 142579.2715 | X191: 134936.6945 | Y191: 127308.453 | Z191: 119699.5766 | AA191: 112115.4148 | AB191: 104561.6521 | AC191: 97044.32394 | AD191: 89569.83379 | AE191: 82144.97006 | AF191: 74776.92448 | AG191: 67473.31094 | AH191: 60242.18525 | AI191: 53092.0657 | AJ191: 46031.95449 | AK191: 39071.36009 | AL191: 32220.32058 | AM191: 25489.42793 | AN191: 18889.8533 | AO191: 12433.37351 | AP191: 6132.398489 | AQ191: 0 | AR191: 0 | AS191: 0 | AT191: 0 | AU191: 0 | AV191: 0 | AW191: 0 | AX191: 0 | AY191: 0 | AZ191: 0 | BA191: 0 | BB191: 0 | BC191: =BB193 -> 0 | BD191: 0 | BE191: 0 | BF191: 0 | BG191: 0 | BH191: 0 | BI191: 0 | BJ191: 0 | BK191: 0 | BL191: 0 | BM191: 0 | BN191: 0 | BO191: 0 | BP191: 0 | BQ191: 0 | BR191: 0 | BS191: 0 | BT191: 0 | BU191: =BT193 -> 0 | BV191: 0 | BW191: 0 | BX191: 0 | BY191: 0 | BZ191: 0 | CA191: 0 | CB191: 0 | CC191: 0 | CD191: 0 | CE191: 0 | CF191: 0 | CG191: 0 | CH191: 0 | CI191: 0 | CJ191: 0 | CK191: 0 | CL191: 0 | CM191: 0 | CN191: 0 | CO191: 0 | CP191: 0 | CQ191: 0 | CR191: 0 | CS191: 0 | CT191: 0 | CU191: 0 | CV191: 0 | CW191: 0 | CX191: 0 | CY191: 0 | CZ191: 0 | DA191: 0 | DB191: 0 | DC191: 0
D192: Debt Repayment | H192: =H190 -> 51587.75148 | I192: 33943.87226 | J192: 23367.92748 | K192: 19645.47331 | L192: 20133.90175 | M192: 7569.901197 | N192: 7591.220207 | O192: 7609.993143 | P192: 7626.02225 | Q192: 7639.099795 | R192: 7649.007631 | S192: 7655.516726 | T192: 7658.386696 | U192: 7657.365295 | V192: 7652.187902 | W192: 7642.576977 | X192: 7628.241498 | Y192: 7608.87637 | Z192: 7584.161822 | AA192: 7553.762763 | AB192: 7517.328119 | AC192: 7474.490152 | AD192: 7424.863729 | AE192: 7368.045585 | AF192: 7303.613539 | AG192: =AG190 -> 7231.125686 | AH192: 7150.119551 | AI192: 7060.111214 | AJ192: 6960.594396 | AK192: 6851.039507 | AL192: 6730.892657 | AM192: 6599.574626 | AN192: 6456.479793 | AO192: 6300.975019 | AP192: 6132.398489 | AQ192: 0 | AR192: 0 | AS192: 0 | AT192: 0 | AU192: 0 | AV192: 0 | AW192: 0 | AX192: 0 | AY192: 0 | AZ192: 0 | BA192: 0 | BB192: 0 | BC192: 0 | BD192: 0 | BE192: 0 | BF192: 0 | BG192: 0 | BH192: 0 | BI192: 0 | BJ192: 0 | BK192: 0 | BL192: 0 | BM192: 0 | BN192: 0 | BO192: 0 | BP192: 0 | BQ192: 0 | BR192: 0 | BS192: 0 | BT192: =BT190 -> 0 | BU192: 0 | BV192: 0 | BW192: 0 | BX192: 0 | BY192: 0 | BZ192: 0 | CA192: 0 | CB192: 0 | CC192: 0 | CD192: 0 | CE192: 0 | CF192: 0 | CG192: 0 | CH192: 0 | CI192: 0 | CJ192: 0 | CK192: 0 | CL192: 0 | CM192: 0 | CN192: 0 | CO192: 0 | CP192: 0 | CQ192: 0 | CR192: 0 | CS192: 0 | CT192: 0 | CU192: 0 | CV192: 0 | CW192: 0 | CX192: 0 | CY192: 0 | CZ192: 0 | DA192: 0 | DB192: 0 | DC192: 0
D193: Closing Balance | G193: =G182 -> 367566.8986 | H193: =H191-H192 -> 315979.1471 | I193: =I191-I192 -> 282035.2749 | J193: 258667.3474 | K193: 239021.8741 | L193: 218887.9723 | M193: 211318.0711 | N193: 203726.8509 | O193: 196116.8578 | P193: 188490.8355 | Q193: 180851.7357 | R193: 173202.7281 | S193: 165547.2114 | T193: 157888.8247 | U193: 150231.4594 | V193: 142579.2715 | W193: 134936.6945 | X193: 127308.453 | Y193: 119699.5766 | Z193: 112115.4148 | AA193: 104561.6521 | AB193: 97044.32394 | AC193: 89569.83379 | AD193: 82144.97006 | AE193: 74776.92448 | AF193: 67473.31094 | AG193: =AG191-AG192 -> 60242.18525 | AH193: 53092.0657 | AI193: 46031.95449 | AJ193: 39071.36009 | AK193: 32220.32058 | AL193: 25489.42793 | AM193: 18889.8533 | AN193: 12433.37351 | AO193: 6132.398489 | AP193: 0 | AQ193: 0 | AR193: 0 | AS193: 0 | AT193: 0 | AU193: 0 | AV193: 0 | AW193: 0 | AX193: 0 | AY193: 0 | AZ193: 0 | BA193: 0 | BB193: 0 | BC193: 0 | BD193: 0 | BE193: 0 | BF193: 0 | BG193: 0 | BH193: 0 | BI193: 0 | BJ193: 0 | BK193: 0 | BL193: 0 | BM193: 0 | BN193: 0 | BO193: 0 | BP193: 0 | BQ193: 0 | BR193: 0 | BS193: 0 | BT193: 0 | BU193: =BU191-BU192 -> 0 | BV193: 0 | BW193: 0 | BX193: 0 | BY193: 0 | BZ193: 0 | CA193: 0 | CB193: 0 | CC193: 0 | CD193: 0 | CE193: 0 | CF193: 0 | CG193: 0 | CH193: 0 | CI193: 0 | CJ193: 0 | CK193: 0 | CL193: 0 | CM193: 0 | CN193: 0 | CO193: 0 | CP193: 0 | CQ193: 0 | CR193: 0 | CS193: 0 | CT193: 0 | CU193: 0 | CV193: 0 | CW193: 0 | CX193: 0 | CY193: 0 | CZ193: 0 | DA193: 0 | DB193: 0 | DC193: 0
D194: Interest Expense | E194: =BF77 -> 0.0252 | H194: =H191*$E$194 -> 9262.685845 | I194: 7962.674508 | J194: 7107.288927 | K194: 6518.417154 | L194: 6023.351227 | M194: 5515.976903 | N194: 5325.215393 | O194: 5133.916644 | P194: 4942.144816 | Q194: 4749.969056 | R194: 4557.463741 | S194: 4364.708748 | T194: 4171.789727 | U194: 3978.798382 | V194: 3785.832777 | W194: 3592.997642 | X194: 3400.404702 | Y194: 3208.173016 | Z194: 3016.429332 | AA194: 2825.308454 | AB194: 2634.953632 | AC194: 2445.516963 | AD194: 2257.159812 | AE194: 2070.053246 | AF194: 1884.378497 | AG194: =AG191*$E$194 -> 1700.327436 | AH194: 1518.103068 | AI194: 1337.920056 | AJ194: 1160.005253 | AK194: 984.5982743 | AL194: 811.9520787 | AM194: 642.3335838 | AN194: 476.0243032 | AO194: 313.3210124 | AP194: 154.5364419 | AQ194: 0 | AR194: 0 | AS194: 0 | AT194: 0 | AU194: 0 | AV194: 0 | AW194: 0 | AX194: 0 | AY194: 0 | AZ194: 0 | BA194: 0 | BB194: 0 | BC194: 0 | BD194: 0 | BE194: 0 | BF194: 0 | BG194: 0 | BH194: 0 | BI194: 0 | BJ194: 0 | BK194: 0 | BL194: 0 | BM194: 0 | BN194: 0 | BO194: 0 | BP194: 0 | BQ194: 0 | BR194: 0 | BS194: 0 | BT194: =BT191*$E$194 -> 0 | BU194: 0 | BV194: 0 | BW194: 0 | BX194: 0 | BY194: 0 | BZ194: 0 | CA194: 0 | CB194: 0 | CC194: 0 | CD194: 0 | CE194: 0 | CF194: 0 | CG194: 0 | CH194: 0 | CI194: 0 | CJ194: 0 | CK194: 0 | CL194: 0 | CM194: 0 | CN194: 0 | CO194: 0 | CP194: 0 | CQ194: 0 | CR194: 0 | CS194: 0 | CT194: 0 | CU194: 0 | CV194: 0 | CW194: 0 | CX194: 0 | CY194: 0 | CZ194: 0 | DA194: 0 | DB194: 0 | DC194: 0
D196: Equity Cash Flow Check (Equity Chg + Income) | G196: =-G183 -> -122522.2995 | H196: =H169 -> 26630.13423 | I196: =I169 -> 19424.75553 | J196: 15028.21455 | K196: 13187.61969 | L196: 12846.19535 | M196: 8141.425022 | N196: 7954.237228 | O196: 7765.653555 | P196: 7575.673433 | Q196: 7384.298044 | R196: 7191.530428 | S196: 6997.375597 | T196: 6801.840658 | U196: 6604.934932 | V196: 6406.670092 | W196: 6207.060294 | X196: 6006.122325 | Y196: 5803.875751 | Z196: 5600.343075 | AA196: 5395.549901 | AB196: 5189.525109 | AC196: 4982.301032 | AD196: 4773.913644 | AE196: 4564.40276 | AF196: 4353.812241 | AG196: 4142.190209 | AH196: 3929.589272 | AI196: 3716.066758 | AJ196: 3501.684964 | AK196: 3286.511412 | AL196: 3070.619114 | AM196: 2854.086859 | AN196: 2636.999499 | AO196: 2419.44826 | AP196: 2201.531058 | AQ196: 0 | AR196: 0 | AS196: 0 | AT196: 0 | AU196: 0 | AV196: 0 | AW196: 0 | AX196: 0 | AY196: 0 | AZ196: 0 | BA196: 0 | BB196: 0 | BC196: 0 | BD196: 0 | BE196: 0 | BF196: 0 | BG196: 0 | BH196: 0 | BI196: 0 | BJ196: 0 | BK196: 0 | BL196: 0 | BM196: 0 | BN196: 0 | BO196: 0 | BP196: 0 | BQ196: 0 | BR196: 0 | BS196: 0 | BT196: 0 | BU196: =BU169 -> 0 | BV196: 0 | BW196: 0 | BX196: 0 | BY196: 0 | BZ196: 0 | CA196: 0 | CB196: 0 | CC196: 0 | CD196: 0 | CE196: 0 | CF196: 0 | CG196: 0 | CH196: 0 | CI196: 0 | CJ196: 0 | CK196: 0 | CL196: 0 | CM196: 0 | CN196: 0 | CO196: 0 | CP196: 0 | CQ196: 0 | CR196: 0 | CS196: 0 | CT196: 0 | CU196: 0 | CV196: 0 | CW196: 0 | CX196: 0 | CY196: 0 | CZ196: 0 | DA196: 0 | DB196: 0 | DC196: 0
D197: Equity IRR Check | G197: =IRR(G196:DC196) -> 0.077 | H197: =H146 -> 26630.13423 | I197: 19424.75553 | J197: 15028.21455 | K197: 13187.61969 | L197: 12846.19535 | M197: 8141.425022 | N197: 7954.237228 | O197: 7765.653555 | P197: 7575.673433 | Q197: 7384.298044 | R197: 7191.530428 | S197: 6997.375597 | T197: 6801.840658 | U197: 6604.934932 | V197: 6406.670092 | W197: 6207.060294 | X197: 6006.122325 | Y197: 5803.875751 | Z197: 5600.343075 | AA197: 5395.549901 | AB197: 5189.525109 | AC197: 4982.301032 | AD197: 4773.913644 | AE197: 4564.40276 | AF197: 4353.812241 | AG197: 4142.190209 | AH197: 3929.589272 | AI197: 3716.066758 | AJ197: 3501.684964 | AK197: 3286.511412 | AL197: 3070.619114 | AM197: 2854.086859 | AN197: =AN146 -> 2636.999499 | AO197: 2419.44826 | AP197: 2201.531058 | AQ197: 0 | AR197: 0 | AS197: 0 | AT197: 0 | AU197: 0 | AV197: 0 | AW197: 0 | AX197: 0 | AY197: 0 | AZ197: 0 | BA197: 0 | BB197: 0 | BC197: 0 | BD197: 0 | BE197: 0 | BF197: 0 | BG197: 0 | BH197: 0 | BI197: 0 | BJ197: 0 | BK197: 0 | BL197: 0 | BM197: 0 | BN197: 0 | BO197: 0 | BP197: 0 | BQ197: 0 | BR197: 0 | BS197: 0 | BT197: =BT146 -> 0 | BU197: 0 | BV197: 0 | BW197: 0 | BX197: 0 | BY197: 0 | BZ197: 0 | CA197: 0 | CB197: 0 | CC197: 0 | CD197: 0 | CE197: 0 | CF197: 0 | CG197: 0 | CH197: 0 | CI197: 0 | CJ197: 0 | CK197: 0 | CL197: 0 | CM197: 0 | CN197: 0 | CO197: 0 | CP197: 0 | CQ197: 0 | CR197: 0 | CS197: 0 | CT197: 0 | CU197: 0 | CV197: 0 | CW197: 0 | CX197: 0 | CY197: 0 | CZ197: 0 | DA197: 0 | DB197: 0 | DC197: 0
D198: Check | G198: =ROUND(G197-I147,2)=0 -> TRUE | H198: =H197-H196 -> 0 | I198: =I197-I196 -> 0 | J198: 0 | K198: 0 | L198: 0 | M198: 0 | N198: 0 | O198: 0 | P198: 0 | Q198: 0 | R198: 0 | S198: 0 | T198: 0 | U198: 0 | V198: 0 | W198: 0 | X198: 0 | Y198: 0 | Z198: 0 | AA198: 0 | AB198: 0 | AC198: 0 | AD198: 0 | AE198: 0 | AF198: 0 | AG198: =AG197-AG196 -> 0 | AH198: 0 | AI198: 0 | AJ198: 0 | AK198: 0 | AL198: 0 | AM198: 0 | AN198: 0 | AO198: 0 | AP198: 0 | AQ198: 0 | AR198: 0 | AS198: 0 | AT198: 0 | AU198: 0 | AV198: 0 | AW198: 0 | AX198: 0 | AY198: 0 | AZ198: 0 | BA198: 0 | BB198: 0 | BC198: 0 | BD198: 0 | BE198: 0 | BF198: 0 | BG198: 0 | BH198: 0 | BI198: 0 | BJ198: 0 | BK198: 0 | BL198: 0 | BM198: 0 | BN198: 0 | BO198: 0 | BP198: 0 | BQ198: 0 | BR198: 0 | BS198: 0 | BT198: 0 | BU198: =BU197-BU196 -> 0 | BV198: 0 | BW198: 0 | BX198: 0 | BY198: 0 | BZ198: 0 | CA198: 0 | CB198: 0 | CC198: 0 | CD198: 0 | CE198: 0 | CF198: 0 | CG198: 0 | CH198: 0 | CI198: 0 | CJ198: 0 | CK198: 0 | CL198: 0 | CM198: 0 | CN198: 0 | CO198: 0 | CP198: 0 | CQ198: 0 | CR198: 0 | CS198: 0 | CT198: 0 | CU198: 0 | CV198: 0 | CW198: 0 | CX198: 0 | CY198: 0 | CZ198: 0 | DA198: 0 | DB198: 0 | DC198: 0
H199: =IFERROR(H198/$E$142,0) -> 0 | I199: =IFERROR(I198/$E$142,0) -> 0 | J199: 0 | K199: 0 | L199: 0 | M199: 0 | N199: 0 | O199: 0 | P199: 0 | Q199: 0 | R199: 0 | S199: 0 | T199: 0 | U199: 0 | V199: 0 | W199: 0 | X199: 0 | Y199: 0 | Z199: 0 | AA199: 0 | AB199: 0 | AC199: 0 | AD199: 0 | AE199: 0 | AF199: 0 | AG199: 0 | AH199: 0 | AI199: 0 | AJ199: 0 | AK199: 0 | AL199: 0 | AM199: 0 | AN199: 0 | AO199: 0 | AP199: 0 | AQ199: 0 | AR199: 0 | AS199: 0 | AT199: 0 | AU199: 0 | AV199: 0 | AW199: 0 | AX199: 0 | AY199: 0 | AZ199: 0 | BA199: 0 | BB199: 0 | BC199: 0 | BD199: 0 | BE199: 0 | BF199: 0 | BG199: 0 | BH199: 0 | BI199: 0 | BJ199: 0 | BK199: 0 | BL199: 0 | BM199: 0 | BN199: 0 | BO199: 0 | BP199: 0 | BQ199: 0 | BR199: 0 | BS199: 0 | BT199: 0 | BU199: =IFERROR(BU198/$E$142,0) -> 0 | BV199: 0 | BW199: 0 | BX199: 0 | BY199: 0 | BZ199: 0 | CA199: 0 | CB199: 0 | CC199: 0 | CD199: 0 | CE199: 0 | CF199: 0 | CG199: 0 | CH199: 0 | CI199: 0 | CJ199: 0 | CK199: 0 | CL199: 0 | CM199: 0 | CN199: 0 | CO199: 0 | CP199: 0 | CQ199: 0 | CR199: 0 | CS199: 0 | CT199: 0 | CU199: 0 | CV199: 0 | CW199: 0 | CX199: 0 | CY199: 0 | CZ199: 0 | DA199: 0 | DB199: 0 | DC199: 0
D200: Straight Line Depreciation | E200: =AT54 -> 35 | G200: =E139 -> 662282.7002 | H200: =$G$200/$E$200*H128 -> 18922.36286 | I200: 18922.36286 | J200: 18922.36286 | K200: 18922.36286 | L200: 18922.36286 | M200: 18922.36286 | N200: 18922.36286 | O200: 18922.36286 | P200: 18922.36286 | Q200: 18922.36286 | R200: 18922.36286 | S200: 18922.36286 | T200: 18922.36286 | U200: 18922.36286 | V200: 18922.36286 | W200: 18922.36286 | X200: 18922.36286 | Y200: 18922.36286 | Z200: 18922.36286 | AA200: 18922.36286 | AB200: 18922.36286 | AC200: 18922.36286 | AD200: 18922.36286 | AE200: 18922.36286 | AF200: 18922.36286 | AG200: 18922.36286 | AH200: 18922.36286 | AI200: 18922.36286 | AJ200: 18922.36286 | AK200: 18922.36286 | AL200: 18922.36286 | AM200: 18922.36286 | AN200: =$G$200/$E$200*AN128 -> 18922.36286 | AO200: 18922.36286 | AP200: 18922.36286 | AQ200: 0 | AR200: 0 | AS200: 0 | AT200: 0 | AU200: 0 | AV200: 0 | AW200: 0 | AX200: 0 | AY200: 0 | AZ200: 0 | BA200: 0 | BB200: 0 | BC200: 0 | BD200: 0 | BE200: 0 | BF200: 0 | BG200: 0 | BH200: 0 | BI200: 0 | BJ200: 0 | BK200: 0 | BL200: 0 | BM200: 0 | BN200: 0 | BO200: 0 | BP200: 0 | BQ200: 0 | BR200: 0 | BS200: 0 | BT200: =$G$200/$E$200*BT128 -> 0 | BU200: 0 | BV200: 0 | BW200: 0 | BX200: 0 | BY200: 0 | BZ200: 0 | CA200: 0 | CB200: 0 | CC200: 0 | CD200: 0 | CE200: 0 | CF200: 0 | CG200: 0 | CH200: 0 | CI200: 0 | CJ200: 0 | CK200: 0 | CL200: 0 | CM200: 0 | CN200: 0 | CO200: 0 | CP200: 0 | CQ200: 0 | CR200: 0 | CS200: 0 | CT200: 0 | CU200: 0 | CV200: 0 | CW200: 0 | CX200: 0 | CY200: 0 | CZ200: 0 | DA200: 0 | DB200: 0 | DC200: 0
D201: Income with Straight Line Depreciation | E201: =SUM(H201:DC201) -> 69695.12092 | H201: =H137-H200-H140-H142 -> 68558.20869 | I201: 42408.93944 | J201: 26581.06809 | K201: 20429.14728 | L201: 20081.08546 | M201: 2304.940259 | N201: 1948.309965 | O201: 1587.200478 | P201: 1221.477636 | Q201: 851.0040318 | R201: 475.6389358 | S201: 95.23820873 | T201: -290.3457827 | U201: -681.2642538 | V201: -1077.672092 | W201: -1479.72795 | X201: -1887.594339 | Y201: -2301.437726 | Z201: -2721.428634 | AA201: -3147.741746 | AB201: -3580.556002 | AC201: -4020.054716 | AD201: -4466.425679 | AE201: -4919.861272 | AF201: -5380.558585 | AG201: -5848.719532 | AH201: -6324.550972 | AI201: -6808.264836 | AJ201: -7300.07825 | AK201: -7800.21367 | AL201: -8308.899013 | AM201: -8826.367794 | AN201: =AN137-AN200-AN140-AN142 -> -9352.859268 | AO201: -9888.618572 | AP201: -10433.89687 | AQ201: 0 | AR201: 0 | AS201: 0 | AT201: 0 | AU201: 0 | AV201: 0 | AW201: 0 | AX201: 0 | AY201: 0 | AZ201: 0 | BA201: 0 | BB201: 0 | BC201: 0 | BD201: 0 | BE201: 0 | BF201: 0 | BG201: 0 | BH201: 0 | BI201: 0 | BJ201: 0 | BK201: 0 | BL201: 0 | BM201: 0 | BN201: 0 | BO201: 0 | BP201: 0 | BQ201: 0 | BR201: 0 | BS201: 0 | BT201: =BT137-BT200-BT140-BT142 -> 0 | BU201: 0 | BV201: 0 | BW201: 0 | BX201: 0 | BY201: 0 | BZ201: 0 | CA201: 0 | CB201: 0 | CC201: 0 | CD201: 0 | CE201: 0 | CF201: 0 | CG201: 0 | CH201: 0 | CI201: 0 | CJ201: 0 | CK201: 0 | CL201: 0 | CM201: 0 | CN201: 0 | CO201: 0 | CP201: 0 | CQ201: 0 | CR201: 0 | CS201: 0 | CT201: 0 | CU201: 0 | CV201: 0 | CW201: 0 | CX201: 0 | CY201: 0 | CZ201: =CZ137-CZ200-CZ140-CZ142 -> 0 | DA201: 0 | DB201: 0 | DC201: 0
B203: PPA with Inflation (the case with Real Carrying Charges)
D204: Timing Flag | E204: Flag | H204: =H128 -> TRUE | I204: =I128 -> TRUE | J204: TRUE | K204: TRUE | L204: TRUE | M204: TRUE | N204: TRUE | O204: TRUE | P204: TRUE | Q204: TRUE | R204: TRUE | S204: TRUE | T204: TRUE | U204: TRUE | V204: TRUE | W204: TRUE | X204: TRUE | Y204: TRUE | Z204: TRUE | AA204: TRUE | AB204: TRUE | AC204: TRUE | AD204: TRUE | AE204: TRUE | AF204: TRUE | AG204: TRUE | AH204: TRUE | AI204: TRUE | AJ204: TRUE | AK204: TRUE | AL204: TRUE | AM204: TRUE | AN204: TRUE | AO204: TRUE | AP204: TRUE | AQ204: FALSE | AR204: FALSE | AS204: FALSE | AT204: FALSE | AU204: FALSE | AV204: FALSE | AW204: FALSE | AX204: FALSE | AY204: FALSE | AZ204: FALSE | BA204: FALSE | BB204: FALSE | BC204: FALSE | BD204: FALSE | BE204: FALSE | BF204: FALSE | BG204: FALSE | BH204: FALSE | BI204: FALSE | BJ204: FALSE | BK204: FALSE | BL204: FALSE | BM204: FALSE | BN204: FALSE | BO204: FALSE | BP204: FALSE | BQ204: FALSE | BR204: FALSE | BS204: FALSE | BT204: FALSE | BU204: =BU128 -> FALSE | BV204: FALSE | BW204: FALSE | BX204: FALSE | BY204: FALSE | BZ204: FALSE | CA204: FALSE | CB204: FALSE | CC204: FALSE | CD204: FALSE | CE204: FALSE | CF204: FALSE | CG204: FALSE | CH204: FALSE | CI204: FALSE | CJ204: FALSE | CK204: FALSE | CL204: FALSE | CM204: FALSE | CN204: FALSE | CO204: FALSE | CP204: FALSE | CQ204: FALSE | CR204: FALSE | CS204: FALSE | CT204: FALSE | CU204: FALSE | CV204: FALSE | CW204: FALSE | CX204: FALSE | CY204: FALSE | CZ204: FALSE | DA204: FALSE | DB204: FALSE | DC204: FALSE
D205: Index | E205: Index | F205: =BF74 -> 0.025 | G205: 1 | H205: =G205*(1+$F$205) -> 1.025 | I205: 1.050625 | J205: 1.076890625 | K205: 1.103812891 | L205: 1.131408213 | M205: 1.159693418 | N205: 1.188685754 | O205: 1.218402898 | P205: 1.24886297 | Q205: 1.280084544 | R205: 1.312086658 | S205: 1.344888824 | T205: 1.378511045 | U205: 1.412973821 | V205: 1.448298166 | W205: 1.484505621 | X205: 1.521618261 | Y205: 1.559658718 | Z205: 1.598650186 | AA205: 1.63861644 | AB205: 1.679581851 | AC205: 1.721571398 | AD205: 1.764610683 | AE205: 1.80872595 | AF205: 1.853944098 | AG205: 1.900292701 | AH205: 1.947800018 | AI205: 1.996495019 | AJ205: 2.046407394 | AK205: 2.097567579 | AL205: 2.150006769 | AM205: 2.203756938 | AN205: =AM205*(1+$F$205) -> 2.258850861 | AO205: 2.315322133 | AP205: 2.373205186 | AQ205: 2.432535316 | AR205: 2.493348699 | AS205: 2.555682416 | AT205: 2.619574476 | AU205: 2.685063838 | AV205: 2.752190434 | AW205: 2.820995195 | AX205: 2.891520075 | AY205: 2.963808077 | AZ205: 3.037903279 | BA205: 3.113850861 | BB205: 3.191697132 | BC205: 3.271489561 | BD205: 3.3532768 | BE205: 3.43710872 | BF205: 3.523036438 | BG205: 3.611112349 | BH205: 3.701390157 | BI205: 3.793924911 | BJ205: 3.888773034 | BK205: 3.98599236 | BL205: 4.085642169 | BM205: 4.187783223 | BN205: 4.292477804 | BO205: 4.399789749 | BP205: 4.509784493 | BQ205: 4.622529105 | BR205: 4.738092332 | BS205: 4.856544641 | BT205: =BS205*(1+$F$205) -> 4.977958257 | BU205: 5.102407213 | BV205: 5.229967394 | BW205: 5.360716578 | BX205: 5.494734493 | BY205: 5.632102855 | BZ205: 5.772905427 | CA205: 5.917228062 | CB205: 6.065158764 | CC205: 6.216787733 | CD205: 6.372207426 | CE205: 6.531512612 | CF205: 6.694800427 | CG205: 6.862170438 | CH205: 7.033724699 | CI205: 7.209567816 | CJ205: 7.389807012 | CK205: 7.574552187 | CL205: 7.763915992 | CM205: 7.958013891 | CN205: 8.156964239 | CO205: 8.360888345 | CP205: 8.569910553 | CQ205: 8.784158317 | CR205: 9.003762275 | CS205: 9.228856332 | CT205: 9.45957774 | CU205: 9.696067184 | CV205: 9.938468863 | CW205: 10.18693058 | CX205: 10.44160385 | CY205: 10.70264395 | CZ205: 10.97021004 | DA205: 11.2444653 | DB205: 11.52557693 | DC205: 11.81371635
D206: Initial Price | E206: USD/MWH | F206: =BF123 -> 13.34004039 | H206: =$F$206*H128 -> 13.34004039 | I206: 13.34004039 | J206: 13.34004039 | K206: 13.34004039 | L206: 13.34004039 | M206: 13.34004039 | N206: 13.34004039 | O206: 13.34004039 | P206: 13.34004039 | Q206: 13.34004039 | R206: 13.34004039 | S206: 13.34004039 | T206: 13.34004039 | U206: 13.34004039 | V206: 13.34004039 | W206: 13.34004039 | X206: 13.34004039 | Y206: 13.34004039 | Z206: 13.34004039 | AA206: 13.34004039 | AB206: 13.34004039 | AC206: 13.34004039 | AD206: 13.34004039 | AE206: 13.34004039 | AF206: 13.34004039 | AG206: 13.34004039 | AH206: 13.34004039 | AI206: 13.34004039 | AJ206: 13.34004039 | AK206: 13.34004039 | AL206: 13.34004039 | AM206: 13.34004039 | AN206: =$F$206*AN128 -> 13.34004039 | AO206: 13.34004039 | AP206: 13.34004039 | AQ206: 0 | AR206: 0 | AS206: 0 | AT206: 0 | AU206: 0 | AV206: 0 | AW206: 0 | AX206: 0 | AY206: 0 | AZ206: 0 | BA206: 0 | BB206: 0 | BC206: 0 | BD206: 0 | BE206: 0 | BF206: 0 | BG206: 0 | BH206: 0 | BI206: 0 | BJ206: 0 | BK206: 0 | BL206: 0 | BM206: 0 | BN206: 0 | BO206: 0 | BP206: 0 | BQ206: 0 | BR206: 0 | BS206: 0 | BT206: =$F$206*BT128 -> 0 | BU206: 0 | BV206: 0 | BW206: 0 | BX206: 0 | BY206: 0 | BZ206: 0 | CA206: 0 | CB206: 0 | CC206: 0 | CD206: 0 | CE206: 0 | CF206: 0 | CG206: 0 | CH206: 0 | CI206: 0 | CJ206: 0 | CK206: 0 | CL206: 0 | CM206: 0 | CN206: 0 | CO206: 0 | CP206: 0 | CQ206: 0 | CR206: 0 | CS206: 0 | CT206: 0 | CU206: 0 | CV206: 0 | CW206: 0 | CX206: 0 | CY206: 0 | CZ206: 0 | DA206: 0 | DB206: 0 | DC206: 0
D207: Inflated Price | E207: USD/MWH | H207: =H206*H205 -> 13.6735414 | I207: 14.01537994 | J207: 14.36576444 | K207: 14.72490855 | L207: 15.09303126 | M207: 15.47035704 | N207: 15.85711597 | O207: 16.25354387 | P207: 16.65988247 | Q207: 17.07637953 | R207: 17.50328902 | S207: 17.94087124 | T207: 18.38939302 | U207: 18.84912785 | V207: 19.32035604 | W207: 19.80336495 | X207: 20.29844907 | Y207: 20.8059103 | Z207: 21.32605805 | AA207: 21.85920951 | AB207: 22.40568974 | AC207: 22.96583199 | AD207: 23.53997779 | AE207: 24.12847723 | AF207: 24.73168916 | AG207: 25.34998139 | AH207: 25.98373093 | AI207: 26.6333242 | AJ207: 27.2991573 | AK207: 27.98163624 | AL207: 28.68117714 | AM207: 29.39820657 | AN207: =AN206*AN205 -> 30.13316173 | AO207: 30.88649078 | AP207: 31.65865305 | AQ207: 0 | AR207: 0 | AS207: 0 | AT207: 0 | AU207: 0 | AV207: 0 | AW207: 0 | AX207: 0 | AY207: 0 | AZ207: 0 | BA207: 0 | BB207: 0 | BC207: 0 | BD207: 0 | BE207: 0 | BF207: 0 | BG207: 0 | BH207: 0 | BI207: 0 | BJ207: 0 | BK207: 0 | BL207: 0 | BM207: 0 | BN207: 0 | BO207: 0 | BP207: 0 | BQ207: 0 | BR207: 0 | BS207: 0 | BT207: =BT206*BT205 -> 0 | BU207: 0 | BV207: 0 | BW207: 0 | BX207: 0 | BY207: 0 | BZ207: 0 | CA207: 0 | CB207: 0 | CC207: 0 | CD207: 0 | CE207: 0 | CF207: 0 | CG207: 0 | CH207: 0 | CI207: 0 | CJ207: 0 | CK207: 0 | CL207: 0 | CM207: 0 | CN207: 0 | CO207: 0 | CP207: 0 | CQ207: 0 | CR207: 0 | CS207: 0 | CT207: 0 | CU207: 0 | CV207: 0 | CW207: 0 | CX207: 0 | CY207: 0 | CZ207: =CZ206*CZ205 -> 0 | DA207: 0 | DB207: 0 | DC207: 0
D208: Generation | E208: MWH | F208: =BF23 -> 2191.5 | H208: =H133 -> 2180.5425 | I208: 2169.639788 | J208: 2158.791589 | K208: 2147.997631 | L208: 2137.257642 | M208: 2126.571354 | N208: 2115.938497 | O208: 2105.358805 | P208: 2094.832011 | Q208: 2084.357851 | R208: 2073.936062 | S208: 2063.566381 | T208: 2053.248549 | U208: 2042.982307 | V208: 2032.767395 | W208: 2022.603558 | X208: 2012.49054 | Y208: 2002.428088 | Z208: 1992.415947 | AA208: 1982.453868 | AB208: 1972.541598 | AC208: 1962.67889 | AD208: 1952.865496 | AE208: 1943.101168 | AF208: 1933.385662 | AG208: 1923.718734 | AH208: 1914.10014 | AI208: 1904.52964 | AJ208: 1895.006992 | AK208: 1885.531957 | AL208: 1876.104297 | AM208: 1866.723775 | AN208: =AN133 -> 1857.390156 | AO208: 1848.103206 | AP208: 1838.86269 | AQ208: 0 | AR208: 0 | AS208: 0 | AT208: 0 | AU208: 0 | AV208: 0 | AW208: 0 | AX208: 0 | AY208: 0 | AZ208: 0 | BA208: 0 | BB208: 0 | BC208: 0 | BD208: 0 | BE208: 0 | BF208: 0 | BG208: 0 | BH208: 0 | BI208: 0 | BJ208: 0 | BK208: 0 | BL208: 0 | BM208: 0 | BN208: 0 | BO208: 0 | BP208: 0 | BQ208: 0 | BR208: 0 | BS208: 0 | BT208: =BT133 -> 0 | BU208: 0 | BV208: 0 | BW208: 0 | BX208: 0 | BY208: 0 | BZ208: 0 | CA208: 0 | CB208: 0 | CC208: 0 | CD208: 0 | CE208: 0 | CF208: 0 | CG208: 0 | CH208: 0 | CI208: 0 | CJ208: 0 | CK208: 0 | CL208: 0 | CM208: 0 | CN208: 0 | CO208: 0 | CP208: 0 | CQ208: 0 | CR208: 0 | CS208: 0 | CT208: 0 | CU208: 0 | CV208: 0 | CW208: 0 | CX208: 0 | CY208: 0 | CZ208: 0 | DA208: 0 | DB208: 0 | DC208: 0
D209: Revenues (USD) | E209: USD | G209: =SUM(H209:DC209) -> 1487155.676 | H209: =H207*H208 -> 29815.73816 | I209: =I207*I208 -> 30408.32595 | J209: 31012.69143 | K209: 31629.06868 | L209: 32257.69642 | M209: 32898.81813 | N209: 33552.68214 | O209: 34219.5417 | P209: 34899.65509 | Q209: 35593.28574 | R209: 36300.70229 | S209: 37022.17875 | T209: 37757.99455 | U209: 38508.43469 | V209: 39273.78983 | W209: 40054.3564 | X209: 40850.43674 | Y209: 41662.33917 | Z209: 42490.37816 | AA209: 43334.87442 | AB209: 44196.15505 | AC209: 45074.55364 | AD209: 45970.41039 | AE209: 46884.0723 | AF209: 47815.89323 | AG209: =AG207*AG208 -> 48766.23411 | AH209: 49735.46301 | AI209: 50723.95534 | AJ209: 51732.09395 | AK209: 52760.26932 | AL209: 53808.87967 | AM209: 54878.33116 | AN209: 55969.03799 | AO209: 57081.42262 | AP209: 58215.91589 | AQ209: 0 | AR209: 0 | AS209: 0 | AT209: 0 | AU209: 0 | AV209: 0 | AW209: 0 | AX209: 0 | AY209: 0 | AZ209: 0 | BA209: 0 | BB209: 0 | BC209: 0 | BD209: 0 | BE209: 0 | BF209: 0 | BG209: 0 | BH209: 0 | BI209: 0 | BJ209: 0 | BK209: 0 | BL209: 0 | BM209: 0 | BN209: 0 | BO209: 0 | BP209: 0 | BQ209: 0 | BR209: 0 | BS209: 0 | BT209: 0 | BU209: =BU207*BU208 -> 0 | BV209: 0 | BW209: 0 | BX209: 0 | BY209: 0 | BZ209: 0 | CA209: 0 | CB209: 0 | CC209: 0 | CD209: 0 | CE209: 0 | CF209: 0 | CG209: 0 | CH209: 0 | CI209: 0 | CJ209: 0 | CK209: 0 | CL209: 0 | CM209: 0 | CN209: 0 | CO209: 0 | CP209: 0 | CQ209: 0 | CR209: 0 | CS209: 0 | CT209: 0 | CU209: 0 | CV209: 0 | CW209: 0 | CX209: 0 | CY209: 0 | CZ209: 0 | DA209: 0 | DB209: 0 | DC209: 0
D210: Operating Cost | E210: USD | F210: =E136 -> 10000 | G210: =SUM(H210:DC210) -> 563014.1263 | H210: =H136 -> 10250 | I210: 10506.25 | J210: 10768.90625 | K210: 11038.12891 | L210: 11314.08213 | M210: 11596.93418 | N210: 11886.85754 | O210: 12184.02898 | P210: 12488.6297 | Q210: 12800.84544 | R210: 13120.86658 | S210: 13448.88824 | T210: 13785.11045 | U210: 14129.73821 | V210: 14482.98166 | W210: 14845.05621 | X210: 15216.18261 | Y210: 15596.58718 | Z210: 15986.50186 | AA210: 16386.1644 | AB210: 16795.81851 | AC210: 17215.71398 | AD210: 17646.10683 | AE210: 18087.2595 | AF210: 18539.44098 | AG210: 19002.92701 | AH210: 19478.00018 | AI210: 19964.95019 | AJ210: 20464.07394 | AK210: 20975.67579 | AL210: 21500.06769 | AM210: 22037.56938 | AN210: =AN136 -> 22588.50861 | AO210: 23153.22133 | AP210: 23732.05186 | AQ210: 0 | AR210: 0 | AS210: 0 | AT210: 0 | AU210: 0 | AV210: 0 | AW210: 0 | AX210: 0 | AY210: 0 | AZ210: 0 | BA210: 0 | BB210: 0 | BC210: 0 | BD210: 0 | BE210: 0 | BF210: 0 | BG210: 0 | BH210: 0 | BI210: 0 | BJ210: 0 | BK210: 0 | BL210: 0 | BM210: 0 | BN210: 0 | BO210: 0 | BP210: 0 | BQ210: 0 | BR210: 0 | BS210: 0 | BT210: =BT136 -> 0 | BU210: 0 | BV210: 0 | BW210: 0 | BX210: 0 | BY210: 0 | BZ210: 0 | CA210: 0 | CB210: 0 | CC210: 0 | CD210: 0 | CE210: 0 | CF210: 0 | CG210: 0 | CH210: 0 | CI210: 0 | CJ210: 0 | CK210: 0 | CL210: 0 | CM210: 0 | CN210: 0 | CO210: 0 | CP210: 0 | CQ210: 0 | CR210: 0 | CS210: 0 | CT210: 0 | CU210: 0 | CV210: 0 | CW210: 0 | CX210: 0 | CY210: 0 | CZ210: 0 | DA210: 0 | DB210: 0 | DC210: 0
D211: EBITDA | E211: USD | G211: =SUM(H211:DC211) -> 924141.5498 | H211: =H209-H210 -> 19565.73816 | I211: 19902.07595 | J211: 20243.78518 | K211: 20590.93977 | L211: 20943.61429 | M211: 21301.88395 | N211: 21665.8246 | O211: 22035.51272 | P211: 22411.02539 | Q211: 22792.44029 | R211: 23179.83571 | S211: 23573.2905 | T211: 23972.8841 | U211: 24378.69648 | V211: 24790.80817 | W211: 25209.3002 | X211: 25634.25413 | Y211: 26065.75199 | Z211: 26503.8763 | AA211: 26948.71002 | AB211: 27400.33654 | AC211: 27858.83966 | AD211: 28324.30356 | AE211: 28796.8128 | AF211: 29276.45225 | AG211: =AG209-AG210 -> 29763.3071 | AH211: 30257.46283 | AI211: 30759.00515 | AJ211: 31268.02001 | AK211: 31784.59353 | AL211: 32308.81199 | AM211: 32840.76178 | AN211: 33380.52938 | AO211: 33928.20129 | AP211: 34483.86403 | AQ211: 0 | AR211: 0 | AS211: 0 | AT211: 0 | AU211: 0 | AV211: 0 | AW211: 0 | AX211: 0 | AY211: 0 | AZ211: 0 | BA211: 0 | BB211: 0 | BC211: 0 | BD211: 0 | BE211: 0 | BF211: 0 | BG211: 0 | BH211: 0 | BI211: 0 | BJ211: 0 | BK211: 0 | BL211: 0 | BM211: 0 | BN211: 0 | BO211: 0 | BP211: 0 | BQ211: 0 | BR211: 0 | BS211: 0 | BT211: =BT209-BT210 -> 0 | BU211: 0 | BV211: 0 | BW211: 0 | BX211: 0 | BY211: 0 | BZ211: 0 | CA211: 0 | CB211: 0 | CC211: 0 | CD211: 0 | CE211: 0 | CF211: 0 | CG211: 0 | CH211: 0 | CI211: 0 | CJ211: 0 | CK211: 0 | CL211: 0 | CM211: 0 | CN211: 0 | CO211: 0 | CP211: 0 | CQ211: 0 | CR211: 0 | CS211: 0 | CT211: 0 | CU211: 0 | CV211: 0 | CW211: 0 | CX211: 0 | CY211: 0 | CZ211: 0 | DA211: 0 | DB211: 0 | DC211: 0
D212: Depreciation | E212: USD | F212: =E139 -> 662282.7002 | G212: =SUM(H212:DC212) -> 576185.9492 | H212: =H139 -> 230474.3797 | I212: 138284.6278 | J212: 82970.77668 | K212: 62228.08251 | L212: 62228.08251 | M212: 0 | N212: 0 | O212: 0 | P212: 0 | Q212: 0 | R212: 0 | S212: 0 | T212: 0 | U212: 0 | V212: 0 | W212: 0 | X212: 0 | Y212: 0 | Z212: 0 | AA212: 0 | AB212: 0 | AC212: 0 | AD212: 0 | AE212: 0 | AF212: 0 | AG212: 0 | AH212: 0 | AI212: 0 | AJ212: 0 | AK212: 0 | AL212: 0 | AM212: 0 | AN212: =AN139 -> 0 | AO212: 0 | AP212: 0 | AQ212: 0 | AR212: 0 | AS212: 0 | AT212: 0 | AU212: 0 | AV212: 0 | AW212: 0 | AX212: 0 | AY212: 0 | AZ212: 0 | BA212: 0 | BB212: 0 | BC212: 0 | BD212: 0 | BE212: 0 | BF212: 0 | BG212: 0 | BH212: 0 | BI212: 0 | BJ212: 0 | BK212: 0 | BL212: 0 | BM212: 0 | BN212: 0 | BO212: 0 | BP212: 0 | BQ212: 0 | BR212: 0 | BS212: 0 | BT212: =BT139 -> 0 | BU212: 0 | BV212: 0 | BW212: 0 | BX212: 0 | BY212: 0 | BZ212: 0 | CA212: 0 | CB212: 0 | CC212: 0 | CD212: 0 | CE212: 0 | CF212: 0 | CG212: 0 | CH212: 0 | CI212: 0 | CJ212: 0 | CK212: 0 | CL212: 0 | CM212: 0 | CN212: 0 | CO212: 0 | CP212: 0 | CQ212: 0 | CR212: 0 | CS212: 0 | CT212: 0 | CU212: 0 | CV212: 0 | CW212: 0 | CX212: 0 | CY212: 0 | CZ212: 0 | DA212: 0 | DB212: 0 | DC212: 0
D213: Less: Taxes | E213: USD | F213: =BF62 -> 0.28 | G213: =SUM(H213:DC213) -> 97427.56818 | H213: =(H211-H212)*$F$213 -> -59054.41962 | I213: -33147.11452 | J213: -17563.55762 | K213: -11658.39997 | L213: -11559.6511 | M213: 5964.527506 | N213: 6066.430889 | O213: 6169.943563 | P213: 6275.087109 | Q213: 6381.883282 | R213: 6490.353999 | S213: 6600.521341 | T213: 6712.407548 | U213: 6826.035015 | V213: 6941.426287 | W213: 7058.604055 | X213: 7177.591155 | Y213: 7298.410557 | Z213: 7421.085365 | AA213: 7545.638806 | AB213: 7672.094231 | AC213: 7800.475105 | AD213: 7930.804998 | AE213: 8063.107584 | AF213: 8197.40663 | AG213: 8333.725989 | AH213: 8472.089592 | AI213: 8612.521443 | AJ213: 8755.045603 | AK213: 8899.686188 | AL213: 9046.467357 | AM213: 9195.413298 | AN213: =(AN211-AN212)*$F$213 -> 9346.548225 | AO213: 9499.896361 | AP213: 9655.481929 | AQ213: 0 | AR213: 0 | AS213: 0 | AT213: 0 | AU213: 0 | AV213: 0 | AW213: 0 | AX213: 0 | AY213: 0 | AZ213: 0 | BA213: 0 | BB213: 0 | BC213: 0 | BD213: 0 | BE213: 0 | BF213: 0 | BG213: 0 | BH213: 0 | BI213: 0 | BJ213: 0 | BK213: 0 | BL213: 0 | BM213: 0 | BN213: 0 | BO213: 0 | BP213: 0 | BQ213: 0 | BR213: 0 | BS213: 0 | BT213: =(BT211-BT212)*$F$213 -> 0 | BU213: 0 | BV213: 0 | BW213: 0 | BX213: 0 | BY213: 0 | BZ213: 0 | CA213: 0 | CB213: 0 | CC213: 0 | CD213: 0 | CE213: 0 | CF213: 0 | CG213: 0 | CH213: 0 | CI213: 0 | CJ213: 0 | CK213: 0 | CL213: 0 | CM213: 0 | CN213: 0 | CO213: 0 | CP213: 0 | CQ213: 0 | CR213: 0 | CS213: 0 | CT213: 0 | CU213: 0 | CV213: 0 | CW213: 0 | CX213: 0 | CY213: 0 | CZ213: =(CZ211-CZ212)*$F$213 -> 0 | DA213: 0 | DB213: 0 | DC213: 0
D215: Capital Expenditures | E215: USD | F215: =-G144 -> 662282.7002
D216: Less; ITC | E216: USD | F216: =G145 -> 172193.5021
D217: Net Capital Expenditures | E217: USD | F217: =F215-F216 -> 490089.1982
D218: Project Cash Flow Pre-Tax | E218: USD | G218: =-F217 -> -490089.1982 | H218: =H211 -> 19565.73816 | I218: =I211 -> 19902.07595 | J218: 20243.78518 | K218: 20590.93977 | L218: 20943.61429 | M218: 21301.88395 | N218: 21665.8246 | O218: 22035.51272 | P218: 22411.02539 | Q218: 22792.44029 | R218: 23179.83571 | S218: 23573.2905 | T218: 23972.8841 | U218: 24378.69648 | V218: 24790.80817 | W218: 25209.3002 | X218: 25634.25413 | Y218: 26065.75199 | Z218: 26503.8763 | AA218: 26948.71002 | AB218: 27400.33654 | AC218: 27858.83966 | AD218: 28324.30356 | AE218: 28796.8128 | AF218: 29276.45225 | AG218: 29763.3071 | AH218: 30257.46283 | AI218: 30759.00515 | AJ218: 31268.02001 | AK218: 31784.59353 | AL218: 32308.81199 | AM218: 32840.76178 | AN218: 33380.52938 | AO218: 33928.20129 | AP218: 34483.86403 | AQ218: 0 | AR218: 0 | AS218: 0 | AT218: 0 | AU218: 0 | AV218: 0 | AW218: 0 | AX218: 0 | AY218: 0 | AZ218: 0 | BA218: 0 | BB218: 0 | BC218: 0 | BD218: 0 | BE218: 0 | BF218: 0 | BG218: 0 | BH218: 0 | BI218: 0 | BJ218: 0 | BK218: 0 | BL218: 0 | BM218: 0 | BN218: 0 | BO218: 0 | BP218: 0 | BQ218: 0 | BR218: 0 | BS218: 0 | BT218: 0 | BU218: =BU211 -> 0 | BV218: 0 | BW218: 0 | BX218: 0 | BY218: 0 | BZ218: 0 | CA218: 0 | CB218: 0 | CC218: 0 | CD218: 0 | CE218: 0 | CF218: 0 | CG218: 0 | CH218: 0 | CI218: 0 | CJ218: 0 | CK218: 0 | CL218: 0 | CM218: 0 | CN218: 0 | CO218: 0 | CP218: 0 | CQ218: 0 | CR218: 0 | CS218: 0 | CT218: 0 | CU218: 0 | CV218: 0 | CW218: 0 | CX218: 0 | CY218: 0 | CZ218: 0 | DA218: 0 | DB218: 0 | DC218: 0
D219: Pre-tax Project IRR from Real Price | E219: % p.a. | G219: =IRR(G218:DT218) -> 0.03608294899
D221: Project Cash Flow After Tax | E221: USD | G221: =G218 -> -490089.1982 | H221: =H211-H215-(H211-H212)*$F$213 -> 78620.15778 | I221: 53049.19047 | J221: 37807.3428 | K221: 32249.33974 | L221: 32503.26539 | M221: 15337.35644 | N221: 15599.39372 | O221: 15865.56916 | P221: 16135.93828 | Q221: 16410.55701 | R221: 16689.48171 | S221: 16972.76916 | T221: 17260.47655 | U221: 17552.66147 | V221: 17849.38188 | W221: 18150.69614 | X221: 18456.66297 | Y221: 18767.34143 | Z221: 19082.79094 | AA221: 19403.07122 | AB221: 19728.24231 | AC221: 20058.36456 | AD221: 20393.49857 | AE221: 20733.70522 | AF221: 21079.04562 | AG221: 21429.58111 | AH221: 21785.37324 | AI221: 22146.48371 | AJ221: 22512.97441 | AK221: 22884.90734 | AL221: 23262.34463 | AM221: 23645.34848 | AN221: =AN211-AN215-(AN211-AN212)*$F$213 -> 24033.98115 | AO221: 24428.30493 | AP221: 24828.3821 | AQ221: 0 | AR221: 0 | AS221: 0 | AT221: 0 | AU221: 0 | AV221: 0 | AW221: 0 | AX221: 0 | AY221: 0 | AZ221: 0 | BA221: 0 | BB221: 0 | BC221: 0 | BD221: 0 | BE221: 0 | BF221: 0 | BG221: 0 | BH221: 0 | BI221: 0 | BJ221: 0 | BK221: 0 | BL221: 0 | BM221: 0 | BN221: 0 | BO221: 0 | BP221: 0 | BQ221: 0 | BR221: 0 | BS221: 0 | BT221: =BT211-BT215-(BT211-BT212)*$F$213 -> 0 | BU221: 0 | BV221: 0 | BW221: 0 | BX221: 0 | BY221: 0 | BZ221: 0 | CA221: 0 | CB221: 0 | CC221: 0 | CD221: 0 | CE221: 0 | CF221: 0 | CG221: 0 | CH221: 0 | CI221: 0 | CJ221: 0 | CK221: 0 | CL221: 0 | CM221: 0 | CN221: 0 | CO221: 0 | CP221: 0 | CQ221: 0 | CR221: 0 | CS221: 0 | CT221: 0 | CU221: 0 | CV221: 0 | CW221: 0 | CX221: 0 | CY221: 0 | CZ221: 0 | DA221: 0 | DB221: 0 | DC221: 0
D222: Project After Tax Return | E222: % p.a. | G222: =IRR(G221:DC221) -> 0.03815
D224: NPV of Cash Flow at AT IRR | E224: USD | F224: =G222 -> 0.03815 | G224: =NPV($F$224,H221:DC221) -> 490089.1982 | H224: 430165.9433 | I224: 393527.5835 | J224: 370733.3181 | K224: 352627.4544 | L224: 333576.9264 | M224: 330965.5297 | N224: 327992.4709 | O224: 324639.8145 | P224: 320888.8852 | Q224: 316720.2391 | R224: 312113.6346 | S224: 307048.0006 | T224: 301501.4052 | U224: 295451.0224 | V224: 288873.097 | W224: 281742.9095 | X224: 274034.7385 | Y224: 265721.8224 | Z224: 256776.3189 | AA224: 247169.2643 | AB224: 236870.5294 | AC224: 225848.7756 | AD224: 214071.4078 | AE224: 201504.5268 | AF224: 188112.8789 | AG224: 173859.8041 | AH224: 158707.1824 | AI224: 142615.3777 | AJ224: 125543.1799 | AK224: 107447.7449 | AL224: 88284.53172 | AM224: =NPV($F$224,AN221:EI221) -> 68007.23812 | AN224: 46567.7331 | AO224: 23915.98719 | AP224: 0 | AQ224: 0 | AR224: 0 | AS224: 0 | AT224: 0 | AU224: 0 | AV224: 0 | AW224: 0 | AX224: 0 | AY224: 0 | AZ224: 0 | BA224: 0 | BB224: 0 | BC224: 0 | BD224: 0 | BE224: 0 | BF224: 0 | BG224: 0 | BH224: 0 | BI224: 0 | BJ224: 0 | BK224: 0 | BL224: 0 | BM224: 0 | BN224: 0 | BO224: 0 | BP224: 0 | BQ224: 0 | BR224: 0 | BS224: =NPV($F$224,BT221:FO221) -> 0 | BT224: 0 | BU224: 0 | BV224: 0 | BW224: 0 | BX224: 0 | BY224: 0 | BZ224: 0 | CA224: 0 | CB224: 0 | CC224: 0 | CD224: 0 | CE224: 0 | CF224: 0 | CG224: 0 | CH224: 0 | CI224: 0 | CJ224: 0 | CK224: 0 | CL224: 0 | CM224: 0 | CN224: 0 | CO224: 0 | CP224: 0 | CQ224: 0 | CR224: 0 | CS224: 0 | CT224: 0 | CU224: 0 | CV224: 0 | CW224: 0 | CX224: 0 | CY224: =NPV($F$224,CZ221:GU221) -> 0 | CZ224: 0 | DA224: 0 | DB224: 0 | DC224: 0
D225: Economic Depreciation | E225: USD | H225: =G224-H224 -> 59923.25487 | I225: =H224-I224 -> 36638.35974 | J225: 22794.26549 | K225: 18105.86365 | L225: 19050.528 | M225: 2611.396701 | N225: 2973.058758 | O225: 3352.656395 | P225: 3750.929357 | Q225: 4168.646041 | R225: 4606.604589 | S225: 5065.634005 | T225: 5546.595332 | U225: 6050.382858 | V225: 6577.925376 | W225: 7130.187492 | X225: 7708.170973 | Y225: 8312.916159 | Z225: 8945.503414 | AA225: 9607.054648 | AB225: 10298.73488 | AC225: 11021.75386 | AD225: 11777.36778 | AE225: 12566.88101 | AF225: 13391.64792 | AG225: 14253.07479 | AH225: 15152.62171 | AI225: 16091.8047 | AJ225: 17072.19775 | AK225: 18095.43503 | AL225: 19163.21316 | AM225: 20277.2936 | AN225: 21439.50502 | AO225: 22651.74591 | AP225: 23915.98719 | AQ225: 0 | AR225: 0 | AS225: 0 | AT225: 0 | AU225: 0 | AV225: 0 | AW225: 0 | AX225: 0 | AY225: 0 | AZ225: 0 | BA225: 0 | BB225: 0 | BC225: 0 | BD225: 0 | BE225: 0 | BF225: 0 | BG225: 0 | BH225: 0 | BI225: 0 | BJ225: 0 | BK225: 0 | BL225: 0 | BM225: 0 | BN225: 0 | BO225: 0 | BP225: 0 | BQ225: 0 | BR225: 0 | BS225: 0 | BT225: 0 | BU225: =BT224-BU224 -> 0 | BV225: 0 | BW225: 0 | BX225: 0 | BY225: 0 | BZ225: 0 | CA225: 0 | CB225: 0 | CC225: 0 | CD225: 0 | CE225: 0 | CF225: 0 | CG225: 0 | CH225: 0 | CI225: 0 | CJ225: 0 | CK225: 0 | CL225: 0 | CM225: 0 | CN225: 0 | CO225: 0 | CP225: 0 | CQ225: 0 | CR225: 0 | CS225: 0 | CT225: 0 | CU225: 0 | CV225: 0 | CW225: 0 | CX225: 0 | CY225: 0 | CZ225: 0 | DA225: 0 | DB225: 0 | DC225: 0
D226: Income with Economic Depreciation | E226: USD | H226: =H211-H213-H225 -> 18696.90291 | I226: =I211-I213-I225 -> 16410.83074 | J226: 15013.07731 | K226: 14143.47608 | L226: 13452.73739 | M226: 12725.95974 | N226: 12626.33496 | O226: 12512.91277 | P226: 12385.00892 | Q226: 12241.91097 | R226: 12082.87712 | S226: 11907.13516 | T226: 11713.88122 | U226: 11502.27861 | V226: 11271.4565 | W226: 11020.50865 | X226: 10748.492 | Y226: 10454.42527 | Z226: 10137.28752 | AA226: 9796.016568 | AB226: 9429.507433 | AC226: 9036.610698 | AD226: 8616.130788 | AE226: 8166.824207 | AF226: 7687.397697 | AG226: 7176.506328 | AH226: 6632.751525 | AI226: 6054.679007 | AJ226: 5440.776658 | AK226: 4789.472313 | AL226: 4099.131467 | AM226: 3368.054885 | AN226: 2594.476134 | AO226: 1776.559018 | AP226: 912.3949114 | AQ226: 0 | AR226: 0 | AS226: 0 | AT226: 0 | AU226: 0 | AV226: 0 | AW226: 0 | AX226: 0 | AY226: 0 | AZ226: 0 | BA226: 0 | BB226: 0 | BC226: 0 | BD226: 0 | BE226: 0 | BF226: 0 | BG226: 0 | BH226: 0 | BI226: 0 | BJ226: 0 | BK226: 0 | BL226: 0 | BM226: 0 | BN226: 0 | BO226: 0 | BP226: 0 | BQ226: 0 | BR226: 0 | BS226: 0 | BT226: 0 | BU226: =BU211-BU213-BU225 -> 0 | BV226: 0 | BW226: 0 | BX226: 0 | BY226: 0 | BZ226: 0 | CA226: 0 | CB226: 0 | CC226: 0 | CD226: 0 | CE226: 0 | CF226: 0 | CG226: 0 | CH226: 0 | CI226: 0 | CJ226: 0 | CK226: 0 | CL226: 0 | CM226: 0 | CN226: 0 | CO226: 0 | CP226: 0 | CQ226: 0 | CR226: 0 | CS226: 0 | CT226: 0 | CU226: 0 | CV226: 0 | CW226: 0 | CX226: 0 | CY226: 0 | CZ226: 0 | DA226: 0 | DB226: 0 | DC226: 0
D227: Economic Capital | E227: USD | G227: =G224 -> 490089.1982 | H227: 430165.9433 | I227: 393527.5835 | J227: 370733.3181 | K227: 352627.4544 | L227: 333576.9264 | M227: 330965.5297 | N227: 327992.4709 | O227: 324639.8145 | P227: 320888.8852 | Q227: 316720.2391 | R227: 312113.6346 | S227: 307048.0006 | T227: 301501.4052 | U227: 295451.0224 | V227: 288873.097 | W227: 281742.9095 | X227: 274034.7385 | Y227: 265721.8224 | Z227: 256776.3189 | AA227: 247169.2643 | AB227: 236870.5294 | AC227: 225848.7756 | AD227: 214071.4078 | AE227: 201504.5268 | AF227: 188112.8789 | AG227: 173859.8041 | AH227: 158707.1824 | AI227: 142615.3777 | AJ227: 125543.1799 | AK227: 107447.7449 | AL227: 88284.53172 | AM227: =AM224 -> 68007.23812 | AN227: 46567.7331 | AO227: 23915.98719 | AP227: 0 | AQ227: 0 | AR227: 0 | AS227: 0 | AT227: 0 | AU227: 0 | AV227: 0 | AW227: 0 | AX227: 0 | AY227: 0 | AZ227: 0 | BA227: 0 | BB227: 0 | BC227: 0 | BD227: 0 | BE227: 0 | BF227: 0 | BG227: 0 | BH227: 0 | BI227: 0 | BJ227: 0 | BK227: 0 | BL227: 0 | BM227: 0 | BN227: 0 | BO227: 0 | BP227: 0 | BQ227: 0 | BR227: 0 | BS227: =BS224 -> 0 | BT227: 0 | BU227: 0 | BV227: 0 | BW227: 0 | BX227: 0 | BY227: 0 | BZ227: 0 | CA227: 0 | CB227: 0 | CC227: 0 | CD227: 0 | CE227: 0 | CF227: 0 | CG227: 0 | CH227: 0 | CI227: 0 | CJ227: 0 | CK227: 0 | CL227: 0 | CM227: 0 | CN227: 0 | CO227: 0 | CP227: 0 | CQ227: 0 | CR227: 0 | CS227: 0 | CT227: 0 | CU227: 0 | CV227: 0 | CW227: 0 | CX227: 0 | CY227: 0 | CZ227: 0 | DA227: 0 | DB227: 0 | DC227: 0
D229: Debt Amount | E229: USD | F229: =BF80 -> 0.75 | G229: =$F$229*G227 -> 367566.8986 | H229: 322624.4575 | I229: 295145.6877 | J229: 278049.9885 | K229: 264470.5908 | L229: 250182.6948 | M229: 248224.1473 | N229: 245994.3532 | O229: 243479.8609 | P229: 240666.6639 | Q229: 237540.1794 | R229: 234085.2259 | S229: 230286.0004 | T229: 226126.0539 | U229: 221588.2668 | V229: 216654.8227 | W229: 211307.1821 | X229: 205526.0539 | Y229: 199291.3668 | Z229: 192582.2392 | AA229: 185376.9482 | AB229: 177652.8971 | AC229: 169386.5817 | AD229: 160553.5558 | AE229: 151128.3951 | AF229: 141084.6591 | AG229: 130394.8531 | AH229: 119030.3868 | AI229: 106961.5332 | AJ229: 94157.38493 | AK229: 80585.80866 | AL229: 66213.39879 | AM229: =$F$229*AM227 -> 51005.42859 | AN229: 34925.79983 | AO229: 17936.99039 | AP229: 0 | AQ229: 0 | AR229: 0 | AS229: 0 | AT229: 0 | AU229: 0 | AV229: 0 | AW229: 0 | AX229: 0 | AY229: 0 | AZ229: 0 | BA229: 0 | BB229: 0 | BC229: 0 | BD229: 0 | BE229: 0 | BF229: 0 | BG229: 0 | BH229: 0 | BI229: 0 | BJ229: 0 | BK229: 0 | BL229: 0 | BM229: 0 | BN229: 0 | BO229: 0 | BP229: 0 | BQ229: 0 | BR229: 0 | BS229: =$F$229*BS227 -> 0 | BT229: 0 | BU229: 0 | BV229: 0 | BW229: 0 | BX229: 0 | BY229: 0 | BZ229: 0 | CA229: 0 | CB229: 0 | CC229: 0 | CD229: 0 | CE229: 0 | CF229: 0 | CG229: 0 | CH229: 0 | CI229: 0 | CJ229: 0 | CK229: 0 | CL229: 0 | CM229: 0 | CN229: 0 | CO229: 0 | CP229: 0 | CQ229: 0 | CR229: 0 | CS229: 0 | CT229: 0 | CU229: 0 | CV229: 0 | CW229: 0 | CX229: 0 | CY229: 0 | CZ229: 0 | DA229: 0 | DB229: 0 | DC229: 0
D230: Equity Amount | E230: USD | F230: =1-F229 -> 0.25 | G230: =$F$230*G227 -> 122522.2995 | H230: 107541.4858 | I230: 98381.89589 | J230: 92683.32951 | K230: 88156.8636 | L230: 83394.2316 | M230: 82741.38242 | N230: 81998.11774 | O230: 81159.95364 | P230: 80222.2213 | Q230: 79180.05979 | R230: 78028.40864 | S230: 76762.00014 | T230: 75375.35131 | U230: 73862.75559 | V230: 72218.27425 | W230: 70435.72737 | X230: 68508.68463 | Y230: 66430.45559 | Z230: 64194.07974 | AA230: 61792.31608 | AB230: 59217.63236 | AC230: 56462.19389 | AD230: 53517.85195 | AE230: 50376.1317 | AF230: 47028.21971 | AG230: 43464.95102 | AH230: 39676.79559 | AI230: 35653.84441 | AJ230: 31385.79498 | AK230: 26861.93622 | AL230: 22071.13293 | AM230: =$F$230*AM227 -> 17001.80953 | AN230: 11641.93328 | AO230: 5978.996798 | AP230: 0 | AQ230: 0 | AR230: 0 | AS230: 0 | AT230: 0 | AU230: 0 | AV230: 0 | AW230: 0 | AX230: 0 | AY230: 0 | AZ230: 0 | BA230: 0 | BB230: 0 | BC230: 0 | BD230: 0 | BE230: 0 | BF230: 0 | BG230: 0 | BH230: 0 | BI230: 0 | BJ230: 0 | BK230: 0 | BL230: 0 | BM230: 0 | BN230: 0 | BO230: 0 | BP230: 0 | BQ230: 0 | BR230: 0 | BS230: =$F$230*BS227 -> 0 | BT230: 0 | BU230: 0 | BV230: 0 | BW230: 0 | BX230: 0 | BY230: 0 | BZ230: 0 | CA230: 0 | CB230: 0 | CC230: 0 | CD230: 0 | CE230: 0 | CF230: 0 | CG230: 0 | CH230: 0 | CI230: 0 | CJ230: 0 | CK230: 0 | CL230: 0 | CM230: 0 | CN230: 0 | CO230: 0 | CP230: 0 | CQ230: 0 | CR230: 0 | CS230: 0 | CT230: 0 | CU230: 0 | CV230: 0 | CW230: 0 | CX230: 0 | CY230: 0 | CZ230: 0 | DA230: 0 | DB230: 0 | DC230: 0
C232: Debt Balance
D233: Debt Repayment | E233: USD | H233: =G229-H229 -> 44942.44115 | I233: =H229-I229 -> 27478.7698 | J233: 17095.69912 | K233: 13579.39774 | L233: 14287.896 | M233: 1958.547526 | N233: 2229.794068 | O233: 2514.492296 | P233: 2813.197017 | Q233: 3126.484531 | R233: 3454.953442 | S233: 3799.225504 | T233: 4159.946499 | U233: 4537.787143 | V233: 4933.444032 | W233: 5347.640619 | X233: 5781.12823 | Y233: 6234.687119 | Z233: 6709.127561 | AA233: 7205.290986 | AB233: 7724.051157 | AC233: 8266.315393 | AD233: 8833.025834 | AE233: 9425.160756 | AF233: 10043.73594 | AG233: 10689.80609 | AH233: 11364.46628 | AI233: 12068.85353 | AJ233: 12804.14831 | AK233: 13571.57627 | AL233: 14372.40987 | AM233: 15207.9702 | AN233: 16079.62876 | AO233: 16988.80943 | AP233: 17936.99039 | AQ233: 0 | AR233: 0 | AS233: 0 | AT233: 0 | AU233: 0 | AV233: 0 | AW233: 0 | AX233: 0 | AY233: 0 | AZ233: 0 | BA233: 0 | BB233: 0 | BC233: 0 | BD233: 0 | BE233: 0 | BF233: 0 | BG233: 0 | BH233: 0 | BI233: 0 | BJ233: 0 | BK233: 0 | BL233: 0 | BM233: 0 | BN233: 0 | BO233: 0 | BP233: 0 | BQ233: 0 | BR233: 0 | BS233: 0 | BT233: 0 | BU233: =BT229-BU229 -> 0 | BV233: 0 | BW233: 0 | BX233: 0 | BY233: 0 | BZ233: 0 | CA233: 0 | CB233: 0 | CC233: 0 | CD233: 0 | CE233: 0 | CF233: 0 | CG233: 0 | CH233: 0 | CI233: 0 | CJ233: 0 | CK233: 0 | CL233: 0 | CM233: 0 | CN233: 0 | CO233: 0 | CP233: 0 | CQ233: 0 | CR233: 0 | CS233: 0 | CT233: 0 | CU233: 0 | CV233: 0 | CW233: 0 | CX233: 0 | CY233: 0 | CZ233: 0 | DA233: 0 | DB233: 0 | DC233: 0
D234: Opening Balance | E234: USD | H234: =G236 -> 367566.8986 | I234: =H236 -> 322624.4575 | J234: 295145.6877 | K234: 278049.9885 | L234: 264470.5908 | M234: 250182.6948 | N234: 248224.1473 | O234: 245994.3532 | P234: 243479.8609 | Q234: 240666.6639 | R234: 237540.1794 | S234: 234085.2259 | T234: 230286.0004 | U234: 226126.0539 | V234: 221588.2668 | W234: 216654.8227 | X234: 211307.1821 | Y234: 205526.0539 | Z234: 199291.3668 | AA234: 192582.2392 | AB234: 185376.9482 | AC234: 177652.8971 | AD234: 169386.5817 | AE234: 160553.5558 | AF234: 151128.3951 | AG234: 141084.6591 | AH234: 130394.8531 | AI234: 119030.3868 | AJ234: 106961.5332 | AK234: 94157.38493 | AL234: 80585.80866 | AM234: 66213.39879 | AN234: 51005.42859 | AO234: =AN236 -> 34925.79983 | AP234: 17936.99039 | AQ234: 0 | AR234: 0 | AS234: 0 | AT234: 0 | AU234: 0 | AV234: 0 | AW234: 0 | AX234: 0 | AY234: 0 | AZ234: 0 | BA234: 0 | BB234: 0 | BC234: 0 | BD234: 0 | BE234: 0 | BF234: 0 | BG234: 0 | BH234: 0 | BI234: 0 | BJ234: 0 | BK234: 0 | BL234: 0 | BM234: 0 | BN234: 0 | BO234: 0 | BP234: 0 | BQ234: 0 | BR234: 0 | BS234: 0 | BT234: 0 | BU234: =BT236 -> 0 | BV234: 0 | BW234: 0 | BX234: 0 | BY234: 0 | BZ234: 0 | CA234: 0 | CB234: 0 | CC234: 0 | CD234: 0 | CE234: 0 | CF234: 0 | CG234: 0 | CH234: 0 | CI234: 0 | CJ234: 0 | CK234: 0 | CL234: 0 | CM234: 0 | CN234: 0 | CO234: 0 | CP234: 0 | CQ234: 0 | CR234: 0 | CS234: 0 | CT234: 0 | CU234: 0 | CV234: 0 | CW234: 0 | CX234: 0 | CY234: 0 | CZ234: 0 | DA234: 0 | DB234: 0 | DC234: 0
D235: Debt Repayment | E235: USD | H235: =H233 -> 44942.44115 | I235: 27478.7698 | J235: 17095.69912 | K235: 13579.39774 | L235: 14287.896 | M235: 1958.547526 | N235: 2229.794068 | O235: 2514.492296 | P235: 2813.197017 | Q235: 3126.484531 | R235: 3454.953442 | S235: 3799.225504 | T235: 4159.946499 | U235: 4537.787143 | V235: 4933.444032 | W235: 5347.640619 | X235: 5781.12823 | Y235: 6234.687119 | Z235: 6709.127561 | AA235: 7205.290986 | AB235: 7724.051157 | AC235: 8266.315393 | AD235: 8833.025834 | AE235: 9425.160756 | AF235: 10043.73594 | AG235: =AG233 -> 10689.80609 | AH235: =AH233 -> 11364.46628 | AI235: 12068.85353 | AJ235: 12804.14831 | AK235: 13571.57627 | AL235: 14372.40987 | AM235: 15207.9702 | AN235: 16079.62876 | AO235: 16988.80943 | AP235: 17936.99039 | AQ235: 0 | AR235: 0 | AS235: 0 | AT235: 0 | AU235: 0 | AV235: 0 | AW235: 0 | AX235: 0 | AY235: 0 | AZ235: 0 | BA235: 0 | BB235: 0 | BC235: 0 | BD235: 0 | BE235: 0 | BF235: 0 | BG235: 0 | BH235: 0 | BI235: 0 | BJ235: 0 | BK235: 0 | BL235: 0 | BM235: 0 | BN235: 0 | BO235: 0 | BP235: 0 | BQ235: 0 | BR235: 0 | BS235: 0 | BT235: 0 | BU235: 0 | BV235: 0 | BW235: 0 | BX235: 0 | BY235: 0 | BZ235: 0 | CA235: 0 | CB235: 0 | CC235: 0 | CD235: 0 | CE235: 0 | CF235: 0 | CG235: 0 | CH235: 0 | CI235: 0 | CJ235: 0 | CK235: 0 | CL235: 0 | CM235: 0 | CN235: 0 | CO235: 0 | CP235: 0 | CQ235: 0 | CR235: 0 | CS235: 0 | CT235: =CT233 -> 0 | CU235: 0 | CV235: 0 | CW235: 0 | CX235: 0 | CY235: 0 | CZ235: 0 | DA235: 0 | DB235: 0 | DC235: 0
D236: Closing Balance | E236: USD | G236: =G229 -> 367566.8986 | H236: =H234-H235 -> 322624.4575 | I236: =I234-I235 -> 295145.6877 | J236: 278049.9885 | K236: 264470.5908 | L236: 250182.6948 | M236: 248224.1473 | N236: 245994.3532 | O236: 243479.8609 | P236: 240666.6639 | Q236: 237540.1794 | R236: 234085.2259 | S236: 230286.0004 | T236: 226126.0539 | U236: 221588.2668 | V236: 216654.8227 | W236: 211307.1821 | X236: 205526.0539 | Y236: 199291.3668 | Z236: 192582.2392 | AA236: 185376.9482 | AB236: 177652.8971 | AC236: 169386.5817 | AD236: 160553.5558 | AE236: 151128.3951 | AF236: 141084.6591 | AG236: =AG234-AG235 -> 130394.8531 | AH236: =AH234-AH235 -> 119030.3868 | AI236: 106961.5332 | AJ236: 94157.38493 | AK236: 80585.80866 | AL236: 66213.39879 | AM236: 51005.42859 | AN236: 34925.79983 | AO236: 17936.99039 | AP236: 0 | AQ236: 0 | AR236: 0 | AS236: 0 | AT236: 0 | AU236: 0 | AV236: 0 | AW236: 0 | AX236: 0 | AY236: 0 | AZ236: 0 | BA236: 0 | BB236: 0 | BC236: 0 | BD236: 0 | BE236: 0 | BF236: 0 | BG236: 0 | BH236: 0 | BI236: 0 | BJ236: 0 | BK236: 0 | BL236: 0 | BM236: 0 | BN236: 0 | BO236: 0 | BP236: 0 | BQ236: 0 | BR236: 0 | BS236: 0 | BT236: 0 | BU236: 0 | BV236: 0 | BW236: 0 | BX236: 0 | BY236: 0 | BZ236: 0 | CA236: 0 | CB236: 0 | CC236: 0 | CD236: 0 | CE236: 0 | CF236: 0 | CG236: 0 | CH236: 0 | CI236: 0 | CJ236: 0 | CK236: 0 | CL236: 0 | CM236: 0 | CN236: 0 | CO236: 0 | CP236: 0 | CQ236: 0 | CR236: 0 | CS236: 0 | CT236: =CT234-CT235 -> 0 | CU236: 0 | CV236: 0 | CW236: 0 | CX236: 0 | CY236: 0 | CZ236: 0 | DA236: 0 | DB236: 0 | DC236: 0
D237: Interest Expense | E237: USD | F237: =BF77 -> 0.0252 | H237: =H234*$F237 -> 9262.685845 | I237: 8130.136328 | J237: 7437.671329 | K237: 7006.859711 | L237: 6664.658888 | M237: 6304.603909 | N237: 6255.248511 | O237: 6199.057701 | P237: 6135.692495 | Q237: 6064.79993 | R237: 5986.01252 | S237: 5898.947693 | T237: 5803.20721 | U237: 5698.376559 | V237: 5584.024323 | W237: 5459.701533 | X237: 5324.940989 | Y237: 5179.256558 | Z237: 5022.142443 | AA237: 4853.072428 | AB237: 4671.499095 | AC237: 4476.853006 | AD237: 4268.541858 | AE237: 4045.949607 | AF237: 3808.435556 | AG237: 3555.33341 | AH237: 3285.950297 | AI237: 2999.565747 | AJ237: 2695.430638 | AK237: 2372.7661 | AL237: 2030.762378 | AM237: 1668.577649 | AN237: =AN234*$F237 -> 1285.3368 | AO237: 880.1301557 | AP237: 452.0121579 | AQ237: 0 | AR237: 0 | AS237: 0 | AT237: 0 | AU237: 0 | AV237: 0 | AW237: 0 | AX237: 0 | AY237: 0 | AZ237: 0 | BA237: 0 | BB237: 0 | BC237: 0 | BD237: 0 | BE237: 0 | BF237: 0 | BG237: 0 | BH237: 0 | BI237: 0 | BJ237: 0 | BK237: 0 | BL237: 0 | BM237: 0 | BN237: 0 | BO237: 0 | BP237: 0 | BQ237: 0 | BR237: 0 | BS237: 0 | BT237: =BT234*$F237 -> 0 | BU237: 0 | BV237: 0 | BW237: 0 | BX237: 0 | BY237: 0 | BZ237: 0 | CA237: 0 | CB237: 0 | CC237: 0 | CD237: 0 | CE237: 0 | CF237: 0 | CG237: 0 | CH237: 0 | CI237: 0 | CJ237: 0 | CK237: 0 | CL237: 0 | CM237: 0 | CN237: 0 | CO237: 0 | CP237: 0 | CQ237: 0 | CR237: 0 | CS237: 0 | CT237: 0 | CU237: 0 | CV237: 0 | CW237: 0 | CX237: 0 | CY237: 0 | CZ237: 0 | DA237: 0 | DB237: 0 | DC237: 0
C239: Cash Flow
D240: EBITDA | E240: USD | H240: =H211 -> 19565.73816 | I240: =I211 -> 19902.07595 | J240: 20243.78518 | K240: 20590.93977 | L240: 20943.61429 | M240: 21301.88395 | N240: 21665.8246 | O240: 22035.51272 | P240: 22411.02539 | Q240: 22792.44029 | R240: 23179.83571 | S240: 23573.2905 | T240: 23972.8841 | U240: 24378.69648 | V240: 24790.80817 | W240: 25209.3002 | X240: 25634.25413 | Y240: 26065.75199 | Z240: 26503.8763 | AA240: 26948.71002 | AB240: 27400.33654 | AC240: 27858.83966 | AD240: 28324.30356 | AE240: 28796.8128 | AF240: 29276.45225 | AG240: 29763.3071 | AH240: 30257.46283 | AI240: 30759.00515 | AJ240: 31268.02001 | AK240: 31784.59353 | AL240: 32308.81199 | AM240: 32840.76178 | AN240: 33380.52938 | AO240: 33928.20129 | AP240: 34483.86403 | AQ240: 0 | AR240: 0 | AS240: 0 | AT240: 0 | AU240: 0 | AV240: 0 | AW240: 0 | AX240: 0 | AY240: 0 | AZ240: 0 | BA240: 0 | BB240: 0 | BC240: 0 | BD240: 0 | BE240: 0 | BF240: 0 | BG240: 0 | BH240: 0 | BI240: 0 | BJ240: 0 | BK240: 0 | BL240: 0 | BM240: 0 | BN240: 0 | BO240: 0 | BP240: 0 | BQ240: 0 | BR240: 0 | BS240: 0 | BT240: 0 | BU240: =BU211 -> 0 | BV240: 0 | BW240: 0 | BX240: 0 | BY240: 0 | BZ240: 0 | CA240: 0 | CB240: 0 | CC240: 0 | CD240: 0 | CE240: 0 | CF240: 0 | CG240: 0 | CH240: 0 | CI240: 0 | CJ240: 0 | CK240: 0 | CL240: 0 | CM240: 0 | CN240: 0 | CO240: 0 | CP240: 0 | CQ240: 0 | CR240: 0 | CS240: 0 | CT240: 0 | CU240: 0 | CV240: 0 | CW240: 0 | CX240: 0 | CY240: 0 | CZ240: 0 | DA240: 0 | DB240: 0 | DC240: 0
D241: Less: Taxes | E241: USD | H241: =H213 -> -59054.41962 | I241: =I213 -> -33147.11452 | J241: -17563.55762 | K241: -11658.39997 | L241: -11559.6511 | M241: 5964.527506 | N241: 6066.430889 | O241: 6169.943563 | P241: 6275.087109 | Q241: 6381.883282 | R241: 6490.353999 | S241: 6600.521341 | T241: 6712.407548 | U241: 6826.035015 | V241: 6941.426287 | W241: 7058.604055 | X241: 7177.591155 | Y241: 7298.410557 | Z241: 7421.085365 | AA241: 7545.638806 | AB241: 7672.094231 | AC241: 7800.475105 | AD241: 7930.804998 | AE241: 8063.107584 | AF241: 8197.40663 | AG241: 8333.725989 | AH241: 8472.089592 | AI241: 8612.521443 | AJ241: 8755.045603 | AK241: 8899.686188 | AL241: 9046.467357 | AM241: 9195.413298 | AN241: 9346.548225 | AO241: 9499.896361 | AP241: 9655.481929 | AQ241: 0 | AR241: 0 | AS241: 0 | AT241: 0 | AU241: 0 | AV241: 0 | AW241: 0 | AX241: 0 | AY241: 0 | AZ241: 0 | BA241: 0 | BB241: 0 | BC241: 0 | BD241: 0 | BE241: 0 | BF241: 0 | BG241: 0 | BH241: 0 | BI241: 0 | BJ241: 0 | BK241: 0 | BL241: 0 | BM241: 0 | BN241: 0 | BO241: 0 | BP241: 0 | BQ241: 0 | BR241: 0 | BS241: 0 | BT241: 0 | BU241: =BU213 -> 0 | BV241: 0 | BW241: 0 | BX241: 0 | BY241: 0 | BZ241: 0 | CA241: 0 | CB241: 0 | CC241: 0 | CD241: 0 | CE241: 0 | CF241: 0 | CG241: 0 | CH241: 0 | CI241: 0 | CJ241: 0 | CK241: 0 | CL241: 0 | CM241: 0 | CN241: 0 | CO241: 0 | CP241: 0 | CQ241: 0 | CR241: 0 | CS241: 0 | CT241: 0 | CU241: 0 | CV241: 0 | CW241: 0 | CX241: 0 | CY241: 0 | CZ241: 0 | DA241: 0 | DB241: 0 | DC241: 0
D242: Less: Interest | E242: USD | H242: =H237 -> 9262.685845 | I242: =I237 -> 8130.136328 | J242: 7437.671329 | K242: 7006.859711 | L242: 6664.658888 | M242: 6304.603909 | N242: 6255.248511 | O242: 6199.057701 | P242: 6135.692495 | Q242: 6064.79993 | R242: 5986.01252 | S242: 5898.947693 | T242: 5803.20721 | U242: 5698.376559 | V242: 5584.024323 | W242: 5459.701533 | X242: 5324.940989 | Y242: 5179.256558 | Z242: 5022.142443 | AA242: 4853.072428 | AB242: 4671.499095 | AC242: 4476.853006 | AD242: 4268.541858 | AE242: 4045.949607 | AF242: 3808.435556 | AG242: 3555.33341 | AH242: 3285.950297 | AI242: 2999.565747 | AJ242: 2695.430638 | AK242: 2372.7661 | AL242: 2030.762378 | AM242: 1668.577649 | AN242: 1285.3368 | AO242: 880.1301557 | AP242: 452.0121579 | AQ242: 0 | AR242: 0 | AS242: 0 | AT242: 0 | AU242: 0 | AV242: 0 | AW242: 0 | AX242: 0 | AY242: 0 | AZ242: 0 | BA242: 0 | BB242: 0 | BC242: 0 | BD242: 0 | BE242: 0 | BF242: 0 | BG242: 0 | BH242: 0 | BI242: 0 | BJ242: 0 | BK242: 0 | BL242: 0 | BM242: 0 | BN242: 0 | BO242: 0 | BP242: 0 | BQ242: 0 | BR242: 0 | BS242: 0 | BT242: 0 | BU242: =BU237 -> 0 | BV242: 0 | BW242: 0 | BX242: 0 | BY242: 0 | BZ242: 0 | CA242: 0 | CB242: 0 | CC242: 0 | CD242: 0 | CE242: 0 | CF242: 0 | CG242: 0 | CH242: 0 | CI242: 0 | CJ242: 0 | CK242: 0 | CL242: 0 | CM242: 0 | CN242: 0 | CO242: 0 | CP242: 0 | CQ242: 0 | CR242: 0 | CS242: 0 | CT242: 0 | CU242: 0 | CV242: 0 | CW242: 0 | CX242: 0 | CY242: 0 | CZ242: 0 | DA242: 0 | DB242: 0 | DC242: 0
D243: Less: Debt Service | E243: USD | H243: =H235 -> 44942.44115 | I243: =I235 -> 27478.7698 | J243: 17095.69912 | K243: 13579.39774 | L243: 14287.896 | M243: 1958.547526 | N243: 2229.794068 | O243: 2514.492296 | P243: 2813.197017 | Q243: 3126.484531 | R243: 3454.953442 | S243: 3799.225504 | T243: 4159.946499 | U243: 4537.787143 | V243: 4933.444032 | W243: 5347.640619 | X243: 5781.12823 | Y243: 6234.687119 | Z243: 6709.127561 | AA243: 7205.290986 | AB243: 7724.051157 | AC243: 8266.315393 | AD243: 8833.025834 | AE243: 9425.160756 | AF243: 10043.73594 | AG243: 10689.80609 | AH243: 11364.46628 | AI243: 12068.85353 | AJ243: 12804.14831 | AK243: 13571.57627 | AL243: 14372.40987 | AM243: 15207.9702 | AN243: 16079.62876 | AO243: 16988.80943 | AP243: 17936.99039 | AQ243: 0 | AR243: 0 | AS243: 0 | AT243: 0 | AU243: 0 | AV243: 0 | AW243: 0 | AX243: 0 | AY243: 0 | AZ243: 0 | BA243: 0 | BB243: 0 | BC243: 0 | BD243: 0 | BE243: 0 | BF243: 0 | BG243: 0 | BH243: 0 | BI243: 0 | BJ243: 0 | BK243: 0 | BL243: 0 | BM243: 0 | BN243: 0 | BO243: 0 | BP243: 0 | BQ243: 0 | BR243: 0 | BS243: 0 | BT243: 0 | BU243: =BU235 -> 0 | BV243: 0 | BW243: 0 | BX243: 0 | BY243: 0 | BZ243: 0 | CA243: 0 | CB243: 0 | CC243: 0 | CD243: 0 | CE243: 0 | CF243: 0 | CG243: 0 | CH243: 0 | CI243: 0 | CJ243: 0 | CK243: 0 | CL243: 0 | CM243: 0 | CN243: 0 | CO243: 0 | CP243: 0 | CQ243: 0 | CR243: 0 | CS243: 0 | CT243: 0 | CU243: 0 | CV243: 0 | CW243: 0 | CX243: 0 | CY243: 0 | CZ243: 0 | DA243: 0 | DB243: 0 | DC243: 0
D244: Dividends | E244: USD | H244: =H240-H241-H242-H243 -> 24415.03078 | I244: =I240-I241-I242-I243 -> 17440.28434 | J244: 13273.97236 | K244: 11663.08229 | L244: 11550.7105 | M244: 7074.205009 | N244: 7114.351136 | O244: 7152.019164 | P244: 7187.048769 | Q244: 7219.27255 | R244: 7248.515751 | S244: 7274.595967 | T244: 7297.322844 | U244: 7316.497765 | V244: 7331.913525 | W244: 7343.35399 | X244: 7350.593751 | Y244: 7353.397756 | Z244: 7351.520934 | AA244: 7344.707802 | AB244: 7332.692057 | AC244: 7315.196156 | AD244: 7291.930874 | AE244: 7262.594852 | AF244: 7226.874121 | AG244: 7184.441614 | AH244: 7134.956657 | AI244: 7078.064436 | AJ244: 7013.395457 | AK244: 6940.56497 | AL244: 6859.17238 | AM244: 6768.800635 | AN244: 6669.015588 | AO244: 6559.36534 | AP244: 6439.379551 | AQ244: 0 | AR244: 0 | AS244: 0 | AT244: 0 | AU244: 0 | AV244: 0 | AW244: 0 | AX244: 0 | AY244: 0 | AZ244: 0 | BA244: 0 | BB244: 0 | BC244: 0 | BD244: 0 | BE244: 0 | BF244: 0 | BG244: 0 | BH244: 0 | BI244: 0 | BJ244: 0 | BK244: 0 | BL244: 0 | BM244: 0 | BN244: 0 | BO244: 0 | BP244: 0 | BQ244: 0 | BR244: 0 | BS244: 0 | BT244: 0 | BU244: =BU240-BU241-BU242-BU243 -> 0 | BV244: 0 | BW244: 0 | BX244: 0 | BY244: 0 | BZ244: 0 | CA244: 0 | CB244: 0 | CC244: 0 | CD244: 0 | CE244: 0 | CF244: 0 | CG244: 0 | CH244: 0 | CI244: 0 | CJ244: 0 | CK244: 0 | CL244: 0 | CM244: 0 | CN244: 0 | CO244: 0 | CP244: 0 | CQ244: 0 | CR244: 0 | CS244: 0 | CT244: 0 | CU244: 0 | CV244: 0 | CW244: 0 | CX244: 0 | CY244: 0 | CZ244: 0 | DA244: 0 | DB244: 0 | DC244: 0
D245: Less: Capital Expenditures | E245: USD | G245: =G218 -> -490089.1982
D246: Add: Debt Issued | E246: USD | G246: =G229 -> 367566.8986
D247: Net Equity Cash Flow | E247: USD | G247: =G245+G246 -> -122522.2995 | H247: =H244 -> 24415.03078 | I247: =I244 -> 17440.28434 | J247: 13273.97236 | K247: 11663.08229 | L247: 11550.7105 | M247: 7074.205009 | N247: 7114.351136 | O247: 7152.019164 | P247: 7187.048769 | Q247: 7219.27255 | R247: 7248.515751 | S247: 7274.595967 | T247: 7297.322844 | U247: 7316.497765 | V247: 7331.913525 | W247: 7343.35399 | X247: 7350.593751 | Y247: 7353.397756 | Z247: 7351.520934 | AA247: 7344.707802 | AB247: 7332.692057 | AC247: 7315.196156 | AD247: 7291.930874 | AE247: 7262.594852 | AF247: 7226.874121 | AG247: 7184.441614 | AH247: 7134.956657 | AI247: 7078.064436 | AJ247: 7013.395457 | AK247: 6940.56497 | AL247: 6859.17238 | AM247: 6768.800635 | AN247: 6669.015588 | AO247: 6559.36534 | AP247: 6439.379551 | AQ247: 0 | AR247: 0 | AS247: 0 | AT247: 0 | AU247: 0 | AV247: 0 | AW247: 0 | AX247: 0 | AY247: 0 | AZ247: 0 | BA247: 0 | BB247: 0 | BC247: 0 | BD247: 0 | BE247: 0 | BF247: 0 | BG247: 0 | BH247: 0 | BI247: 0 | BJ247: 0 | BK247: 0 | BL247: 0 | BM247: 0 | BN247: 0 | BO247: 0 | BP247: 0 | BQ247: 0 | BR247: 0 | BS247: 0 | BT247: 0 | BU247: =BU244 -> 0 | BV247: 0 | BW247: 0 | BX247: 0 | BY247: 0 | BZ247: 0 | CA247: 0 | CB247: 0 | CC247: 0 | CD247: 0 | CE247: 0 | CF247: 0 | CG247: 0 | CH247: 0 | CI247: 0 | CJ247: 0 | CK247: 0 | CL247: 0 | CM247: 0 | CN247: 0 | CO247: 0 | CP247: 0 | CQ247: 0 | CR247: 0 | CS247: 0 | CT247: 0 | CU247: 0 | CV247: 0 | CW247: 0 | CX247: 0 | CY247: 0 | CZ247: 0 | DA247: 0 | DB247: 0 | DC247: 0
D249: Equity IRR in Real Model | E249: % p.a. | F249: =IRR(G247:DC247) -> 0.077 | H249: Target | I249: =BF78 -> 0.077 | J249: =ROUND(I249-F249,2)=0 -> TRUE
D251: Interest pre-tax | F251: =F213 -> 0.28 | H251: =H242/(1-$F$251) -> 12864.84145 | I251: 11291.85601 | J251: 10330.09907 | K251: 9731.749599 | L251: 9256.470678 | M251: 8756.394318 | N251: 8687.845155 | O251: 8609.802362 | P251: 8521.795132 | Q251: 8423.333236 | R251: 8313.906278 | S251: 8192.982907 | T251: 8060.010015 | U251: 7914.411887 | V251: 7755.589337 | W251: 7582.918796 | X251: 7395.751374 | Y251: 7193.411886 | Z251: 6975.197837 | AA251: 6740.378372 | AB251: 6488.193188 | AC251: 6217.851397 | AD251: 5928.530359 | AE251: 5619.374454 | AF251: 5289.493828 | AG251: 4937.96307 | AH251: 4563.819857 | AI251: 4166.063537 | AJ251: 3743.653664 | AK251: 3295.508473 | AL251: 2820.503303 | AM251: 2317.468958 | AN251: =AN242/(1-$F$251) -> 1785.190001 | AO251: 1222.402994 | AP251: 627.7946638 | AQ251: 0 | AR251: 0 | AS251: 0 | AT251: 0 | AU251: 0 | AV251: 0 | AW251: 0 | AX251: 0 | AY251: 0 | AZ251: 0 | BA251: 0 | BB251: 0 | BC251: 0 | BD251: 0 | BE251: 0 | BF251: 0 | BG251: 0 | BH251: 0 | BI251: 0 | BJ251: 0 | BK251: 0 | BL251: 0 | BM251: 0 | BN251: 0 | BO251: 0 | BP251: 0 | BQ251: 0 | BR251: 0 | BS251: 0 | BT251: =BT242/(1-$F$251) -> 0 | BU251: 0 | BV251: 0 | BW251: 0 | BX251: 0 | BY251: 0 | BZ251: 0 | CA251: 0 | CB251: 0 | CC251: 0 | CD251: 0 | CE251: 0 | CF251: 0 | CG251: 0 | CH251: 0 | CI251: 0 | CJ251: 0 | CK251: 0 | CL251: 0 | CM251: 0 | CN251: 0 | CO251: 0 | CP251: 0 | CQ251: 0 | CR251: 0 | CS251: 0 | CT251: 0 | CU251: 0 | CV251: 0 | CW251: 0 | CX251: 0 | CY251: 0 | CZ251: 0 | DA251: 0 | DB251: 0 | DC251: 0
D252: Interest Tax Shield | F252: =F251 -> 0.28 | H252: =H251*$F$252 -> 3602.155606 | I252: =I251*$F$252 -> 3161.719683 | J252: 2892.427739 | K252: 2724.889888 | L252: 2591.81179 | M252: 2451.790409 | N252: 2432.596643 | O252: 2410.744661 | P252: 2386.102637 | Q252: 2358.533306 | R252: 2327.893758 | S252: 2294.035214 | T252: 2256.802804 | U252: 2216.035328 | V252: 2171.565014 | W252: 2123.217263 | X252: 2070.810385 | Y252: 2014.155328 | Z252: 1953.055394 | AA252: 1887.305944 | AB252: 1816.694093 | AC252: 1740.998391 | AD252: 1659.9885 | AE252: 1573.424847 | AF252: 1481.058272 | AG252: 1382.62966 | AH252: 1277.86956 | AI252: 1166.49779 | AJ252: 1048.223026 | AK252: 922.7423723 | AL252: 789.7409249 | AM252: 648.8913081 | AN252: 499.8532002 | AO252: 342.2728383 | AP252: 175.7825059 | AQ252: 0 | AR252: 0 | AS252: 0 | AT252: 0 | AU252: 0 | AV252: 0 | AW252: 0 | AX252: 0 | AY252: 0 | AZ252: 0 | BA252: 0 | BB252: 0 | BC252: 0 | BD252: 0 | BE252: 0 | BF252: 0 | BG252: 0 | BH252: 0 | BI252: 0 | BJ252: 0 | BK252: 0 | BL252: 0 | BM252: 0 | BN252: 0 | BO252: 0 | BP252: 0 | BQ252: 0 | BR252: 0 | BS252: 0 | BT252: 0 | BU252: =BU251*$F$252 -> 0 | BV252: 0 | BW252: 0 | BX252: 0 | BY252: 0 | BZ252: 0 | CA252: 0 | CB252: 0 | CC252: 0 | CD252: 0 | CE252: 0 | CF252: 0 | CG252: 0 | CH252: 0 | CI252: 0 | CJ252: 0 | CK252: 0 | CL252: 0 | CM252: 0 | CN252: 0 | CO252: 0 | CP252: 0 | CQ252: 0 | CR252: 0 | CS252: 0 | CT252: 0 | CU252: 0 | CV252: 0 | CW252: 0 | CX252: 0 | CY252: 0 | CZ252: 0 | DA252: 0 | DB252: 0 | DC252: 0
... 495 more rows

Sheet NREL
C2: Financial Assumptions: | K2: Tax Rate | M2: =G11 -> 0.2574 | AT2: Construction Factor
C3: Inflation Rate | G3: 0.025
C4: Capital Recovery Period (Years) | G4: 30 | J4: Real Rates
C5: Interest Rate Nominal - Mid | G5: 0.04 | K5: Percent | L5: PT % | M5: AT % | N5: WACC
C6: Calculated Interest Rate Real - Mid | G6: 0.01463414634 | H6: =(1+G5)/(1+G3)-1 -> 0.01463414634 | J6: Debt | K6: =G10 -> 0.7351774742 | L6: =H6 -> 0.01463414634 | M6: =L6*(1-M2) -> 0.01086731707 | N6: =M6*K6 -> 0.007989406717
C7: Interest During Construction - Nominal | G7: 0.035 | J7: Equity | K7: =1-K6 -> 0.2648225258 | L7: =G9 -> 0.0512195122 | M7: =L7 -> 0.0512195122 | N7: =M7*K7 -> 0.01356408059
C8: Rate of Return on Equity Nominal - Mid | G8: 0.0775
C9: Calculated Rate of Return on Equity Real - Mid | G9: 0.0512195122 | H9: =(1+G8)/(1+G3)-1 -> 0.0512195122 | J9: Total WACC | N9: =N6+N7 -> 0.02155348731
C10: Debt Fraction - Mid | G10: 0.7351774742
C11: Tax Rate (Federal and State) | G11: 0.2574 | J11: Nominal Rate
C12: WACC Nominal - Mid | G12: 0.04236145744 | K12: Tax Rate | M12: =M2 -> 0.2574
C13: WACC Real - Mid | G13: 0.01693800726 | K13: Percent | L13: PT % | M13: AT % | N13: WACC
C14: Depreciation Period | G14: 5 | J14: Debt | K14: =K6 -> 0.7351774742 | L14: =G5 -> 0.04 | M14: =L14*(1-M12) -> 0.029704 | N14: =M14*K14 -> 0.02183771169
C15: Construction Finance Factor | G15: 1.021725695 | J15: Equity | K15: =1-K14 -> 0.2648225258 | L15: =G8 -> 0.0775 | M15: =L15 -> 0.0775 | N15: =M15*K15 -> 0.02052374575
C16: Present Value of Depreciation | G16: 0.8920301018 | AA16: Life | AC16: 30 | AI16: Life | AM16: =AC16 -> 30
C17: Project Finance Factor | G17: 1.037424524 | J17: Total WACC Nominal | N17: =N14+N15 -> 0.04236145744 | AA17: Real WACC | AC17: 0.01693800726 | AI17: Nominal WACC | AM17: =G12 -> 0.04236145744
C18: Capital Recovery Factor (CRF) Nominal - Mid | G18: 0.05949959788 | AA18: Real CCR | AC18: =G19 -> 0.04279208885 | AI18: Nominal CCR | AM18: =G18 -> 0.05949959788
C19: Capital Recovery Factor (CRF) Real - Mid | G19: 0.04279208885 | J19: Total Real | N19: =(1+N17)/(1+G3)-1 -> 0.01693800726 | AA19: Real CCR = WACC/(1-(1/(1+WACC) ^ Life)) | AI19: CCR = WACC/(1-(1/(1+WACC) ^ Life))
C20: Cost of equity during construction | G20: 0.0975
AA21: (1+WACC) ^ Life | AC21: =(1+AC17)^AC16 -> 1.655138617 | AE21: =_xlfn.FORMULATEXT(AC21) -> =(1+AC17)^AC16 | AI21: (1+WACC) ^ Life | AM21: =(1+AM17)^AM16 -> 3.471765102
C22: Rate Applied | G22: =G19*G17*G15 -> 0.04535804342 | AA22: 1/(1+WACC) ^ Life | AC22: =1/AC21 -> 0.6041790033 | AE22: =_xlfn.FORMULATEXT(AC22) -> =1/AC21 | AI22: 1/(1+WACC) ^ Life | AM22: =1/AM21 -> 0.2880379204
AA23: (1-1/(1+WACC) ^ Life) | AC23: =1-AC22 -> 0.3958209967 | AE23: =_xlfn.FORMULATEXT(AC23) -> =1-AC22 | AI23: (1-1/(1+WACC) ^ Life) | AM23: =1-AM22 -> 0.7119620796
C24: Implied Inflation Rate | G24: =1-(1-G18)/(1-G19) -> 0.01745442012 | AA24: Real CCR | AC24: =AC17/AC23 -> 0.04279208885 | AE24: =_xlfn.FORMULATEXT(AC24) -> =AC17/AC23 | AI24: Nominal CCR | AM24: =AM17/AM23 -> 0.05949959788
C26: Real Rate - No ITC | G26: ='LCOE Calculator'!V6 -> 0.04503632858 | AA26: Level Real Payment | AC26: =PMT(AC17,AC16,-1) -> 0.04279208885 | AE26: =_xlfn.FORMULATEXT(AC26) -> =PMT(AC17,AC16,-1) | AI26: Nominal CCR | AM26: =PMT(AM17,AM16,-1) -> 0.05949959788 | AO26: =_xlfn.FORMULATEXT(AM26) -> =PMT(AM17,AM16,-1)
C49: Proof of Real vs Nominal
E51: 1 | F51: 2 | G51: 3 | H51: 4 | I51: 5 | J51: 6 | K51: 7 | L51: 8 | M51: 9 | N51: 10 | O51: 11 | P51: 12 | Q51: 13 | R51: 14 | S51: 15 | T51: 16 | U51: 17 | V51: 18 | W51: 19 | X51: 20 | Y51: 21 | Z51: 22 | AA51: 23 | AB51: 24 | AC51: 25 | AD51: 26 | AE51: 27 | AF51: 28 | AG51: 29 | AH51: 30
C52: Inflating | E52: =G19*(1+G3) -> 0.04386189107 | F52: =E52*(1+$G$3) -> 0.04495843835 | G52: =F52*(1+$G$3) -> 0.04608239931 | H52: 0.04723445929 | I52: 0.04841532077 | J52: 0.04962570379 | K52: 0.05086634639 | L52: 0.05213800505 | M52: 0.05344145518 | N52: 0.05477749155 | O52: 0.05614692884 | P52: 0.05755060206 | Q52: 0.05898936712 | R52: 0.06046410129 | S52: 0.06197570383 | T52: 0.06352509642 | U52: 0.06511322383 | V52: 0.06674105443 | W52: 0.06840958079 | X52: 0.07011982031 | Y52: 0.07187281582 | Z52: 0.07366963621 | AA52: 0.07551137712 | AB52: 0.07739916154 | AC52: 0.07933414058 | AD52: 0.0813174941 | AE52: 0.08335043145 | AF52: 0.08543419224 | AG52: 0.08757004704 | AH52: 0.08975929822
C53: Nominal | E53: =$G$18 -> 0.05949959788 | F53: =$G$18 -> 0.05949959788 | G53: 0.05949959788 | H53: 0.05949959788 | I53: 0.05949959788 | J53: 0.05949959788 | K53: 0.05949959788 | L53: 0.05949959788 | M53: 0.05949959788 | N53: 0.05949959788 | O53: 0.05949959788 | P53: 0.05949959788 | Q53: 0.05949959788 | R53: 0.05949959788 | S53: 0.05949959788 | T53: 0.05949959788 | U53: 0.05949959788 | V53: 0.05949959788 | W53: 0.05949959788 | X53: 0.05949959788 | Y53: 0.05949959788 | Z53: 0.05949959788 | AA53: 0.05949959788 | AB53: 0.05949959788 | AC53: 0.05949959788 | AD53: 0.05949959788 | AE53: 0.05949959788 | AF53: 0.05949959788 | AG53: 0.05949959788 | AH53: 0.05949959788
C56: Disc Rate | D56: =G12 -> 0.04236145744
C57: NPV Inflating | D57: =NPV(D56,E52:AH52) -> 1
C58: NPV Real | D58: =NPV(D56,E53:AH53) -> 1

Sheet Investment Timing
D2: Life Solar | E2: Year | F2: 30
D3: Life Battery | E3: Year | F3: 11
F4: 0 | G4: 1 | H4: 2 | I4: 3 | J4: 4 | K4: 5 | L4: 6 | M4: 7 | N4: 8 | O4: 9 | P4: 10 | Q4: 11 | R4: 12 | S4: 13 | T4: 14 | U4: 15 | V4: 16 | W4: 17 | X4: 18 | Y4: 19 | Z4: 20 | AA4: 21 | AB4: 22 | AC4: 23 | AD4: 24 | AE4: 25 | AF4: 26 | AG4: 27 | AH4: 28 | AI4: 29 | AJ4: 30 | AK4: 31 | AL4: 32 | AM4: 33 | AN4: 34 | AO4: 35 | AP4: 36 | AQ4: 37 | AR4: 38 | AS4: 39 | AT4: 40 | AU4: 41 | AV4: 42 | AW4: 43 | AX4: 44 | AY4: 45 | AZ4: 46 | BA4: 47 | BB4: 48 | BC4: 49 | BD4: 50 | BE4: 51 | BF4: 52 | BG4: 53 | BH4: 54 | BI4: 55 | BJ4: 56 | BK4: 57 | BL4: 58 | BM4: 59 | BN4: 60 | BO4: 61 | BP4: 62 | BQ4: 63 | BR4: 64 | BS4: 65 | BT4: 66 | BU4: 67 | BV4: 68 | BW4: 69 | BX4: 70 | BY4: 71 | BZ4: 72 | CA4: 73 | CB4: 74 | CC4: 75 | CD4: 76 | CE4: 77 | CF4: 78 | CG4: 79 | CH4: 80 | CI4: 81 | CJ4: 82 | CK4: 83 | CL4: 84 | CM4: 85 | CN4: 86 | CO4: 87 | CP4: 88 | CQ4: 89 | CR4: 90 | CS4: 91 | CT4: 92 | CU4: 93 | CV4: 94 | CW4: 95 | CX4: 96 | CY4: 97 | CZ4: 98 | DA4: 99 | DB4: 100
D6: Replacements | E6: First Replacement | F6: =F3 -> 11 | H6: =_xlfn.FORMULATEXT(F6) -> =F3
E7: Second Replacement | F7: =F3+F6 -> 22 | H7: =_xlfn.FORMULATEXT(F7) -> =F3+F6
E8: Years of 2nd Used | F8: =F2-F7 -> 8 | H8: =_xlfn.FORMULATEXT(F8) -> =F2-F7
E9: With Mod | F9: =MOD(F2,F3) -> 8 | H9: =_xlfn.FORMULATEXT(F9) -> =MOD(F2,F3)
D10: Residual | E10: Residual Yrs | F10: =F3-F9 -> 3 | H10: =_xlfn.FORMULATEXT(F10) -> =F3-F9
D12: Ratio of Solar Life to Battery Life | F12: =F2/F3 -> 2.727272727
D14: Solar Cost (USD/kW) | F14: 600
D15: Battery Cost (USD/kWh) | F15: 300
D16: Battery Duration Hrs | F16: 5
D17: Total Battery | F17: =F15*F16 -> 1500
D18: Total Cost | F18: =F17+F14 -> 2100
D20: Nominal IRR | F20: 0.06
D21: Inflation | F21: 0.02
D22: Target IRR | F22: =(1+F20)/(1+F21)-1 -> 0.03921568627
D23: PMT Solar | F23: =PMT(F22,F2,-F14) -> 34.36839141 | H23: =_xlfn.FORMULATEXT(F23) -> =PMT(F22,F2,-F14)
D24: PMT Battery | F24: =PMT(F22,F3,-F17) -> 170.5000557 | H24: =_xlfn.FORMULATEXT(F24) -> =PMT(F22,F3,-F17)
D26: Residual Value | F26: =PV(F22,F10,-F24) -> 473.8583833 | H26: =PV(F20,F10,-F22)
B28: Case 1: LCOE with Different Life
F30: 0 | G30: 1 | H30: 2 | I30: 3 | J30: 4 | K30: 5 | L30: 6 | M30: 7 | N30: 8 | O30: 9 | P30: 10 | Q30: 11 | R30: 12 | S30: 13 | T30: 14 | U30: 15 | V30: 16 | W30: 17 | X30: 18 | Y30: 19 | Z30: 20 | AA30: 21 | AB30: 22 | AC30: 23 | AD30: 24 | AE30: 25 | AF30: 26 | AG30: 27 | AH30: 28 | AI30: 29 | AJ30: 30 | AK30: 31 | AL30: 32 | AM30: 33 | AN30: 34 | AO30: 35 | AP30: 36 | AQ30: 37 | AR30: 38 | AS30: 39 | AT30: 40 | AU30: 41 | AV30: 42 | AW30: 43 | AX30: 44 | AY30: 45 | AZ30: 46 | BA30: 47 | BB30: 48 | BC30: 49 | BD30: 50 | BE30: 51 | BF30: 52 | BG30: 53 | BH30: 54 | BI30: 55 | BJ30: 56 | BK30: 57 | BL30: 58 | BM30: 59 | BN30: 60 | BO30: 61 | BP30: 62 | BQ30: 63 | BR30: 64 | BS30: 65 | BT30: 66 | BU30: 67 | BV30: 68 | BW30: 69 | BX30: 70 | BY30: 71 | BZ30: 72 | CA30: 73 | CB30: 74 | CC30: 75 | CD30: 76 | CE30: 77 | CF30: 78 | CG30: 79 | CH30: 80 | CI30: 81 | CJ30: 82 | CK30: 83 | CL30: 84 | CM30: 85 | CN30: 86 | CO30: 87 | CP30: 88 | CQ30: 89 | CR30: 90 | CS30: 91 | CT30: 92 | CU30: 93 | CV30: 94 | CW30: 95 | CX30: 96 | CY30: 97 | CZ30: 98 | DA30: 99 | DB30: 100
D31: Solar Flag | E31: =F2 -> 30 | G31: =G30<=$E$31 -> TRUE | H31: =H30<=$E$31 -> TRUE | I31: TRUE | J31: TRUE | K31: TRUE | L31: TRUE | M31: TRUE | N31: TRUE | O31: TRUE | P31: TRUE | Q31: TRUE | R31: TRUE | S31: TRUE | T31: TRUE | U31: TRUE | V31: TRUE | W31: TRUE | X31: TRUE | Y31: TRUE | Z31: TRUE | AA31: TRUE | AB31: TRUE | AC31: TRUE | AD31: TRUE | AE31: TRUE | AF31: TRUE | AG31: TRUE | AH31: TRUE | AI31: TRUE | AJ31: TRUE | AK31: FALSE | AL31: FALSE | AM31: FALSE | AN31: FALSE | AO31: FALSE | AP31: FALSE | AQ31: FALSE | AR31: FALSE | AS31: FALSE | AT31: FALSE | AU31: FALSE | AV31: FALSE | AW31: FALSE | AX31: FALSE | AY31: FALSE | AZ31: FALSE | BA31: FALSE | BB31: FALSE | BC31: FALSE | BD31: FALSE | BE31: FALSE | BF31: FALSE | BG31: FALSE | BH31: FALSE | BI31: FALSE | BJ31: FALSE | BK31: FALSE | BL31: FALSE | BM31: FALSE | BN31: FALSE | BO31: FALSE | BP31: FALSE | BQ31: FALSE | BR31: FALSE | BS31: FALSE | BT31: =BT30<=$E$31 -> FALSE | BU31: FALSE | BV31: FALSE | BW31: FALSE | BX31: FALSE | BY31: FALSE | BZ31: FALSE | CA31: FALSE | CB31: FALSE | CC31: FALSE | CD31: FALSE | CE31: FALSE | CF31: FALSE | CG31: FALSE | CH31: FALSE | CI31: FALSE | CJ31: FALSE | CK31: FALSE | CL31: FALSE | CM31: FALSE | CN31: FALSE | CO31: FALSE | CP31: FALSE | CQ31: FALSE | CR31: FALSE | CS31: FALSE | CT31: FALSE | CU31: FALSE | CV31: FALSE | CW31: FALSE | CX31: FALSE | CY31: FALSE | CZ31: FALSE | DA31: FALSE | DB31: FALSE
D32: Battery Flag | E32: =F3 -> 11 | G32: =G30<=$E$32 -> TRUE | H32: =H30<=$E$32 -> TRUE | I32: TRUE | J32: TRUE | K32: TRUE | L32: TRUE | M32: TRUE | N32: TRUE | O32: TRUE | P32: TRUE | Q32: TRUE | R32: FALSE | S32: FALSE | T32: FALSE | U32: FALSE | V32: FALSE | W32: FALSE | X32: FALSE | Y32: FALSE | Z32: FALSE | AA32: FALSE | AB32: FALSE | AC32: FALSE | AD32: FALSE | AE32: FALSE | AF32: FALSE | AG32: FALSE | AH32: FALSE | AI32: FALSE | AJ32: FALSE | AK32: FALSE | AL32: FALSE | AM32: FALSE | AN32: FALSE | AO32: FALSE | AP32: FALSE | AQ32: FALSE | AR32: FALSE | AS32: FALSE | AT32: FALSE | AU32: FALSE | AV32: FALSE | AW32: FALSE | AX32: FALSE | AY32: FALSE | AZ32: FALSE | BA32: FALSE | BB32: FALSE | BC32: FALSE | BD32: FALSE | BE32: FALSE | BF32: FALSE | BG32: FALSE | BH32: FALSE | BI32: FALSE | BJ32: FALSE | BK32: FALSE | BL32: FALSE | BM32: FALSE | BN32: FALSE | BO32: FALSE | BP32: FALSE | BQ32: FALSE | BR32: FALSE | BS32: FALSE | BT32: =BT30<=$E$32 -> FALSE | BU32: FALSE | BV32: FALSE | BW32: FALSE | BX32: FALSE | BY32: FALSE | BZ32: FALSE | CA32: FALSE | CB32: FALSE | CC32: FALSE | CD32: FALSE | CE32: FALSE | CF32: FALSE | CG32: FALSE | CH32: FALSE | CI32: FALSE | CJ32: FALSE | CK32: FALSE | CL32: FALSE | CM32: FALSE | CN32: FALSE | CO32: FALSE | CP32: FALSE | CQ32: FALSE | CR32: FALSE | CS32: FALSE | CT32: FALSE | CU32: FALSE | CV32: FALSE | CW32: FALSE | CX32: FALSE | CY32: FALSE | CZ32: FALSE | DA32: FALSE | DB32: FALSE
D33: Cash Outflow | F33: =-F18 -> -2100
D34: Solar Inflow | E34: =F23 -> 34.36839141 | G34: =G31*$E$34 -> 34.36839141 | H34: =H31*$E$34 -> 34.36839141 | I34: 34.36839141 | J34: 34.36839141 | K34: 34.36839141 | L34: 34.36839141 | M34: 34.36839141 | N34: 34.36839141 | O34: 34.36839141 | P34: 34.36839141 | Q34: 34.36839141 | R34: 34.36839141 | S34: 34.36839141 | T34: 34.36839141 | U34: 34.36839141 | V34: 34.36839141 | W34: 34.36839141 | X34: 34.36839141 | Y34: 34.36839141 | Z34: 34.36839141 | AA34: 34.36839141 | AB34: 34.36839141 | AC34: 34.36839141 | AD34: 34.36839141 | AE34: 34.36839141 | AF34: 34.36839141 | AG34: 34.36839141 | AH34: 34.36839141 | AI34: 34.36839141 | AJ34: 34.36839141 | AK34: 0 | AL34: 0 | AM34: 0 | AN34: 0 | AO34: 0 | AP34: 0 | AQ34: 0 | AR34: 0 | AS34: 0 | AT34: 0 | AU34: 0 | AV34: 0 | AW34: 0 | AX34: 0 | AY34: 0 | AZ34: 0 | BA34: 0 | BB34: 0 | BC34: 0 | BD34: 0 | BE34: 0 | BF34: 0 | BG34: 0 | BH34: 0 | BI34: 0 | BJ34: 0 | BK34: 0 | BL34: 0 | BM34: 0 | BN34: 0 | BO34: 0 | BP34: 0 | BQ34: 0 | BR34: 0 | BS34: 0 | BT34: =BT31*$E$34 -> 0 | BU34: 0 | BV34: 0 | BW34: 0 | BX34: 0 | BY34: 0 | BZ34: 0 | CA34: 0 | CB34: 0 | CC34: 0 | CD34: 0 | CE34: 0 | CF34: 0 | CG34: 0 | CH34: 0 | CI34: 0 | CJ34: 0 | CK34: 0 | CL34: 0 | CM34: 0 | CN34: 0 | CO34: 0 | CP34: 0 | CQ34: 0 | CR34: 0 | CS34: 0 | CT34: 0 | CU34: 0 | CV34: 0 | CW34: 0 | CX34: 0 | CY34: 0 | CZ34: 0 | DA34: 0 | DB34: 0
D35: Battery Inflow | E35: =F24 -> 170.5000557 | G35: =$E$35*G32 -> 170.5000557 | H35: =$E$35*H32 -> 170.5000557 | I35: 170.5000557 | J35: 170.5000557 | K35: 170.5000557 | L35: 170.5000557 | M35: 170.5000557 | N35: 170.5000557 | O35: 170.5000557 | P35: 170.5000557 | Q35: 170.5000557 | R35: 0 | S35: 0 | T35: 0 | U35: 0 | V35: 0 | W35: 0 | X35: 0 | Y35: 0 | Z35: 0 | AA35: 0 | AB35: 0 | AC35: 0 | AD35: 0 | AE35: 0 | AF35: 0 | AG35: 0 | AH35: 0 | AI35: 0 | AJ35: 0 | AK35: 0 | AL35: 0 | AM35: 0 | AN35: 0 | AO35: 0 | AP35: 0 | AQ35: 0 | AR35: 0 | AS35: 0 | AT35: 0 | AU35: 0 | AV35: 0 | AW35: 0 | AX35: 0 | AY35: 0 | AZ35: 0 | BA35: 0 | BB35: 0 | BC35: 0 | BD35: 0 | BE35: 0 | BF35: 0 | BG35: 0 | BH35: 0 | BI35: 0 | BJ35: 0 | BK35: 0 | BL35: 0 | BM35: 0 | BN35: 0 | BO35: 0 | BP35: 0 | BQ35: 0 | BR35: 0 | BS35: 0 | BT35: =$E$35*BT32 -> 0 | BU35: 0 | BV35: 0 | BW35: 0 | BX35: 0 | BY35: 0 | BZ35: 0 | CA35: 0 | CB35: 0 | CC35: 0 | CD35: 0 | CE35: 0 | CF35: 0 | CG35: 0 | CH35: 0 | CI35: 0 | CJ35: 0 | CK35: 0 | CL35: 0 | CM35: 0 | CN35: 0 | CO35: 0 | CP35: 0 | CQ35: 0 | CR35: 0 | CS35: 0 | CT35: 0 | CU35: 0 | CV35: 0 | CW35: 0 | CX35: 0 | CY35: 0 | CZ35: 0 | DA35: 0 | DB35: 0
D36: Total Cash Flow | F36: =F33+F34+F35 -> -2100 | G36: =G33+G34+G35 -> 204.8684471 | H36: 204.8684471 | I36: 204.8684471 | J36: 204.8684471 | K36: 204.8684471 | L36: 204.8684471 | M36: 204.8684471 | N36: 204.8684471 | O36: 204.8684471 | P36: 204.8684471 | Q36: 204.8684471 | R36: 34.36839141 | S36: 34.36839141 | T36: 34.36839141 | U36: 34.36839141 | V36: 34.36839141 | W36: 34.36839141 | X36: 34.36839141 | Y36: 34.36839141 | Z36: 34.36839141 | AA36: 34.36839141 | AB36: 34.36839141 | AC36: 34.36839141 | AD36: 34.36839141 | AE36: 34.36839141 | AF36: 34.36839141 | AG36: 34.36839141 | AH36: 34.36839141 | AI36: 34.36839141 | AJ36: 34.36839141 | AK36: 0 | AL36: 0 | AM36: 0 | AN36: 0 | AO36: 0 | AP36: 0 | AQ36: 0 | AR36: 0 | AS36: 0 | AT36: 0 | AU36: 0 | AV36: 0 | AW36: 0 | AX36: 0 | AY36: 0 | AZ36: 0 | BA36: 0 | BB36: 0 | BC36: 0 | BD36: 0 | BE36: 0 | BF36: 0 | BG36: 0 | BH36: 0 | BI36: 0 | BJ36: 0 | BK36: 0 | BL36: 0 | BM36: 0 | BN36: 0 | BO36: 0 | BP36: 0 | BQ36: 0 | BR36: 0 | BS36: =BS33+BS34+BS35 -> 0 | BT36: 0 | BU36: 0 | BV36: 0 | BW36: 0 | BX36: 0 | BY36: 0 | BZ36: 0 | CA36: 0 | CB36: 0 | CC36: 0 | CD36: 0 | CE36: 0 | CF36: 0 | CG36: 0 | CH36: 0 | CI36: 0 | CJ36: 0 | CK36: 0 | CL36: 0 | CM36: 0 | CN36: 0 | CO36: 0 | CP36: 0 | CQ36: 0 | CR36: 0 | CS36: 0 | CT36: 0 | CU36: 0 | CV36: 0 | CW36: 0 | CX36: 0 | CY36: 0 | CZ36: 0 | DA36: 0 | DB36: 0
D38: IRR Check | E38: =IRR(F36:DB36) -> 0.03921568627
B40: Case 2: Cash Flow with Replacements and Extended Battery Cash Flow
D41: Solar Flag | F41: =F31 -> 0 | G41: =G31*1 -> 1 | H41: =H31*1 -> 1 | I41: 1 | J41: 1 | K41: 1 | L41: 1 | M41: 1 | N41: 1 | O41: 1 | P41: 1 | Q41: 1 | R41: 1 | S41: 1 | T41: 1 | U41: 1 | V41: 1 | W41: 1 | X41: 1 | Y41: 1 | Z41: 1 | AA41: 1 | AB41: 1 | AC41: 1 | AD41: 1 | AE41: 1 | AF41: 1 | AG41: 1 | AH41: 1 | AI41: 1 | AJ41: 1 | AK41: 0 | AL41: 0 | AM41: 0 | AN41: 0 | AO41: 0 | AP41: 0 | AQ41: 0 | AR41: 0 | AS41: 0 | AT41: 0 | AU41: 0 | AV41: 0 | AW41: 0 | AX41: 0 | AY41: 0 | AZ41: 0 | BA41: 0 | BB41: 0 | BC41: 0 | BD41: 0 | BE41: 0 | BF41: 0 | BG41: 0 | BH41: 0 | BI41: 0 | BJ41: 0 | BK41: 0 | BL41: 0 | BM41: 0 | BN41: 0 | BO41: 0 | BP41: 0 | BQ41: 0 | BR41: 0 | BS41: 0 | BT41: =BT31*1 -> 0 | BU41: 0 | BV41: 0 | BW41: 0 | BX41: 0 | BY41: 0 | BZ41: 0 | CA41: 0 | CB41: 0 | CC41: 0 | CD41: 0 | CE41: 0 | CF41: 0 | CG41: 0 | CH41: 0 | CI41: 0 | CJ41: 0 | CK41: 0 | CL41: 0 | CM41: 0 | CN41: 0 | CO41: 0 | CP41: 0 | CQ41: 0 | CR41: 0 | CS41: 0 | CT41: 0 | CU41: 0 | CV41: 0 | CW41: 0 | CX41: 0 | CY41: 0 | CZ41: 0 | DA41: 0 | DB41: 0
D42: Replacement of Battery | E42: =F3 -> 11 | G42: =(MOD(G30,$F$3)=0)*G41 -> 0 | H42: =(MOD(H30,$F$3)=0)*H41 -> 0 | I42: 0 | J42: 0 | K42: 0 | L42: 0 | M42: 0 | N42: 0 | O42: 0 | P42: 0 | Q42: 1 | R42: 0 | S42: 0 | T42: 0 | U42: 0 | V42: 0 | W42: 0 | X42: 0 | Y42: 0 | Z42: 0 | AA42: 0 | AB42: 1 | AC42: 0 | AD42: 0 | AE42: 0 | AF42: 0 | AG42: 0 | AH42: 0 | AI42: 0 | AJ42: 0 | AK42: 0 | AL42: 0 | AM42: 0 | AN42: 0 | AO42: 0 | AP42: 0 | AQ42: 0 | AR42: 0 | AS42: 0 | AT42: 0 | AU42: 0 | AV42: 0 | AW42: 0 | AX42: 0 | AY42: 0 | AZ42: 0 | BA42: 0 | BB42: 0 | BC42: 0 | BD42: 0 | BE42: 0 | BF42: 0 | BG42: 0 | BH42: 0 | BI42: 0 | BJ42: 0 | BK42: 0 | BL42: 0 | BM42: 0 | BN42: 0 | BO42: 0 | BP42: 0 | BQ42: 0 | BR42: 0 | BS42: 0 | BT42: =(MOD(BT30,$F$3)=0)*BT41 -> 0 | BU42: 0 | BV42: 0 | BW42: 0 | BX42: 0 | BY42: 0 | BZ42: 0 | CA42: 0 | CB42: 0 | CC42: 0 | CD42: 0 | CE42: 0 | CF42: 0 | CG42: 0 | CH42: 0 | CI42: 0 | CJ42: 0 | CK42: 0 | CL42: 0 | CM42: 0 | CN42: 0 | CO42: 0 | CP42: 0 | CQ42: 0 | CR42: 0 | CS42: 0 | CT42: 0 | CU42: 0 | CV42: 0 | CW42: 0 | CX42: 0 | CY42: 0 | CZ42: 0 | DA42: 0 | DB42: 0
D43: Replacement of Battery During Solar | E43: =SUM(G43:DB43) -> 2 | G43: =IF(G41,G42)*1 -> 0 | H43: =IF(H41,H42)*1 -> 0 | I43: 0 | J43: 0 | K43: 0 | L43: 0 | M43: 0 | N43: 0 | O43: 0 | P43: 0 | Q43: 1 | R43: 0 | S43: 0 | T43: 0 | U43: 0 | V43: 0 | W43: 0 | X43: 0 | Y43: 0 | Z43: 0 | AA43: 0 | AB43: 1 | AC43: 0 | AD43: 0 | AE43: 0 | AF43: 0 | AG43: 0 | AH43: 0 | AI43: 0 | AJ43: 0 | AK43: 0 | AL43: 0 | AM43: 0 | AN43: 0 | AO43: 0 | AP43: 0 | AQ43: 0 | AR43: 0 | AS43: 0 | AT43: 0 | AU43: 0 | AV43: 0 | AW43: 0 | AX43: 0 | AY43: 0 | AZ43: 0 | BA43: 0 | BB43: 0 | BC43: 0 | BD43: 0 | BE43: 0 | BF43: 0 | BG43: 0 | BH43: 0 | BI43: 0 | BJ43: 0 | BK43: 0 | BL43: 0 | BM43: 0 | BN43: 0 | BO43: 0 | BP43: 0 | BQ43: 0 | BR43: 0 | BS43: 0 | BT43: =IF(BT41,BT42)*1 -> 0 | BU43: 0 | BV43: 0 | BW43: 0 | BX43: 0 | BY43: 0 | BZ43: 0 | CA43: 0 | CB43: 0 | CC43: 0 | CD43: 0 | CE43: 0 | CF43: 0 | CG43: 0 | CH43: 0 | CI43: 0 | CJ43: 0 | CK43: 0 | CL43: 0 | CM43: 0 | CN43: 0 | CO43: 0 | CP43: 0 | CQ43: 0 | CR43: 0 | CS43: 0 | CT43: 0 | CU43: 0 | CV43: 0 | CW43: 0 | CX43: 0 | CY43: 0 | CZ43: 0 | DA43: 0 | DB43: 0
D44: Total Battery Periods | E44: =(1+E43)*E42 -> 33 | G44: =(G30<=$E$44)*1 -> 1 | H44: =(H30<=$E$44)*1 -> 1 | I44: 1 | J44: 1 | K44: 1 | L44: 1 | M44: 1 | N44: 1 | O44: 1 | P44: 1 | Q44: 1 | R44: 1 | S44: 1 | T44: 1 | U44: 1 | V44: 1 | W44: 1 | X44: 1 | Y44: 1 | Z44: 1 | AA44: 1 | AB44: 1 | AC44: 1 | AD44: 1 | AE44: 1 | AF44: 1 | AG44: 1 | AH44: 1 | AI44: 1 | AJ44: 1 | AK44: 1 | AL44: 1 | AM44: 1 | AN44: 0 | AO44: 0 | AP44: 0 | AQ44: 0 | AR44: 0 | AS44: 0 | AT44: 0 | AU44: 0 | AV44: 0 | AW44: 0 | AX44: 0 | AY44: 0 | AZ44: 0 | BA44: 0 | BB44: 0 | BC44: 0 | BD44: 0 | BE44: 0 | BF44: 0 | BG44: 0 | BH44: 0 | BI44: 0 | BJ44: 0 | BK44: 0 | BL44: 0 | BM44: 0 | BN44: 0 | BO44: 0 | BP44: 0 | BQ44: 0 | BR44: 0 | BS44: 0 | BT44: =(BT30<=$E$44)*1 -> 0 | BU44: 0 | BV44: 0 | BW44: 0 | BX44: 0 | BY44: 0 | BZ44: 0 | CA44: 0 | CB44: 0 | CC44: 0 | CD44: 0 | CE44: 0 | CF44: 0 | CG44: 0 | CH44: 0 | CI44: 0 | CJ44: 0 | CK44: 0 | CL44: 0 | CM44: 0 | CN44: 0 | CO44: 0 | CP44: 0 | CQ44: 0 | CR44: 0 | CS44: 0 | CT44: 0 | CU44: 0 | CV44: 0 | CW44: 0 | CX44: 0 | CY44: 0 | CZ44: 0 | DA44: 0 | DB44: 0
D46: Initial Cap Exp | F46: =-F18 -> -2100
D47: Replacement Cap Exp | E47: =-$F$17 -> -1500 | G47: =$E$47*G42 -> 0 | H47: =$E$47*H42 -> 0 | I47: 0 | J47: 0 | K47: 0 | L47: 0 | M47: 0 | N47: 0 | O47: 0 | P47: 0 | Q47: -1500 | R47: 0 | S47: 0 | T47: 0 | U47: 0 | V47: 0 | W47: 0 | X47: 0 | Y47: 0 | Z47: 0 | AA47: 0 | AB47: -1500 | AC47: 0 | AD47: 0 | AE47: 0 | AF47: 0 | AG47: 0 | AH47: 0 | AI47: 0 | AJ47: 0 | AK47: 0 | AL47: 0 | AM47: 0 | AN47: 0 | AO47: 0 | AP47: 0 | AQ47: 0 | AR47: 0 | AS47: 0 | AT47: 0 | AU47: 0 | AV47: 0 | AW47: 0 | AX47: 0 | AY47: 0 | AZ47: 0 | BA47: 0 | BB47: 0 | BC47: 0 | BD47: 0 | BE47: 0 | BF47: 0 | BG47: 0 | BH47: 0 | BI47: 0 | BJ47: 0 | BK47: 0 | BL47: 0 | BM47: 0 | BN47: 0 | BO47: 0 | BP47: 0 | BQ47: 0 | BR47: 0 | BS47: 0 | BT47: =$E$47*BT42 -> 0 | BU47: 0 | BV47: 0 | BW47: 0 | BX47: 0 | BY47: 0 | BZ47: 0 | CA47: 0 | CB47: 0 | CC47: 0 | CD47: 0 | CE47: 0 | CF47: 0 | CG47: 0 | CH47: 0 | CI47: 0 | CJ47: 0 | CK47: 0 | CL47: 0 | CM47: 0 | CN47: 0 | CO47: 0 | CP47: 0 | CQ47: 0 | CR47: 0 | CS47: 0 | CT47: 0 | CU47: 0 | CV47: 0 | CW47: 0 | CX47: 0 | CY47: 0 | CZ47: 0 | DA47: 0 | DB47: 0
D48: Solar Inflow | E48: =F23 -> 34.36839141 | G48: =$E$48*G41 -> 34.36839141 | H48: =$E$48*H41 -> 34.36839141 | I48: 34.36839141 | J48: 34.36839141 | K48: 34.36839141 | L48: 34.36839141 | M48: 34.36839141 | N48: 34.36839141 | O48: 34.36839141 | P48: 34.36839141 | Q48: 34.36839141 | R48: 34.36839141 | S48: 34.36839141 | T48: 34.36839141 | U48: 34.36839141 | V48: 34.36839141 | W48: 34.36839141 | X48: 34.36839141 | Y48: 34.36839141 | Z48: 34.36839141 | AA48: 34.36839141 | AB48: 34.36839141 | AC48: 34.36839141 | AD48: 34.36839141 | AE48: 34.36839141 | AF48: 34.36839141 | AG48: 34.36839141 | AH48: 34.36839141 | AI48: 34.36839141 | AJ48: 34.36839141 | AK48: 0 | AL48: 0 | AM48: 0 | AN48: 0 | AO48: 0 | AP48: 0 | AQ48: 0 | AR48: 0 | AS48: 0 | AT48: 0 | AU48: 0 | AV48: 0 | AW48: 0 | AX48: 0 | AY48: 0 | AZ48: 0 | BA48: 0 | BB48: 0 | BC48: 0 | BD48: 0 | BE48: 0 | BF48: 0 | BG48: 0 | BH48: 0 | BI48: 0 | BJ48: 0 | BK48: 0 | BL48: 0 | BM48: 0 | BN48: 0 | BO48: 0 | BP48: 0 | BQ48: 0 | BR48: 0 | BS48: 0 | BT48: =$E$48*BT41 -> 0 | BU48: 0 | BV48: 0 | BW48: 0 | BX48: 0 | BY48: 0 | BZ48: 0 | CA48: 0 | CB48: 0 | CC48: 0 | CD48: 0 | CE48: 0 | CF48: 0 | CG48: 0 | CH48: 0 | CI48: 0 | CJ48: 0 | CK48: 0 | CL48: 0 | CM48: 0 | CN48: 0 | CO48: 0 | CP48: 0 | CQ48: 0 | CR48: 0 | CS48: 0 | CT48: 0 | CU48: 0 | CV48: 0 | CW48: 0 | CX48: 0 | CY48: 0 | CZ48: 0 | DA48: 0 | DB48: 0
D49: Battery Inflow | E49: =F24 -> 170.5000557 | G49: =$E$49*G44 -> 170.5000557 | H49: =$E$49*H44 -> 170.5000557 | I49: 170.5000557 | J49: 170.5000557 | K49: 170.5000557 | L49: 170.5000557 | M49: 170.5000557 | N49: 170.5000557 | O49: 170.5000557 | P49: 170.5000557 | Q49: 170.5000557 | R49: 170.5000557 | S49: 170.5000557 | T49: 170.5000557 | U49: 170.5000557 | V49: 170.5000557 | W49: 170.5000557 | X49: 170.5000557 | Y49: 170.5000557 | Z49: 170.5000557 | AA49: 170.5000557 | AB49: 170.5000557 | AC49: 170.5000557 | AD49: 170.5000557 | AE49: 170.5000557 | AF49: 170.5000557 | AG49: 170.5000557 | AH49: 170.5000557 | AI49: 170.5000557 | AJ49: 170.5000557 | AK49: 170.5000557 | AL49: 170.5000557 | AM49: 170.5000557 | AN49: 0 | AO49: 0 | AP49: 0 | AQ49: 0 | AR49: 0 | AS49: 0 | AT49: 0 | AU49: 0 | AV49: 0 | AW49: 0 | AX49: 0 | AY49: 0 | AZ49: 0 | BA49: 0 | BB49: 0 | BC49: 0 | BD49: 0 | BE49: 0 | BF49: 0 | BG49: 0 | BH49: 0 | BI49: 0 | BJ49: 0 | BK49: 0 | BL49: 0 | BM49: 0 | BN49: 0 | BO49: 0 | BP49: 0 | BQ49: 0 | BR49: 0 | BS49: 0 | BT49: =$E$49*BT44 -> 0 | BU49: 0 | BV49: 0 | BW49: 0 | BX49: 0 | BY49: 0 | BZ49: 0 | CA49: 0 | CB49: 0 | CC49: 0 | CD49: 0 | CE49: 0 | CF49: 0 | CG49: 0 | CH49: 0 | CI49: 0 | CJ49: 0 | CK49: 0 | CL49: 0 | CM49: 0 | CN49: 0 | CO49: 0 | CP49: 0 | CQ49: 0 | CR49: 0 | CS49: 0 | CT49: 0 | CU49: 0 | CV49: 0 | CW49: 0 | CX49: 0 | CY49: 0 | CZ49: 0 | DA49: 0 | DB49: 0
D50: Total Cash Flow | F50: =F46+F47+F48+F49 -> -2100 | G50: =G46+G47+G48+G49 -> 204.8684471 | H50: 204.8684471 | I50: 204.8684471 | J50: 204.8684471 | K50: 204.8684471 | L50: 204.8684471 | M50: 204.8684471 | N50: 204.8684471 | O50: 204.8684471 | P50: 204.8684471 | Q50: -1295.131553 | R50: 204.8684471 | S50: 204.8684471 | T50: 204.8684471 | U50: 204.8684471 | V50: 204.8684471 | W50: 204.8684471 | X50: 204.8684471 | Y50: 204.8684471 | Z50: 204.8684471 | AA50: 204.8684471 | AB50: -1295.131553 | AC50: 204.8684471 | AD50: 204.8684471 | AE50: 204.8684471 | AF50: 204.8684471 | AG50: 204.8684471 | AH50: 204.8684471 | AI50: 204.8684471 | AJ50: 204.8684471 | AK50: 170.5000557 | AL50: 170.5000557 | AM50: 170.5000557 | AN50: 0 | AO50: 0 | AP50: 0 | AQ50: 0 | AR50: 0 | AS50: 0 | AT50: 0 | AU50: 0 | AV50: 0 | AW50: 0 | AX50: 0 | AY50: 0 | AZ50: 0 | BA50: 0 | BB50: 0 | BC50: 0 | BD50: 0 | BE50: 0 | BF50: 0 | BG50: 0 | BH50: 0 | BI50: 0 | BJ50: 0 | BK50: 0 | BL50: 0 | BM50: 0 | BN50: 0 | BO50: 0 | BP50: 0 | BQ50: 0 | BR50: 0 | BS50: =BS46+BS47+BS48+BS49 -> 0 | BT50: 0 | BU50: 0 | BV50: 0 | BW50: 0 | BX50: 0 | BY50: 0 | BZ50: 0 | CA50: 0 | CB50: 0 | CC50: 0 | CD50: 0 | CE50: 0 | CF50: 0 | CG50: 0 | CH50: 0 | CI50: 0 | CJ50: 0 | CK50: 0 | CL50: 0 | CM50: 0 | CN50: 0 | CO50: 0 | CP50: 0 | CQ50: 0 | CR50: 0 | CS50: 0 | CT50: 0 | CU50: 0 | CV50: 0 | CW50: 0 | CX50: 0 | CY50: 0 | CZ50: 0 | DA50: 0 | DB50: 0
D51: IRR | E51: =IRR(F50:DB50) -> 0.03921568627
D53: Value of Residual | AJ53: =PV(E51,F10,-F24) -> 473.8583833
D54: PV Residual
B56: Case 3: Cash Flow with Replacement Cost
D57: Residual Period | E57: =F2 -> 30 | G57: =($E$57=G4)*1 -> 0 | H57: =($E$57=H4)*1 -> 0 | I57: 0 | J57: 0 | K57: 0 | L57: 0 | M57: 0 | N57: 0 | O57: 0 | P57: 0 | Q57: 0 | R57: 0 | S57: 0 | T57: 0 | U57: 0 | V57: 0 | W57: 0 | X57: 0 | Y57: 0 | Z57: 0 | AA57: 0 | AB57: 0 | AC57: 0 | AD57: 0 | AE57: 0 | AF57: 0 | AG57: 0 | AH57: 0 | AI57: 0 | AJ57: 1 | AK57: 0 | AL57: 0 | AM57: 0 | AN57: 0 | AO57: 0 | AP57: 0 | AQ57: 0 | AR57: 0 | AS57: 0 | AT57: 0 | AU57: 0 | AV57: 0 | AW57: 0 | AX57: 0 | AY57: 0 | AZ57: 0 | BA57: 0 | BB57: 0 | BC57: 0 | BD57: 0 | BE57: 0 | BF57: 0 | BG57: 0 | BH57: 0 | BI57: 0 | BJ57: 0 | BK57: 0 | BL57: 0 | BM57: 0 | BN57: 0 | BO57: 0 | BP57: 0 | BQ57: 0 | BR57: 0 | BS57: 0 | BT57: =($E$57=BT4)*1 -> 0 | BU57: 0 | BV57: 0 | BW57: 0 | BX57: 0 | BY57: 0 | BZ57: 0 | CA57: 0 | CB57: 0 | CC57: 0 | CD57: 0 | CE57: 0 | CF57: 0 | CG57: 0 | CH57: 0 | CI57: 0 | CJ57: 0 | CK57: 0 | CL57: 0 | CM57: 0 | CN57: 0 | CO57: 0 | CP57: 0 | CQ57: 0 | CR57: 0 | CS57: 0 | CT57: 0 | CU57: 0 | CV57: 0 | CW57: 0 | CX57: 0 | CY57: 0 | CZ57: 0 | DA57: 0 | DB57: 0
D58: Total Cash Flow without Residual | F58: =F50 -> -2100 | G58: =G50*G41 -> 204.8684471 | H58: =H50*H41 -> 204.8684471 | I58: 204.8684471 | J58: 204.8684471 | K58: 204.8684471 | L58: 204.8684471 | M58: 204.8684471 | N58: 204.8684471 | O58: 204.8684471 | P58: 204.8684471 | Q58: -1295.131553 | R58: 204.8684471 | S58: 204.8684471 | T58: 204.8684471 | U58: 204.8684471 | V58: 204.8684471 | W58: 204.8684471 | X58: 204.8684471 | Y58: 204.8684471 | Z58: 204.8684471 | AA58: 204.8684471 | AB58: -1295.131553 | AC58: 204.8684471 | AD58: 204.8684471 | AE58: 204.8684471 | AF58: 204.8684471 | AG58: 204.8684471 | AH58: 204.8684471 | AI58: 204.8684471 | AJ58: 204.8684471 | AK58: 0 | AL58: 0 | AM58: 0 | AN58: 0 | AO58: 0 | AP58: 0 | AQ58: 0 | AR58: 0 | AS58: 0 | AT58: 0 | AU58: 0 | AV58: 0 | AW58: 0 | AX58: 0 | AY58: 0 | AZ58: 0 | BA58: 0 | BB58: 0 | BC58: 0 | BD58: 0 | BE58: 0 | BF58: 0 | BG58: 0 | BH58: 0 | BI58: 0 | BJ58: 0 | BK58: 0 | BL58: 0 | BM58: 0 | BN58: 0 | BO58: 0 | BP58: 0 | BQ58: 0 | BR58: 0 | BS58: 0 | BT58: =BT50*BT41 -> 0 | BU58: 0 | BV58: 0 | BW58: 0 | BX58: 0 | BY58: 0 | BZ58: 0 | CA58: 0 | CB58: 0 | CC58: 0 | CD58: 0 | CE58: 0 | CF58: 0 | CG58: 0 | CH58: 0 | CI58: 0 | CJ58: 0 | CK58: 0 | CL58: 0 | CM58: 0 | CN58: 0 | CO58: 0 | CP58: 0 | CQ58: 0 | CR58: 0 | CS58: 0 | CT58: 0 | CU58: 0 | CV58: 0 | CW58: 0 | CX58: 0 | CY58: 0 | CZ58: 0 | DA58: 0 | DB58: 0
D59: Residual Value | E59: =F26 -> 473.8583833 | G59: =$E$59*G57 -> 0 | H59: =$E$59*H57 -> 0 | I59: 0 | J59: 0 | K59: 0 | L59: 0 | M59: 0 | N59: 0 | O59: 0 | P59: 0 | Q59: 0 | R59: 0 | S59: 0 | T59: 0 | U59: 0 | V59: 0 | W59: 0 | X59: 0 | Y59: 0 | Z59: 0 | AA59: 0 | AB59: 0 | AC59: 0 | AD59: 0 | AE59: 0 | AF59: 0 | AG59: 0 | AH59: 0 | AI59: 0 | AJ59: 473.8583833 | AK59: 0 | AL59: 0 | AM59: 0 | AN59: 0 | AO59: 0 | AP59: 0 | AQ59: 0 | AR59: 0 | AS59: 0 | AT59: 0 | AU59: 0 | AV59: 0 | AW59: 0 | AX59: 0 | AY59: 0 | AZ59: 0 | BA59: 0 | BB59: 0 | BC59: 0 | BD59: 0 | BE59: 0 | BF59: 0 | BG59: 0 | BH59: 0 | BI59: 0 | BJ59: 0 | BK59: 0 | BL59: 0 | BM59: 0 | BN59: 0 | BO59: 0 | BP59: 0 | BQ59: 0 | BR59: 0 | BS59: 0 | BT59: =$E$59*BT57 -> 0 | BU59: 0 | BV59: 0 | BW59: 0 | BX59: 0 | BY59: 0 | BZ59: 0 | CA59: 0 | CB59: 0 | CC59: 0 | CD59: 0 | CE59: 0 | CF59: 0 | CG59: 0 | CH59: 0 | CI59: 0 | CJ59: 0 | CK59: 0 | CL59: 0 | CM59: 0 | CN59: 0 | CO59: 0 | CP59: 0 | CQ59: 0 | CR59: 0 | CS59: 0 | CT59: 0 | CU59: 0 | CV59: 0 | CW59: 0 | CX59: 0 | CY59: 0 | CZ59: 0 | DA59: 0 | DB59: 0
D60: Total Cash Flow with Residual | F60: =F58+F59 -> -2100 | G60: =G58+G59 -> 204.8684471 | H60: 204.8684471 | I60: 204.8684471 | J60: 204.8684471 | K60: 204.8684471 | L60: 204.8684471 | M60: 204.8684471 | N60: 204.8684471 | O60: 204.8684471 | P60: 204.8684471 | Q60: -1295.131553 | R60: 204.8684471 | S60: 204.8684471 | T60: 204.8684471 | U60: 204.8684471 | V60: 204.8684471 | W60: 204.8684471 | X60: 204.8684471 | Y60: 204.8684471 | Z60: 204.8684471 | AA60: 204.8684471 | AB60: -1295.131553 | AC60: 204.8684471 | AD60: 204.8684471 | AE60: 204.8684471 | AF60: 204.8684471 | AG60: 204.8684471 | AH60: 204.8684471 | AI60: 204.8684471 | AJ60: 678.7268304 | AK60: 0 | AL60: 0 | AM60: 0 | AN60: 0 | AO60: 0 | AP60: 0 | AQ60: 0 | AR60: 0 | AS60: 0 | AT60: 0 | AU60: 0 | AV60: 0 | AW60: 0 | AX60: 0 | AY60: 0 | AZ60: 0 | BA60: 0 | BB60: 0 | BC60: 0 | BD60: 0 | BE60: 0 | BF60: 0 | BG60: 0 | BH60: 0 | BI60: 0 | BJ60: 0 | BK60: 0 | BL60: 0 | BM60: 0 | BN60: 0 | BO60: 0 | BP60: 0 | BQ60: 0 | BR60: 0 | BS60: =BS58+BS59 -> 0 | BT60: 0 | BU60: 0 | BV60: 0 | BW60: 0 | BX60: 0 | BY60: 0 | BZ60: 0 | CA60: 0 | CB60: 0 | CC60: 0 | CD60: 0 | CE60: 0 | CF60: 0 | CG60: 0 | CH60: 0 | CI60: 0 | CJ60: 0 | CK60: 0 | CL60: 0 | CM60: 0 | CN60: 0 | CO60: 0 | CP60: 0 | CQ60: 0 | CR60: 0 | CS60: 0 | CT60: 0 | CU60: 0 | CV60: 0 | CW60: 0 | CX60: 0 | CY60: 0 | CZ60: 0 | DA60: 0 | DB60: 0
D62: IRR | E62: =IRR(F60:DB60) -> 0.03921568627

Sheet Learning and Replacement
D2: Life Solar | E2: Year | F2: ='LCOE Calculator'!H54 -> 35
D3: Life Battery | E3: Year | F3: 15
F4: 0 | G4: 1 | H4: 2 | I4: 3 | J4: 4 | K4: 5 | L4: 6 | M4: 7 | N4: 8 | O4: 9 | P4: 10 | Q4: 11 | R4: 12 | S4: 13 | T4: 14 | U4: 15 | V4: 16 | W4: 17 | X4: 18 | Y4: 19 | Z4: 20 | AA4: 21 | AB4: 22 | AC4: 23 | AD4: 24 | AE4: 25 | AF4: 26 | AG4: 27 | AH4: 28 | AI4: 29 | AJ4: 30 | AK4: 31 | AL4: 32 | AM4: 33 | AN4: 34 | AO4: 35 | AP4: 36 | AQ4: 37 | AR4: 38 | AS4: 39 | AT4: 40 | AU4: 41 | AV4: 42 | AW4: 43 | AX4: 44 | AY4: 45 | AZ4: 46 | BA4: 47 | BB4: 48 | BC4: 49 | BD4: 50 | BE4: 51 | BF4: 52 | BG4: 53 | BH4: 54 | BI4: 55 | BJ4: 56 | BK4: 57 | BL4: 58 | BM4: 59 | BN4: 60 | BO4: 61 | BP4: 62 | BQ4: 63 | BR4: 64 | BS4: 65 | BT4: 66 | BU4: 67 | BV4: 68 | BW4: 69 | BX4: 70 | BY4: 71 | BZ4: 72 | CA4: 73 | CB4: 74 | CC4: 75 | CD4: 76 | CE4: 77 | CF4: 78 | CG4: 79 | CH4: 80 | CI4: 81 | CJ4: 82 | CK4: 83 | CL4: 84 | CM4: 85 | CN4: 86 | CO4: 87 | CP4: 88 | CQ4: 89 | CR4: 90 | CS4: 91 | CT4: 92 | CU4: 93 | CV4: 94 | CW4: 95 | CX4: 96 | CY4: 97 | CZ4: 98 | DA4: 99 | DB4: 100
D6: Replacements | E6: Year 1 | F6: =F3 -> 15
E7: Year 2 | F7: =F3+F6 -> 30
E8: Last Yrs Used | F8: =F2-F7 -> 5
E9: With Mod | F9: =MOD(F2,F3) -> 5
D10: Residual | E10: Residual Yrs | F10: =F6-F8 -> 10
D12: Ratio of Solar Life to Battery Life | F12: =F2/F3 -> 2.333333333
D13: Rounded Battery Replacements | F13: =ROUNDUP(F12,0) -> 3
D14: Total Years of Replacement | F14: =F3*F13 -> 45
D16: Solar Cost | F16: 600
D17: Battery Cost | F17: 300
D18: Hrs | F18: 5
D19: Total Battery Initial | F19: =F17*F18 -> 1500
D20: Total Cost | F20: =F19+F16 -> 2100
D22: Learning Rate | F22: 0.045
D23: Factor | F23: =(1-F22)^F6 -> 0.5012456005
D24: Learning Reduction | F24: =F23 -> 0.5012456005
D25: Replacement Battery | F25: =F19*F24 -> 751.8684007
D27: Target IRR | F27: 0.1
D28: PMT Solar | F28: =PMT(F27,F2,-F16) -> 62.21382307
D29: PMT Battery | F29: =PMT(F27,F6,-F19) -> 197.2106653
D30: PMT Battery - Replacement | F30: =PMT(F27,F6,-F25) -> 98.85097836
D32: Replacement Weight | F32: =PV(F27,F3,-1) -> 7.606079506 | G32: =F32/F33 -> 0.7711880429 | I32: =_xlfn.FORMULATEXT(F32) -> =PV(F27,F3,-1) | M32: PV of Battery Life and Rate
D33: Original Weight | F33: =PV(F27,F14,-1) -> 9.86280788 | G33: =1-G32 -> 0.2288119571 | I33: =_xlfn.FORMULATEXT(F33) -> =PV(F27,F14,-1) | M33: PV of Total Replacements
D35: Weighted Payment | F35: =G32*F29+G33*F30 -> 174.7047929 | I35: =_xlfn.FORMULATEXT(F35) -> =G32*F29+G33*F30 | M35: Weighted Averge
D37: Residual Value | F37: =PV(F27,F10,-F29) -> 1211.774167
B39: Cash Flow with Replacements and Extended Battery Cash Flow
D40: Solar Flag | F40: =F83 -> 0 | G40: =G83*1 -> 1 | H40: 1 | I40: 1 | J40: 1 | K40: 1 | L40: 1 | M40: 1 | N40: 1 | O40: 1 | P40: 1 | Q40: 1 | R40: 1 | S40: 1 | T40: 1 | U40: 1 | V40: 1 | W40: 1 | X40: 1 | Y40: 1 | Z40: 1 | AA40: 1 | AB40: 1 | AC40: 1 | AD40: 1 | AE40: 1 | AF40: 1 | AG40: 1 | AH40: 1 | AI40: 1 | AJ40: 1 | AK40: 1 | AL40: 1 | AM40: =AM83*1 -> 1 | AN40: 1 | AO40: 1 | AP40: 0 | AQ40: 0 | AR40: 0 | AS40: 0 | AT40: 0 | AU40: 0 | AV40: 0 | AW40: 0 | AX40: 0 | AY40: 0 | AZ40: 0 | BA40: 0 | BB40: 0 | BC40: 0 | BD40: 0 | BE40: 0 | BF40: 0 | BG40: 0 | BH40: 0 | BI40: 0 | BJ40: 0 | BK40: 0 | BL40: 0 | BM40: 0 | BN40: 0 | BO40: 0 | BP40: 0 | BQ40: 0 | BR40: 0 | BS40: =BS83*1 -> 0 | BT40: 0 | BU40: 0 | BV40: 0 | BW40: 0 | BX40: 0 | BY40: 0 | BZ40: 0 | CA40: 0 | CB40: 0 | CC40: 0 | CD40: 0 | CE40: 0 | CF40: 0 | CG40: 0 | CH40: 0 | CI40: 0 | CJ40: 0 | CK40: 0 | CL40: 0 | CM40: 0 | CN40: 0 | CO40: 0 | CP40: 0 | CQ40: 0 | CR40: 0 | CS40: 0 | CT40: 0 | CU40: 0 | CV40: 0 | CW40: 0 | CX40: 0 | CY40: 0 | CZ40: 0 | DA40: 0 | DB40: 0
D41: Replacement of Battery | E41: =F3 -> 15 | G41: =(MOD(G82,$E$41)=0) -> FALSE | H41: FALSE | I41: FALSE | J41: FALSE | K41: FALSE | L41: FALSE | M41: FALSE | N41: FALSE | O41: FALSE | P41: FALSE | Q41: FALSE | R41: FALSE | S41: FALSE | T41: FALSE | U41: TRUE | V41: FALSE | W41: FALSE | X41: FALSE | Y41: FALSE | Z41: FALSE | AA41: FALSE | AB41: FALSE | AC41: FALSE | AD41: FALSE | AE41: FALSE | AF41: FALSE | AG41: FALSE | AH41: FALSE | AI41: FALSE | AJ41: TRUE | AK41: FALSE | AL41: FALSE | AM41: =(MOD(AM82,$E$41)=0) -> FALSE | AN41: FALSE | AO41: FALSE | AP41: FALSE | AQ41: FALSE | AR41: FALSE | AS41: FALSE | AT41: FALSE | AU41: FALSE | AV41: FALSE | AW41: FALSE | AX41: FALSE | AY41: TRUE | AZ41: FALSE | BA41: FALSE | BB41: FALSE | BC41: FALSE | BD41: FALSE | BE41: FALSE | BF41: FALSE | BG41: FALSE | BH41: FALSE | BI41: FALSE | BJ41: FALSE | BK41: FALSE | BL41: FALSE | BM41: FALSE | BN41: TRUE | BO41: FALSE | BP41: FALSE | BQ41: FALSE | BR41: FALSE | BS41: =(MOD(BS82,$E$41)=0) -> FALSE | BT41: FALSE | BU41: FALSE | BV41: FALSE | BW41: FALSE | BX41: FALSE | BY41: FALSE | BZ41: FALSE | CA41: FALSE | CB41: FALSE | CC41: TRUE | CD41: FALSE | CE41: FALSE | CF41: FALSE | CG41: FALSE | CH41: FALSE | CI41: FALSE | CJ41: FALSE | CK41: FALSE | CL41: FALSE | CM41: FALSE | CN41: FALSE | CO41: FALSE | CP41: FALSE | CQ41: FALSE | CR41: TRUE | CS41: FALSE | CT41: FALSE | CU41: FALSE | CV41: FALSE | CW41: FALSE | CX41: FALSE | CY41: FALSE | CZ41: FALSE | DA41: FALSE | DB41: FALSE
D42: Replacement of Battery During Solar | E42: =SUM(G42:DB42) -> 2 | G42: =IF(G40,G41)*1 -> 0 | H42: =IF(H40,H41)*1 -> 0 | I42: 0 | J42: 0 | K42: 0 | L42: 0 | M42: 0 | N42: 0 | O42: 0 | P42: 0 | Q42: 0 | R42: 0 | S42: 0 | T42: 0 | U42: 1 | V42: 0 | W42: 0 | X42: 0 | Y42: 0 | Z42: 0 | AA42: 0 | AB42: 0 | AC42: 0 | AD42: 0 | AE42: 0 | AF42: 0 | AG42: 0 | AH42: 0 | AI42: 0 | AJ42: 1 | AK42: 0 | AL42: 0 | AM42: 0 | AN42: 0 | AO42: 0 | AP42: 0 | AQ42: 0 | AR42: 0 | AS42: 0 | AT42: 0 | AU42: 0 | AV42: 0 | AW42: 0 | AX42: 0 | AY42: 0 | AZ42: 0 | BA42: 0 | BB42: 0 | BC42: 0 | BD42: 0 | BE42: 0 | BF42: 0 | BG42: 0 | BH42: 0 | BI42: 0 | BJ42: 0 | BK42: 0 | BL42: 0 | BM42: 0 | BN42: 0 | BO42: 0 | BP42: 0 | BQ42: 0 | BR42: 0 | BS42: 0 | BT42: =IF(BT40,BT41)*1 -> 0 | BU42: 0 | BV42: 0 | BW42: 0 | BX42: 0 | BY42: 0 | BZ42: 0 | CA42: 0 | CB42: 0 | CC42: 0 | CD42: 0 | CE42: 0 | CF42: 0 | CG42: 0 | CH42: 0 | CI42: 0 | CJ42: 0 | CK42: 0 | CL42: 0 | CM42: 0 | CN42: 0 | CO42: 0 | CP42: 0 | CQ42: 0 | CR42: 0 | CS42: 0 | CT42: 0 | CU42: 0 | CV42: 0 | CW42: 0 | CX42: 0 | CY42: 0 | CZ42: 0 | DA42: 0 | DB42: 0
D43: Total Battery Periods | E43: =(E42+1)*F6 -> 45 | G43: =(G4<=$E$43)*1 -> 1 | H43: 1 | I43: 1 | J43: 1 | K43: 1 | L43: 1 | M43: 1 | N43: 1 | O43: 1 | P43: 1 | Q43: 1 | R43: 1 | S43: 1 | T43: 1 | U43: 1 | V43: 1 | W43: 1 | X43: 1 | Y43: 1 | Z43: 1 | AA43: 1 | AB43: 1 | AC43: 1 | AD43: 1 | AE43: 1 | AF43: 1 | AG43: 1 | AH43: 1 | AI43: 1 | AJ43: 1 | AK43: 1 | AL43: 1 | AM43: =(AM4<=$E$43)*1 -> 1 | AN43: 1 | AO43: 1 | AP43: 1 | AQ43: 1 | AR43: 1 | AS43: 1 | AT43: 1 | AU43: 1 | AV43: 1 | AW43: 1 | AX43: 1 | AY43: 1 | AZ43: 0 | BA43: 0 | BB43: 0 | BC43: 0 | BD43: 0 | BE43: 0 | BF43: 0 | BG43: 0 | BH43: 0 | BI43: 0 | BJ43: 0 | BK43: 0 | BL43: 0 | BM43: 0 | BN43: 0 | BO43: 0 | BP43: 0 | BQ43: 0 | BR43: 0 | BS43: =(BS4<=$E$43)*1 -> 0 | BT43: 0 | BU43: 0 | BV43: 0 | BW43: 0 | BX43: 0 | BY43: 0 | BZ43: 0 | CA43: 0 | CB43: 0 | CC43: 0 | CD43: 0 | CE43: 0 | CF43: 0 | CG43: 0 | CH43: 0 | CI43: 0 | CJ43: 0 | CK43: 0 | CL43: 0 | CM43: 0 | CN43: 0 | CO43: 0 | CP43: 0 | CQ43: 0 | CR43: 0 | CS43: 0 | CT43: 0 | CU43: 0 | CV43: 0 | CW43: 0 | CX43: 0 | CY43: 0 | CZ43: 0 | DA43: 0 | DB43: 0
D44: Replacement Period Counter | G44: =F44+G42 -> 0 | H44: =G44+G42 -> 0 | I44: =H44+H42 -> 0 | J44: 0 | K44: 0 | L44: 0 | M44: 0 | N44: 0 | O44: 0 | P44: 0 | Q44: 0 | R44: 0 | S44: 0 | T44: 0 | U44: 0 | V44: 1 | W44: 1 | X44: 1 | Y44: 1 | Z44: 1 | AA44: 1 | AB44: 1 | AC44: 1 | AD44: 1 | AE44: 1 | AF44: 1 | AG44: 1 | AH44: 1 | AI44: 1 | AJ44: 1 | AK44: 2 | AL44: 2 | AM44: 2 | AN44: 2 | AO44: 2 | AP44: 2 | AQ44: 2 | AR44: 2 | AS44: 2 | AT44: 2 | AU44: 2 | AV44: 2 | AW44: 2 | AX44: 2 | AY44: 2 | AZ44: 2 | BA44: 2 | BB44: 2 | BC44: 2 | BD44: 2 | BE44: 2 | BF44: 2 | BG44: 2 | BH44: 2 | BI44: 2 | BJ44: 2 | BK44: 2 | BL44: 2 | BM44: 2 | BN44: 2 | BO44: 2 | BP44: 2 | BQ44: 2 | BR44: 2 | BS44: 2 | BT44: 2 | BU44: =BT44+BT42 -> 2 | BV44: 2 | BW44: 2 | BX44: 2 | BY44: 2 | BZ44: 2 | CA44: 2 | CB44: 2 | CC44: 2 | CD44: 2 | CE44: 2 | CF44: 2 | CG44: 2 | CH44: 2 | CI44: 2 | CJ44: 2 | CK44: 2 | CL44: 2 | CM44: 2 | CN44: 2 | CO44: 2 | CP44: 2 | CQ44: 2 | CR44: 2 | CS44: 2 | CT44: 2 | CU44: 2 | CV44: 2 | CW44: 2 | CX44: 2 | CY44: 2 | CZ44: 2 | DA44: 2 | DB44: 2
D45: Replacement Period | G45: =AND(G44>=1,G43) -> FALSE | H45: =AND(H44>=1,H43) -> FALSE | I45: FALSE | J45: FALSE | K45: FALSE | L45: FALSE | M45: FALSE | N45: FALSE | O45: FALSE | P45: FALSE | Q45: FALSE | R45: FALSE | S45: FALSE | T45: FALSE | U45: FALSE | V45: TRUE | W45: TRUE | X45: TRUE | Y45: TRUE | Z45: TRUE | AA45: TRUE | AB45: TRUE | AC45: TRUE | AD45: TRUE | AE45: TRUE | AF45: TRUE | AG45: TRUE | AH45: TRUE | AI45: TRUE | AJ45: TRUE | AK45: TRUE | AL45: TRUE | AM45: TRUE | AN45: TRUE | AO45: TRUE | AP45: TRUE | AQ45: TRUE | AR45: TRUE | AS45: TRUE | AT45: TRUE | AU45: TRUE | AV45: TRUE | AW45: TRUE | AX45: TRUE | AY45: TRUE | AZ45: FALSE | BA45: FALSE | BB45: FALSE | BC45: FALSE | BD45: FALSE | BE45: FALSE | BF45: FALSE | BG45: FALSE | BH45: FALSE | BI45: FALSE | BJ45: FALSE | BK45: FALSE | BL45: FALSE | BM45: FALSE | BN45: FALSE | BO45: FALSE | BP45: FALSE | BQ45: FALSE | BR45: FALSE | BS45: FALSE | BT45: =AND(BT44>=1,BT43) -> FALSE | BU45: FALSE | BV45: FALSE | BW45: FALSE | BX45: FALSE | BY45: FALSE | BZ45: FALSE | CA45: FALSE | CB45: FALSE | CC45: FALSE | CD45: FALSE | CE45: FALSE | CF45: FALSE | CG45: FALSE | CH45: FALSE | CI45: FALSE | CJ45: FALSE | CK45: FALSE | CL45: FALSE | CM45: FALSE | CN45: FALSE | CO45: FALSE | CP45: FALSE | CQ45: FALSE | CR45: FALSE | CS45: FALSE | CT45: FALSE | CU45: FALSE | CV45: FALSE | CW45: FALSE | CX45: FALSE | CY45: FALSE | CZ45: FALSE | DA45: FALSE | DB45: FALSE
D47: Initial Cap Exp | F47: =F85 -> -2100
D48: Replacement Cap Exp with Learning | E48: =F25 -> 751.8684007 | G48: =-$E$48*G42 -> 0 | H48: =-$E$48*H42 -> 0 | I48: 0 | J48: 0 | K48: 0 | L48: 0 | M48: 0 | N48: 0 | O48: 0 | P48: 0 | Q48: 0 | R48: 0 | S48: 0 | T48: 0 | U48: -751.8684007 | V48: 0 | W48: 0 | X48: 0 | Y48: 0 | Z48: 0 | AA48: 0 | AB48: 0 | AC48: 0 | AD48: 0 | AE48: 0 | AF48: 0 | AG48: 0 | AH48: 0 | AI48: 0 | AJ48: -751.8684007 | AK48: 0 | AL48: 0 | AM48: 0 | AN48: 0 | AO48: 0 | AP48: 0 | AQ48: 0 | AR48: 0 | AS48: 0 | AT48: 0 | AU48: 0 | AV48: 0 | AW48: 0 | AX48: 0 | AY48: 0 | AZ48: 0 | BA48: 0 | BB48: 0 | BC48: 0 | BD48: 0 | BE48: 0 | BF48: 0 | BG48: 0 | BH48: 0 | BI48: 0 | BJ48: 0 | BK48: 0 | BL48: 0 | BM48: 0 | BN48: 0 | BO48: 0 | BP48: 0 | BQ48: 0 | BR48: 0 | BS48: 0 | BT48: =-$E$48*BT42 -> 0 | BU48: 0 | BV48: 0 | BW48: 0 | BX48: 0 | BY48: 0 | BZ48: 0 | CA48: 0 | CB48: 0 | CC48: 0 | CD48: 0 | CE48: 0 | CF48: 0 | CG48: 0 | CH48: 0 | CI48: 0 | CJ48: 0 | CK48: 0 | CL48: 0 | CM48: 0 | CN48: 0 | CO48: 0 | CP48: 0 | CQ48: 0 | CR48: 0 | CS48: 0 | CT48: 0 | CU48: 0 | CV48: 0 | CW48: 0 | CX48: 0 | CY48: 0 | CZ48: 0 | DA48: 0 | DB48: 0
D49: Solar Inflow | E49: =$F$28 -> 62.21382307 | G49: =$E$49*G40 -> 62.21382307 | H49: =$E$49*H40 -> 62.21382307 | I49: 62.21382307 | J49: 62.21382307 | K49: 62.21382307 | L49: 62.21382307 | M49: 62.21382307 | N49: 62.21382307 | O49: 62.21382307 | P49: 62.21382307 | Q49: 62.21382307 | R49: 62.21382307 | S49: 62.21382307 | T49: 62.21382307 | U49: 62.21382307 | V49: 62.21382307 | W49: 62.21382307 | X49: 62.21382307 | Y49: 62.21382307 | Z49: 62.21382307 | AA49: 62.21382307 | AB49: 62.21382307 | AC49: 62.21382307 | AD49: 62.21382307 | AE49: 62.21382307 | AF49: 62.21382307 | AG49: 62.21382307 | AH49: 62.21382307 | AI49: 62.21382307 | AJ49: 62.21382307 | AK49: 62.21382307 | AL49: 62.21382307 | AM49: 62.21382307 | AN49: 62.21382307 | AO49: 62.21382307 | AP49: 0 | AQ49: 0 | AR49: 0 | AS49: 0 | AT49: 0 | AU49: 0 | AV49: 0 | AW49: 0 | AX49: 0 | AY49: 0 | AZ49: 0 | BA49: 0 | BB49: 0 | BC49: 0 | BD49: 0 | BE49: 0 | BF49: 0 | BG49: 0 | BH49: 0 | BI49: 0 | BJ49: 0 | BK49: 0 | BL49: 0 | BM49: 0 | BN49: 0 | BO49: 0 | BP49: 0 | BQ49: 0 | BR49: 0 | BS49: 0 | BT49: =$E$49*BT40 -> 0 | BU49: 0 | BV49: 0 | BW49: 0 | BX49: 0 | BY49: 0 | BZ49: 0 | CA49: 0 | CB49: 0 | CC49: 0 | CD49: 0 | CE49: 0 | CF49: 0 | CG49: 0 | CH49: 0 | CI49: 0 | CJ49: 0 | CK49: 0 | CL49: 0 | CM49: 0 | CN49: 0 | CO49: 0 | CP49: 0 | CQ49: 0 | CR49: 0 | CS49: 0 | CT49: 0 | CU49: 0 | CV49: 0 | CW49: 0 | CX49: 0 | CY49: 0 | CZ49: 0 | DA49: 0 | DB49: 0
D50: Battery Cash Inflow - Initial | E50: =F29 -> 197.2106653 | G50: =$E$50*NOT(G45)*G40 -> 197.2106653 | H50: =$E$50*NOT(H45)*H40 -> 197.2106653 | I50: 197.2106653 | J50: 197.2106653 | K50: 197.2106653 | L50: 197.2106653 | M50: 197.2106653 | N50: 197.2106653 | O50: 197.2106653 | P50: 197.2106653 | Q50: 197.2106653 | R50: 197.2106653 | S50: 197.2106653 | T50: 197.2106653 | U50: 197.2106653 | V50: 0 | W50: 0 | X50: 0 | Y50: 0 | Z50: 0 | AA50: 0 | AB50: 0 | AC50: 0 | AD50: 0 | AE50: 0 | AF50: 0 | AG50: 0 | AH50: 0 | AI50: 0 | AJ50: 0 | AK50: 0 | AL50: 0 | AM50: 0 | AN50: 0 | AO50: 0 | AP50: 0 | AQ50: 0 | AR50: 0 | AS50: 0 | AT50: 0 | AU50: 0 | AV50: 0 | AW50: 0 | AX50: 0 | AY50: 0 | AZ50: 0 | BA50: 0 | BB50: 0 | BC50: 0 | BD50: 0 | BE50: 0 | BF50: 0 | BG50: 0 | BH50: 0 | BI50: 0 | BJ50: 0 | BK50: 0 | BL50: 0 | BM50: 0 | BN50: 0 | BO50: 0 | BP50: 0 | BQ50: 0 | BR50: 0 | BS50: 0 | BT50: =$E$50*NOT(BT45)*BT40 -> 0 | BU50: 0 | BV50: 0 | BW50: 0 | BX50: 0 | BY50: 0 | BZ50: 0 | CA50: 0 | CB50: 0 | CC50: 0 | CD50: 0 | CE50: 0 | CF50: 0 | CG50: 0 | CH50: 0 | CI50: 0 | CJ50: 0 | CK50: 0 | CL50: 0 | CM50: 0 | CN50: 0 | CO50: 0 | CP50: 0 | CQ50: 0 | CR50: 0 | CS50: 0 | CT50: 0 | CU50: 0 | CV50: 0 | CW50: 0 | CX50: 0 | CY50: 0 | CZ50: 0 | DA50: 0 | DB50: 0
D51: Battery Cash Inflow - Replacement | E51: =F30 -> 98.85097836 | G51: =$E$51*G45 -> 0 | H51: =$E$51*H45 -> 0 | I51: 0 | J51: 0 | K51: 0 | L51: 0 | M51: 0 | N51: 0 | O51: 0 | P51: 0 | Q51: 0 | R51: 0 | S51: 0 | T51: 0 | U51: 0 | V51: 98.85097836 | W51: 98.85097836 | X51: 98.85097836 | Y51: 98.85097836 | Z51: 98.85097836 | AA51: 98.85097836 | AB51: 98.85097836 | AC51: 98.85097836 | AD51: 98.85097836 | AE51: 98.85097836 | AF51: 98.85097836 | AG51: 98.85097836 | AH51: 98.85097836 | AI51: 98.85097836 | AJ51: 98.85097836 | AK51: 98.85097836 | AL51: 98.85097836 | AM51: 98.85097836 | AN51: 98.85097836 | AO51: 98.85097836 | AP51: 98.85097836 | AQ51: 98.85097836 | AR51: 98.85097836 | AS51: 98.85097836 | AT51: 98.85097836 | AU51: 98.85097836 | AV51: 98.85097836 | AW51: 98.85097836 | AX51: 98.85097836 | AY51: 98.85097836 | AZ51: 0 | BA51: 0 | BB51: 0 | BC51: 0 | BD51: 0 | BE51: 0 | BF51: 0 | BG51: 0 | BH51: 0 | BI51: 0 | BJ51: 0 | BK51: 0 | BL51: 0 | BM51: 0 | BN51: 0 | BO51: 0 | BP51: 0 | BQ51: 0 | BR51: 0 | BS51: 0 | BT51: =$E$51*BT45 -> 0 | BU51: 0 | BV51: 0 | BW51: 0 | BX51: 0 | BY51: 0 | BZ51: 0 | CA51: 0 | CB51: 0 | CC51: 0 | CD51: 0 | CE51: 0 | CF51: 0 | CG51: 0 | CH51: 0 | CI51: 0 | CJ51: 0 | CK51: 0 | CL51: 0 | CM51: 0 | CN51: 0 | CO51: 0 | CP51: 0 | CQ51: 0 | CR51: 0 | CS51: 0 | CT51: 0 | CU51: 0 | CV51: 0 | CW51: 0 | CX51: 0 | CY51: 0 | CZ51: 0 | DA51: 0 | DB51: 0
D52: Total Cash Flow | F52: =F47+F48+F49+F50 -> -2100 | G52: =G47+G48+G49+G50+G51 -> 259.4244884 | H52: =H47+H48+H49+H50+H51 -> 259.4244884 | I52: 259.4244884 | J52: 259.4244884 | K52: 259.4244884 | L52: 259.4244884 | M52: 259.4244884 | N52: 259.4244884 | O52: 259.4244884 | P52: 259.4244884 | Q52: 259.4244884 | R52: 259.4244884 | S52: 259.4244884 | T52: 259.4244884 | U52: -492.4439123 | V52: 161.0648014 | W52: 161.0648014 | X52: 161.0648014 | Y52: 161.0648014 | Z52: 161.0648014 | AA52: 161.0648014 | AB52: 161.0648014 | AC52: 161.0648014 | AD52: 161.0648014 | AE52: 161.0648014 | AF52: 161.0648014 | AG52: 161.0648014 | AH52: 161.0648014 | AI52: 161.0648014 | AJ52: -590.8035993 | AK52: 161.0648014 | AL52: 161.0648014 | AM52: 161.0648014 | AN52: 161.0648014 | AO52: 161.0648014 | AP52: 98.85097836 | AQ52: 98.85097836 | AR52: 98.85097836 | AS52: 98.85097836 | AT52: 98.85097836 | AU52: 98.85097836 | AV52: 98.85097836 | AW52: 98.85097836 | AX52: 98.85097836 | AY52: 98.85097836 | AZ52: 0 | BA52: 0 | BB52: 0 | BC52: 0 | BD52: 0 | BE52: 0 | BF52: 0 | BG52: 0 | BH52: 0 | BI52: 0 | BJ52: 0 | BK52: 0 | BL52: 0 | BM52: 0 | BN52: 0 | BO52: 0 | BP52: 0 | BQ52: 0 | BR52: 0 | BS52: 0 | BT52: =BT47+BT48+BT49+BT50+BT51 -> 0 | BU52: 0 | BV52: 0 | BW52: 0 | BX52: 0 | BY52: 0 | BZ52: 0 | CA52: 0 | CB52: 0 | CC52: 0 | CD52: 0 | CE52: 0 | CF52: 0 | CG52: 0 | CH52: 0 | CI52: 0 | CJ52: 0 | CK52: 0 | CL52: 0 | CM52: 0 | CN52: 0 | CO52: 0 | CP52: 0 | CQ52: 0 | CR52: 0 | CS52: 0 | CT52: 0 | CU52: 0 | CV52: 0 | CW52: 0 | CX52: 0 | CY52: 0 | CZ52: 0 | DA52: 0 | DB52: 0
D54: PV Factor | G54: =1/(1+$F$27)^G4 -> 0.9090909091 | H54: 0.826446281 | I54: 0.7513148009 | J54: 0.6830134554 | K54: 0.6209213231 | L54: 0.5644739301 | M54: 0.5131581182 | N54: 0.4665073802 | O54: 0.4240976184 | P54: 0.3855432894 | Q54: 0.3504938995 | R54: 0.3186308177 | S54: 0.2896643797 | T54: 0.2633312543 | U54: 0.2393920494 | V54: 0.2176291358 | W54: 0.1978446689 | X54: 0.1798587899 | Y54: 0.1635079908 | Z54: 0.148643628 | AA54: 0.1351305709 | AB54: 0.1228459736 | AC54: 0.1116781578 | AD54: 0.101525598 | AE54: 0.09229599818 | AF54: 0.08390545289 | AG54: 0.07627768444 | AH54: 0.06934334949 | AI54: 0.06303940863 | AJ54: 0.0573085533 | AK54: 0.05209868482 | AL54: 0.04736244074 | AM54: 0.04305676431 | AN54: 0.03914251301 | AO54: 0.03558410274 | AP54: 0.03234918431 | AQ54: 0.02940834937 | AR54: 0.02673486306 | AS54: 0.02430442097 | AT54: 0 | AU54: 0 | AV54: 0 | AW54: 0 | AX54: 0 | AY54: 0 | AZ54: 0 | BA54: 0 | BB54: 0 | BC54: 0 | BD54: 0 | BE54: 0 | BF54: 0 | BG54: 0 | BH54: 0 | BI54: 0 | BJ54: 0 | BK54: 0 | BL54: 0 | BM54: 0 | BN54: 0 | BO54: 0 | BP54: 0 | BQ54: 0 | BR54: 0 | BS54: 0 | BT54: 0 | BU54: 0 | BV54: 0 | BW54: 0 | BX54: 0 | BY54: 0 | BZ54: 0 | CA54: 0 | CB54: 0 | CC54: 0 | CD54: 0 | CE54: 0 | CF54: 0 | CG54: 0 | CH54: 0 | CI54: 0 | CJ54: 0 | CK54: 0 | CL54: 0 | CM54: 0 | CN54: 0 | CO54: 0 | CP54: 0 | CQ54: 0 | CR54: 0 | CS54: 0 | CT54: 0 | CU54: 0 | CV54: 0 | CW54: 0 | CX54: 0 | CY54: 0 | CZ54: 0 | DA54: 0 | DB54: 0
G55: =G54/SUM(54:54) -> 0.09317362184 | H55: =H54/SUM(54:54) -> 0.08470329258 | I55: 0.07700299325 | J55: 0.07000272114 | K55: 0.0636388374 | L55: 0.05785348855 | M55: 0.0525940805 | N55: 0.04781280045 | O55: 0.04346618223 | P55: 0.03951471112 | Q55: 0.03592246465 | R55: 0.03265678605 | S55: 0.02968798732
D57: IRR | E57: =IRR(F52:DB52) -> 0.1
E58: =NPV(F27,F52:DB52) -> -1.149383619e-12
D61: Initial Cap Exp | F61: =F47 -> -2100
D62: Replacement Cap Exp with Learning | G62: =G48 -> 0 | H62: =H48 -> 0 | I62: 0 | J62: 0 | K62: 0 | L62: 0 | M62: 0 | N62: 0 | O62: 0 | P62: 0 | Q62: 0 | R62: 0 | S62: 0 | T62: 0 | U62: -751.8684007 | V62: 0 | W62: 0 | X62: 0 | Y62: 0 | Z62: 0 | AA62: 0 | AB62: 0 | AC62: 0 | AD62: 0 | AE62: 0 | AF62: 0 | AG62: 0 | AH62: 0 | AI62: 0 | AJ62: -751.8684007 | AK62: 0 | AL62: 0 | AM62: 0 | AN62: 0 | AO62: 0 | AP62: 0 | AQ62: 0 | AR62: 0 | AS62: 0 | AT62: 0 | AU62: 0 | AV62: 0 | AW62: 0 | AX62: 0 | AY62: 0 | AZ62: 0 | BA62: 0 | BB62: 0 | BC62: 0 | BD62: 0 | BE62: 0 | BF62: 0 | BG62: 0 | BH62: 0 | BI62: 0 | BJ62: 0 | BK62: 0 | BL62: 0 | BM62: 0 | BN62: 0 | BO62: 0 | BP62: 0 | BQ62: 0 | BR62: 0 | BS62: 0 | BT62: =BT48 -> 0 | BU62: 0 | BV62: 0 | BW62: 0 | BX62: 0 | BY62: 0 | BZ62: 0 | CA62: 0 | CB62: 0 | CC62: 0 | CD62: 0 | CE62: 0 | CF62: 0 | CG62: 0 | CH62: 0 | CI62: 0 | CJ62: 0 | CK62: 0 | CL62: 0 | CM62: 0 | CN62: 0 | CO62: 0 | CP62: 0 | CQ62: 0 | CR62: 0 | CS62: 0 | CT62: 0 | CU62: 0 | CV62: 0 | CW62: 0 | CX62: 0 | CY62: 0 | CZ62: 0 | DA62: 0 | DB62: 0
D63: Solar Inflow | E63: =F28 -> 62.21382307 | G63: =$E$63*G40 -> 62.21382307 | H63: 62.21382307 | I63: 62.21382307 | J63: 62.21382307 | K63: 62.21382307 | L63: 62.21382307 | M63: 62.21382307 | N63: 62.21382307 | O63: 62.21382307 | P63: 62.21382307 | Q63: 62.21382307 | R63: 62.21382307 | S63: 62.21382307 | T63: 62.21382307 | U63: 62.21382307 | V63: 62.21382307 | W63: 62.21382307 | X63: 62.21382307 | Y63: 62.21382307 | Z63: 62.21382307 | AA63: 62.21382307 | AB63: 62.21382307 | AC63: 62.21382307 | AD63: 62.21382307 | AE63: 62.21382307 | AF63: 62.21382307 | AG63: 62.21382307 | AH63: 62.21382307 | AI63: 62.21382307 | AJ63: 62.21382307 | AK63: 62.21382307 | AL63: 62.21382307 | AM63: =$E$63*AM40 -> 62.21382307 | AN63: 62.21382307 | AO63: 62.21382307 | AP63: 0 | AQ63: 0 | AR63: 0 | AS63: 0 | AT63: 0 | AU63: 0 | AV63: 0 | AW63: 0 | AX63: 0 | AY63: 0 | AZ63: 0 | BA63: 0 | BB63: 0 | BC63: 0 | BD63: 0 | BE63: 0 | BF63: 0 | BG63: 0 | BH63: 0 | BI63: 0 | BJ63: 0 | BK63: 0 | BL63: 0 | BM63: 0 | BN63: 0 | BO63: 0 | BP63: 0 | BQ63: 0 | BR63: 0 | BS63: =$E$63*BS40 -> 0 | BT63: 0 | BU63: 0 | BV63: 0 | BW63: 0 | BX63: 0 | BY63: 0 | BZ63: 0 | CA63: 0 | CB63: 0 | CC63: 0 | CD63: 0 | CE63: 0 | CF63: 0 | CG63: 0 | CH63: 0 | CI63: 0 | CJ63: 0 | CK63: 0 | CL63: 0 | CM63: 0 | CN63: 0 | CO63: 0 | CP63: 0 | CQ63: 0 | CR63: 0 | CS63: 0 | CT63: 0 | CU63: 0 | CV63: 0 | CW63: 0 | CX63: 0 | CY63: 0 | CZ63: 0 | DA63: 0 | DB63: 0
D64: Battery Cash Inflow - Weighted Average | E64: =F35 -> 174.7047929 | G64: =$E$64*G43 -> 174.7047929 | H64: =$E$64*H43 -> 174.7047929 | I64: 174.7047929 | J64: 174.7047929 | K64: 174.7047929 | L64: 174.7047929 | M64: 174.7047929 | N64: 174.7047929 | O64: 174.7047929 | P64: 174.7047929 | Q64: 174.7047929 | R64: 174.7047929 | S64: 174.7047929 | T64: 174.7047929 | U64: 174.7047929 | V64: 174.7047929 | W64: 174.7047929 | X64: 174.7047929 | Y64: 174.7047929 | Z64: 174.7047929 | AA64: 174.7047929 | AB64: 174.7047929 | AC64: 174.7047929 | AD64: 174.7047929 | AE64: 174.7047929 | AF64: 174.7047929 | AG64: 174.7047929 | AH64: 174.7047929 | AI64: 174.7047929 | AJ64: 174.7047929 | AK64: 174.7047929 | AL64: 174.7047929 | AM64: 174.7047929 | AN64: 174.7047929 | AO64: 174.7047929 | AP64: 174.7047929 | AQ64: 174.7047929 | AR64: 174.7047929 | AS64: 174.7047929 | AT64: 174.7047929 | AU64: 174.7047929 | AV64: 174.7047929 | AW64: 174.7047929 | AX64: 174.7047929 | AY64: 174.7047929 | AZ64: 0 | BA64: 0 | BB64: 0 | BC64: 0 | BD64: 0 | BE64: 0 | BF64: 0 | BG64: 0 | BH64: 0 | BI64: 0 | BJ64: 0 | BK64: 0 | BL64: 0 | BM64: 0 | BN64: 0 | BO64: 0 | BP64: 0 | BQ64: 0 | BR64: 0 | BS64: 0 | BT64: =$E$64*BT43 -> 0 | BU64: 0 | BV64: 0 | BW64: 0 | BX64: 0 | BY64: 0 | BZ64: 0 | CA64: 0 | CB64: 0 | CC64: 0 | CD64: 0 | CE64: 0 | CF64: 0 | CG64: 0 | CH64: 0 | CI64: 0 | CJ64: 0 | CK64: 0 | CL64: 0 | CM64: 0 | CN64: 0 | CO64: 0 | CP64: 0 | CQ64: 0 | CR64: 0 | CS64: 0 | CT64: 0 | CU64: 0 | CV64: 0 | CW64: 0 | CX64: 0 | CY64: 0 | CZ64: 0 | DA64: 0 | DB64: 0
D65: Total Cash Flow | F65: =F61+F62+F63+F64 -> -2100 | G65: =G61+G62+G63+G64 -> 236.9186159 | H65: 236.9186159 | I65: 236.9186159 | J65: 236.9186159 | K65: 236.9186159 | L65: 236.9186159 | M65: 236.9186159 | N65: 236.9186159 | O65: 236.9186159 | P65: 236.9186159 | Q65: 236.9186159 | R65: 236.9186159 | S65: 236.9186159 | T65: 236.9186159 | U65: -514.9497848 | V65: 236.9186159 | W65: 236.9186159 | X65: 236.9186159 | Y65: 236.9186159 | Z65: 236.9186159 | AA65: 236.9186159 | AB65: 236.9186159 | AC65: 236.9186159 | AD65: 236.9186159 | AE65: 236.9186159 | AF65: 236.9186159 | AG65: 236.9186159 | AH65: 236.9186159 | AI65: 236.9186159 | AJ65: -514.9497848 | AK65: 236.9186159 | AL65: 236.9186159 | AM65: 236.9186159 | AN65: 236.9186159 | AO65: 236.9186159 | AP65: 174.7047929 | AQ65: 174.7047929 | AR65: 174.7047929 | AS65: 174.7047929 | AT65: 174.7047929 | AU65: 174.7047929 | AV65: 174.7047929 | AW65: 174.7047929 | AX65: 174.7047929 | AY65: 174.7047929 | AZ65: 0 | BA65: 0 | BB65: 0 | BC65: 0 | BD65: 0 | BE65: 0 | BF65: 0 | BG65: 0 | BH65: 0 | BI65: 0 | BJ65: 0 | BK65: 0 | BL65: 0 | BM65: 0 | BN65: 0 | BO65: 0 | BP65: 0 | BQ65: 0 | BR65: 0 | BS65: =BS61+BS62+BS63+BS64 -> 0 | BT65: 0 | BU65: 0 | BV65: 0 | BW65: 0 | BX65: 0 | BY65: 0 | BZ65: 0 | CA65: 0 | CB65: 0 | CC65: 0 | CD65: 0 | CE65: 0 | CF65: 0 | CG65: 0 | CH65: 0 | CI65: 0 | CJ65: 0 | CK65: 0 | CL65: 0 | CM65: 0 | CN65: 0 | CO65: 0 | CP65: 0 | CQ65: 0 | CR65: 0 | CS65: 0 | CT65: 0 | CU65: 0 | CV65: 0 | CW65: 0 | CX65: 0 | CY65: 0 | CZ65: 0 | DA65: 0 | DB65: 0
D67: IRR Check | E67: =IRR(F65:DB65) -> 0.1
D69: Value of Residual | AJ69: =NPV(E57,AK52:DB52) -> 987.7077381
D70: PV Residual | AJ70: =PV(E57,9,AK52) -> -927.5760274
B72: Case 3: Cash Flow with Replacement Cost
D73: Final Solar Period | E73: =F2 -> 35 | G73: =($E$73=G4)*1 -> 0 | H73: 0 | I73: 0 | J73: 0 | K73: 0 | L73: 0 | M73: 0 | N73: 0 | O73: 0 | P73: 0 | Q73: 0 | R73: 0 | S73: 0 | T73: 0 | U73: 0 | V73: 0 | W73: 0 | X73: 0 | Y73: 0 | Z73: 0 | AA73: 0 | AB73: 0 | AC73: 0 | AD73: 0 | AE73: 0 | AF73: 0 | AG73: 0 | AH73: 0 | AI73: 0 | AJ73: 0 | AK73: 0 | AL73: 0 | AM73: =($E$73=AM4)*1 -> 0 | AN73: 0 | AO73: 1 | AP73: 0 | AQ73: 0 | AR73: 0 | AS73: 0 | AT73: 0 | AU73: 0 | AV73: 0 | AW73: 0 | AX73: 0 | AY73: 0 | AZ73: 0 | BA73: 0 | BB73: 0 | BC73: 0 | BD73: 0 | BE73: 0 | BF73: 0 | BG73: 0 | BH73: 0 | BI73: 0 | BJ73: 0 | BK73: 0 | BL73: 0 | BM73: 0 | BN73: 0 | BO73: 0 | BP73: 0 | BQ73: 0 | BR73: 0 | BS73: =($E$73=BS4)*1 -> 0 | BT73: 0 | BU73: 0 | BV73: 0 | BW73: 0 | BX73: 0 | BY73: 0 | BZ73: 0 | CA73: 0 | CB73: 0 | CC73: 0 | CD73: 0 | CE73: 0 | CF73: 0 | CG73: 0 | CH73: 0 | CI73: 0 | CJ73: 0 | CK73: 0 | CL73: 0 | CM73: 0 | CN73: 0 | CO73: 0 | CP73: 0 | CQ73: 0 | CR73: 0 | CS73: 0 | CT73: 0 | CU73: 0 | CV73: 0 | CW73: 0 | CX73: 0 | CY73: 0 | CZ73: 0 | DA73: 0 | DB73: 0
D74: Total Cash Flow without Residual | F74: =F52 -> -2100 | G74: =G52*G40 -> 259.4244884 | H74: 259.4244884 | I74: 259.4244884 | J74: 259.4244884 | K74: 259.4244884 | L74: 259.4244884 | M74: 259.4244884 | N74: 259.4244884 | O74: 259.4244884 | P74: 259.4244884 | Q74: 259.4244884 | R74: 259.4244884 | S74: 259.4244884 | T74: 259.4244884 | U74: -492.4439123 | V74: 161.0648014 | W74: 161.0648014 | X74: 161.0648014 | Y74: 161.0648014 | Z74: 161.0648014 | AA74: 161.0648014 | AB74: 161.0648014 | AC74: 161.0648014 | AD74: 161.0648014 | AE74: 161.0648014 | AF74: 161.0648014 | AG74: 161.0648014 | AH74: 161.0648014 | AI74: 161.0648014 | AJ74: -590.8035993 | AK74: 161.0648014 | AL74: 161.0648014 | AM74: =AM52*AM40 -> 161.0648014 | AN74: 161.0648014 | AO74: 161.0648014 | AP74: 0 | AQ74: 0 | AR74: 0 | AS74: 0 | AT74: 0 | AU74: 0 | AV74: 0 | AW74: 0 | AX74: 0 | AY74: 0 | AZ74: 0 | BA74: 0 | BB74: 0 | BC74: 0 | BD74: 0 | BE74: 0 | BF74: 0 | BG74: 0 | BH74: 0 | BI74: 0 | BJ74: 0 | BK74: 0 | BL74: 0 | BM74: 0 | BN74: 0 | BO74: 0 | BP74: 0 | BQ74: 0 | BR74: 0 | BS74: =BS52*BS40 -> 0 | BT74: 0 | BU74: 0 | BV74: 0 | BW74: 0 | BX74: 0 | BY74: 0 | BZ74: 0 | CA74: 0 | CB74: 0 | CC74: 0 | CD74: 0 | CE74: 0 | CF74: 0 | CG74: 0 | CH74: 0 | CI74: 0 | CJ74: 0 | CK74: 0 | CL74: 0 | CM74: 0 | CN74: 0 | CO74: 0 | CP74: 0 | CQ74: 0 | CR74: 0 | CS74: 0 | CT74: 0 | CU74: 0 | CV74: 0 | CW74: 0 | CX74: 0 | CY74: 0 | CZ74: 0 | DA74: 0 | DB74: 0
D75: Residual Value | E75: =F37 -> 1211.774167 | G75: =$E$75*G73 -> 0 | H75: =$E$75*H73 -> 0 | I75: 0 | J75: 0 | K75: 0 | L75: 0 | M75: 0 | N75: 0 | O75: 0 | P75: 0 | Q75: 0 | R75: 0 | S75: 0 | T75: 0 | U75: 0 | V75: 0 | W75: 0 | X75: 0 | Y75: 0 | Z75: 0 | AA75: 0 | AB75: 0 | AC75: 0 | AD75: 0 | AE75: 0 | AF75: 0 | AG75: 0 | AH75: 0 | AI75: 0 | AJ75: 0 | AK75: 0 | AL75: 0 | AM75: 0 | AN75: 0 | AO75: 1211.774167 | AP75: 0 | AQ75: 0 | AR75: 0 | AS75: 0 | AT75: 0 | AU75: 0 | AV75: 0 | AW75: 0 | AX75: 0 | AY75: 0 | AZ75: 0 | BA75: 0 | BB75: 0 | BC75: 0 | BD75: 0 | BE75: 0 | BF75: 0 | BG75: 0 | BH75: 0 | BI75: 0 | BJ75: 0 | BK75: 0 | BL75: 0 | BM75: 0 | BN75: 0 | BO75: 0 | BP75: 0 | BQ75: 0 | BR75: 0 | BS75: 0 | BT75: =$E$75*BT73 -> 0 | BU75: 0 | BV75: 0 | BW75: 0 | BX75: 0 | BY75: 0 | BZ75: 0 | CA75: 0 | CB75: 0 | CC75: 0 | CD75: 0 | CE75: 0 | CF75: 0 | CG75: 0 | CH75: 0 | CI75: 0 | CJ75: 0 | CK75: 0 | CL75: 0 | CM75: 0 | CN75: 0 | CO75: 0 | CP75: 0 | CQ75: 0 | CR75: 0 | CS75: 0 | CT75: 0 | CU75: 0 | CV75: 0 | CW75: 0 | CX75: 0 | CY75: 0 | CZ75: 0 | DA75: 0 | DB75: 0
D76: Total Cash Flow with Residual | F76: =F74+F75 -> -2100 | G76: =G74+G75 -> 259.4244884 | H76: 259.4244884 | I76: 259.4244884 | J76: 259.4244884 | K76: 259.4244884 | L76: 259.4244884 | M76: 259.4244884 | N76: 259.4244884 | O76: 259.4244884 | P76: 259.4244884 | Q76: 259.4244884 | R76: 259.4244884 | S76: 259.4244884 | T76: 259.4244884 | U76: -492.4439123 | V76: 161.0648014 | W76: 161.0648014 | X76: 161.0648014 | Y76: 161.0648014 | Z76: 161.0648014 | AA76: 161.0648014 | AB76: 161.0648014 | AC76: 161.0648014 | AD76: 161.0648014 | AE76: 161.0648014 | AF76: 161.0648014 | AG76: 161.0648014 | AH76: 161.0648014 | AI76: 161.0648014 | AJ76: -590.8035993 | AK76: 161.0648014 | AL76: 161.0648014 | AM76: 161.0648014 | AN76: 161.0648014 | AO76: 1372.838969 | AP76: 0 | AQ76: 0 | AR76: 0 | AS76: 0 | AT76: 0 | AU76: 0 | AV76: 0 | AW76: 0 | AX76: 0 | AY76: 0 | AZ76: 0 | BA76: 0 | BB76: 0 | BC76: 0 | BD76: 0 | BE76: 0 | BF76: 0 | BG76: 0 | BH76: 0 | BI76: 0 | BJ76: 0 | BK76: 0 | BL76: 0 | BM76: 0 | BN76: 0 | BO76: 0 | BP76: 0 | BQ76: 0 | BR76: 0 | BS76: =BS74+BS75 -> 0 | BT76: 0 | BU76: 0 | BV76: 0 | BW76: 0 | BX76: 0 | BY76: 0 | BZ76: 0 | CA76: 0 | CB76: 0 | CC76: 0 | CD76: 0 | CE76: 0 | CF76: 0 | CG76: 0 | CH76: 0 | CI76: 0 | CJ76: 0 | CK76: 0 | CL76: 0 | CM76: 0 | CN76: 0 | CO76: 0 | CP76: 0 | CQ76: 0 | CR76: 0 | CS76: 0 | CT76: 0 | CU76: 0 | CV76: 0 | CW76: 0 | CX76: 0 | CY76: 0 | CZ76: 0 | DA76: 0 | DB76: 0
D78: IRR | E78: =IRR(F76:DB76) -> 0.1013816413
B80: Case 1: LCOE with Different Life
F82: 0 | G82: 1 | H82: 2 | I82: 3 | J82: 4 | K82: 5 | L82: 6 | M82: 7 | N82: 8 | O82: 9 | P82: 10 | Q82: 11 | R82: 12 | S82: 13 | T82: 14 | U82: 15 | V82: 16 | W82: 17 | X82: 18 | Y82: 19 | Z82: 20 | AA82: 21 | AB82: 22 | AC82: 23 | AD82: 24 | AE82: 25 | AF82: 26 | AG82: 27 | AH82: 28 | AI82: 29 | AJ82: 30 | AK82: 31 | AL82: 32 | AM82: 33 | AN82: 34 | AO82: 35 | AP82: 36 | AQ82: 37 | AR82: 38 | AS82: 39 | AT82: 40 | AU82: 41 | AV82: 42 | AW82: 43 | AX82: 44 | AY82: 45 | AZ82: 46 | BA82: 47 | BB82: 48 | BC82: 49 | BD82: 50 | BE82: 51 | BF82: 52 | BG82: 53 | BH82: 54 | BI82: 55 | BJ82: 56 | BK82: 57 | BL82: 58 | BM82: 59 | BN82: 60 | BO82: 61 | BP82: 62 | BQ82: 63 | BR82: 64 | BS82: 65 | BT82: 66 | BU82: 67 | BV82: 68 | BW82: 69 | BX82: 70 | BY82: 71 | BZ82: 72 | CA82: 73 | CB82: 74 | CC82: 75 | CD82: 76 | CE82: 77 | CF82: 78 | CG82: 79 | CH82: 80 | CI82: 81 | CJ82: 82 | CK82: 83 | CL82: 84 | CM82: 85 | CN82: 86 | CO82: 87 | CP82: 88 | CQ82: 89 | CR82: 90 | CS82: 91 | CT82: 92 | CU82: 93 | CV82: 94 | CW82: 95 | CX82: 96 | CY82: 97 | CZ82: 98 | DA82: 99 | DB82: 100
D83: Solar Flag | E83: =F2 -> 35 | G83: =G82<=$E$83 -> TRUE | H83: TRUE | I83: TRUE | J83: TRUE | K83: TRUE | L83: TRUE | M83: TRUE | N83: TRUE | O83: TRUE | P83: TRUE | Q83: TRUE | R83: TRUE | S83: TRUE | T83: TRUE | U83: TRUE | V83: TRUE | W83: TRUE | X83: TRUE | Y83: TRUE | Z83: TRUE | AA83: TRUE | AB83: TRUE | AC83: TRUE | AD83: TRUE | AE83: TRUE | AF83: TRUE | AG83: TRUE | AH83: TRUE | AI83: TRUE | AJ83: TRUE | AK83: TRUE | AL83: TRUE | AM83: =AM82<=$E$83 -> TRUE | AN83: TRUE | AO83: TRUE | AP83: FALSE | AQ83: FALSE | AR83: FALSE | AS83: FALSE | AT83: FALSE | AU83: FALSE | AV83: FALSE | AW83: FALSE | AX83: FALSE | AY83: FALSE | AZ83: FALSE | BA83: FALSE | BB83: FALSE | BC83: FALSE | BD83: FALSE | BE83: FALSE | BF83: FALSE | BG83: FALSE | BH83: FALSE | BI83: FALSE | BJ83: FALSE | BK83: FALSE | BL83: FALSE | BM83: FALSE | BN83: FALSE | BO83: FALSE | BP83: FALSE | BQ83: FALSE | BR83: FALSE | BS83: =BS82<=$E$83 -> FALSE | BT83: FALSE | BU83: FALSE | BV83: FALSE | BW83: FALSE | BX83: FALSE | BY83: FALSE | BZ83: FALSE | CA83: FALSE | CB83: FALSE | CC83: FALSE | CD83: FALSE | CE83: FALSE | CF83: FALSE | CG83: FALSE | CH83: FALSE | CI83: FALSE | CJ83: FALSE | CK83: FALSE | CL83: FALSE | CM83: FALSE | CN83: FALSE | CO83: FALSE | CP83: FALSE | CQ83: FALSE | CR83: FALSE | CS83: FALSE | CT83: FALSE | CU83: FALSE | CV83: FALSE | CW83: FALSE | CX83: FALSE | CY83: =CY82<=$E$83 -> FALSE | CZ83: =CZ82<=$E$83 -> FALSE | DA83: =DA82<=$E$83 -> FALSE | DB83: =DB82<=$E$83 -> FALSE
D84: Battery Flag | E84: =F3 -> 15 | G84: =G82<=$E$84 -> TRUE | H84: TRUE | I84: TRUE | J84: TRUE | K84: TRUE | L84: TRUE | M84: TRUE | N84: TRUE | O84: TRUE | P84: TRUE | Q84: TRUE | R84: TRUE | S84: TRUE | T84: TRUE | U84: TRUE | V84: FALSE | W84: FALSE | X84: FALSE | Y84: FALSE | Z84: FALSE | AA84: FALSE | AB84: FALSE | AC84: FALSE | AD84: FALSE | AE84: FALSE | AF84: FALSE | AG84: FALSE | AH84: FALSE | AI84: FALSE | AJ84: FALSE | AK84: FALSE | AL84: FALSE | AM84: =AM82<=$E$84 -> FALSE | AN84: FALSE | AO84: FALSE | AP84: FALSE | AQ84: FALSE | AR84: FALSE | AS84: FALSE | AT84: FALSE | AU84: FALSE | AV84: FALSE | AW84: FALSE | AX84: FALSE | AY84: FALSE | AZ84: FALSE | BA84: FALSE | BB84: FALSE | BC84: FALSE | BD84: FALSE | BE84: FALSE | BF84: FALSE | BG84: FALSE | BH84: FALSE | BI84: FALSE | BJ84: FALSE | BK84: FALSE | BL84: FALSE | BM84: FALSE | BN84: FALSE | BO84: FALSE | BP84: FALSE | BQ84: FALSE | BR84: FALSE | BS84: =BS82<=$E$84 -> FALSE | BT84: FALSE | BU84: FALSE | BV84: FALSE | BW84: FALSE | BX84: FALSE | BY84: FALSE | BZ84: FALSE | CA84: FALSE | CB84: FALSE | CC84: FALSE | CD84: FALSE | CE84: FALSE | CF84: FALSE | CG84: FALSE | CH84: FALSE | CI84: FALSE | CJ84: FALSE | CK84: FALSE | CL84: FALSE | CM84: FALSE | CN84: FALSE | CO84: FALSE | CP84: FALSE | CQ84: FALSE | CR84: FALSE | CS84: FALSE | CT84: FALSE | CU84: FALSE | CV84: FALSE | CW84: FALSE | CX84: FALSE | CY84: FALSE | CZ84: FALSE | DA84: FALSE | DB84: FALSE
D85: Cash Outflow | F85: =-F20 -> -2100
D86: Solar Inflow | E86: =F28 -> 62.21382307 | G86: =$E$86*G83 -> 62.21382307 | H86: 62.21382307 | I86: 62.21382307 | J86: 62.21382307 | K86: 62.21382307 | L86: 62.21382307 | M86: 62.21382307 | N86: 62.21382307 | O86: 62.21382307 | P86: 62.21382307 | Q86: 62.21382307 | R86: 62.21382307 | S86: 62.21382307 | T86: 62.21382307 | U86: 62.21382307 | V86: 62.21382307 | W86: 62.21382307 | X86: 62.21382307 | Y86: 62.21382307 | Z86: 62.21382307 | AA86: 62.21382307 | AB86: 62.21382307 | AC86: 62.21382307 | AD86: 62.21382307 | AE86: 62.21382307 | AF86: 62.21382307 | AG86: 62.21382307 | AH86: 62.21382307 | AI86: 62.21382307 | AJ86: 62.21382307 | AK86: 62.21382307 | AL86: 62.21382307 | AM86: =$E$86*AM83 -> 62.21382307 | AN86: 62.21382307 | AO86: 62.21382307 | AP86: 0 | AQ86: 0 | AR86: 0 | AS86: 0 | AT86: 0 | AU86: 0 | AV86: 0 | AW86: 0 | AX86: 0 | AY86: 0 | AZ86: 0 | BA86: 0 | BB86: 0 | BC86: 0 | BD86: 0 | BE86: 0 | BF86: 0 | BG86: 0 | BH86: 0 | BI86: 0 | BJ86: 0 | BK86: 0 | BL86: 0 | BM86: 0 | BN86: 0 | BO86: 0 | BP86: 0 | BQ86: 0 | BR86: 0 | BS86: =$E$86*BS83 -> 0 | BT86: 0 | BU86: 0 | BV86: 0 | BW86: 0 | BX86: 0 | BY86: 0 | BZ86: 0 | CA86: 0 | CB86: 0 | CC86: 0 | CD86: 0 | CE86: 0 | CF86: 0 | CG86: 0 | CH86: 0 | CI86: 0 | CJ86: 0 | CK86: 0 | CL86: 0 | CM86: 0 | CN86: 0 | CO86: 0 | CP86: 0 | CQ86: 0 | CR86: 0 | CS86: 0 | CT86: 0 | CU86: 0 | CV86: 0 | CW86: 0 | CX86: 0 | CY86: 0 | CZ86: 0 | DA86: 0 | DB86: 0
D87: Battery Inflow | E87: =F29 -> 197.2106653 | G87: =$E$87*G84 -> 197.2106653 | H87: 197.2106653 | I87: 197.2106653 | J87: 197.2106653 | K87: 197.2106653 | L87: 197.2106653 | M87: 197.2106653 | N87: 197.2106653 | O87: 197.2106653 | P87: 197.2106653 | Q87: 197.2106653 | R87: 197.2106653 | S87: 197.2106653 | T87: 197.2106653 | U87: 197.2106653 | V87: 0 | W87: 0 | X87: 0 | Y87: 0 | Z87: 0 | AA87: 0 | AB87: 0 | AC87: 0 | AD87: 0 | AE87: 0 | AF87: 0 | AG87: 0 | AH87: 0 | AI87: 0 | AJ87: 0 | AK87: 0 | AL87: 0 | AM87: =$E$87*AM84 -> 0 | AN87: 0 | AO87: 0 | AP87: 0 | AQ87: 0 | AR87: 0 | AS87: 0 | AT87: 0 | AU87: 0 | AV87: 0 | AW87: 0 | AX87: 0 | AY87: 0 | AZ87: 0 | BA87: 0 | BB87: 0 | BC87: 0 | BD87: 0 | BE87: 0 | BF87: 0 | BG87: 0 | BH87: 0 | BI87: 0 | BJ87: 0 | BK87: 0 | BL87: 0 | BM87: 0 | BN87: 0 | BO87: 0 | BP87: 0 | BQ87: 0 | BR87: 0 | BS87: =$E$87*BS84 -> 0 | BT87: 0 | BU87: 0 | BV87: 0 | BW87: 0 | BX87: 0 | BY87: 0 | BZ87: 0 | CA87: 0 | CB87: 0 | CC87: 0 | CD87: 0 | CE87: 0 | CF87: 0 | CG87: 0 | CH87: 0 | CI87: 0 | CJ87: 0 | CK87: 0 | CL87: 0 | CM87: 0 | CN87: 0 | CO87: 0 | CP87: 0 | CQ87: 0 | CR87: 0 | CS87: 0 | CT87: 0 | CU87: 0 | CV87: 0 | CW87: 0 | CX87: 0 | CY87: 0 | CZ87: 0 | DA87: 0 | DB87: 0
D88: Total Cash Flow | F88: =F85+F86+F87 -> -2100 | G88: =G85+G86+G87 -> 259.4244884 | H88: 259.4244884 | I88: 259.4244884 | J88: 259.4244884 | K88: 259.4244884 | L88: 259.4244884 | M88: 259.4244884 | N88: 259.4244884 | O88: 259.4244884 | P88: 259.4244884 | Q88: 259.4244884 | R88: 259.4244884 | S88: 259.4244884 | T88: 259.4244884 | U88: 259.4244884 | V88: 62.21382307 | W88: 62.21382307 | X88: 62.21382307 | Y88: 62.21382307 | Z88: 62.21382307 | AA88: 62.21382307 | AB88: 62.21382307 | AC88: 62.21382307 | AD88: 62.21382307 | AE88: 62.21382307 | AF88: 62.21382307 | AG88: 62.21382307 | AH88: 62.21382307 | AI88: 62.21382307 | AJ88: 62.21382307 | AK88: 62.21382307 | AL88: 62.21382307 | AM88: 62.21382307 | AN88: 62.21382307 | AO88: 62.21382307 | AP88: 0 | AQ88: 0 | AR88: 0 | AS88: 0 | AT88: 0 | AU88: 0 | AV88: 0 | AW88: 0 | AX88: 0 | AY88: 0 | AZ88: 0 | BA88: 0 | BB88: 0 | BC88: 0 | BD88: 0 | BE88: 0 | BF88: 0 | BG88: 0 | BH88: 0 | BI88: 0 | BJ88: 0 | BK88: 0 | BL88: 0 | BM88: 0 | BN88: 0 | BO88: 0 | BP88: 0 | BQ88: 0 | BR88: 0 | BS88: =BS85+BS86+BS87 -> 0 | BT88: 0 | BU88: 0 | BV88: 0 | BW88: 0 | BX88: 0 | BY88: 0 | BZ88: 0 | CA88: 0 | CB88: 0 | CC88: 0 | CD88: 0 | CE88: 0 | CF88: 0 | CG88: 0 | CH88: 0 | CI88: 0 | CJ88: 0 | CK88: 0 | CL88: 0 | CM88: 0 | CN88: 0 | CO88: 0 | CP88: 0 | CQ88: 0 | CR88: 0 | CS88: 0 | CT88: 0 | CU88: 0 | CV88: 0 | CW88: 0 | CX88: 0 | CY88: 0 | CZ88: 0 | DA88: 0 | DB88: 0
D90: IRR Check | E90: =IRR(F88:DB88) -> 0.1

Sheet Data for Waterfall Chart
E4: =TRANSPOSE('LCOE Calculator'!H3:N3) -> No tax and No Inflation | F4: =G4 -> 0.08634671853 | G4: =TRANSPOSE('LCOE Calculator'!H6:N6) -> 0.08634671853
E5: Simple Taxes with St Line Depreciation | F5: =G5-G4 -> 0.0220483227 | G5: 0.1083950412
E6: Simple Taxes and Inflation | F6: =G6-G5 -> -0.02809593015 | G6: 0.08029911107
E7: Accelerated Depreciation | F7: -0.01256190054 | G7: 0.06773721054
E8: ITC and Accelerated Depreciation | F8: -0.02035519996 | G8: 0.04738201058
E9: Prior Case with Debt Financing | F9: -0.02135031915 | G9: 0.02603169143
E10: Prior Case with Degradation | G10: 0.02826937985

Sheet Waterfall Chartdata1
O1: =CHOOSE(U1,BF1,BF1,BF1,0,0,0,0,-BF1) -> 0.005756447713 | P1: =CHOOSE(U1,0,BA1,Q1,-BA1,-BA1,0,BA1,-BA1) -> 0 | Q1: =IF(AX1,BA1+R1,0) -> 0 | S1: =CHOOSE(U1,AV1,AV1-BA1,AV1-BA1,AV1,AV1-BF1,AV1,R1-T1,AV1) -> 0.08634671853 | T1: =CHOOSE(U1,0,0,0,AV1-BF1,BF1,-BF1,-BF1,0) -> 0 | U1: =AE1*1+AD1*2+AC1*3+AB1*4+AA1*5+Z1*6+Y1*7+X1*8 -> 1 | V1: =SUMPRODUCT(X1:AE1*1) -> 1 | X1: =AND(AV1<0,BA1>0) -> FALSE | Y1: =AND(BA1<0,AU1<0,NOT(AY1)) -> FALSE | Z1: =AH1 -> FALSE | AA1: =AND(AF1,NOT(AX1),NOT(AB1),NOT(AD1),AU1>0) -> FALSE | AB1: =AND(NOT(AX1),AJ1<0,AF1,NOT(Y1),AG1) -> FALSE | AC1: =AND(AX1,BA1<0) -> FALSE | AD1: =AND(AF1,BA1>0,AV1>0) -> FALSE | AE1: =AND(AY1,AV1>0) -> TRUE | AF1: =NOT(AY1) -> FALSE | AG1: =BA1<0 -> FALSE | AH1: =AND(AV1<0,AY1) -> FALSE | AJ1: =AV1-BF1 -> 0.08059027081 | AU1: =BA1 -> 0.08634671853 | AV1: =BA1 -> 0.08634671853 | AW1: =IF(AV1>0,1,0) -> 1 | AX1: FALSE | AY1: TRUE | AZ1: =waterfall_graph_data1 -> No tax and No Inflation | BA1: 0.08634671853 | BB1: =AU1 -> 0.08634671853 | BF1: 0.005756447713 | BJ1: =IF(AY1,BB1,BA1) -> 0.08634671853 | BQ1: =AZ1 -> No tax and No Inflation | BS1: =BB1 -> 0.08634671853 | BT1: =BQ1&BR1 -> No tax and No Inflation | BU1: =S1 -> 0.08634671853 | BV1: 0 | BW1: =P1 -> 0 | BX1: =O1 -> 0.005756447713 | BY1: =BB1 -> 0.08634671853
O2: 0.005756447713 | P2: 0.0220483227 | Q2: 0 | R2: =AV1 -> 0.08634671853 | S2: 0.08634671853 | T2: 0 | U2: 2 | V2: 1 | X2: FALSE | Y2: FALSE | Z2: FALSE | AA2: FALSE | AB2: FALSE | AC2: FALSE | AD2: TRUE | AE2: FALSE | AF2: TRUE | AG2: FALSE | AH2: FALSE | AJ2: 0.1026385935 | AU2: =IF(AX2,AV1,AV2) -> 0.1083950412 | AV2: =AV1+BA2 -> 0.1083950412 | AW2: 1 | AX2: =AV2*AV1<0 -> FALSE | AY2: FALSE | AZ2: Simple Taxes with St Line Depreciation | BA2: 0.0220483227 | BB2: 0.1083950412 | BF2: =BF1 -> 0.005756447713 | BJ2: 0.0220483227 | BQ2: Simple Taxes with St Line Depreciation | BS2: 0.1083950412 | BT2: Simple Taxes with St Line Depreciation | BU2: 0.08634671853 | BV2: 0 | BW2: 0.0220483227 | BX2: 0.005756447713 | BY2: =BB1 -> 0.08634671853 | BZ2: =BB2 -> 0.1083950412
O3: 0 | P3: 0.02809593015 | Q3: 0 | R3: 0.1083950412 | S3: 0.07454266336 | T3: 0.005756447713 | U3: 5 | V3: 1 | X3: FALSE | Y3: FALSE | Z3: FALSE | AA3: TRUE | AB3: FALSE | AC3: FALSE | AD3: FALSE | AE3: FALSE | AF3: TRUE | AG3: TRUE | AH3: FALSE | AJ3: 0.07454266336 | AU3: 0.08029911107 | AV3: 0.08029911107 | AW3: 1 | AX3: FALSE | AY3: FALSE | AZ3: Simple Taxes and Inflation | BA3: -0.02809593015 | BB3: 0.08029911107 | BF3: 0.005756447713 | BJ3: -0.02809593015 | BQ3: Simple Taxes and Inflation | BS3: 0.08029911107 | BT3: Simple Taxes and Inflation | BU3: 0.07454266336 | BV3: 0.005756447713 | BW3: 0.02809593015 | BX3: 0 | BZ3: =BB2 -> 0.1083950412 | CA3: =BB3 -> 0.08029911107
O4: 0 | P4: 0.01256190054 | Q4: 0 | R4: 0.08029911107 | S4: 0.06198076282 | T4: 0.005756447713 | U4: 5 | V4: 1 | X4: FALSE | Y4: FALSE | Z4: FALSE | AA4: TRUE | AB4: FALSE | AC4: FALSE | AD4: FALSE | AE4: FALSE | AF4: TRUE | AG4: TRUE | AH4: FALSE | AJ4: 0.06198076282 | AU4: 0.06773721054 | AV4: 0.06773721054 | AW4: 1 | AX4: FALSE | AY4: FALSE | AZ4: Accelerated Depreciation | BA4: -0.01256190054 | BB4: 0.06773721054 | BF4: 0.005756447713 | BJ4: -0.01256190054 | BQ4: Accelerated Depreciation | BS4: 0.06773721054 | BT4: Accelerated Depreciation | BU4: 0.06198076282 | BV4: 0.005756447713 | BW4: 0.01256190054 | BX4: 0 | CA4: =BB3 -> 0.08029911107 | CB4: =BB4 -> 0.06773721054
O5: 0 | P5: 0.02035519996 | Q5: 0 | R5: 0.06773721054 | S5: 0.04162556287 | T5: 0.005756447713 | U5: 5 | V5: 1 | X5: FALSE | Y5: FALSE | Z5: FALSE | AA5: TRUE | AB5: FALSE | AC5: FALSE | AD5: FALSE | AE5: FALSE | AF5: TRUE | AG5: TRUE | AH5: FALSE | AJ5: 0.04162556287 | AU5: 0.04738201058 | AV5: 0.04738201058 | AW5: 1 | AX5: FALSE | AY5: FALSE | AZ5: ITC and Accelerated Depreciation | BA5: -0.02035519996 | BB5: 0.04738201058 | BF5: 0.005756447713 | BJ5: -0.02035519996 | BQ5: ITC and Accelerated Depreciation | BS5: 0.04738201058 | BT5: ITC and Accelerated Depreciation | BU5: 0.04162556287 | BV5: 0.005756447713 | BW5: 0.02035519996 | BX5: 0 | CB5: =BB4 -> 0.06773721054 | CC5: =BB5 -> 0.04738201058
O6: 0 | P6: 0.02135031915 | Q6: 0 | R6: 0.04738201058 | S6: 0.02027524372 | T6: 0.005756447713 | U6: 5 | V6: 1 | X6: FALSE | Y6: FALSE | Z6: FALSE | AA6: TRUE | AB6: FALSE | AC6: FALSE | AD6: FALSE | AE6: FALSE | AF6: TRUE | AG6: TRUE | AH6: FALSE | AJ6: 0.02027524372 | AU6: 0.02603169143 | AV6: 0.02603169143 | AW6: 1 | AX6: FALSE | AY6: FALSE | AZ6: Prior Case with Debt Financing | BA6: -0.02135031915 | BB6: 0.02603169143 | BF6: 0.005756447713 | BJ6: -0.02135031915 | BQ6: Prior Case with Debt Financing | BS6: 0.02603169143 | BT6: Prior Case with Debt Financing | BU6: 0.02027524372 | BV6: 0.005756447713 | BW6: 0.02135031915 | BX6: 0 | CC6: =BB5 -> 0.04738201058 | CD6: =BB6 -> 0.02603169143
O7: 0.005756447713 | P7: 0 | Q7: 0 | R7: 0.02603169143 | S7: 0.02603169143 | T7: 0 | U7: 1 | V7: 1 | X7: FALSE | Y7: FALSE | Z7: FALSE | AA7: FALSE | AB7: FALSE | AC7: FALSE | AD7: FALSE | AE7: TRUE | AF7: FALSE | AG7: FALSE | AH7: FALSE | AJ7: 0.02027524372 | AU7: 0.02603169143 | AV7: 0.02603169143 | AW7: 1 | AX7: FALSE | AY7: TRUE | AZ7: Prior Case with Degradation | BA7: 0 | BB7: 0.02603169143 | BF7: 0.005756447713 | BJ7: 0.02603169143 | BQ7: Prior Case with Degradation | BS7: 0.02603169143 | BT7: Prior Case with Degradation | BU7: 0.02603169143 | BV7: 0 | BW7: 0 | BX7: 0.005756447713 | CD7: =BB6 -> 0.02603169143
B8: =COLUMN() -> 2 | C8: =COLUMN() -> 3 | D8: =COLUMN() -> 4 | E8: =COLUMN() -> 5 | F8: =COLUMN() -> 6 | G8: =COLUMN() -> 7 | H8: =COLUMN() -> 8 | I8: =COLUMN() -> 9 | J8: =COLUMN() -> 10 | K8: =COLUMN() -> 11 | L8: =COLUMN() -> 12 | M8: =COLUMN() -> 13 | N8: =COLUMN() -> 14 | O8: =COLUMN() -> 15 | P8: =COLUMN() -> 16 | Q8: =COLUMN() -> 17 | R8: =COLUMN() -> 18 | S8: =COLUMN() -> 19 | T8: =COLUMN() -> 20 | U8: =COLUMN() -> 21 | V8: =COLUMN() -> 22 | W8: =COLUMN() -> 23 | X8: =COLUMN() -> 24 | Y8: =COLUMN() -> 25 | Z8: =COLUMN() -> 26 | AA8: =COLUMN() -> 27 | AB8: =COLUMN() -> 28 | AC8: =COLUMN() -> 29 | AD8: =COLUMN() -> 30 | AE8: =COLUMN() -> 31 | AF8: =COLUMN() -> 32 | AG8: =COLUMN() -> 33 | AH8: =COLUMN() -> 34 | AI8: =COLUMN() -> 35 | AJ8: =COLUMN() -> 36 | AK8: =COLUMN() -> 37 | AL8: =COLUMN() -> 38 | AM8: =COLUMN() -> 39 | AN8: =COLUMN() -> 40 | AO8: =COLUMN() -> 41 | AP8: =COLUMN() -> 42 | AQ8: =COLUMN() -> 43 | AR8: =COLUMN() -> 44 | AS8: =COLUMN() -> 45 | AT8: =COLUMN() -> 46 | AU8: =COLUMN() -> 47 | AV8: =COLUMN() -> 48 | AW8: =COLUMN() -> 49 | AX8: =COLUMN() -> 50 | AY8: =COLUMN() -> 51 | AZ8: =COLUMN() -> 52 | BA8: =COLUMN() -> 53 | BB8: =COLUMN() -> 54 | BC8: =COLUMN() -> 55 | BD8: =COLUMN() -> 56 | BE8: =COLUMN() -> 57 | BF8: =COLUMN() -> 58 | BG8: =COLUMN() -> 59 | BH8: =COLUMN() -> 60 | BI8: =COLUMN() -> 61 | BJ8: =COLUMN() -> 62 | BK8: =COLUMN() -> 63 | BL8: =COLUMN() -> 64 | BM8: =COLUMN() -> 65 | BN8: =COLUMN() -> 66 | BO8: =COLUMN() -> 67 | BP8: =COLUMN() -> 68 | BQ8: =COLUMN() -> 69 | BR8: =COLUMN() -> 70 | BS8: =COLUMN() -> 71 | BT8: =COLUMN() -> 72 | BU8: =COLUMN() -> 73 | BV8: =COLUMN() -> 74 | BW8: =COLUMN() -> 75 | BX8: =COLUMN() -> 76 | BY8: =COLUMN() -> 77 | BZ8: =COLUMN() -> 78 | CA8: =COLUMN() -> 79 | CB8: =COLUMN() -> 80 | CC8: =COLUMN() -> 81 | CD8: =COLUMN() -> 82 | CE8: =COLUMN() -> 83 | CF8: =COLUMN() -> 84 | CG8: =COLUMN() -> 85 | CH8: =COLUMN() -> 86 | CI8: =COLUMN() -> 87 | CJ8: =COLUMN() -> 88 | CK8: =COLUMN() -> 89 | CL8: =COLUMN() -> 90 | CM8: =COLUMN() -> 91 | CN8: =COLUMN() -> 92 | CO8: =COLUMN() -> 93 | CP8: =COLUMN() -> 94 | CQ8: =COLUMN() -> 95 | CR8: =COLUMN() -> 96 | CS8: =COLUMN() -> 97 | CT8: =COLUMN() -> 98 | CU8: =COLUMN() -> 99 | CV8: =COLUMN() -> 100
O9: Final | P9: Final | Q9: Change | R9: Prior | S9: Final | T9: Final | U9: Code | V9: Sumproduct | X9: Negative | Y9: Negative | Z9: Negative | AA9: Negative | AB9: Not | AC9: Chg | AD9: Pos | AE9: Pos | AF9: Not | AG9: Neg | AH9: Neg | AJ9: Label | AU9: Cum | AV9: Raw | AX9: Chg | AY9: Tot or | AZ9: Read | BA9: Read | BB9: Conect | BF9: Label | BJ9: Label | BT9: X | BU9: Base | BV9: Label | BW9: Incr- | BX9: Label | BY9: Con-
O10: Positive | P10: Increment | Q10: Sign | R10: Cumulative | S10: Base | T10: Neg | U10: Number | V10: Test | X10: Base | Y10: Cumulative | Z10: Cumulative | AA10: Increment | AB10: Enough | AC10: Sign | AD10: Incr | AE10: Cum | AF10: Tot or | AG10: Incr | AH10: Label | AJ10: Space | AU10: Adj | AV10: Cum | AX10: Sign | AY10: Sub | AZ10: Label | BA10: Data | BB10: Adj | BF10: Input | BJ10: to Show | BT10: Axis | BU10: Bar | BV10: Minus | BW10: ment | BX10: Plus | BY10: nector
O11: Label | Q11: Adjustment | S11: Bar | T11: Label | X11: Pos Incr | Y11: and Incr | Z11: Switch | AA11: Switch | AB11: Space | AC11: Negative | AD11: Switch | AE11: Switch | AF11: Subtotal | AG11: Switch | AH11: Switch | AJ11: Avail
O12: Space | T12: Space | X12: Cde 8 | Y12: Cde 7 | Z12: Cde 6 | AA12: Cde 5 | AB12: Cde 4 | AC12: Cde 3 | AD12: Cde 2 | AE12: Cde 1 | AX12: Chart Title
S14: 1 - Cum
S15: 2 - Cum - Incr
